Workbook

Sheet INDICE
F1: ESTADOS UNIDOS DA AMÉRICA
F2: Trocas comerciais com Portugal (PT) 2019-2023 Setores agrícola e agroalimentar, do mar e das florestas
C3: Fonte
D4: Estatísticas do Comércio Internacional | F4: Estados Unidos - Síntese
D5: dados: 2022 definitivos | F5: 1. Evolução da balança comercial
F6: 2. Ranking dos parceiros comerciais de Portugal por país
C7: Data | D7: 2024-05-02T16:16:54.190 | F7: 2A Parceiros comerciais de Portugal - UE vs. Países Terceiros
F8: 3. Principais produtos transacionados (NC a 2 e 4 dígitos)
F9: 3A Principais produtos transacionados (sem mar nem florestas)
F10: 4A Evolução da balança comercial por produto
F11: 5.2. Trocas comerciais por produto (NC 2 dígitos)

Sheet Sintese
A1: Estados Unidos - Síntese (2019-2023)
A3: • As trocas comerciais de bens transacionáveis (excluindo serviços) entre Portugal e Estados Unidos representam um total de 3912 milhões de € (M€) em exportações e 2093,7 M€ em importações, na média do período 2019-2023, correspondendo a um saldo positivo da balança comercial de cerca de 1818,3 M€.
A4: • No que respeita aos produtos dos setores agrícola e agroalimentar, mar e florestas, Portugal exportou para Estados Unidos 565,3 M€ em média anual, no mesmo período (este país ocupa assim a 6ª posição em relação ao total dos países), enquanto as importações totalizaram 266 M€ (9ª posição), com um saldo positivo de 299,3 M€. Estes setores representam perto de 14,4% do total de exportações de bens transacionáveis e 12,7% das correspondentes importações.
A5: • Se nos referirmos apenas ao setor agrícola e agroalimentar, as exportações representam, em média, 197,3 M€ (9ª posição) e as importações 202,1 milhões (10ª posição), ou seja, Portugal tem um saldo negativo de -4,8 M€. Estes valores representam, respetivamente, cerca de 34,9% das exportações do setor agroflorestal e mar e 76% das importações.
A6: • As principais exportações agrícolas e agroalimentares (NC 4 dígitos) neste período são Vinhos de uvas frescas (50%), Produtos de padaria, pastelaria, etc. (8%) e Tripas de animais (excepto peixes) (7%). As importações agrícolas e agroalimentares mais relevantes referem-se a Soja, mesmo triturada (67%), Preparações p/ alimentação animal (4%) e Algodão não cardado nem penteado (3%). Se considerarmos também os produtos do mar e da floresta, merecem particular destaque, em termos de exportações, Obras de cortiça natural (21%), Vinhos de uvas frescas (17%) e Papel e cartão p/ escrita, etc. (17%). Nas importações destes setores, destacam-se Soja, mesmo triturada (51%), Madeira serrada, etc. (6%) e Peixes congelados (5%).
A9: Saldo da Balança Comercial | B9: 2019 | C9: 2020 | D9: 2021 | E9: 2022 | F9: 2023 | G9: média 2019-2023 | J9: Posição entre os parceiros comerciais de Portugal (milhares de euros)
A10: Total de Bens Transacionáveis* | B10: 1559614.418 | C10: 5825-07-14T18:27:21.600 | D10: 1544856.727 | E10: 1570671.756 | F10: 2982508.154 | G10: 1818284.965 | J10: AA + M + F | K10: Posição | L10: média 2019-2023 | M10: % do total | N10: TVMA* 2019-2023 | O10: TVT* 2019-2023
A11: Agrícola e Agroalimentar (AA) | B11: -57349.634 | C11: -1515.974 | D11: 37755.082 | E11: 9541.048 | F11: -12565.854 | G11: -4827.0664 | J11: Exportações | K11: 6ª | L11: 565282.6516 | M11: 0.0407381963 | N11: 0.01864019428 | O11: 0.07667154556
A12: Mar (M) | B12: -5846.272 | C12: 5934.632 | D12: 29351.382 | E12: 32574.016 | F12: 20282.444 | G12: 16459.2404 | J12: Importações | K12: 9ª | L12: 265975.4616 | M12: 0.01644248889 | N12: -0.01488089158 | O12: -0.05820805262
A13: Florestas (F) | B13: 264448.679 | C13: 2620-06-08T02:57:07.200 | D13: 306941.205 | E13: 353921.873 | F13: 2584-04-10T04:48:00 | G13: 287675.016 | J13: AA
A14: AA + M + F | B14: 201252.773 | C14: 2632-07-13T18:44:38.400 | D14: 374047.669 | E14: 396036.937 | F14: 2605-05-27T18:57:36 | G14: 299307.19 | J14: Exportações | K14: 9ª | L14: 197251.7052 | M14: 0.02546217657 | N14: 0.04840814609 | O14: 0.2081519159
J15: Importações | K15: 10ª | L15: 202078.7716 | M15: 0.01801425913 | N15: -0.007628539635 | O15: -0.0375651745
A16: milhares de euros *exclui serviços | K16: *TVMA - Taxa de variação média anual; TVT - Taxa de variação total
A18: Evolução das trocas comerciais Portugal-Estados Unidos em milhares de euros (2019-2023)
E27: Exportações | G27: Importações | I27: Saldo
A28: Principais produtos agrícolas e agroalimentares, do mar e da floresta transacionados (NC 4 dígitos)
A47: Principais produtos agrícolas e agroalimentares transacionados (NC 4 dígitos)
A81: Fonte: GPP a partir de dados INE/Comércio Internacional (2022 definitivos) | N81: 2024-05-02T16:16:54.190

Sheet 1
A1: Evolução da balança comercial Portugal-Estados Unidos 2019-2023 em milhões de euros
A3: Total de Bens Transacionáveis (BT)(1) | B3: 2019 | C3: 2020 | D3: 2021 | E3: 2022 | F3: 2023 | G3: média quinquénio | H3: var. 19/20 | I3: var. 20/21 | J3: var. 21/22 | K3: var. 22/23 | L3: TVMA* 2019-2023 | M3: TVT* 2019-2023
A4: Exportações | B4: 3036.16441 | C4: 2670.414349 | D4: 3547.061897 | E4: 5071.04855 | F4: 5235.275164 | G4: 3911.992874 | H4: -0.120464511 | I4: 0.32828147 | J4: 0.4296476062 | K4: 0.03238513936 | L4: 0.1459180412 | M4: 0.724305557
A5: Importações | B5: 1476.549992 | C5: 1236.64058 | D5: 2002.20517 | E5: 3500.376794 | F5: 2252.76701 | G5: 2093.707909 | H5: -0.1624797083 | I5: 0.6190679834 | J5: 0.7482607909 | K5: -0.3564215676 | L5: 0.1113913965 | M5: 0.5256964019
A6: Saldo (exp-imp) | B6: 1559.614418 | C6: 1433.773769 | D6: 1544.856727 | E6: 1570.671756 | F6: 2982.508154 | G6: 1818.284965
A7: Cobertura (exp/imp) | B7: 2.056255749 | C7: 2.159410254 | D7: 1.771577634 | E7: 1.448715052 | F7: 2.323931033 | G7: 1.868452069
A8: Exp BT Estados Unidos / Exp BT Mundo | B8: 0.05068484121 | C8: 0.04967529528 | D8: 0.05575517321 | E8: 0.06473281385 | F8: 0.06755481422 | G8: 0.05871860525 | L8: Exportações
A9: Imp BT Estados Unidos / Imp BT Mundo | B9: 0.01846215315 | C9: 0.01814704341 | D9: 0.02408067781 | E9: 0.03197105696 | F9: 0.02146155145 | G9: 0.02348671265 | L9: Importações
A10: Exp BT Estados Unidos / Exp TE Mundo | B10: 0.03255206821 | C10: 0.03594785899 | D10: 0.03965424757 | E10: 0.04218893562 | F10: 0.0415362937 | G10: 0.03886759727
A11: Imp BT Estados Unidos / Imp TE Mundo | B11: 0.01599698459 | C11: 0.01573638929 | D11: 0.02095501332 | E11: 0.02777367049 | F11: 0.0182043257 | G11: 0.02027939692
A12: (1) Todos os produtos transacionados entre PT e Estados Unidos (exclui serviços) | D12: TE - Total da Economia (bens e serviços) Fonte: INE/Contas Nacionais | H12: *TVMA - Taxa de variação média anual; TVT - Taxa de variação total
A24: Agro(1) + Mar + Florestas (AMF) | B24: 2019 | C24: 2020 | D24: 2021 | E24: 2022 | F24: 2023 | G24: média quinquénio | H24: var. 19/20 | I24: var. 20/21 | J24: var. 21/22 | K24: var. 22/23 | L24: TVMA* 2019-2023 | M24: TVT* 2019-2023
A25: Exportações | B25: 504.943297 | C25: 504.332846 | D25: 591.733208 | E25: 681.745827 | F25: 543.65808 | G25: 565.2826516 | H25: -0.001208949606 | I25: 0.1732989685 | J25: 0.1521168962 | K25: -0.2025501903 | L25: 0.01864019428 | M25: 0.07667154556
A26: Importações | B26: 303.690524 | C26: 236.779065 | D26: 217.685539 | E26: 285.70889 | F26: 286.01329 | G26: 265.9754616 | H26: -0.2203277801 | I26: -0.08063857335 | J26: 0.3124844733 | K26: 0.00106542012 | L26: -0.01488089158 | M26: -0.05820805262
A27: Saldo (exp-imp) | B27: 201.252773 | C27: 267.553781 | D27: 374.047669 | E27: 396.036937 | F27: 257.64479 | G27: 299.30719
A28: Cobertura (exp/imp) | B28: 1.662690328 | C28: 2.129972285 | D28: 2.718293602 | E28: 2.386155457 | F28: 1.90081405 | G28: 2.12531881
A29: Exp AMF / Exp BT | B29: 0.1663096028 | C29: 0.1888593979 | D29: 0.1668234796 | E29: 0.1344388286 | F29: 0.1038451778 | G29: 0.1444999185 | L29: Exportações
A30: Imp AMF / Imp BT | B30: 0.205675748 | C30: 0.1914695901 | D30: 0.1087228933 | E30: 0.08162232434 | F30: 0.1269608835 | G30: 0.1270356101 | L30: Importações
A31: Exp AMF Estados Unidos / Exp AMF Mundo | B31: 0.04269113553 | C31: 0.04372029915 | D31: 0.04417050243 | E31: 0.04159938058 | F31: 0.03349353398 | G31: 0.0407381963
A32: Imp AMF Estados Unidos / Imp AMF Mundo | B32: 0.02195348072 | C32: 0.01815040444 | D32: 0.01456615616 | E32: 0.01479335321 | F32: 0.01448620188 | G32: 0.01644248889
A33: (1) Produtos agrícolas e agroalimentares | B33: BT - Total de Bens Transacionáveis (exclui serviços) | H33: *TVMA - Taxa de variação média anual; TVT - Taxa de variação total
A45: Agroalimentar (AA)(1) | B45: 2019 | C45: 2020 | D45: 2021 | E45: 2022 | F45: 2023 | G45: média quinquénio | H45: var. 19/20 | I45: var. 20/21 | J45: var. 21/22 | K45: var. 22/23 | L45: TVMA* 2019-2023 | M45: TVT* 2019-2023
A46: Exportações | B46: 173.48989 | C46: 170.227644 | D46: 205.951149 | E46: 226.9877 | F46: 209.602143 | G46: 197.2517052 | H46: -0.01880366631 | I46: 0.2098572486 | J46: 0.102143402 | K46: -0.07659250699 | L46: 0.04840814609 | M46: 0.2081519159
A47: Importações | B47: 230.839524 | C47: 171.743618 | D47: 168.196067 | E47: 217.446652 | F47: 222.167997 | G47: 202.0787716 | H47: -0.2560042794 | I47: -0.02065608633 | J47: 0.292816508 | K47: 0.02171265897 | L47: -0.009526564235 | M47: -0.0375651745
A48: Saldo (exp-imp) | B48: -57.349634 | C48: -1.515974 | D48: 37.755082 | E48: 9.541048 | F48: -12.565854 | G48: -4.8270664
A49: Cobertura (exp/imp) | B49: 0.751560595 | C49: 0.9911730403 | D49: 1.224470659 | E49: 1.04387765 | F49: 0.9434398556 | G49: 0.9761129466
A50: Exp AA / Exp AMF | B50: 0.3435829152 | C50: 0.3375303539 | D50: 0.3480473061 | E50: 0.3329506262 | F50: 0.3855403805 | G50: 0.3489434969 | L50: Exportações
A51: Imp AA / Imp AMF | B51: 0.7601143459 | C51: 0.7253327823 | D51: 0.772656134 | E51: 0.761077655 | F51: 0.7767750827 | G51: 0.7597647181 | L51: Importações
A52: Exp AA / Exp BT | B52: 0.05714113815 | C52: 0.0637457794 | D52: 0.05806246267 | E52: 0.04476149218 | F52: 0.04003650934 | G52: 0.05042230688
A53: Imp AA / Imp BT | B53: 0.1563370866 | C53: 0.1388791705 | D53: 0.08400541039 | E53: 0.0621209272 | F53: 0.09862005081 | G53: 0.09651717449
A54: Exp AA Estados Unidos / Exp AA Mundo | B54: 0.02757458374 | C54: 0.02572548646 | D54: 0.02763776154 | E54: 0.02556917643 | F54: 0.02207193653 | G54: 0.02546217657
A55: Imp AA Estados Unidos / Imp AA Mundo | B55: 0.02477596992 | C55: 0.01890522769 | D55: 0.01637607145 | E55: 0.01642693609 | F55: 0.01566881508 | G55: 0.01801425913
A56: (1) Produtos agrícolas e agroalimentares | B56: AMF - Agroalimentar, Mar e Florestas; BT - Total de Bens Transacionáveis (exclui serviços) | H56: *TVMA - Taxa de variação média anual; TVT - Taxa de variação total
A67: Mar (M) | B67: 2019 | C67: 2020 | D67: 2021 | E67: 2022 | F67: 2023 | G67: média quinquénio | H67: var. 19/20 | I67: var. 20/21 | J67: var. 21/22 | K67: var. 22/23 | L67: TVMA* 2019-2023 | M67: TVT* 2019-2023
A68: Exportações | B68: 21.898423 | C68: 24.709633 | D68: 41.123644 | E68: 48.779926 | F68: 35.425784 | G68: 34.387482 | H68: 0.1283749976 | I68: 0.6642757907 | J68: 0.1861771296 | K68: -0.2737630639 | L68: 0.1277858919 | M68: 0.6177321993
A69: Importações | B69: 27.744695 | C69: 18.775001 | D69: 11.772262 | E69: 16.20591 | F69: 15.14334 | G69: 17.9282416 | H69: -0.3232940207 | I69: -0.372982084 | J69: 0.3766181894 | K69: -0.06556682099 | L69: -0.1404712069
A70: Saldo (exp-imp) | B70: -5.846272 | C70: 5.934632 | D70: 29.351382 | E70: 32.574016 | F70: 20.282444 | G70: 16.4592404
A71: Cobertura (exp/imp) | B71: 0.7892832486 | C71: 1.316092233 | D71: 3.49326612 | E71: 3.010008448 | F71: 2.339363971 | G71: 1.918062171
A72: Exp M / Exp AMF | B72: 0.04336808337 | C72: 0.04899469308 | D72: 0.0694969345 | E72: 0.07155148454 | F72: 0.06516188263 | G72: 0.06083236749 | L72: Exportações
A73: Imp M / Imp AMF | B73: 0.09135844818 | C73: 0.07929333195 | D73: 0.0540792101 | E73: 0.05672175619 | F73: 0.05294628092 | G73: 0.06740562265 | L73: Importações
A74: Exp M / Exp BT | B74: 0.007212528718 | C74: 0.009253108234 | D74: 0.01159372044 | E74: 0.009619297768 | F74: 0.006766747285 | G74: 0.008790272147
A75: Imp M / Imp BT | B75: 0.01879021716 | C75: 0.01518226177 | D75: 0.005879648188 | E75: 0.004629761581 | F75: 0.006722106606 | G75: 0.008562914398
A76: Exp M Estados Unidos / Exp M Mundo | B76: 0.02049671543 | C76: 0.02746522779 | D76: 0.03754123189 | E76: 0.03813548364 | F76: 0.02657123388 | G76: 0.03029284307
A77: Imp M Estados Unidos / Imp M Mundo | B77: 0.01273076549 | C77: 0.009753921666 | D77: 0.005627129439 | E77: 0.006232006575 | F77: 0.005969363845 | G77: 0.007909374795
A78: AMF - Agroalimentar, Mar e Florestas; BT - Total de Bens Transacionáveis (exclui serviços) | H78: *TVMA - Taxa de variação média anual; TVT - Taxa de variação total
A90: Florestas (F) | B90: 2019 | C90: 2020 | D90: 2021 | E90: 2022 | F90: 2023 | G90: média quinquénio | H90: var. 19/20 | I90: var. 20/21 | J90: var. 21/22 | K90: var. 22/23 | L90: TVMA* 2019-2023 | M90: TVT* 2019-2023
A91: Exportações | B91: 309.554984 | C91: 309.395569 | D91: 344.658415 | E91: 405.978201 | F91: 298.630153 | G91: 333.6434644 | H91: -0.0005149812093 | I91: 0.1139733388 | J91: 0.1779146637 | K91: -0.2644182563 | L91: -0.008942245504 | M91: -0.03529205332
A92: Importações | B92: 45.106305 | C92: 46.260446 | D92: 37.71721 | E92: 52.056328 | F92: 48.701953 | G92: 45.9684484 | H92: 0.02558713244 | I92: -0.1846769052 | J92: 0.3801744084 | K92: -0.06443741095 | L92: 0.01935928065 | M92: 0.07971497554
A93: Saldo (exp-imp) | B93: 264.448679 | C93: 263.135123 | D93: 306.941205 | E93: 353.921873 | F93: 249.9282 | G93: 287.675016
A94: Cobertura (exp/imp) | B94: 6.862787453 | C94: 6.688123348 | D94: 9.137961557 | E94: 7.798825169 | F94: 6.131790095 | G94: 7.258097152
A95: Exp F / Exp AMF | B95: 0.6130490014 | C95: 0.613474953 | D95: 0.5824557594 | E95: 0.5954978893 | F95: 0.5492977369 | G95: 0.5902241356 | L95: Exportações
A96: Imp F / Imp AMF | B96: 0.1485272059 | C96: 0.1953738858 | D96: 0.1732646559 | E96: 0.1822005889 | F96: 0.1702786364 | G96: 0.1728296593 | L96: Importações
A97: Exp F / Exp BT | B97: 0.1019559359 | C97: 0.1158605102 | D97: 0.09716729649 | E97: 0.08005803869 | F97: 0.05704192113 | G97: 0.08528733951
A98: Imp F / Imp BT | B98: 0.03054844417 | C98: 0.03740815783 | D98: 0.01883783469 | E98: 0.01487163556 | F98: 0.02161872612 | G98: 0.02195552121
A99: Exp F Estados Unidos / Exp F Mundo | B99: 0.06928609993 | C99: 0.07698920404 | D99: 0.07107325257 | E99: 0.06514572343 | F99: 0.05527960961 | G99: 0.06680931773
A100: Imp F Estados Unidos / Imp F Mundo | B100: 0.01930135509 | C100: 0.02272046248 | D100: 0.01460937365 | E100: 0.01497724048 | F100: 0.01608382649 | G100: 0.01707793065
A101: AMF - Agroalimentar, Mar e Florestas; BT - Total de Bens Transacionáveis (exclui serviços) | H101: *TVMA - Taxa de variação média anual; TVT - Taxa de variação total
A111: Fonte: GPP a partir de dados INE/Comércio Internacional (2022 definitivos) | H111: 2024-05-02T16:16:54.190

Sheet 2
A1: Ranking dos parceiros comerciais de Portugal por país (média 2019-2023 em milhares de euros) produtos agrícolas e agroalimentares, do mar e da floresta
A2: Exportações | F2: Importações | K2: Trocas comerciais (total e saldo)
A3: P | B3: País | C3: média quinquénio | D3: % do Total | F3: P | G3: País | H3: média quinquénio | I3: % do Total | K3: P | L3: País | M3: Total (exp+imp) | N3: % do Total | O3: Saldo (exp-imp)
A4: 1 | B4: Espanha | C4: 4589477.65 | D4: 0.330749654 | F4: 1 | G4: Espanha | H4: 7534700.686 | I4: 0.4657919629 | K4: 1 | L4: Espanha | M4: 12124178.34 | N4: 0.4034387285 | O4: -2945223.036
A5: 2 | B5: França | C5: 1475809.99 | D5: 0.106357124 | F5: 2 | G5: França | H5: 1064197.953 | I5: 0.06578826077 | K5: 2 | L5: França | M5: 2540007.943 | N5: 0.08452016677 | O5: 411612.0364
A6: 3 | B6: Itália | C6: 915116.4714 | D6: 0.06594965252 | F6: 3 | G6: Países Baixos | H6: 947328.0688 | I6: 0.05856341467 | K6: 3 | L6: Países Baixos | M6: 1580850.188 | N6: 0.05260366289 | O6: -313805.9492
A7: 4 | B7: Alemanha | C7: 650630.7046 | D7: 0.04688897012 | F7: 4 | G7: Alemanha | H7: 912999.7532 | I7: 0.05644125293 | K7: 4 | L7: Alemanha | M7: 1563630.458 | N7: 0.05203066685 | O7: -262369.0486
A8: 5 | B8: Países Baixos | C8: 633522.1196 | D8: 0.04565600659 | F8: 5 | G8: Brasil | H8: 813481.1404 | I8: 0.050289055 | K8: 5 | L8: Itália | M8: 1408658.586 | N8: 0.04687389224 | O8: 421574.357
A9: 6 | B9: Estados Unidos | C9: 565282.6516 | D9: 0.0407381963 | F9: 6 | G9: Itália | H9: 493542.1144 | I9: 0.03051056171 | K9: 6 | L9: Brasil | M9: 1307207.503 | N9: 0.04349805145 | O9: -319754.7774 | P9: Nota: Nesta listagem, o Reino Unido passa a ser constituído por três componentes: Reino Unido [até 2020] ; Reino Unido (sem Irlanda do Norte) pós-2020 e Reino Unido (Irlanda do Norte) pós-2020. Estas componentes são calculadas igualmente como média do quinquénio, embora a primeira corresponda apenas a 2019-2020 e as duas últimas a 2021-2023.
A10: 7 | B10: Brasil | C10: 493726.363 | D10: 0.03558135286 | F10: 7 | G10: Suécia | H10: 338954.0252 | I10: 0.02095399238 | K10: 7 | L10: Estados Unidos | M10: 831258.1132 | N10: 0.0276605727 | O10: 299307.19
A11: 8 | B11: Reino Unido (sem Irlanda do Norte) pós 2020 | C11: 454913.9818 | D11: 0.03278426295 | F11: 8 | G11: Bélgica | H11: 311896.3766 | I11: 0.01928130015 | K11: 8 | L11: Bélgica | M11: 566475.8276 | N11: 0.01884979594 | O11: -57316.9256
A12: 9 | B12: Angola | C12: 292707.7282 | D12: 0.02109455306 | F12: 9 | G12: Estados Unidos | H12: 265975.4616 | I12: 0.01644248889 | K12: 9 | L12: Reino Unido (sem Irlanda do Norte) pós 2020 | M12: 544532.3606 | N12: 0.01811961496 | O12: 365295.603
A13: 10 | B13: Reino Unido | C13: 261878.4294 | D13: 0.01887277954 | F13: 10 | G13: Polónia | H13: 241286.9558 | I13: 0.01491625606 | K13: 10 | L13: Polónia | M13: 500653.6594 | N13: 0.01665952695 | O13: 18079.7478
A14: 11 | B14: Polónia | C14: 259366.7036 | D14: 0.01869176713 | F14: 11 | G14: Ucrânia | H14: 222824.0602 | I14: 0.01377488778 | K14: 11 | L14: Suécia | M14: 438293.7972 | N14: 0.01458446811 | O14: -239614.2532
A15: 12 | B15: Bélgica | C15: 254579.451 | D15: 0.01834676444 | F15: 12 | G15: China, República Popular da | H15: 185792.3874 | I15: 0.01148560566 | K15: 12 | L15: China, República Popular da | M15: 398800.9512 | N15: 0.01327032185 | O15: 27216.1764
A16: 13 | B16: Israel | C16: 229312.128 | D16: 0.01652582555 | F16: 13 | G16: Dinamarca | H16: 157445.0856 | I16: 0.009733187625 | K16: 13 | L16: Reino Unido | M16: 360801.6302 | N16: 0.01200587346 | O16: 162955.2286
A17: 14 | B17: China, República Popular da | C17: 213008.5638 | D17: 0.01535087741 | F17: 14 | G17: África do Sul | H17: 152632.7646 | I17: 0.009435692006 | K17: 14 | L17: Angola | M17: 311606.1852 | N17: 0.01036886787 | O17: 273809.2712
A18: 15 | B18: Turquia | C18: 183340.2302 | D18: 0.01321277111 | F18: 15 | G18: Roménia | H18: 151340.3218 | I18: 0.009355793747 | K18: 15 | L18: Turquia | M18: 242682.4712 | N18: 0.008075393227 | O18: 123997.9892
A19: 16 | B19: Suíça | C19: 154487.3474 | D19: 0.01113343186 | F19: 16 | G19: Irlanda | H19: 122298.3798 | I19: 0.007560433355 | K19: 16 | L19: Dinamarca | M19: 241944.339 | N19: 0.00805083147 | O19: -72945.8322
A20: 17 | B20: Marrocos | C20: 118641.6206 | D20: 0.008550139679 | F20: 17 | G20: Canadá | H20: 119672.9708 | I20: 0.007398131698 | K20: 17 | L20: Ucrânia | M20: 239492.5 | N20: 0.007969245174 | O20: -206155.6204
A21: 18 | B21: Cabo Verde | C21: 109797.6224 | D21: 0.007912779707 | F21: 18 | G21: Argentina | H21: 105868.1334 | I21: 0.006544722574 | K21: 18 | L21: Israel | M21: 237364.4856 | N21: 0.00789843432 | O21: 221259.7704
A22: 19 | B22: Suécia | C22: 99339.772 | D22: 0.007159114331 | F22: 19 | G22: Uruguai | H22: 104314.013 | I22: 0.006448647518 | K22: 19 | L22: Canadá | M22: 218508.6438 | N22: 0.007270995772 | O22: -20837.2978
A23: 20 | B23: Canadá | C23: 98835.673 | D23: 0.007122785454 | F23: 20 | G23: Rússia, Federação da | H23: 103735.9496 | I23: 0.006412911886 | K23: 20 | L23: Irlanda | M23: 195589.7628 | N23: 0.006508357353 | O23: -49006.9968
A24: 21 | B24: Argélia | C24: 96652.6324 | D24: 0.006965460377 | F24: 21 | G24: Reino Unido | H24: 98923.2008 | I24: 0.006115389821 | K24: 21 | L24: África do Sul | M24: 189444.1922 | N24: 0.006303860098 | O24: -115821.337
A25: 22 | B25: Dinamarca | C25: 84499.2534 | D25: 0.006089603427 | F25: 22 | G25: Reino Unido (sem Irlanda do Norte) pós 2020 | H25: 89618.3788 | I25: 0.005540169718 | K25: 22 | L25: Roménia | M25: 177441.9662 | N25: 0.0059044794 | O25: -125238.6774
A26: 23 | B26: Egito | C26: 82715.0134 | D26: 0.005961018693 | F26: 23 | G26: Finlândia | H26: 81334.7174 | I26: 0.005028077325 | K26: 23 | L26: Rússia, Federação da | M26: 176432.6266 | N26: 0.005870893068 | O26: -31039.2726
A27: 24 | B27: México | C27: 78972.8492 | D27: 0.005691332334 | F27: 24 | G27: Índia | H27: 79609.9066 | I27: 0.004921450262 | K27: 24 | L27: Marrocos | M27: 161461.9424 | N27: 0.005372735285 | O27: 75821.2988
A28: 25 | B28: Japão | C28: 73363.5888 | D28: 0.005287090048 | F28: 25 | G28: Costa Rica | H28: 70759.3454 | I28: 0.004374312367 | K28: 25 | L28: Suíça | M28: 158551.5506 | N28: 0.005275890391 | O28: 150423.1442
A29: 26 | B29: Irlanda | C29: 73291.383 | D29: 0.005281886397 | F29: 26 | G29: Áustria | H29: 70408.8626 | I29: 0.00435264567 | K29: 26 | L29: Argentina | M29: 121955.0376 | N29: 0.004058121214 | O29: -89781.2292
A30: 27 | B30: Rússia, Federação da | C30: 72696.677 | D30: 0.005239027749 | F30: 27 | G30: Vietname | H30: 69724.8096 | I30: 0.004310357807 | K30: 27 | L30: Grécia | M30: 120604.866 | N30: 0.004013193508 | O30: -5813.7356
A31: 28 | B31: Luxemburgo | C31: 58628.216 | D31: 0.004225156681 | F31: 28 | G31: Grécia | H31: 63209.3008 | I31: 0.003907571849 | K31: 28 | L31: Áustria | M31: 112631.9138 | N31: 0.003747889122 | O31: -28185.8114
A32: 29 | B32: Grécia | C32: 57395.5652 | D32: 0.004136323298 | F32: 29 | G32: Turquia | H32: 59342.241 | I32: 0.003668511872 | K32: 29 | L32: Finlândia | M32: 112130.7098 | N32: 0.003731211282 | O32: -50538.725
A33: 30 | B33: Áustria | C33: 42223.0512 | D33: 0.003042886498 | F33: 30 | G33: Equador | H33: 58414.7256 | I33: 0.003611173268 | K33: 30 | L33: Índia | M33: 110947.4156 | N33: 0.003691836514 | O33: -48272.3976
A34: 31 | B34: Moçambique | C34: 41346.8404 | D34: 0.002979740659 | F34: 31 | G34: Chile | H34: 53583.805 | I34: 0.00331252783 | K34: 31 | L34: Cabo Verde | M34: 110216.5244 | N34: 0.003667515706 | O34: 109378.7204
A35: 32 | B35: África do Sul | C35: 36811.4276 | D35: 0.002652887293 | F35: 32 | G35: Bulgária | H35: 44086.0538 | I35: 0.002725380927 | K35: 32 | L35: Uruguai | M35: 107585.2684 | N35: 0.003579959209 | O35: -101042.7576
A36: 33 | B36: Arábia Saudita | C36: 35880.8896 | D36: 0.002585826258 | F36: 33 | G36: Marrocos | H36: 42820.3218 | I36: 0.002647133918 | K36: 33 | L36: Argélia | M36: 103327.6826 | N36: 0.003438285691 | O36: 89977.5822
A37: 34 | B37: Austrália | C37: 35113.0132 | D37: 0.002530487749 | F37: 34 | G37: Checa, República | H37: 40116.599 | I37: 0.002479990934 | K37: 34 | L37: Egito | M37: 96954.5744 | N37: 0.003226216997 | O37: 68475.4524
A38: 35 | B38: Guiné-Bissau | C38: 34934.7244 | D38: 0.002517639019 | F38: 35 | G38: Moçambique | H38: 38763.0688 | I38: 0.002396316278 | K38: 35 | L38: México | M38: 96736.9562 | N38: 0.003218975631 | O38: 61208.7422
A39: 36 | B39: Índia | C39: 31337.509 | D39: 0.002258398678 | F39: 36 | G39: Cuba | H39: 37252.762 | I39: 0.00230294976 | K39: 36 | L39: Japão | M39: 88210.8558 | N39: 0.002935264933 | O39: 58516.3218
A40: 37 | B40: Emirados Árabes Unidos | C40: 31194.84 | D40: 0.002248116959 | F40: 37 | G40: Colômbia | H40: 31648.7828 | I40: 0.001956514171 | K40: 37 | L40: Chile | M40: 83999.5896 | N40: 0.002795132725 | O40: -23168.0204
A41: 38 | B41: Checa, República | C41: 30815.952 | D41: 0.002220811656 | F41: 38 | G41: Guiana | H41: 31014.2578 | I41: 0.001917288108 | K41: 38 | L41: Moçambique | M41: 80109.9092 | N41: 0.002665701462 | O41: 2583.7716
A42: 39 | B42: Finlândia | C42: 30795.9924 | D42: 0.002219373229 | F42: 39 | G42: Indonésia | H42: 29000.573 | I42: 0.001792802977 | K42: 39 | L42: Vietname | M42: 76018.5502 | N42: 0.002529559232 | O42: -63431.069
A43: 40 | B43: Chile | C43: 30415.7846 | D43: 0.002191972812 | F43: 40 | G43: Hungria | H43: 27853.1164 | I43: 0.001721867703 | K43: 40 | L43: Costa Rica | M43: 75105.2118 | N43: 0.002499167392 | O43: -66413.479
A44: 41 | B44: Jordânia | C44: 29568.7308 | D44: 0.002130928229 | F44: 41 | G44: Costa do Marfim | H44: 23657.68 | I44: 0.001462507625 | K44: 41 | L44: Checa, República | M44: 70932.551 | N44: 0.0023603198 | O44: -9300.647
A45: 42 | B45: São Tomé e Príncipe | C45: 26643.6118 | D45: 0.001920123826 | F45: 42 | G45: Uganda | H45: 22974.374 | I45: 0.001420265941 | K45: 42 | L45: Luxemburgo | M45: 67457.2882 | N45: 0.002244678512 | O45: 49799.1438
A46: 43 | B46: Roménia | C46: 26101.6444 | D46: 0.001881065889 | F46: 43 | G46: Namíbia | H46: 22899.6914 | I46: 0.001415649095 | K46: 43 | L46: Equador | M46: 61226.8336 | N46: 0.002037356695 | O46: -55602.6176
A47: 44 | B47: Tunísia | C47: 25934.5578 | D47: 0.001869024467 | F47: 44 | G47: Peru | H47: 21918.8742 | I47: 0.001355015397 | K47: 44 | L47: Bulgária | M47: 58372.2568 | N47: 0.001942369075 | O47: -29799.8508
A48: 45 | B48: Noruega | C48: 23600.8176 | D48: 0.00170083893 | F48: 45 | G48: Letónia | H48: 19634.0354 | I48: 0.001213767643 | K48: 45 | L48: Austrália | M48: 52768.539 | N48: 0.001755902271 | O48: 17457.4874
A49: 46 | B49: Coreia, República da | C49: 22131.0668 | D49: 0.001594918473 | F49: 46 | G49: Lituânia | H49: 19279.9074 | I49: 0.001191875602 | K49: 46 | L49: Hungria | M49: 47560.2566 | N49: 0.001582593799 | O49: -8145.9762
A50: 47 | B50: Hungria | C50: 19707.1402 | D50: 0.001420233477 | F50: 47 | G50: Angola | H50: 18898.457 | I50: 0.001168294502 | K50: 47 | L50: Cuba | M50: 44341.484 | N50: 0.001475487363 | O50: -30164.04
A51: 48 | B51: Nigéria | C51: 18837.3684 | D51: 0.001357551677 | F51: 48 | G51: Suazilândia | H51: 17908.5294 | I51: 0.001107097602 | K51: 48 | L51: Colômbia | M51: 40554.3906 | N51: 0.001349469739 | O51: -22743.175
A52: 49 | B52: Ucrânia | C52: 16668.4398 | D52: 0.001201243609 | F52: 49 | G52: México | H52: 17764.107 | I52: 0.001098169471 | K52: 49 | L52: Noruega | M52: 38853.5172 | N52: 0.001292872238 | O52: 8348.118
A53: 50 | B53: Argentina | C53: 16086.9042 | D53: 0.001159334112 | F53: 50 | G53: Austrália | H53: 17655.5258 | I53: 0.001091457028 | K53: 50 | L53: Tunísia | M53: 37484.3298 | N53: 0.001247311771 | O53: 14384.7858
A54: 51 | B54: Lituânia | C54: 15764.2352 | D54: 0.001136080342 | F54: 51 | G54: Senegal | H54: 16694.6988 | I54: 0.001032059115 | K54: 51 | L54: Arábia Saudita | M54: 35932.1724 | N54: 0.001195662877 | O54: 35829.6068
A55: 52 | B55: Macau | C55: 14584.6512 | D55: 0.001051071321 | F55: 52 | G55: Nova Zelânda | H55: 16509.396 | I55: 0.001020603776 | K55: 52 | L55: Costa do Marfim | M55: 35761.2586 | N55: 0.001189975626 | O55: -11554.1014
A56: 53 | B56: Bulgária | C56: 14286.203 | D56: 0.00102956307 | F56: 53 | G56: Estónia | H56: 16320.5418 | I56: 0.00100892889 | K56: 53 | L56: Guiné-Bissau | M56: 35226.5238 | N56: 0.00117218203 | O56: 34642.925
A57: 54 | B57: Líbia, Jamahira Árabe da | C57: 13798.5402 | D57: 0.0009944186996 | F57: 54 | G57: Eslovénia | H57: 16026.5852 | I57: 0.0009907566193 | K57: 54 | L57: Coreia, República da | M57: 35092.7906 | N57: 0.001167731984 | O57: 9169.343
A58: 55 | B58: Iraque | C58: 13659.5246 | D58: 0.0009844002694 | F58: 55 | G58: Noruega | H58: 15252.6996 | I58: 0.0009429153436 | K58: 55 | L58: Lituânia | M58: 35044.1426 | N58: 0.001166113195 | O58: -3515.6722
A59: 56 | B59: Senegal | C59: 13224.0438 | D59: 0.0009530164966 | F59: 56 | G59: Japão | H59: 14847.267 | I59: 0.0009178516743 | K59: 56 | L59: Indonésia | M59: 33328.2666 | N59: 0.001109016473 | O59: -24672.8794
A60: 57 | B60: Letónia | C60: 13144.4668 | D60: 0.0009472816249 | F60: 57 | G60: Egito | H60: 14239.561 | I60: 0.0008802835502 | K60: 57 | L60: Letónia | M60: 32778.5022 | N60: 0.001090722759 | O60: -6489.5686
A61: 58 | B61: Eslováquia | C61: 12793.9168 | D61: 0.0009220185558 | F61: 58 | G61: Mauritânia | H61: 13443.2356 | I61: 0.0008310550557 | K61: 58 | L61: Emirados Árabes Unidos | M61: 31953.4188 | N61: 0.001063267654 | O61: 30436.2612
A62: 59 | B62: Croácia | C62: 12333.56 | D62: 0.0008888420455 | F62: 59 | G62: Tanzânia, República Unida da | H62: 13079.5878 | I62: 0.0008085745048 | K62: 59 | L62: Guiana | M62: 31130.901 | N62: 0.00103589792 | O62: -30897.6146
A63: 60 | B63: Costa do Marfim | C63: 12103.5786 | D63: 0.0008722679876 | F63: 60 | G63: Camarões | H63: 13022.8276 | I63: 0.0008050656135 | K63: 60 | L63: Senegal | M63: 29918.7426 | N63: 0.0009955626797 | O63: -3470.655
A64: 61 | B64: Síria, República Árabe da | C64: 11995.3212 | D64: 0.000864466207 | F64: 61 | G64: Coreia, República da | H64: 12961.7238 | I64: 0.0008012882029 | K64: 61 | L64: Jordânia | M64: 29716.5252 | N64: 0.0009888337841 | O64: 29420.9364
A65: 62 | B65: Dominicana, República | C65: 11848.0206 | D65: 0.0008538507021 | F65: 62 | G65: Paquistão | H65: 12615.7756 | I65: 0.0007799018336 | K65: 62 | L65: São Tomé e Príncipe | M65: 27732.7016 | N65: 0.0009228209584 | O65: 25554.522
A66: 63 | B66: Território Palestiniano Ocupado | C66: 11806.0928 | D66: 0.0008508290935 | F66: 63 | G66: Tailândia | H66: 12316.114 | I66: 0.0007613768821 | K66: 63 | L66: Peru | M66: 27430.0544 | N66: 0.0009127502057 | O66: -16407.694
A67: 64 | B67: HongKong | C67: 11528.0934 | D67: 0.0008307945247 | F67: 64 | G67: Moldava, República de | H67: 12178.8658 | I67: 0.0007528922573 | K67: 64 | L67: Nigéria | M67: 25016.4128 | N67: 0.0008324349488 | O67: 12658.324
A68: 65 | B68: Kuwait | C68: 10775.802 | D68: 0.0007765791784 | F68: 65 | G68: Sérvia | H68: 11730.1152 | I68: 0.0007251506877 | K68: 65 | L68: Estónia | M68: 24786.1618 | N68: 0.0008247732196 | O68: -7854.9218
A69: 66 | B69: Chipre | C69: 10753.9998 | D69: 0.0007750079604 | F69: 66 | G69: Tunísia | H69: 11549.772 | I69: 0.0007140019485 | K69: 66 | L69: Uganda | M69: 24133.8048 | N69: 0.0008030656803 | O69: -21814.9432
A70: 67 | B70: Malta | C70: 10377.2016 | D70: 0.0007478532635 | F70: 67 | G70: Belize | H70: 10934.5394 | I70: 0.0006759685332 | K70: 67 | L70: Eslovénia | M70: 23946.301 | N70: 0.0007968263878 | O70: -8106.8694
A71: 68 | B71: Tailândia | C71: 9256.6804 | D71: 0.0006671007188 | F71: 68 | G71: Paraguai | H71: 10263.5706 | I71: 0.0006344895299 | K71: 68 | L71: Namíbia | M71: 23765.809 | N71: 0.0007908204168 | O71: -22033.5738
A72: 69 | B72: Colômbia | C72: 8905.6078 | D72: 0.0006417999875 | F72: 69 | G72: Maurícias | H72: 9873.1322 | I72: 0.0006103527956 | K72: 69 | L72: Camarões | M72: 21652.1438 | N72: 0.0007204870402 | O72: -4393.5114
A73: 70 | B73: Geórgia | C73: 8776.724 | D73: 0.0006325117252 | F73: 70 | G73: Reino Unido (Irlanda do Norte) pós-2020 | H73: 9138.2728 | I73: 0.0005649241029 | K73: 70 | L73: Tailândia | M73: 21572.7944 | N73: 0.0007178466451 | O73: -3059.4336
A74: 71 | B74: Líbano | C74: 8677.7716 | D74: 0.0006253805276 | F74: 71 | G74: Islândia | H74: 9112.164 | I74: 0.000563310068 | K74: 71 | L74: Nova Zelânda | M74: 20810.7044 | N74: 0.0006924876796 | O74: -12208.0876
A75: 72 | B75: Camarões | C75: 8629.3162 | D75: 0.0006218884947 | F75: 72 | G75: Luxemburgo | H75: 8829.0722 | I75: 0.0005458094545 | K75: 72 | L75: Croácia | M75: 20488.528 | N75: 0.000681767082 | O75: 4178.592
A76: 73 | B76: Estónia | C76: 8465.62 | D76: 0.0006100914089 | F76: 73 | G76: Croácia | H76: 8154.968 | I76: 0.0005041366221 | K76: 73 | L76: Eslováquia | M76: 20124.608 | N76: 0.000669657443 | O76: 5463.2256
A77: 74 | B77: Gana | C77: 8178.0838 | D77: 0.0005893695521 | F77: 74 | G77: Israel | H77: 8052.3576 | I77: 0.0004977932912 | K77: 74 | L77: Suazilândia | M77: 19975.6478 | N77: 0.0006647007101 | O77: -15841.411
A78: 75 | B78: Eslovénia | C78: 7919.7158 | D78: 0.0005707497585 | F78: 75 | G78: Bangladesh | H78: 7823.177 | I78: 0.0004836254449 | K78: 75 | L78: Sérvia | M78: 19112.5644 | N78: 0.0006359811335 | O78: -4347.666
A79: 76 | B79: Belarus | C79: 7872.655 | D79: 0.0005673582302 | F79: 76 | G79: Malásia | H79: 7805.5168 | I79: 0.0004825336989 | K79: 76 | L79: Paquistão | M79: 17209.3712 | N79: 0.0005726513289 | O79: -8022.18
A80: 77 | B80: Sérvia | C80: 7382.4492 | D80: 0.0005320305936 | F80: 77 | G80: Quénia | H80: 7356.7132 | I80: 0.0004547888529 | K80: 77 | L80: Mauritânia | M80: 16816.7526 | N80: 0.0005595867282 | O80: -10069.7186
A81: 78 | B81: Gibraltar | C81: 7309.7404 | D81: 0.0005267906922 | F81: 78 | G81: Eslováquia | H81: 7330.6912 | I81: 0.0004531801841 | K81: 78 | L81: Maurícias | M81: 16663.174 | N81: 0.0005544763155 | O81: -3083.0904
A82: 79 | B82: Cuba | C82: 7088.722 | D82: 0.0005108625703 | F82: 79 | G82: Filipinas | H82: 7323.2812 | I82: 0.000452722101 | K82: 79 | L82: Moldava, República de | M82: 15413.0416 | N82: 0.0005128774696 | O82: -8944.69
A83: 80 | B83: Maurícias | C83: 6790.0418 | D83: 0.0004893375994 | F83: 80 | G83: Gana | H83: 6780.4694 | I83: 0.0004191657085 | K83: 80 | L83: Chipre | M83: 14994.9744 | N83: 0.0004989660527 | O83: 6513.0252
A84: 81 | B84: Taiwan | C84: 6498.8018 | D84: 0.0004683488211 | F84: 81 | G84: Argélia | H84: 6675.0502 | I84: 0.0004126487388 | K84: 81 | L84: Gana | M84: 14958.5532 | N84: 0.0004977541171 | O84: 1397.6144
A85: 82 | B85: Vietname | C85: 6293.7406 | D85: 0.0004535706859 | F85: 82 | G85: Nigéria | H85: 6179.0444 | I85: 0.0003819858731 | K85: 82 | L85: Macau | M85: 14605.4142 | N85: 0.0004860032219 | O85: 14563.8882
A86: 83 | B86: Andorra | C86: 6022.5714 | D86: 0.0004340283489 | F86: 83 | G86: Panamá | H86: 5653.6226 | I86: 0.0003495045229 | K86: 83 | L86: HongKong | M86: 14502.5934 | N86: 0.000482581803 | O86: 8553.5934
A87: 84 | B87: Guatemala | C87: 5731.0826 | D87: 0.0004130216402 | F87: 84 | G87: Congo | H87: 5587.8752 | I87: 0.0003454400469 | K87: 84 | L87: Dominicana, República | M87: 14480.0812 | N87: 0.0004818326971 | O87: 9215.96
A88: 85 | B88: Peru | C88: 5511.1802 | D88: 0.0003971739451 | F88: 85 | G88: Honduras | H88: 5352.3066 | I88: 0.0003308772971 | K88: 85 | L88: Líbia, Jamahira Árabe da | M88: 13839.6806 | N88: 0.0004605230136 | O88: 13757.3998
A89: 86 | B89: Singapura | C89: 5118.6402 | D89: 0.0003688847847 | F89: 86 | G89: Camboja | H89: 5251.3418 | I89: 0.0003246356965 | K89: 86 | L89: Iraque | M89: 13672.6982 | N89: 0.000454966582 | O89: 13646.351
A90: 87 | B90: Omã | C90: 4766.6966 | D90: 0.0003435212831 | F90: 87 | G90: Zimbabwe | H90: 5173.412 | I90: 0.0003198181097 | K90: 87 | L90: Tanzânia, República Unida da | M90: 13489.132 | N90: 0.0004488583154 | O90: -12670.0436
A91: 88 | B91: Panamá | C91: 4742.5904 | D91: 0.0003417840228 | F91: 88 | G91: Etiópia | H91: 4865.2444 | I91: 0.0003007673209 | K91: 88 | L91: Malta | M91: 12868.9092 | N91: 0.0004282200592 | O91: 7885.494
A92: 89 | B92: Paquistão | C92: 4593.5956 | D92: 0.0003310464221 | F92: 89 | G92: Sri Lanca | H92: 4526.3628 | I92: 0.0002798178058 | K92: 89 | L92: Reino Unido (Irlanda do Norte) pós-2020 | M92: 12739.7782 | N92: 0.0004239231539 | O92: -5536.7674
A93: 90 | B93: Mali | C93: 4507.5844 | D93: 0.0003248478573 | F93: 90 | G93: Suriname | H93: 4461.0484 | I93: 0.0002757800977 | K93: 90 | L93: Kuwait | M93: 12319.6144 | N93: 0.0004099419715 | O93: 9231.9896
A94: 91 | B94: Costa Rica | C94: 4345.8664 | D94: 0.0003131933343 | F94: 91 | G94: Macedónia, Antiga República jugoslava da | H94: 4419.1744 | I94: 0.0002731914649 | K94: 91 | L94: Síria, República Árabe da | M94: 12141.732 | N94: 0.0004040228364 | O94: 11848.9104
A95: 92 | B95: Indonésia | C95: 4327.6936 | D95: 0.0003118836761 | F95: 92 | G95: Myanmar | H95: 4417.7084 | I95: 0.0002731008374 | K95: 92 | L95: Território Palestiniano Ocupado | M95: 11817.7626 | N95: 0.0003932425757 | O95: 11794.423
A96: 93 | B96: Nova Zelânda | C96: 4301.3084 | D96: 0.0003099821752 | F96: 93 | G96: Papuásia-Nova Guiné | H96: 4268.11 | I96: 0.0002638527286 | K96: 93 | L96: Paraguai | M96: 11233.3798 | N96: 0.0003737969154 | O96: -9293.7614
A97: 94 | B97: Burquina Faso | C97: 4086.0794 | D97: 0.0002944712777 | F97: 94 | G97: Chipre | H97: 4240.9746 | I97: 0.0002621752298 | K97: 94 | L97: Islândia | M97: 10997.3204 | N97: 0.0003659419085 | O97: -7227.0076
A98: 95 | B98: Venezuela | C98: 3914.122 | D98: 0.0002820788325 | F98: 95 | G98: Suíça | H98: 4064.2032 | I98: 0.0002512472977 | K98: 95 | L98: Belize | M98: 10954.0486 | N98: 0.0003645020155 | O98: -10915.0302
A99: 96 | B99: Reino Unido (Irlanda do Norte) pós-2020 | C99: 3601.5054 | D99: 0.0002595495077 | F99: 96 | G99: Guatemala | H99: 3891.5604 | I99: 0.0002405745939 | K99: 96 | L99: Filipinas | M99: 10864.8014 | N99: 0.0003615322656 | O99: -3781.761
A100: 97 | B100: Filipinas | C100: 3541.5202 | D100: 0.0002552265574 | F100: 97 | G100: Malavi | H100: 3761.9744 | I100: 0.000232563643 | K100: 97 | L100: Malásia | M100: 10802.9 | N100: 0.0003594724623 | O100: -4808.1336
A101: 98 | B101: Catar | C101: 3509.4766 | D101: 0.0002529172729 | F101: 98 | G101: Congo, República Democrática do | H101: 3658.6746 | I101: 0.0002261776937 | K101: 98 | L101: Panamá | M101: 10396.213 | N101: 0.0003459397279 | O101: -911.0322
A102: 99 | B102: Mauritânia | C102: 3373.517 | D102: 0.0002431190792 | F102: 99 | G102: Madagáscar | H102: 3530.0814 | I102: 0.0002182281172 | K102: 99 | L102: Bangladesh | M102: 9992.5026 | N102: 0.0003325060414 | O102: -5653.8514
A103: 100 | B103: Uruguai | C103: 3271.2554 | D103: 0.0002357493977 | F103: 100 | G103: Taiwan | H103: 3371.904 | I103: 0.0002084496582 | K103: 100 | L103: Taiwan | M103: 9870.7058 | N103: 0.0003284531856 | O103: 3126.8978
A104: 101 | B104: Moldava, República de | C104: 3234.1758 | D104: 0.000233077184 | F104: 101 | G104: Nicarágua | H104: 3348.1498 | I104: 0.0002069811838 | K104: 101 | L104: Geórgia | M104: 9763.0358 | N104: 0.0003248704069 | O104: 7790.4122
A105: 102 | B105: Guiné | C105: 3199.9078 | D105: 0.0002306075938 | F105: 102 | G105: Gâmbia | H105: 3121.0524 | I105: 0.00019294212 | K105: 102 | L105: Quénia | M105: 9728.6568 | N105: 0.0003237264267 | O105: -4984.7696
A106: 103 | B106: Malásia | C106: 2997.3832 | D106: 0.0002160122637 | F106: 103 | G106: HongKong | H106: 2974.5 | I106: 0.0001838823135 | K106: 103 | L106: Guatemala | M106: 9622.643 | N106: 0.000320198759 | O106: 1839.5222
A107: 104 | B107: Gabão | C107: 2969.7446 | D107: 0.0002140204341 | F107: 104 | G107: Gabão | H107: 2833.2392 | I107: 0.0001751496315 | K107: 104 | L107: Líbano | M107: 9030.5168 | N107: 0.0003004954327 | O107: 8325.0264
A108: 105 | B108: Equador | C108: 2812.108 | D108: 0.0002026600452 | F108: 105 | G108: Dominicana, República | H108: 2632.0606 | I108: 0.0001627128568 | K108: 105 | L108: Belarus | M108: 8568.8254 | N108: 0.0002851323965 | O108: 7176.4846
A109: 106 | B109: Arménia | C109: 2727.7232 | D109: 0.0001965786901 | F109: 106 | G109: Malta | H109: 2491.7076 | I109: 0.0001540362945 | K109: 106 | L109: Congo | M109: 8278.2768 | N109: 0.0002754642314 | O109: -2897.4736
A110: 107 | B110: Guiné Equatorial | C110: 2712.0278 | D110: 0.0001954475705 | F110: 107 | G110: Mali | H110: 2475.2544 | I110: 0.0001530191648 | K110: 107 | L110: Gibraltar | M110: 7352.4128 | N110: 0.0002446555956 | O110: 7267.068
A111: 108 | B111: Congo | C111: 2690.4016 | D111: 0.0001938890362 | F111: 108 | G111: Centro-Africana, República | H111: 2466.2132 | I111: 0.0001524602417 | K111: 108 | L111: Mali | M111: 6982.8388 | N111: 0.0002323578167 | O111: 2032.33
A112: 109 | B112: Timor-Leste | C112: 2668.7438 | D112: 0.0001923282246 | F112: 109 | G112: Benim | H112: 1927.4492 | I112: 0.0001191540824 | K112: 109 | L112: Singapura | M112: 6659.3268 | N112: 0.0002215927762 | O112: 3577.9536
A113: 110 | B113: Benim | C113: 2476.0626 | D113: 0.0001784422783 | F113: 110 | G113: Serra Leoa | H113: 1903.7664 | I113: 0.0001176900219 | K113: 110 | L113: Honduras | M113: 6528.2066 | N113: 0.0002172296792 | O113: -4176.4066
A114: 111 | B114: Quénia | C114: 2371.9436 | D114: 0.0001709387396 | F114: 111 | G114: Laos, República Democrática Popular do | H114: 1764.877 | I114: 0.0001091039388 | K114: 111 | L114: Etiópia | M114: 6273.7972 | N114: 0.0002087640659 | O114: -3456.6916
A115: 112 | B115: Seychelles | C115: 2348.937 | D115: 0.0001692807241 | F115: 112 | G115: Burquina Faso | H115: 1596.8146 | I115: 9.871439331e-05 | K115: 112 | L115: Camboja | M115: 6129.6458 | N115: 0.0002039673485 | O115: -4373.0378
A116: 113 | B116: Congo, República Democrática do | C116: 2232.4506 | D116: 0.0001608859046 | F116: 113 | G116: Kuwait | H116: 1543.8124 | I116: 9.543782005e-05 | K116: 113 | L116: Andorra | M116: 6085.3588 | N116: 0.0002024936741 | O116: 5959.784
A117: 114 | B117: Bangladesh | C117: 2169.3256 | D117: 0.0001563366784 | F117: 114 | G117: Singapura | H117: 1540.6866 | I117: 9.524458443e-05 | K117: 114 | L117: Sri Lanca | M117: 6081.5556 | N117: 0.0002023671205 | O117: -2971.17
A118: 115 | B118: Suazilândia | C118: 2067.1184 | D118: 0.0001489709173 | F118: 115 | G118: Seychelles | H118: 1430.66 | I118: 8.844278724e-05 | K118: 115 | L118: Congo, República Democrática do | M118: 5891.1252 | N118: 0.0001960304438 | O118: -1426.224
A119: 116 | B119: Irão, República Islâmica do | C119: 2015.5486 | D119: 0.0001452544391 | F119: 116 | G119: Bolívia | H119: 1415.5294 | I119: 8.750742004e-05 | K119: 116 | L119: Gabão | M119: 5802.9838 | N119: 0.0001930974901 | O119: 136.5054
A120: 117 | B120: Islândia | C120: 1885.1564 | D120: 0.0001358574711 | F120: 117 | G120: São Tomé e Príncipe | H120: 1089.0898 | I120: 6.732706406e-05 | K120: 117 | L120: Burquina Faso | M120: 5682.894 | N120: 0.0001891014357 | O120: 2489.2648
A121: 118 | B121: Togo | C121: 1879.1826 | D121: 0.0001354269575 | F121: 118 | G121: Venezuela | H121: 1080.4086 | I121: 6.6790396e-05 | K121: 118 | L121: Omã | M121: 5590.2944 | N121: 0.0001860201329 | O121: 3943.0988
A122: 119 | B122: Sudão | C122: 1868.0632 | D122: 0.0001346256163 | F122: 119 | G122: Bósnia-Herzegovina | H122: 1034.9794 | I122: 6.398198235e-05 | K122: 119 | L122: Macedónia, Antiga República jugoslava da | M122: 5497.1524 | N122: 0.0001829207814 | O122: -3341.1964
A123: 120 | B123: Nicarágua | C123: 1709.2518 | D123: 0.0001231805631 | F123: 120 | G123: Geórgia | H123: 986.3118 | I123: 6.097337221e-05 | K123: 120 | L123: Zimbabwe | M123: 5240.2714 | N123: 0.0001743729243 | O123: -5106.5526
A124: 121 | B124: Jamaica | C124: 1645.8018 | D124: 0.0001186079152 | F124: 121 | G124: Cazaquistão | H124: 977.1902 | I124: 6.040947881e-05 | K124: 121 | L124: Suriname | M124: 5124.6412 | N124: 0.0001705252655 | O124: -3797.4556
A125: 122 | B125: El Salvador | C125: 1616.0178 | D125: 0.0001164614732 | F125: 122 | G125: El Salvador | H125: 921.9616 | I125: 5.699527046e-05 | K125: 122 | L125: Nicarágua | M125: 5057.4016 | N125: 0.0001682878307 | O125: -1638.898
A126: 123 | B126: Cazaquistão | C126: 1586.0954 | D126: 0.0001143050571 | F126: 123 | G126: Omã | H126: 823.5978 | I126: 5.091446255e-05 | K126: 123 | L126: Venezuela | M126: 4994.5306 | N126: 0.0001661957635 | O126: 2833.7134
A127: 124 | B127: Sri Lanca | C127: 1555.1928 | D127: 0.000112078001 | F127: 124 | G127: Timor-Leste | H127: 773.0574 | I127: 4.779007671e-05 | K127: 124 | L127: Myanmar | M127: 4788.3204 | N127: 0.0001593340052 | O127: -4047.0964
A128: 125 | B128: Ruanda | C128: 1542.3664 | D128: 0.0001111536414 | F128: 125 | G128: Emirados Árabes Unidos | H128: 758.5788 | I128: 4.689501588e-05 | K128: 125 | L128: Benim | M128: 4403.5118 | N128: 0.0001465292866 | O128: 548.6134
A129: 126 | B129: Azerbaijão | C129: 1447.7444 | D129: 0.0001043345225 | F129: 126 | G129: Belarus | H129: 696.1704 | I129: 4.303695537e-05 | K129: 126 | L129: Papuásia-Nova Guiné | M129: 4270.9956 | N129: 0.0001421197368 | O129: -4265.2244
A130: 127 | B130: Etiópia | C130: 1408.5528 | D130: 0.0001015101035 | F130: 127 | G130: Turquemenistão | H130: 693.7048 | I130: 4.288453304e-05 | K130: 127 | L130: Madagáscar | M130: 3916.3472 | N130: 0.0001303186155 | O130: -3143.8156
A131: 128 | B131: Albânia | C131: 1395.6804 | D131: 0.0001005824289 | F131: 128 | G131: Iémen | H131: 684.2014 | I131: 4.229703693e-05 | K131: 128 | L131: Seychelles | M131: 3779.597 | N131: 0.0001257681771 | O131: 918.277
A132: 129 | B132: Bolívia | C132: 1235.6182 | D132: 8.904723441e-05 | F132: 129 | G132: Gronelândia | H132: 628.3832 | I132: 3.884637976e-05 | K132: 129 | L132: Malavi | M132: 3770.4898 | N132: 0.00012546513 | O132: -3753.459
A133: 130 | B133: Montenegro | C133: 1193.9358 | D133: 8.604331099e-05 | F133: 130 | G133: Faroé, Ilhas | H133: 595.1746 | I133: 3.679343836e-05 | K133: 130 | L133: Gâmbia | M133: 3599.2092 | N133: 0.0001197656734 | O133: -2642.8956
A134: 131 | B134: São Bartolomeu | C134: 1183.3114 | D134: 8.527764289e-05 | F134: 131 | G134: Cabo Verde | H134: 418.902 | I134: 2.589634187e-05 | K134: 131 | L134: Catar | M134: 3530.8284 | N134: 0.0001174902646 | O134: 3488.1248
A135: 132 | B135: Honduras | C135: 1175.9 | D135: 8.47435259e-05 | F135: 132 | G135: Usbequistão | H135: 380.4082 | I135: 2.351667167e-05 | K135: 132 | L135: Guiné | M135: 3487.284 | N135: 0.0001160413006 | O135: 2912.5316
A136: 133 | B136: Uganda | C136: 1159.4308 | D136: 8.35566409e-05 | F136: 133 | G136: Líbano | H136: 352.7452 | I136: 2.180655689e-05 | K136: 133 | L136: Timor-Leste | M136: 3441.8012 | N136: 0.0001145278353 | O136: 1895.6864
A137: 134 | B137: Macedónia, Antiga República jugoslava da | C137: 1077.978 | D137: 7.768658608e-05 | F137: 134 | G137: Chade | H137: 303.1764 | I137: 1.874223494e-05 | K137: 134 | L137: Arménia | M137: 2777.2048 | N137: 9.241302316e-05 | O137: 2678.2416
A138: 135 | B138: Paraguai | C138: 969.8092 | D138: 6.989119063e-05 | F138: 135 | G138: Guiné-Bissau | H138: 291.7994 | I138: 1.803891368e-05 | K138: 135 | L138: Guiné Equatorial | M138: 2721.8116 | N138: 9.056978384e-05 | O138: 2702.244
A139: 136 | B139: Bermudas | C139: 957.27 | D139: 6.898752874e-05 | F139: 136 | G139: Guiné | H139: 287.3762 | I139: 1.776547336e-05 | K139: 136 | L139: Bolívia | M139: 2651.1476 | N139: 8.821840023e-05 | O139: -179.9112
A140: 137 | B140: Aruba | C140: 940.2512 | D140: 6.776103574e-05 | F140: 137 | G140: Togo | H140: 238.6312 | I140: 1.475207838e-05 | K140: 137 | L140: Centro-Africana, República | M140: 2569.5112 | N140: 8.550190394e-05 | O140: -2362.9152
A141: 138 | B141: Barbados | C141: 924.8742 | D141: 6.665286225e-05 | F141: 138 | G141: Irão, República Islâmica do | H141: 211.8398 | I141: 1.309584553e-05 | K141: 138 | L141: Cazaquistão | M141: 2563.2856 | N141: 8.529474366e-05 | O141: 608.9052
A142: 139 | B142: Camboja | C142: 878.304 | D142: 6.329669e-05 | F142: 139 | G142: Zâmbia | H142: 183.9494 | I142: 1.137167297e-05 | K142: 139 | L142: El Salvador | M142: 2537.9794 | N142: 8.445266589e-05 | O142: 694.0562
A143: 140 | B143: Trindade e Tobago | C143: 878.2468 | D143: 6.329256777e-05 | F143: 140 | G143: Jordânia | H143: 147.7944 | I143: 9.136586383e-06 | K143: 140 | L143: Serra Leoa | M143: 2340.2336 | N143: 7.787256521e-05 | O143: -1467.2992
A144: 141 | B144: Kosovo | C144: 870.5922 | D144: 6.27409241e-05 | F144: 141 | G144: Síria, República Árabe da | H144: 146.4108 | I144: 9.051052825e-06 | K144: 141 | L144: Irão, República Islâmica do | M144: 2227.3884 | N144: 7.411757887e-05 | O144: 1803.7088
A145: 142 | B145: Namíbia | C145: 866.1176 | D145: 6.241845333e-05 | F145: 142 | G145: Maldivas | H145: 127.2588 | I145: 7.867084403e-06 | K145: 142 | L145: Togo | M145: 2117.8138 | N145: 7.047142355e-05 | O145: 1640.5514
A146: 143 | B146: Turquemenistão | C146: 749.1004 | D146: 5.398538069e-05 | F146: 143 | G146: Albânia | H146: 125.4572 | I146: 7.755710265e-06 | K146: 143 | L146: Laos, República Democrática Popular do | M146: 1935.8146 | N146: 6.441529968e-05 | O146: -1593.9394
A147: 144 | B147: Barém | C147: 728.9324 | D147: 5.253193445e-05 | F147: 144 | G147: Azerbaijão | H147: 124.9342 | I147: 7.723378629e-06 | K147: 144 | L147: Sudão | M147: 1883.1514 | N147: 6.266290262e-05 | O147: 1852.975
A148: 145 | B148: Iémen | C148: 704.0114 | D148: 5.0735954e-05 | F148: 145 | G148: Kosovo | H148: 80.0466 | I148: 4.94844646e-06 | K148: 145 | L148: Jamaica | M148: 1660.4886 | N148: 5.525367501e-05 | O148: 1631.115
A149: 146 | B149: Suriname | C149: 663.5928 | D149: 4.78231088e-05 | F149: 146 | G149: Tajiquistão | H149: 74.7168 | I149: 4.618960512e-06 | K149: 146 | L149: Azerbaijão | M149: 1572.6786 | N149: 5.233174877e-05 | O149: 1322.8102
A150: 147 | B150: Niger | C150: 619.0434 | D150: 4.461256944e-05 | F150: 147 | G150: Andorra | H150: 62.7874 | I150: 3.881490123e-06 | K150: 147 | L150: Bósnia-Herzegovina | M150: 1571.857 | N150: 5.230440958e-05 | O150: -498.1018
A151: 148 | B151: São Martinho (parte holandesa) | C151: 606.1984 | D151: 4.368686947e-05 | F151: 148 | G151: Libéria | H151: 54.4472 | I151: 3.365902538e-06 | K151: 148 | L151: Ruanda | M151: 1569.669 | N151: 5.223160267e-05 | O151: 1515.0638
A152: 149 | B152: Bósnia-Herzegovina | C152: 536.8776 | D152: 3.869113088e-05 | F152: 149 | G152: Arábia Saudita | H152: 51.2828 | I152: 3.170280688e-06 | K152: 149 | L152: Albânia | M152: 1521.1376 | N152: 5.061669354e-05 | O152: 1270.2232
A153: 150 | B153: Curaçau | C153: 534.0534 | D153: 3.84875994e-05 | F153: 150 | G153: Fiji, Ilhas | H153: 50.1218 | I153: 3.098508166e-06 | K153: 150 | L153: Turquemenistão | M153: 1442.8052 | N153: 4.801013968e-05 | O153: 55.3956
A154: 151 | B154: Burundi | C154: 485.0592 | D154: 3.495673687e-05 | F154: 151 | G154: Arménia | H154: 49.4816 | I154: 3.058931277e-06 | K154: 151 | L154: Iémen | M154: 1388.2128 | N154: 4.619354742e-05 | O154: 19.81
A155: 152 | B155: Gâmbia | C155: 478.1568 | D155: 3.445930195e-05 | F155: 152 | G155: Falkland Ilhas (Malvinas) | H155: 46.09 | I155: 2.849264021e-06 | K155: 152 | L155: Montenegro | M155: 1194.2042 | N155: 3.973780414e-05 | O155: 1193.6674
A156: 153 | B156: Antígua e Barbuda | C156: 468.1724 | D156: 3.37397567e-05 | F156: 153 | G156: Aruba | H156: 45.6344 | I156: 2.821099024e-06 | K156: 153 | L156: São Bartolomeu | M156: 1185.2626 | N156: 3.944026746e-05 | O156: 1181.3602
A157: 154 | B157: Serra Leoa | C157: 436.4672 | D157: 3.145485966e-05 | F157: 154 | G157: Gibraltar | H157: 42.6724 | I157: 2.637989455e-06 | K157: 154 | L157: Aruba | M157: 985.8856 | N157: 3.28058877e-05 | O157: 894.6168
A158: 155 | B158: Tanzânia, República Unida da | C158: 409.5442 | D158: 2.951460117e-05 | F158: 155 | G158: Líbia, Jamahira Árabe da | H158: 41.1404 | I158: 2.543281873e-06 | K158: 155 | L158: Bermudas | M158: 958.1048 | N158: 3.188146624e-05 | O158: 956.4352
A159: 156 | B159: Nova Caledónia | C159: 388.6078 | D159: 2.800577869e-05 | F159: 156 | G159: Curaçau | H159: 39.2148 | I159: 2.424242107e-06 | K159: 156 | L159: Kosovo | M159: 950.6388 | N159: 3.163303097e-05 | O159: 790.5456
A160: 157 | B160: Madagáscar | C160: 386.2658 | D160: 2.78369979e-05 | F160: 157 | G160: Botswana | H160: 30.037 | I160: 1.85687445e-06 | K160: 157 | L160: Barbados | M160: 935.22 | N160: 3.111996188e-05 | O160: 914.5284
A161: 158 | B161: Myanmar | C161: 370.612 | D161: 2.670887628e-05 | F161: 158 | G161: São Pedro e Miquelon | H161: 28.9156 | I161: 1.787549983e-06 | K161: 158 | L161: Trindade e Tobago | M161: 878.6292 | N161: 2.923687177e-05 | O161: 877.8644
A162: 159 | B162: Comores | C162: 333.8038 | D162: 2.405622159e-05 | F162: 159 | G162: Ruanda | H162: 27.3026 | I162: 1.687835015e-06 | K162: 159 | L162: Barém | M162: 733.5568 | N162: 2.440950756e-05 | O162: 724.308
A163: 160 | B163: Haiti | C163: 328.0528 | D163: 2.364176457e-05 | F163: 160 | G163: São Marino | H163: 25.3104 | I163: 1.564678066e-06 | K163: 160 | L163: Usbequistão | M163: 665.2294 | N163: 2.213587559e-05 | O163: -95.587
A164: 161 | B164: Polinésia Francesa | C164: 317.6242 | D164: 2.289020718e-05 | F164: 161 | G164: Catar | H164: 21.3518 | I164: 1.319959113e-06 | K164: 161 | L164: Gronelândia | M164: 629.1046 | N164: 2.093380293e-05 | O164: -627.6618
A165: 162 | B165: Bahamas | C165: 305.389 | D165: 2.200845364e-05 | F165: 162 | G165: Macau | H165: 20.763 | I165: 1.28355975e-06 | K165: 162 | L165: Niger | M165: 622.3102 | N165: 2.070771552e-05 | O165: 615.7766
A166: 163 | B166: Libéria | C166: 303.6128 | D166: 2.188044832e-05 | F166: 163 | G166: Marshall, Ilhas | H166: 18.3784 | I166: 1.136144801e-06 | K166: 163 | L166: São Martinho (parte holandesa) | M166: 606.2012 | N166: 2.017167965e-05 | O166: 606.1956
A167: 164 | B167: Somália | C167: 293.0252 | D167: 2.111743229e-05 | F167: 164 | G167: Quirguizistão | H167: 17.5046 | I167: 1.08212686e-06 | K167: 164 | L167: Faroé, Ilhas | M167: 600.7416 | N167: 1.999000844e-05 | O167: -589.6076
A168: 165 | B168: Usbequistão | C168: 284.8212 | D168: 2.052619503e-05 | F168: 165 | G168: Salomão, Ilhas | H168: 16.0532 | I168: 9.924019348e-07 | K168: 165 | L168: Curaçau | M168: 573.2682 | N168: 1.907581589e-05 | O168: 494.8386
A169: 166 | B169: São Marino | C169: 251.4926 | D169: 1.81243045e-05 | F169: 166 | G169: Sudão | H169: 15.0882 | I169: 9.32746049e-07 | K169: 166 | L169: Burundi | M169: 485.2096 | N169: 1.614561735e-05 | O169: 484.9088
A170: 167 | B170: Bonaire, Santo Eustáquio e Saba | C170: 241.8602 | D170: 1.743012682e-05 | F170: 167 | G170: Jamaica | H170: 14.6868 | I170: 9.079316732e-07 | K170: 167 | L170: Antígua e Barbuda | M170: 477.853 | N170: 1.590082242e-05 | O170: 458.4918
A171: 168 | B171: Laos, República Democrática Popular do | C171: 170.9376 | D171: 1.231895138e-05 | F171: 168 | G171: Iraque | H171: 13.1736 | I171: 8.143862986e-07 | K171: 168 | L171: Nova Caledónia | M171: 390.0338 | N171: 1.297859005e-05 | O171: 387.1818
A172: 169 | B172: Zâmbia | C172: 164.8696 | D172: 1.188164914e-05 | F172: 169 | G172: São Cristovão e Nevis | H172: 12.4064 | I172: 7.669583239e-07 | K172: 169 | L172: Libéria | M172: 358.06 | N172: 1.19146442e-05 | O172: 249.1656
A173: 170 | B173: Santa Lúcia | C173: 158.8492 | D173: 1.144777727e-05 | F173: 170 | G173: Nepal | H173: 12.0278 | I173: 7.435534343e-07 | K173: 170 | L173: Zâmbia | M173: 348.819 | N173: 1.160714483e-05 | O173: -19.0798
A174: 171 | B174: Liechtenstein | C174: 144.4366 | D174: 1.040910516e-05 | F174: 171 | G174: Território Palestiniano Ocupado | H174: 11.6698 | I174: 7.21422028e-07 | K174: 171 | L174: Comores | M174: 333.8038 | N174: 1.110750576e-05 | O174: 333.8038
A175: 172 | B175: Maldivas | C175: 139.5096 | D175: 1.00540313e-05 | F175: 172 | G175: Barbados | H175: 10.3458 | I175: 6.395729161e-07 | K175: 172 | L175: Haiti | M175: 328.3394 | N175: 1.092567483e-05 | O175: 327.7662
A176: 173 | B176: Ceuta e Melilha | C176: 132.796 | D176: 9.570202624e-06 | F176: 173 | G176: Jibuti | H176: 9.885 | I176: 6.110864579e-07 | K176: 173 | L176: Polinésia Francesa | M176: 318.4566 | N176: 1.05968192e-05 | O176: 316.7918
A177: 174 | B177: Quirguizistão | C177: 130.9018 | D177: 9.433693408e-06 | F177: 174 | G177: Guiné Equatorial | H177: 9.7838 | I177: 6.048303173e-07 | K177: 174 | L177: Bahamas | M177: 305.389 | N177: 1.01619876e-05 | O177: 305.389
A178: 175 | B178: Botswana | C178: 118.8382 | D178: 8.564306557e-06 | F178: 175 | G178: Antígua e Barbuda | H178: 9.6806 | I178: 5.984505376e-07 | K178: 175 | L178: Chade | M178: 303.2232 | N178: 1.008991941e-05 | O178: -303.1296
A179: 176 | B179: Guiana | C179: 116.6432 | D179: 8.406119603e-06 | F179: 176 | G179: Santa Helena | H179: 5.0476 | I179: 3.120404658e-07 | K179: 176 | L179: Somália | M179: 293.0252 | N179: 9.750575325e-06 | O179: 293.0252
A180: 177 | B180: Nepal | C180: 114.3036 | D180: 8.237511767e-06 | F180: 177 | G180: Barém | H180: 4.6244 | I180: 2.858784235e-07 | K180: 177 | L180: São Marino | M180: 276.803 | N180: 9.210772662e-06 | O180: 226.1822
A181: 178 | B181: Afeganistão | C181: 109.4574 | D181: 7.888260917e-06 | F181: 178 | G181: Niger | H181: 3.2668 | I181: 2.019521741e-07 | K181: 178 | L181: Maldivas | M181: 266.7684 | N181: 8.876865807e-06 | O181: 12.2508
A182: 179 | B182: Virgens Britânicas, Ilhas | C182: 106.6708 | D182: 7.687439155e-06 | F182: 179 | G182: São Bartolomeu | H182: 1.9512 | I182: 1.206223467e-07 | K182: 179 | L182: Bonaire, Santo Eustáquio e Saba | M182: 241.8602 | N182: 8.048031699e-06 | O182: 241.8602
A183: 180 | B183: Centro-Africana, República | C183: 103.298 | D183: 7.444371748e-06 | F183: 180 | G183: Liechtenstein | H183: 1.8568 | I183: 1.147865792e-07 | K183: 180 | L183: Santa Lúcia | M183: 158.8768 | N183: 5.286713244e-06 | O183: 158.8216
A184: 181 | B184: Jibuti | C184: 90.5704 | D184: 6.527132442e-06 | F184: 181 | G184: Lesoto | H184: 1.7136 | I184: 1.059340166e-07 | K184: 181 | L184: Botswana | M184: 148.8752 | N184: 4.953904482e-06 | O184: 88.8012
A185: 182 | B185: Caimão, Ilhas | C185: 73.8006 | D185: 5.318584112e-06 | F185: 182 | G185: Nova Caledónia | H185: 1.426 | I185: 8.815470804e-08 | K185: 182 | L185: Quirguizistão | M185: 148.4064 | N185: 4.938304903e-06 | O185: 113.3972
A186: 183 | B186: Zimbabwe | C186: 66.8594 | D186: 4.818353003e-06 | F186: 183 | G186: Bermudas | H186: 0.8348 | I186: 5.160697775e-08 | K186: 183 | L186: Liechtenstein | M186: 146.2934 | N186: 4.867993661e-06 | O186: 142.5798
A187: 184 | B187: Turcas e Caicos, Ilhas | C187: 48.519 | D187: 3.496616322e-06 | F187: 184 | G187: Polinésia Francesa | H187: 0.8324 | I187: 5.145861078e-08 | K187: 184 | L187: Ceuta e Melilha | M187: 132.796 | N187: 4.418860224e-06 | O187: 132.796
A188: 185 | B188: Virgens dos Estados Unidos, Ilhas | C188: 27.4406 | D188: 1.977560334e-06 | F188: 185 | G188: Micronésia, Estados Federados da | H188: 0.6592 | I188: 4.075146111e-08 | K188: 185 | L188: Nepal | M188: 126.3314 | N188: 4.203747089e-06 | O188: 102.2758
A189: 186 | B189: Mongólia | C189: 26.1112 | D189: 1.881754531e-06 | F189: 186 | G189: Afeganistão | H189: 0.6156 | I189: 3.805612782e-08 | K189: 186 | L189: Afeganistão | M189: 110.073 | N189: 3.662739852e-06 | O189: 108.8418
A190: 187 | B190: Belize | C190: 19.5092 | D190: 1.405968531e-06 | F190: 187 | G190: Trindade e Tobago | H190: 0.3824 | I190: 2.363980389e-08 | K190: 187 | L190: Virgens Britânicas, Ilhas | M190: 106.6778 | N190: 3.549762697e-06 | O190: 106.6638
A191: 188 | B191: Anguila | C191: 15.482 | D191: 1.115740512e-06 | F191: 188 | G191: Haiti | H191: 0.2866 | I191: 1.771748901e-08 | K191: 188 | L191: Jibuti | M191: 100.4554 | N191: 3.342708902e-06 | O191: 80.6854
A192: 189 | B192: Brunei Darussalam | C192: 13.5634 | D192: 9.774728627e-07 | F192: 189 | G192: Montenegro | H192: 0.2684 | I192: 1.659237282e-08 | K192: 189 | L192: Tajiquistão | M192: 74.7168 | N192: 2.486242775e-06 | O192: -74.7168
A193: 190 | B193: Fiji, Ilhas | C193: 11.4598 | D193: 8.258728277e-07 | F193: 190 | G193: Burundi | H193: 0.1504 | I193: 9.297663457e-09 | K193: 190 | L193: Caimão, Ilhas | M193: 73.8014 | N193: 2.455782335e-06 | O193: 73.7998
A194: 191 | B194: Malavi | C194: 8.5154 | D194: 6.136789017e-07 | F194: 191 | G194: Oceano Indico, Território Britânico do | H194: 0.1384 | I194: 8.555828606e-09 | K194: 191 | L194: Fiji, Ilhas | M194: 61.5816 | N194: 2.049161742e-06 | O194: -38.662
A195: 192 | B195: São Vicente e Granadinas | C195: 7.5006 | D195: 5.405453613e-07 | F195: 192 | G195: Vanuatu | H195: 0.0874 | I195: 5.403030493e-09 | K195: 192 | L195: Turcas e Caicos, Ilhas | M195: 48.519 | N195: 1.614496515e-06 | O195: 48.519
A196: 193 | B196: Guam | C196: 6.4026 | D196: 4.614158508e-07 | F196: 193 | G196: Nauru | H196: 0.0694 | I196: 4.290278217e-09 | K196: 193 | L196: Falkland Ilhas (Malvinas) | M196: 46.09 | N196: 1.533670199e-06 | O196: -46.09
A197: 194 | B197: Territórios Franceses do Sul | C197: 6.3292 | D197: 4.561261367e-07 | F197: 194 | G197: Palau | H197: 0.0478 | I197: 2.954975487e-09 | K197: 194 | L197: São Pedro e Miquelon | M197: 28.9156 | N197: 9.621825558e-07 | O197: -28.9156
A198: 195 | B198: Faroé, Ilhas | C198: 5.567 | D198: 4.011967078e-07 | F198: 195 | G198: Santa Lúcia | H198: 0.0276 | I198: 1.706220156e-09 | K198: 195 | L198: Virgens dos Estados Unidos, Ilhas | M198: 27.4406 | N198: 9.131011164e-07 | O198: 27.4406
A199: 196 | B199: Sudão do Sul | C199: 3.771 | D199: 2.717644665e-07 | F199: 196 | G199: Coreia, República Popular Democrática da | H199: 0.0196 | I199: 1.211663589e-09 | K199: 196 | L199: Mongólia | M199: 26.1254 | N199: 8.693371102e-07 | O199: 26.097
A200: 197 | B200: Marianas do Norte, Ilhas | C200: 2.9244 | D200: 2.107525871e-07 | F200: 197 | G200: São Vicente e Granadinas | H200: 0.0144 | I200: 8.902018203e-10 | K200: 197 | L200: Marshall, Ilhas | M200: 18.3784 | N200: 6.115514077e-07 | O200: -18.3784
... 58 more rows

Sheet 2AA
A1: Ranking dos parceiros comerciais de Portugal por país (média 2019-2023 em milhares de euros) produtos agrícolas e agroalimentares
A2: Exportações | F2: Importações | K2: Trocas comerciais (total e saldo)
A3: P | B3: País | C3: média quinquénio | D3: % do Total | F3: P | G3: País | H3: média quinquénio | I3: % do Total | K3: P | L3: País | M3: Total (exp+imp) | N3: % do Total | O3: Saldo (exp-imp)
A4: 1 | B4: Espanha | C4: 2756093.353 | D4: 0.355769475 | F4: 1 | G4: Espanha | H4: 5218042.717 | I4: 0.4651610503 | K4: 1 | L4: Espanha | M4: 7974136.07 | N4: 0.4204755872 | O4: -2461949.364
A5: 2 | B5: França | C5: 750650.2316 | D5: 0.0968974576 | F5: 2 | G5: França | H5: 878313.0456 | I5: 0.07829698623 | K5: 2 | L5: França | M5: 1628963.277 | N5: 0.08589510946 | O5: -127662.814
A6: 3 | B6: Itália | C6: 480436.9156 | D6: 0.06201705361 | F6: 3 | G6: Alemanha | H6: 721146.7026 | I6: 0.06428643378 | K6: 3 | L6: Países Baixos | M6: 1048192.809 | N6: 0.05527112696 | O6: -310787.729
A7: 4 | B7: Brasil | C7: 405387.3582 | D7: 0.05232930424 | F7: 4 | G7: Países Baixos | H7: 679490.2692 | I7: 0.06057298194 | K7: 4 | L7: Brasil | M7: 1040823.749 | N7: 0.05488255698 | O7: -230049.033
A8: 5 | B8: Países Baixos | C8: 368702.5402 | D8: 0.04759385563 | F8: 5 | G8: Brasil | H8: 635436.3912 | I8: 0.05664581054 | K8: 5 | L8: Alemanha | M8: 1002872.88 | N8: 0.05288141054 | O8: -439420.525
A9: 6 | B9: Alemanha | C9: 281726.1776 | D9: 0.03636653823 | F9: 6 | G9: Itália | H9: 370236.6922 | I9: 0.03300465288 | K9: 6 | L9: Itália | M9: 850673.6078 | N9: 0.04485595451 | O9: 110200.2234 | P9: Nota: Nesta listagem, o Reino Unido passa a ser constituído por três componentes: Reino Unido [até 2020] ; Reino Unido (sem Irlanda do Norte) pós-2020 e Reino Unido (Irlanda do Norte) pós-2020. Estas componentes são calculadas igualmente como média do quinquénio, embora a primeira corresponda apenas a 2019-2020 e as duas últimas a 2021-2023.
A10: 7 | B10: Angola | C10: 239258.0836 | D10: 0.03088455719 | F10: 7 | G10: Bélgica | H10: 281579.9028 | I10: 0.02510136663 | K10: 7 | L10: Bélgica | M10: 455978.039 | N10: 0.02404368725 | O10: -107181.7666
A11: 8 | B11: Reino Unido (sem Irlanda do Norte) pós 2020 | C11: 237670.7152 | D11: 0.03067965222 | F11: 8 | G11: Ucrânia | H11: 218361.6698 | I11: 0.01946579382 | K11: 8 | L11: Estados Unidos | M11: 399330.4768 | N11: 0.02105666561 | O11: -4827.0664
A12: 9 | B12: Estados Unidos | C12: 197251.7052 | D12: 0.02546217657 | F12: 9 | G12: Polónia | H12: 216442.184 | I12: 0.01929468176 | K12: 9 | L12: Polónia | M12: 361797.3752 | N12: 0.01907754802 | O12: -71086.9928
A13: 10 | B13: Israel | C13: 180621.8384 | D13: 0.02331551526 | F13: 10 | G13: Estados Unidos | H13: 202078.7716 | I13: 0.01801425913 | K13: 10 | L13: Reino Unido (sem Irlanda do Norte) pós 2020 | M13: 312265.2586 | N13: 0.01646572329 | O13: 163076.1718
A14: 11 | B14: Bélgica | C14: 174398.1362 | D14: 0.02251213054 | F14: 11 | G14: Roménia | H14: 147921.5572 | I14: 0.01318642844 | K14: 11 | L14: Angola | M14: 248844.089 | N14: 0.01312152985 | O14: 229672.0782
A15: 12 | B15: Polónia | C15: 145355.1912 | D15: 0.01876313079 | F15: 12 | G15: África do Sul | H15: 122030.5704 | I15: 0.01087838321 | K15: 12 | L15: Ucrânia | M15: 226323.7844 | N15: 0.0119340359 | O15: -210399.5552
A16: 13 | B16: Reino Unido | C16: 140181.6612 | D16: 0.01809530724 | F16: 13 | G16: Canadá | H16: 114587.6202 | I16: 0.01021488337 | K16: 13 | L16: Reino Unido | M16: 218445.519 | N16: 0.01151861557 | O16: 61917.8034
A17: 14 | B17: Suíça | C17: 101113.5758 | D17: 0.01305221528 | F17: 14 | G17: Irlanda | H17: 113855.5454 | I17: 0.01014962275 | K17: 14 | L17: Canadá | M17: 187938.0432 | N17: 0.009909958695 | O17: -41237.1972
A18: 15 | B18: Cabo Verde | C18: 93276.7052 | D18: 0.01204059522 | F18: 15 | G18: Argentina | H18: 81740.7412 | I18: 0.007286756949 | K18: 15 | L18: Israel | M18: 185954.1124 | N18: 0.009805346175 | O18: 175289.5644
A19: 16 | B19: Canadá | C19: 73350.423 | D19: 0.009468417118 | F19: 16 | G19: Reino Unido | H19: 78263.8578 | I19: 0.00697681109 | K19: 16 | L19: Roménia | M19: 164671.813 | N19: 0.00868313215 | O19: -131171.3014
A20: 17 | B20: China, República Popular da | C20: 65002.3268 | D20: 0.00839080565 | F20: 17 | G20: Dinamarca | H20: 77963.4376 | I20: 0.00695003021 | K20: 17 | L20: Irlanda | M20: 144404.9996 | N20: 0.007614464624 | O20: -83306.0912
A21: 18 | B21: Japão | C21: 61056.1688 | D21: 0.007881417041 | F21: 18 | G21: Reino Unido (sem Irlanda do Norte) pós 2020 | H21: 74594.5434 | I21: 0.006649711019 | K21: 18 | L21: África do Sul | M21: 144191.7208 | N21: 0.007603218449 | O21: -99869.42
A22: 19 | B22: Suécia | C22: 55383.66 | D22: 0.007149182962 | F22: 19 | G22: Costa Rica | H22: 70756.5738 | I22: 0.006307576225 | K22: 19 | L22: Dinamarca | M22: 126433.7134 | N22: 0.006666840072 | O22: -29493.1618
A23: 20 | B23: Marrocos | C23: 49767.4468 | D23: 0.006424215784 | F23: 20 | G23: China, República Popular da | H23: 48105.6586 | I23: 0.004288366327 | K23: 20 | L23: China, República Popular da | M23: 113107.9854 | N23: 0.00596417545 | O23: 16896.6682
A24: 21 | B24: Dinamarca | C24: 48470.2758 | D24: 0.006256770858 | F24: 21 | G24: Bulgária | H24: 41846.0794 | I24: 0.00373035778 | K24: 21 | L24: Suíça | M24: 103785.6028 | N24: 0.005472606926 | O24: 98441.5488
A25: 22 | B25: Luxemburgo | C25: 48434.8998 | D25: 0.006252204358 | F25: 22 | G25: Grécia | H25: 35033.7506 | I25: 0.003123074514 | K25: 22 | L25: Cabo Verde | M25: 93421.8838 | N25: 0.004926128813 | O25: 93131.5266
A26: 23 | B26: Rússia, Federação da | C26: 47519.044 | D26: 0.00613398139 | F26: 23 | G26: Colômbia | H26: 31210.9096 | I26: 0.002782288355 | K26: 23 | L26: Argentina | M26: 82057.1494 | N26: 0.004326867234 | O26: -81424.333
A27: 24 | B27: Guiné-Bissau | C27: 33196.0112 | D27: 0.004285097043 | F27: 24 | G27: Guiana | H27: 31014.2578 | I27: 0.002764757882 | K27: 24 | L27: Japão | M27: 72872.0242 | N27: 0.003842536282 | O27: 49240.3134
A28: 25 | B28: Irlanda | C28: 30549.4542 | D28: 0.003943467035 | F28: 25 | G28: Vietname | H28: 30892.5166 | I28: 0.002753905295 | K28: 25 | L28: Costa Rica | M28: 72068.7862 | N28: 0.003800181604 | O28: -69444.3614
A29: 26 | B29: Arábia Saudita | C29: 29146.6976 | D29: 0.003762392624 | F29: 26 | G29: Cuba | H29: 28789.5394 | I29: 0.002566435944 | K29: 26 | L29: Suécia | M29: 68731.8356 | N29: 0.003624224453 | O29: 42035.4844
A30: 27 | B30: Moçambique | C30: 28593.955 | D30: 0.003691042013 | F30: 27 | G30: Áustria | H30: 27643.7092 | I30: 0.002464291211 | K30: 27 | L30: Marrocos | M30: 61090.9854 | N30: 0.003221323004 | O30: 38443.9082
A31: 28 | B31: São Tomé e Príncipe | C31: 25054.826 | D31: 0.003234194619 | F31: 28 | G31: Chile | H31: 26079.5266 | I31: 0.002324852563 | K31: 28 | L31: Grécia | M31: 59934.495 | N31: 0.003160341354 | O31: -10133.0062
A32: 29 | B32: Grécia | C32: 24900.7444 | D32: 0.003214305043 | F32: 29 | G32: Checa, República | H32: 24321.05 | I32: 0.002168093627 | K32: 29 | L32: Rússia, Federação da | M32: 59387.4766 | N32: 0.003131497115 | O32: 35650.6114
A33: 30 | B33: Finlândia | C33: 22507.9646 | D33: 0.002905433787 | F33: 30 | G33: Índia | H33: 24071.1366 | I33: 0.002145815163 | K33: 30 | L33: Luxemburgo | M33: 56679.3754 | N33: 0.002988699145 | O33: 40190.4242
A34: 31 | B34: África do Sul | C34: 22161.1504 | D34: 0.002860665382 | F34: 31 | G34: Uruguai | H34: 22728.6906 | I34: 0.002026143166 | K34: 31 | L34: Bulgária | M34: 50875.6622 | N34: 0.002682669791 | O34: -32816.4966
A35: 32 | B35: Jordânia | C35: 21893.2362 | D35: 0.002826081758 | F35: 32 | G35: Costa do Marfim | H35: 22619.1534 | I35: 0.002016378501 | K35: 32 | L35: Checa, República | M35: 43840.9252 | N35: 0.002311728645 | O35: -4801.1748
A36: 33 | B36: Argélia | C36: 20568.7852 | D36: 0.002655115402 | F36: 33 | G36: Turquia | H36: 19669.1464 | I36: 0.0017534009 | K36: 33 | L36: Áustria | M36: 42201.1454 | N36: 0.002225263181 | O36: -13086.273
A37: 34 | B37: Checa, República | C37: 19519.8752 | D37: 0.002519717173 | F37: 34 | G37: Hungria | H37: 19322.5132 | I37: 0.001722500375 | K37: 34 | L37: Moçambique | M37: 38413.517 | N37: 0.002025541824 | O37: 18774.393
A38: 35 | B38: Noruega | C38: 18383.7692 | D38: 0.002373063274 | F38: 35 | G38: Suazilândia | H38: 17908.3876 | I38: 0.001596438519 | K38: 35 | L38: Colômbia | M38: 37783.0652 | N38: 0.001992298149 | O38: -24638.754
A39: 36 | B39: Coreia, República da | C39: 16791.4172 | D39: 0.002167514999 | F39: 36 | G39: Letónia | H39: 17568.283 | I39: 0.001566119983 | K39: 36 | L39: Guiné-Bissau | M39: 33466.8492 | N39: 0.001764704408 | O39: 32925.1732
A40: 37 | B40: Roménia | C40: 16750.2558 | D40: 0.002162201692 | F40: 37 | G40: Uganda | H40: 17520.2176 | I40: 0.001561835206 | K40: 37 | L40: Austrália | M40: 33457.6176 | N40: 0.001764217626 | O40: -224.8624
A41: 38 | B41: Austrália | C41: 16616.3776 | D41: 0.002144920065 | F41: 38 | G41: Austrália | H41: 16841.24 | I41: 0.001501307925 | K41: 38 | L41: Cuba | M41: 33227.7552 | N41: 0.001752096999 | O41: -24351.3236
A42: 39 | B42: Áustria | C42: 14557.4362 | D42: 0.001879142239 | F42: 39 | G42: Lituânia | H42: 14594.912 | I42: 0.001301059605 | K42: 39 | L42: Vietname | M42: 32990.675 | N42: 0.001739595779 | O42: -28794.3582
A43: 40 | B43: Emirados Árabes Unidos | C43: 13772.665 | D43: 0.001777840287 | F43: 40 | G43: México | H43: 13942.9954 | I43: 0.00124294467 | K43: 40 | L43: Hungria | M43: 31339.561 | N43: 0.001652532663 | O43: -7305.4654
A44: 41 | B44: Iraque | C44: 13213.736 | D44: 0.001705691106 | F44: 41 | G44: Peru | H44: 13551.1124 | I44: 0.001208010363 | K44: 41 | L44: Chile | M44: 31046.9382 | N44: 0.001637102685 | O44: -21112.115
A45: 42 | B45: Nigéria | C45: 12563.3872 | D45: 0.001621741028 | F45: 42 | G45: Egito | H45: 13444.2972 | I45: 0.00119848835 | K45: 42 | L45: Guiana | M45: 31034.393 | N45: 0.001636441178 | O45: -30994.1226
A46: 43 | B46: Hungria | C46: 12017.0478 | D46: 0.001551216972 | F46: 43 | G46: Indonésia | H46: 13373.0146 | I46: 0.001192133881 | K46: 43 | L46: Finlândia | M46: 30593.483 | N46: 0.001613192027 | O46: 14422.4462
A47: 44 | B47: Macau | C47: 11451.795 | D47: 0.001478251486 | F47: 44 | G47: Suécia | H47: 13348.1756 | I47: 0.001189919615 | K47: 44 | L47: Costa do Marfim | M47: 30195.695 | N47: 0.001592216696 | O47: -15042.6118
A48: 45 | B48: Território Palestiniano Ocupado | C48: 11126.9966 | D48: 0.001436324983 | F48: 45 | G48: Paquistão | H48: 12392.2934 | I48: 0.001104707747 | K48: 45 | L48: Turquia | M48: 29730.2176 | N48: 0.001567672108 | O48: -9608.0752
A49: 46 | B49: Líbia, Jamahira Árabe da | C49: 10747.1924 | D49: 0.001387298073 | F49: 46 | G49: Moldava, República de | H49: 12169.9448 | I49: 0.001084886539 | K49: 46 | L49: Arábia Saudita | M49: 29183.7518 | N49: 0.001538857008 | O49: 29109.6434
A50: 47 | B50: Senegal | C50: 10277.8906 | D50: 0.001326718392 | F50: 47 | G50: Rússia, Federação da | H50: 11868.4326 | I50: 0.001058008313 | K50: 47 | L50: Índia | M50: 27213.734 | N50: 0.00143497812 | O50: -20928.5392
A51: 48 | B51: Turquia | C51: 10061.0712 | D51: 0.001298730326 | F51: 48 | G51: Japão | H51: 11815.8554 | I51: 0.001053321333 | K51: 48 | L51: São Tomé e Príncipe | M51: 26143.659 | N51: 0.001378553147 | O51: 23965.993
A52: 49 | B52: Kuwait | C52: 9238.6512 | D52: 0.00119256849 | F52: 49 | G52: Marrocos | H52: 11323.5386 | I52: 0.00100943388 | K52: 49 | L52: Uruguai | M52: 24804.8014 | N52: 0.001307955287 | O52: -20652.5798
A53: 50 | B53: Bulgária | C53: 9029.5828 | D53: 0.001165580959 | F53: 50 | G53: Tailândia | H53: 10221.1584 | I53: 0.0009111624865 | K53: 50 | L53: Letónia | M53: 24571.9238 | N53: 0.001295675669 | O53: -10564.6422
A54: 51 | B54: Eslováquia | C54: 8981.6584 | D54: 0.001159394652 | F54: 51 | G54: Paraguai | H54: 9863.0808 | I54: 0.0008792417527 | K54: 51 | L54: Argélia | M54: 22398.8544 | N54: 0.001181089885 | O54: 18738.716
A55: 52 | B55: Ucrânia | C55: 7962.1146 | D55: 0.00102778715 | F55: 52 | G55: Moçambique | H55: 9819.562 | I55: 0.0008753622806 | K55: 52 | L55: Jordânia | M55: 22013.8634 | N55: 0.001160789339 | O55: 21772.609
A56: 53 | B56: Costa do Marfim | C56: 7576.5416 | D56: 0.0009780155757 | F56: 53 | G56: Angola | H56: 9586.0054 | I56: 0.0008545419388 | K56: 53 | L56: México | M56: 20411.1484 | N56: 0.0010762783 | O56: -7474.8424
A57: 54 | B57: Letónia | C57: 7003.6408 | D57: 0.0009040628496 | F57: 54 | G57: Equador | H57: 9434.7056 | I57: 0.0008410543577 | K57: 54 | L57: Lituânia | M57: 20237.3848 | N57: 0.001067115758 | O57: -8952.4392
A58: 55 | B58: Gibraltar | C58: 6867.0166 | D58: 0.0008864267562 | F58: 55 | G58: Sérvia | H58: 8961.3684 | I58: 0.0007988588371 | K58: 55 | L58: Suazilândia | M58: 19974.7344 | N58: 0.001053266223 | O58: -15842.0408
A59: 56 | B59: Maurícias | C59: 6601.9064 | D59: 0.0008522050864 | F59: 56 | G59: Belize | H59: 8481.6488 | I59: 0.0007560943591 | K59: 56 | L59: Noruega | M59: 19562.9914 | N59: 0.001031555046 | O59: 17204.547
A60: 57 | B60: Colômbia | C60: 6572.1556 | D60: 0.0008483647134 | F60: 57 | G60: Luxemburgo | H60: 8244.4756 | I60: 0.0007349516164 | K60: 57 | L60: Uganda | M60: 18130.6166 | N60: 0.0009560260316 | O60: -16909.8186
A61: 58 | B61: México | C61: 6468.153 | D61: 0.0008349395693 | F61: 58 | G61: Estónia | H61: 8133.3802 | I61: 0.0007250480461 | K61: 58 | L61: Coreia, República da | M61: 18110.515 | N61: 0.0009549660757 | O61: 15472.3194
A62: 59 | B62: Andorra | C62: 5880.33 | D62: 0.0007590606155 | F62: 59 | G62: Finlândia | H62: 8085.5184 | I62: 0.0007207814184 | K62: 59 | L62: Peru | M62: 15536.0606 | N62: 0.0008192152914 | O62: -11566.1642
A63: 60 | B63: Lituânia | C63: 5642.4728 | D63: 0.0007283568909 | F63: 60 | G63: Nova Zelânda | H63: 7373.8184 | I63: 0.0006573371085 | K63: 60 | L63: Egito | M63: 15081.7762 | N63: 0.0007952609096 | O63: -11806.8182
A64: 61 | B64: Malta | C64: 5438.0306 | D64: 0.0007019665315 | F64: 61 | G64: Malásia | H64: 6878.308 | I64: 0.0006131649638 | K64: 61 | L64: Indonésia | M64: 14601.4892 | N64: 0.0007699354127 | O64: -12144.54
A65: 62 | B65: Estónia | C65: 5388.6736 | D65: 0.0006955952981 | F65: 62 | G65: Camarões | H65: 6873.6916 | I65: 0.000612753436 | K65: 62 | L65: Emirados Árabes Unidos | M65: 14301.0792 | N65: 0.0007540948163 | O65: 13244.2508
A66: 63 | B66: HongKong | C66: 4973.9084 | D66: 0.000642055458 | F66: 63 | G66: Eslovénia | H66: 5854.3628 | I66: 0.0005218856373 | K66: 63 | L66: Eslováquia | M66: 14115.3302 | N66: 0.0007443002857 | O66: 3847.9866
A67: 64 | B67: Chile | C67: 4967.4116 | D67: 0.0006412168206 | F67: 64 | G67: Israel | H67: 5332.274 | I67: 0.0004753441681 | K67: 64 | L67: Tailândia | M67: 13545.4648 | N67: 0.0007142513266 | O67: -6896.852
A68: 65 | B68: Chipre | C68: 4599.9132 | D68: 0.000593778401 | F68: 65 | G68: Honduras | H68: 5320.7232 | I68: 0.000474314475 | K68: 65 | L68: Estónia | M68: 13522.0538 | N68: 0.0007130168663 | O68: -2744.7066
A69: 66 | B69: Cuba | C69: 4438.2158 | D69: 0.0005729057412 | F69: 66 | G69: Camboja | H69: 5251.2876 | I69: 0.0004681246567 | K69: 66 | L69: Iraque | M69: 13226 | N69: 0.000697405972 | O69: 13201.472
A70: 67 | B70: Mali | C70: 4408.7876 | D70: 0.0005691070109 | F70: 67 | G70: Zimbabwe | H70: 5172.692 | I70: 0.0004611182725 | K70: 67 | L70: Paquistão | M70: 12653.1142 | N70: 0.0006671977475 | O70: -12131.4726
A71: 68 | B71: Omã | C71: 4251.3822 | D71: 0.0005487883825 | F71: 68 | G71: Eslováquia | H71: 5133.6718 | I71: 0.000457639827 | K71: 68 | L71: Nigéria | M71: 12613.3818 | N71: 0.000665102661 | O71: 12513.3926
A72: 69 | B72: Sérvia | C72: 3643.2286 | D72: 0.0004702850594 | F72: 69 | G72: Etiópia | H72: 4865.161 | I72: 0.0004337035021 | K72: 69 | L72: Sérvia | M72: 12604.597 | N72: 0.0006646394392 | O72: -5318.1398
A73: 70 | B73: Gana | C73: 3561.703 | D73: 0.0004597613521 | F73: 70 | G73: Reino Unido (Irlanda do Norte) pós-2020 | H73: 4852.6168 | I73: 0.0004325852527 | K73: 70 | L73: Moldava, República de | M73: 12435.7646 | N73: 0.0006557369196 | O73: -11904.125
A74: 71 | B74: Síria, República Árabe da | C74: 3557.076 | D74: 0.0004591640772 | F74: 71 | G74: Tanzânia, República Unida da | H74: 4645.6104 | I74: 0.0004141317214 | K74: 71 | L74: Macau | M74: 11470.0196 | N74: 0.0006048132594 | O74: 11433.5704
A75: 72 | B75: Tailândia | C75: 3324.3064 | D75: 0.0004291170839 | F75: 72 | G75: Filipinas | H75: 4316.8954 | I75: 0.0003848285089 | K75: 72 | L75: Território Palestiniano Ocupado | M75: 11138.6664 | N75: 0.0005873410304 | O75: 11115.3268
A76: 73 | B76: Singapura | C76: 3292.5498 | D76: 0.0004250177928 | F76: 73 | G76: Macedónia, Antiga República jugoslava da | H76: 4269.76 | I76: 0.000380626636 | K76: 73 | L76: Kuwait | M76: 10781.5982 | N76: 0.0005685128514 | O76: 7695.7042
A77: 74 | B77: Eslovénia | C77: 3210.1356 | D77: 0.0004143793808 | F77: 74 | G77: Myanmar | H77: 4258.6984 | I77: 0.0003796405526 | K77: 74 | L77: Senegal | M77: 10777.8706 | N77: 0.0005683162953 | O77: 9777.9106
A78: 75 | B78: Índia | C78: 3142.5974 | D78: 0.0004056612327 | F78: 75 | G78: Tunísia | H78: 4096.3914 | I78: 0.0003651717376 | K78: 75 | L78: Líbia, Jamahira Árabe da | M78: 10763.4438 | N78: 0.0005675555713 | O78: 10730.941
A79: 76 | B79: Taiwan | C79: 3027.0112 | D79: 0.0003907408232 | F79: 76 | G79: Quénia | H79: 3999.6272 | I79: 0.0003565457184 | K79: 76 | L79: Paraguai | M79: 10570.8508 | N79: 0.0005574001571 | O79: -9155.3108
A80: 77 | B80: Guiné | C80: 2745.3572 | D80: 0.0003543836019 | F80: 77 | G80: Chipre | H80: 3965.5184 | I80: 0.0003535050983 | K80: 77 | L80: Equador | M80: 10263.4314 | N80: 0.0005411899555 | O80: -8605.9798
A81: 78 | B81: Burquina Faso | C81: 2525.8832 | D81: 0.0003260528672 | F81: 78 | G81: Suriname | H81: 3877.4378 | I81: 0.0003456531763 | K81: 78 | L81: Nova Zelânda | M81: 9856.0686 | N81: 0.0005197097461 | O81: -4891.5682
A82: 79 | B82: Venezuela | C82: 2486.9168 | D82: 0.0003210229012 | F82: 79 | G82: Malavi | H82: 3756.8802 | I82: 0.0003349061007 | K82: 79 | L82: Maurícias | M82: 9426.6558 | N82: 0.0004970668419 | O82: 3777.157
A83: 80 | B83: Nova Zelânda | C83: 2482.2502 | D83: 0.0003204205146 | F83: 80 | G83: Guatemala | H83: 3336.065 | I83: 0.00029739264 | K83: 80 | L83: Eslovénia | M83: 9064.4984 | N83: 0.0004779703098 | O83: -2644.2272
A84: 81 | B84: Timor-Leste | C84: 2425.5014 | D84: 0.000313095113 | F84: 81 | G84: Sri Lanca | H84: 3081.7942 | I84: 0.0002747257362 | K84: 81 | L84: Camarões | M84: 8912.7596 | N84: 0.0004699691345 | O84: -4834.6236
A85: 82 | B85: Filipinas | C85: 2423.494 | D85: 0.0003128359883 | F85: 82 | G85: Nicarágua | H85: 3050.9764 | I85: 0.0002719784915 | K85: 82 | L85: Chipre | M85: 8565.4316 | N85: 0.0004516545555 | O85: 634.3948
A86: 83 | B86: Congo | C86: 2401.0914 | D86: 0.0003099441555 | F86: 83 | G86: Maurícias | H86: 2824.7494 | I86: 0.0002518115449 | K86: 83 | L86: Belize | M86: 8501.158 | N86: 0.0004482654135 | O86: -8462.1396
A87: 84 | B87: Dominicana, República | C87: 2366.1238 | D87: 0.0003054303735 | F87: 84 | G87: Suíça | H87: 2672.027 | I87: 0.0002381971465 | K87: 84 | L87: Malásia | M87: 8478.9536 | N87: 0.0004470945771 | O87: -5277.6624
A88: 85 | B88: Seychelles | C88: 2266.2448 | D88: 0.000292537523 | F88: 85 | G88: Taiwan | H88: 2620.8988 | I88: 0.0002336393366 | K88: 85 | L88: Mali | M88: 6882.4546 | N88: 0.0003629113065 | O88: 1935.1206
A89: 86 | B89: Belarus | C89: 2265.0334 | D89: 0.0002923811498 | F89: 86 | G89: Dominicana, República | H89: 2590.705 | I89: 0.0002309477182 | K89: 86 | L89: Gibraltar | M89: 6867.0382 | N89: 0.0003620984009 | O89: 6866.995
A90: 87 | B90: Benim | C90: 2254.9256 | D90: 0.0002910763875 | F90: 87 | G90: Mali | H90: 2473.667 | I90: 0.0002205143963 | K90: 87 | L90: Filipinas | M90: 6740.3894 | N90: 0.0003554202194 | O90: -1893.4014
A91: 88 | B91: Guiné Equatorial | C91: 2237.2378 | D91: 0.0002887931632 | F91: 88 | G91: Gana | H91: 2244.213 | I91: 0.0002000597796 | K91: 88 | L91: Reino Unido (Irlanda do Norte) pós-2020 | M91: 6619.5794 | N91: 0.0003490499173 | O91: -3085.6542
A92: 89 | B92: Líbano | C92: 2221.1552 | D92: 0.0002867171457 | F92: 89 | G92: Croácia | H92: 2137.0316 | I92: 0.0001905051218 | K92: 89 | L92: HongKong | M92: 6486.8174 | N92: 0.0003420493871 | O92: 3460.9994
A93: 90 | B93: Gabão | C93: 2209.6904 | D93: 0.0002852372154 | F93: 90 | G93: Congo, República Democrática do | H93: 1937.5966 | I93: 0.000172726541 | K93: 90 | L93: Honduras | M93: 6000.5624 | N93: 0.000316409198 | O93: -4640.884
A94: 91 | B94: Croácia | C94: 2104.1144 | D94: 0.0002716089695 | F94: 91 | G94: Benim | H94: 1901.2374 | I94: 0.0001694853097 | K94: 91 | L94: Malta | M94: 5960.075 | N94: 0.0003142743005 | O94: 4915.9862
A95: 92 | B95: Vietname | C95: 2098.1584 | D95: 0.000270840141 | F95: 92 | G95: Serra Leoa | H95: 1900.5094 | I95: 0.0001694204123 | K95: 92 | L95: Andorra | M95: 5897.0704 | N95: 0.0003109520728 | O95: 5863.5896
A96: 93 | B96: Uruguai | C96: 2076.1108 | D96: 0.0002679941333 | F96: 93 | G96: Argélia | H96: 1830.0692 | I96: 0.0001631410391 | K96: 93 | L96: Gana | M96: 5805.916 | N96: 0.0003061455082 | O96: 1317.49
A97: 94 | B97: Suazilândia | C97: 2066.3468 | D97: 0.0002667337503 | F97: 94 | G97: Laos, República Democrática Popular do | H97: 1764.7672 | I97: 0.0001573197095 | K97: 94 | L97: Camboja | M97: 5661.8046 | N97: 0.0002985465251 | O97: -4840.7706
A98: 95 | B98: Camarões | C98: 2039.068 | D98: 0.0002632124747 | F98: 95 | G98: Burquina Faso | H98: 1596.6714 | I98: 0.0001423348534 | K98: 95 | L98: Taiwan | M98: 5647.91 | N98: 0.0002978138639 | O98: 406.1124
A99: 96 | B99: Peru | C99: 1984.9482 | D99: 0.0002562264367 | F99: 96 | G99: Kuwait | H99: 1542.947 | I99: 0.0001375456059 | K99: 96 | L99: Etiópia | M99: 5274.7014 | N99: 0.0002781346028 | O99: -4455.6206
A100: 97 | B100: Catar | C100: 1923.0908 | D100: 0.000248241593 | F100: 97 | G100: HongKong | H100: 1512.909 | I100: 0.0001348678762 | K100: 97 | L100: Zimbabwe | M100: 5238.022 | N100: 0.0002762005009 | O100: -5107.362
A101: 98 | B101: Irão, República Islâmica do | C101: 1920.529 | D101: 0.0002479109038 | F101: 98 | G101: Panamá | H101: 1505.4946 | I101: 0.0001342069215 | K101: 98 | L101: Tunísia | M101: 5011.6662 | N101: 0.0002642647768 | O101: -3181.1166
A102: 99 | B102: Geórgia | C102: 1916.3824 | D102: 0.0002473756412 | F102: 99 | G102: Madagáscar | H102: 1471.794 | I102: 0.0001312026904 | K102: 99 | L102: Tanzânia, República Unida da | M102: 4986.1414 | N102: 0.000262918856 | O102: -4305.0794
A103: 100 | B103: Reino Unido (Irlanda do Norte) pós-2020 | C103: 1766.9626 | D103: 0.0002280878316 | F103: 100 | G103: Coreia, República da | H103: 1319.0978 | I103: 0.0001175906276 | K103: 100 | L103: Dominicana, República | M103: 4956.8288 | N103: 0.0002613732049 | O103: -224.5812
A104: 101 | B104: Egito | C104: 1637.479 | D104: 0.0002113734803 | F104: 101 | G104: Singapura | H104: 1313.0876 | I104: 0.0001170548499 | K104: 101 | L104: Omã | M104: 4826.1814 | N104: 0.0002544841774 | O104: 3676.583
A105: 102 | B105: Malásia | C105: 1600.6456 | D105: 0.0002066188521 | F105: 102 | G105: Noruega | H105: 1179.2222 | I105: 0.0001051214539 | K105: 102 | L105: Singapura | M105: 4605.6374 | N105: 0.0002428549091 | O105: 1979.4622
A106: 103 | B106: Bangladesh | C106: 1592.1082 | D106: 0.0002055168044 | F106: 103 | G106: São Tomé e Príncipe | H106: 1088.833 | I106: 9.706373239e-05 | K106: 103 | L106: Myanmar | M106: 4593.3818 | N106: 0.0002422086722 | O106: -3924.015
A107: 104 | B107: Congo, República Democrática do | C107: 1487.5888 | D107: 0.0001920249493 | F107: 104 | G107: Timor-Leste | H107: 773.0574 | I107: 6.891399929e-05 | K107: 104 | L107: Macedónia, Antiga República jugoslava da | M107: 4569.63 | N107: 0.0002409562416 | O107: -3969.89
A108: 105 | B108: Costa Rica | C108: 1312.2124 | D108: 0.0001693865399 | F108: 105 | G108: El Salvador | H108: 699.8376 | I108: 6.238683941e-05 | K108: 105 | L108: Quénia | M108: 4449.3114 | N108: 0.000234611851 | O108: -3549.943
A109: 106 | B109: Sudão | C109: 1307.024 | D109: 0.0001687167968 | F109: 106 | G109: Turquemenistão | H109: 693.7048 | I109: 6.184013257e-05 | K109: 106 | L109: Croácia | M109: 4241.146 | N109: 0.0002236353054 | O109: -32.9172
A110: 107 | B110: Togo | C110: 1248.9136 | D110: 0.0001612156335 | F110: 107 | G110: Cazaquistão | H110: 686.1514 | I110: 6.11667867e-05 | K110: 107 | L110: Benim | M110: 4156.163 | N110: 0.0002191541582 | O110: 353.6882
A111: 108 | B111: Indonésia | C111: 1228.4746 | D111: 0.0001585772713 | F111: 108 | G111: Omã | H111: 574.7992 | I111: 5.124032402e-05 | K111: 108 | L111: Burquina Faso | M111: 4122.5546 | N111: 0.0002173819899 | O111: 929.2118
A112: 109 | B112: Islândia | C112: 1198.9784 | D112: 0.0001547697633 | F112: 109 | G112: Geórgia | H112: 547.4606 | I112: 4.880323169e-05 | K112: 109 | L112: Suriname | M112: 4115.4388 | N112: 0.0002170067743 | O112: -3639.4368
A113: 110 | B113: Panamá | C113: 1014.5438 | D113: 0.0001309620789 | F113: 110 | G113: Emirados Árabes Unidos | H113: 528.4142 | I113: 4.710534535e-05 | K113: 110 | L113: Guatemala | M113: 3875.6304 | N113: 0.0002043616956 | O113: -2796.4996
A114: 111 | B114: Tunísia | C114: 915.2748 | D114: 0.0001181479701 | F114: 111 | G114: Malta | H114: 522.0444 | I114: 4.65375112e-05 | K114: 111 | L114: Malavi | M114: 3763.5146 | N114: 0.000198449838 | O114: -3750.2458
A115: 112 | B115: Equador | C115: 828.7258 | D115: 0.0001069758187 | F115: 112 | G115: Senegal | H115: 499.98 | I115: 4.457058605e-05 | K115: 112 | L115: Síria, República Árabe da | M115: 3703.4868 | N115: 0.0001952845767 | O115: 3410.6652
A116: 113 | B116: Bermudas | C116: 818.2718 | D116: 0.0001056263673 | F116: 113 | G116: Usbequistão | H116: 380.3558 | I116: 3.390671809e-05 | K116: 113 | L116: Sri Lanca | M116: 3487.0654 | N116: 0.0001838726928 | O116: -2676.523
A117: 114 | B117: Kosovo | C117: 799.843 | D117: 0.0001032474912 | F117: 114 | G117: Líbano | H117: 342.8862 | I117: 3.056650042e-05 | K117: 114 | L117: Nicarágua | M117: 3449.8386 | N117: 0.0001819097265 | O117: -2652.1142
A118: 115 | B118: Paraguai | C118: 707.77 | D118: 9.13622759e-05 | F118: 115 | G118: Chade | H118: 303.1764 | I118: 2.702658071e-05 | K118: 115 | L118: Congo, República Democrática do | M118: 3425.1854 | N118: 0.0001806097651 | O118: -450.0078
A119: 116 | B119: Honduras | C119: 679.8392 | D119: 8.775683705e-05 | F119: 116 | G119: Bangladesh | H119: 298.8156 | I119: 2.663783834e-05 | K119: 116 | L119: Timor-Leste | M119: 3198.5588 | N119: 0.0001686597618 | O119: 1652.444
A120: 117 | B120: Aruba | C120: 651.3298 | D120: 8.407670979e-05 | F120: 117 | G120: Bolívia | H120: 296.509 | I120: 2.643221709e-05 | K120: 117 | L120: Guiné | M120: 3020.6542 | N120: 0.0001592788658 | O120: 2470.0602
A121: 118 | B121: Mauritânia | C121: 615.705 | D121: 7.947809328e-05 | F121: 118 | G121: Venezuela | H121: 285.0498 | I121: 2.541068971e-05 | K121: 118 | L121: Venezuela | M121: 2771.9666 | N121: 0.0001461655876 | O121: 2201.867
A122: 119 | B122: Uganda | C122: 610.399 | D122: 7.879316988e-05 | F122: 119 | G122: Guiné | H122: 275.297 | I122: 2.454127891e-05 | K122: 119 | L122: Congo | M122: 2655.1662 | N122: 0.0001400067114 | O122: 2147.0166
A123: 120 | B123: Namíbia | C123: 600.2532 | D123: 7.748350236e-05 | F123: 120 | G123: Guiné-Bissau | H123: 270.838 | I123: 2.414378252e-05 | K123: 120 | L123: Líbano | M123: 2564.0414 | N123: 0.0001352017076 | O123: 1878.269
A124: 121 | B124: Cazaquistão | C124: 584.6762 | D124: 7.547275004e-05 | F124: 121 | G124: Congo | H124: 254.0748 | I124: 2.264943145e-05 | K124: 121 | L124: Panamá | M124: 2520.0384 | N124: 0.0001328814328 | O124: -490.9508
A125: 122 | B125: Albânia | C125: 582.0574 | D125: 7.513470304e-05 | F125: 122 | G125: Belarus | H125: 241.8304 | I125: 2.155790762e-05 | K125: 122 | L125: Belarus | M125: 2506.8638 | N125: 0.0001321867371 | O125: 2023.203
A126: 123 | B126: Ruanda | C126: 580.43 | D126: 7.49246306e-05 | F126: 123 | G126: Togo | H126: 238.6312 | I126: 2.127271578e-05 | K126: 123 | L126: Geórgia | M126: 2463.843 | N126: 0.0001299182536 | O126: 1368.9218
A127: 124 | B127: Azerbaijão | C127: 564.159 | D127: 7.28242935e-05 | F127: 124 | G127: Irão, República Islâmica do | H127: 186.7426 | I127: 1.664712013e-05 | K127: 124 | L127: Serra Leoa | M127: 2326.8524 | N127: 0.0001226947497 | O127: -1474.1664
A128: 125 | B128: São Bartolomeu | C128: 548.5216 | D128: 7.080574446e-05 | F128: 125 | G128: Zâmbia | H128: 183.9494 | I128: 1.639812105e-05 | K128: 125 | L128: Seychelles | M128: 2267.3882 | N128: 0.000119559207 | O128: 2265.1014
A129: 126 | B129: Guatemala | C129: 539.5654 | D129: 6.96496361e-05 | F129: 126 | G129: Islândia | H129: 183.9414 | I129: 1.639740789e-05 | K129: 126 | L129: Guiné Equatorial | M129: 2237.2378 | N129: 0.0001179693787 | O129: 2237.2378
A130: 127 | B130: Arménia | C130: 525.5354 | D130: 6.78385778e-05 | F130: 127 | G130: Síria, República Árabe da | H130: 146.4108 | I130: 1.305175239e-05 | K130: 127 | L130: Gabão | M130: 2210.0274 | N130: 0.0001165345764 | O130: 2209.3534
A131: 128 | B131: Barém | C131: 502.4658 | D131: 6.486064548e-05 | F131: 128 | G131: Cabo Verde | H131: 145.1786 | I131: 1.294190824e-05 | K131: 128 | L131: Irão, República Islâmica do | M131: 2107.2716 | N131: 0.0001111162709 | O131: 1733.7864
A132: 129 | B132: Bolívia | C132: 494.4554 | D132: 6.382662542e-05 | F132: 129 | G132: Azerbaijão | H132: 124.8964 | I132: 1.113385684e-05 | K132: 129 | L132: Catar | M132: 1939.3412 | N132: 0.0001022613137 | O132: 1906.8404
A133: 130 | B133: Burundi | C133: 484.978 | D133: 6.260323811e-05 | F133: 130 | G133: Jordânia | H133: 120.6272 | I133: 1.075328013e-05 | K133: 130 | L133: Bangladesh | M133: 1890.9238 | N133: 9.970826787e-05 | O133: 1293.2926
A134: 131 | B134: Quénia | C134: 449.6842 | D134: 5.804734864e-05 | F134: 131 | G134: Albânia | H134: 120.2784 | I134: 1.072218644e-05 | K134: 131 | L134: Laos, República Democrática Popular do | M134: 1777.8864 | N134: 9.374781438e-05 | O134: -1751.648
A135: 132 | B135: Gâmbia | C135: 434.028 | D135: 5.602637281e-05 | F135: 132 | G135: Iémen | H135: 84.6154 | I135: 7.543017654e-06 | K135: 132 | L135: Madagáscar | M135: 1602.4536 | N135: 8.44972562e-05 | O135: -1341.1344
A136: 133 | B136: Serra Leoa | C136: 426.343 | D136: 5.503435691e-05 | F136: 133 | G136: Kosovo | H136: 79.8322 | I136: 7.116620544e-06 | K136: 133 | L136: Togo | M136: 1487.5448 | N136: 7.843812394e-05 | O136: 1010.2824
A137: 134 | B137: Camboja | C137: 410.517 | D137: 5.29914625e-05 | F137: 134 | G137: Tajiquistão | H137: 74.7168 | I137: 6.660609552e-06 | K137: 134 | L137: Islândia | M137: 1382.9198 | N137: 7.292125566e-05 | O137: 1015.037
A138: 135 | B138: Etiópia | C138: 409.5404 | D138: 5.286539839e-05 | F138: 135 | G138: Namíbia | H138: 64.9894 | I138: 5.793463028e-06 | K138: 135 | L138: Sudão | M138: 1318.1622 | N138: 6.950659235e-05 | O138: 1295.8858
A139: 136 | B139: Sri Lanca | C139: 405.2712 | D139: 5.231431e-05 | F139: 136 | G139: Libéria | H139: 54.4472 | I139: 4.853681373e-06 | K139: 136 | L139: Cazaquistão | M139: 1270.8276 | N139: 6.70106425e-05 | O139: -101.4752
A140: 137 | B140: Antígua e Barbuda | C140: 403.3246 | D140: 5.206303373e-05 | F140: 137 | G140: Nigéria | H140: 49.9946 | I140: 4.456755513e-06 | K140: 137 | L140: El Salvador | M140: 1081.0474 | N140: 5.700354701e-05 | O140: -318.6278
A141: 138 | B141: Nicarágua | C141: 398.8622 | D141: 5.148700618e-05 | F141: 138 | G141: Aruba | H141: 45.6144 | I141: 4.066283732e-06 | K141: 138 | L141: Kosovo | M141: 879.6752 | N141: 4.638520626e-05 | O141: 720.0108
A142: 139 | B142: El Salvador | C142: 381.2098 | D142: 4.920835147e-05 | F142: 139 | G142: Bósnia-Herzegovina | H142: 42.5574 | I142: 3.793768268e-06 | K142: 139 | L142: Bermudas | M142: 818.9736 | N142: 4.318441551e-05 | O142: 817.57
A143: 140 | B143: São Martinho (parte holandesa) | C143: 373.2376 | D143: 4.817926245e-05 | F143: 140 | G143: Curaçau | H143: 39.2148 | I143: 3.495793067e-06 | K143: 140 | L143: Bolívia | M143: 790.9644 | N143: 4.170749253e-05 | O143: 197.9464
A144: 141 | B144: Iémen | C144: 360.3172 | D144: 4.651143654e-05 | F144: 141 | G144: Arménia | H144: 37.5752 | I144: 3.349631355e-06 | K144: 141 | L144: Albânia | M144: 702.3358 | N144: 3.703411321e-05 | O144: 461.779
A145: 142 | B145: Tanzânia, República Unida da | C145: 340.531 | D145: 4.395734091e-05 | F145: 142 | G145: Arábia Saudita | H145: 37.0542 | I145: 3.303186947e-06 | K145: 142 | L145: Turquemenistão | M145: 700.9924 | N145: 3.696327583e-05 | O145: -686.4172
A146: 143 | B146: Myanmar | C146: 334.6834 | D146: 4.320250523e-05 | F146: 143 | G146: Botswana | H146: 30.037 | I146: 2.677640492e-06 | K146: 143 | L146: Aruba | M146: 696.9442 | N146: 3.674981455e-05 | O146: 605.7154
A147: 144 | B147: Comores | C147: 333.8038 | D147: 4.308896233e-05 | F147: 144 | G147: Ruanda | H147: 26.8278 | I147: 2.391557199e-06 | K147: 144 | L147: Azerbaijão | M147: 689.0554 | N147: 3.633383873e-05 | O147: 439.2626
A148: 145 | B148: Argentina | C148: 316.4082 | D148: 4.084345658e-05 | F148: 145 | G148: São Marino | H148: 25.2246 | I148: 2.248640355e-06 | K148: 145 | L148: Namíbia | M148: 665.2426 | N148: 3.50781916e-05 | O148: 535.2638
A149: 146 | B149: Jamaica | C149: 302.5728 | D149: 3.905751817e-05 | F149: 146 | G149: Macau | H149: 18.2246 | I149: 1.62462719e-06 | K149: 146 | L149: Mauritânia | M149: 617.715 | N149: 3.257206487e-05 | O149: 613.695
A150: 147 | B150: Libéria | C150: 301.9358 | D150: 3.897529121e-05 | F150: 147 | G150: Quirguizistão | H150: 17.5046 | I150: 1.560442979e-06 | K150: 147 | L150: Ruanda | M150: 607.2578 | N150: 3.202065751e-05 | O150: 553.6022
A151: 148 | B151: Macedónia, Antiga República jugoslava da | C151: 299.87 | D151: 3.870862805e-05 | F151: 148 | G151: Andorra | H151: 16.7404 | I151: 1.49231857e-06 | K151: 148 | L151: Arménia | M151: 563.1106 | N151: 2.969277902e-05 | O151: 487.9602
A152: 149 | B152: Somália | C152: 292.8384 | D152: 3.780095609e-05 | F152: 149 | G152: Líbia, Jamahira Árabe da | H152: 16.2514 | I152: 1.448726793e-06 | K152: 149 | L152: São Bartolomeu | M152: 548.8046 | N152: 2.893842473e-05 | O152: 548.2386
A153: 150 | B153: Moldava, República de | C153: 265.8198 | D153: 3.43132683e-05 | F153: 150 | G153: Catar | H153: 16.2504 | I153: 1.448637649e-06 | K153: 150 | L153: Barém | M153: 506.7884 | N153: 2.672291371e-05 | O153: 498.1432
A154: 151 | B154: Paquistão | C154: 260.8208 | D154: 3.36679739e-05 | F154: 151 | G154: Jamaica | H154: 14.6512 | I154: 1.306077384e-06 | K154: 151 | L154: Burundi | M154: 485.092 | N154: 2.557886419e-05 | O154: 484.864
A155: 152 | B155: Curaçau | C155: 251.4226 | D155: 3.245481011e-05 | F155: 152 | G155: São Cristovão e Nevis | H155: 12.4064 | I155: 1.105965276e-06 | K155: 152 | L155: Iémen | M155: 444.9326 | N155: 2.346126209e-05 | O155: 275.7018
A156: 153 | B156: Suriname | C156: 238.001 | D156: 3.072228694e-05 | F156: 153 | G156: Iraque | H156: 12.264 | I156: 1.093271065e-06 | K156: 153 | L156: Gâmbia | M156: 434.067 | N156: 2.288831983e-05 | O156: 433.989
A157: 154 | B157: Nova Caledónia | C157: 206.2626 | D157: 2.662534519e-05 | F157: 154 | G157: Território Palestiniano Ocupado | H157: 11.6698 | I157: 1.040301262e-06 | K157: 154 | L157: Usbequistão | M157: 421.6984 | N157: 2.223612449e-05 | O157: -339.0132
A158: 155 | B158: Trindade e Tobago | C158: 189.8074 | D158: 2.450123069e-05 | F158: 155 | G158: Sudão | H158: 11.1382 | I158: 9.929119195e-07 | K158: 155 | L158: Antígua e Barbuda | M158: 403.7924 | N158: 2.129194248e-05 | O158: 402.8568
A159: 156 | B159: Haiti | C159: 187.225 | D159: 2.416788237e-05 | F159: 156 | G159: Barém | H159: 4.3226 | I159: 3.85337044e-07 | K159: 156 | L159: São Martinho (parte holandesa) | M159: 373.2376 | N159: 1.96807902e-05 | O159: 373.2376
A160: 157 | B160: Zâmbia | C160: 152.2624 | D160: 1.965474575e-05 | F160: 157 | G160: Nepal | H160: 2.6584 | I160: 2.369823712e-07 | K160: 157 | L160: Libéria | M160: 356.383 | N160: 1.879204843e-05 | O160: 247.4886
A161: 158 | B161: Maldivas | C161: 137.7162 | D161: 1.777705393e-05 | F161: 158 | G161: Fiji, Ilhas | H161: 2.251 | I161: 2.00664805e-07 | K161: 158 | L161: Zâmbia | M161: 336.2118 | N161: 1.772842259e-05 | O161: -31.687
A162: 159 | B162: Liechtenstein | C162: 135.8048 | D162: 1.753032144e-05 | F162: 159 | G162: Mauritânia | H162: 2.01 | I162: 1.791809232e-07 | K162: 159 | L162: Comores | M162: 333.8038 | N162: 1.760144893e-05 | O162: 333.8038
A163: 160 | B163: Polinésia Francesa | C163: 133.9344 | D163: 1.728888142e-05 | F163: 160 | G163: Liechtenstein | H163: 1.7982 | I163: 1.603000677e-07 | K163: 160 | L163: Jamaica | M163: 317.224 | N163: 1.672719734e-05 | O163: 287.9216
A164: 161 | B164: Madagáscar | C164: 130.6596 | D164: 1.686615486e-05 | F164: 161 | G164: Lesoto | H164: 1.7136 | I164: 1.527584228e-07 | K164: 161 | L164: Chade | M164: 303.1804 | N164: 1.598667939e-05 | O164: -303.1724
A165: 162 | B165: Niger | C165: 126.732 | D165: 1.63591618e-05 | F165: 162 | G165: Seychelles | H165: 1.1434 | I165: 1.019280933e-07 | K165: 162 | L165: Somália | M165: 292.8384 | N165: 1.544134651e-05 | O165: 292.8384
A166: 163 | B166: Bósnia-Herzegovina | C166: 90.5322 | D166: 1.168632159e-05 | F166: 163 | G166: Bermudas | H166: 0.7018 | I166: 6.256177705e-08 | K166: 163 | L166: Curaçau | M166: 290.6374 | N166: 1.532528795e-05 | O166: 212.2078
A167: 164 | B167: Centro-Africana, República | C167: 89.9082 | D167: 1.160577274e-05 | F167: 164 | G167: Afeganistão | H167: 0.5848 | I167: 5.213184272e-08 | K167: 164 | L167: Nova Caledónia | M167: 206.2906 | N167: 1.087768762e-05 | O167: 206.2346
A168: 165 | B168: Nepal | C168: 87.8934 | D168: 1.13456929e-05 | F168: 165 | G168: Antígua e Barbuda | H168: 0.4678 | I168: 4.170190838e-08 | K168: 165 | L168: Trindade e Tobago | M168: 189.8764 | N168: 1.00121681e-05 | O168: 189.7384
A169: 166 | B169: Jibuti | C169: 70.7204 | D169: 9.128921396e-06 | F169: 166 | G169: Gabão | H169: 0.337 | I169: 3.004177667e-08 | K169: 166 | L169: Haiti | M169: 187.2274 | N169: 9.872486533e-06 | O169: 187.2226
A170: 167 | B170: Zimbabwe | C170: 65.33 | D170: 8.433103246e-06 | F170: 167 | G170: São Bartolomeu | H170: 0.283 | I170: 2.522796082e-08 | K170: 167 | L170: Maldivas | M170: 137.7198 | N170: 7.261954558e-06 | O170: 137.7126
A171: 168 | B171: Montenegro | C171: 54.6326 | D171: 7.05223261e-06 | F171: 168 | G171: Barbados | H171: 0.1636 | I171: 1.458407912e-08 | K171: 168 | L171: Liechtenstein | M171: 137.603 | N171: 7.255795703e-06 | O171: 134.0066
A172: 169 | B172: Caimão, Ilhas | C172: 53.1296 | D172: 6.85821831e-06 | F172: 169 | G172: Oceano Indico, Território Britânico do | H172: 0.1384 | I172: 1.233763172e-08 | K172: 169 | L172: Polinésia Francesa | M172: 133.9626 | N172: 7.063837689e-06 | O172: 133.9062
A173: 170 | B173: Ceuta e Melilha | C173: 51.6648 | D173: 6.669135046e-06 | F173: 170 | G173: Niger | H173: 0.1252 | I173: 1.116092118e-08 | K173: 170 | L173: Bósnia-Herzegovina | M173: 133.0896 | N173: 7.017804465e-06 | O173: 47.9748
A174: 171 | B174: Bahamas | C174: 43.9552 | D174: 5.673943668e-06 | F174: 171 | G174: Burundi | H174: 0.114 | I174: 1.016250012e-08 | K174: 171 | L174: Niger | M174: 126.8572 | N174: 6.689170488e-06 | O174: 126.6068
A175: 172 | B175: Usbequistão | C175: 41.3426 | D175: 5.336696988e-06 | F175: 172 | G175: Trindade e Tobago | H175: 0.069 | I175: 6.150986914e-09 | K175: 172 | L175: Nepal | M175: 90.5518 | N175: 4.774789513e-06 | O175: 85.235
A176: 173 | B176: Virgens dos Estados Unidos, Ilhas | C176: 26.0742 | D176: 3.365780203e-06 | F176: 173 | G176: Gâmbia | H176: 0.039 | I176: 3.476644778e-09 | K176: 173 | L176: Centro-Africana, República | M176: 89.9082 | N176: 4.740852534e-06 | O176: 89.9082
A177: 174 | B177: Turcas e Caicos, Ilhas | C177: 25.0024 | D177: 3.227427225e-06 | F177: 174 | G177: Polinésia Francesa | H177: 0.0282 | I177: 2.513881608e-09 | K177: 174 | L177: Tajiquistão | M177: 74.7168 | N177: 3.93981117e-06 | O177: -74.7168
A178: 175 | B178: Quirguizistão | C178: 23.7908 | D178: 3.071028206e-06 | F178: 175 | G178: Nova Caledónia | H178: 0.028 | I178: 2.496052661e-09 | K178: 175 | L178: Jibuti | M178: 70.7204 | N178: 3.729081302e-06 | O178: 70.7204
A179: 176 | B179: Guiana | C179: 20.1352 | D179: 2.599146188e-06 | F179: 176 | G179: Papuásia-Nova Guiné | H179: 0.0222 | I179: 1.979013181e-09 | K179: 176 | L179: Montenegro | M179: 54.634 | N179: 2.880846656e-06 | O179: 54.6312
A180: 177 | B180: Belize | C180: 19.5092 | D180: 2.518339168e-06 | F180: 177 | G180: Gibraltar | H180: 0.0216 | I180: 1.925526338e-09 | K180: 177 | L180: Caimão, Ilhas | M180: 53.1304 | N180: 2.801561943e-06 | O180: 53.1288
A181: 178 | B181: Mongólia | C181: 19.1206 | D181: 2.468176855e-06 | F181: 178 | G181: São Vicente e Granadinas | H181: 0.0144 | I181: 1.283684226e-09 | K181: 178 | L181: Ceuta e Melilha | M181: 51.6648 | N181: 2.724280967e-06 | O181: 51.6648
A182: 179 | B182: Afeganistão | C182: 18.9718 | D182: 2.448969052e-06 | F182: 179 | G182: Mongólia | H182: 0.0112 | I182: 9.984210643e-10 | K182: 179 | L182: Bahamas | M182: 43.9552 | N182: 2.317754346e-06 | O182: 43.9552
A183: 180 | B183: Barbados | C183: 15.4724 | D183: 1.997250064e-06 | F183: 180 | G183: Santa Lúcia | H183: 0.009 | I183: 8.02302641e-10 | K183: 180 | L183: Quirguizistão | M183: 41.2954 | N183: 2.177503295e-06 | O183: 6.2862
A184: 181 | B184: Virgens Britânicas, Ilhas | C184: 13.47 | D184: 1.738770867e-06 | F184: 181 | G184: Virgens Britânicas, Ilhas | H184: 0.007 | I184: 6.240131652e-10 | K184: 181 | L184: Botswana | M184: 30.0886 | N184: 1.586569585e-06 | O184: -29.9854
A185: 182 | B185: Laos, República Democrática Popular do | C185: 13.1192 | D185: 1.693487955e-06 | F185: 182 | G185: Maldivas | H185: 0.0036 | I185: 3.209210564e-10 | K185: 182 | L185: Virgens dos Estados Unidos, Ilhas | M185: 26.0742 | N185: 1.374890579e-06 | O185: 26.0742
A186: 183 | B186: Brunei Darussalam | C186: 12.819 | D186: 1.654736729e-06 | F186: 183 | G186: Faroé, Ilhas | H186: 0.0026 | I186: 2.317763185e-10 | K186: 183 | L186: São Marino | M186: 25.2486 | N186: 1.331356754e-06 | O186: -25.2006
A187: 184 | B187: Fiji, Ilhas | C187: 11.4226 | D187: 1.474482858e-06 | F187: 184 | G187: Haiti | H187: 0.0024 | I187: 2.139473709e-10 | K187: 184 | L187: Turcas e Caicos, Ilhas | M187: 25.0024 | N187: 1.318374647e-06 | O187: 25.0024
A188: 185 | B188: Turquemenistão | C188: 7.2876 | D188: 9.407176369e-07 | F188: 185 | G188: Montenegro | H188: 0.0014 | I188: 1.24802633e-10 | K188: 185 | L188: Afeganistão | M188: 19.5566 | N188: 1.031218028e-06 | O188: 18.387
A189: 186 | B189: Santa Lúcia | C189: 7.138 | D189: 9.214065662e-07 | F189: 186 | G189: Caimão, Ilhas | H189: 0.0008 | I189: 7.131579031e-11 | K189: 186 | L189: Mongólia | M189: 19.1318 | N189: 1.008818356e-06 | O189: 19.1094
A190: 187 | B190: Malavi | C190: 6.6344 | D190: 8.563995129e-07 | F190: 187 | G190: Anguila | H190: 0 | I190: 0 | K190: 187 | L190: Barbados | M190: 15.636 | N190: 8.244850884e-07 | O190: 15.3088
A191: 188 | B191: Bonaire, Santo Eustáquio e Saba | C191: 6.6316 | D191: 8.560380757e-07 | F191: 188 | G191: Antárctica | H191: 0 | I191: 0 | K191: 188 | L191: Fiji, Ilhas | M191: 13.6736 | N191: 7.210078859e-07 | O191: 9.1716
A192: 189 | B192: Guam | C192: 6.3336 | D192: 8.17570836e-07 | F192: 189 | G192: Antilhas Holandesas | H192: 0 | I192: 0 | K192: 189 | L192: Virgens Britânicas, Ilhas | M192: 13.477 | N192: 7.106411829e-07 | O192: 13.463
A193: 190 | B193: São Vicente e Granadinas | C193: 4.3128 | D193: 5.567164806e-07 | F193: 190 | G193: Bahamas | H193: 0 | I193: 0 | K193: 190 | L193: São Cristovão e Nevis | M193: 13.1558 | N193: 6.937043314e-07 | O193: -11.657
A194: 191 | B194: Sudão do Sul | C194: 3.771 | D194: 4.867783919e-07 | F194: 191 | G194: Bonaire, Santo Eustáquio e Saba | H194: 0 | I194: 0 | K194: 191 | L194: Brunei Darussalam | M194: 12.819 | N194: 6.759448931e-07 | O194: 12.819
A195: 192 | B195: Marianas do Norte, Ilhas | C195: 2.9244 | D195: 3.774952875e-07 | F195: 192 | G195: Bouvet, Ilha | H195: 0 | I195: 0 | K195: 192 | L195: Santa Lúcia | M195: 7.147 | N195: 3.768607653e-07 | O195: 7.129
A196: 193 | B196: Papuásia-Nova Guiné | C196: 2.8856 | D196: 3.724868013e-07 | F196: 193 | G196: Brunei Darussalam | H196: 0 | I196: 0 | K196: 193 | L196: Bonaire, Santo Eustáquio e Saba | M196: 6.6316 | N196: 3.496837626e-07 | O196: 6.6316
A197: 194 | B197: Anguila | C197: 2.7816 | D197: 3.590619928e-07 | F197: 194 | G197: Butão | H197: 0 | I197: 0 | K197: 194 | L197: Guam | M197: 6.3336 | N197: 3.339702453e-07 | O197: 6.3336
A198: 195 | B198: Domínica | C198: 1.4248 | D198: 1.839198761e-07 | F198: 195 | G198: Centro-Africana, República | H198: 0 | I198: 0 | K198: 195 | L198: São Vicente e Granadinas | M198: 4.3272 | N198: 2.281729262e-07 | O198: 4.2984
A199: 196 | B199: São Cristovão e Nevis | C199: 0.7494 | D199: 9.673607183e-08 | F199: 196 | G199: Ceuta | H199: 0 | I199: 0 | K199: 196 | L199: Sudão do Sul | M199: 3.771 | N199: 1.988445426e-07 | O199: 3.771
A200: 197 | B200: Granada | C200: 0.6942 | D200: 8.961059656e-08 | F200: 197 | G200: Ceuta e Melilha | H200: 0 | I200: 0 | K200: 197 | L200: Marianas do Norte, Ilhas | M200: 2.9244 | N200: 1.542033891e-07 | O200: 2.9244
... 58 more rows

Sheet 2A
A1: Parceiros comerciais de Portugal - União Europeia vs. Países Terceiros (média 2019-2023 em milhões de euros) produtos agrícolas e agroalimentares, do mar e da floresta
A2: Exportações | F2: Importações | K2: Trocas comerciais (total e saldo)
A3: P | B3: Grupo de Países | C3: média quinquénio | D3: % do Total | F3: P | G3: Grupo de Países | H3: média quinquénio | I3: % do Total | K3: P | L3: Grupo de Países | M3: média quinquénio | N3: % do Total | O3: Saldo (exp-imp)
A4: 1 | B4: União Europeia | C4: 9407.139979 | D4: 0.6779438817 | F4: 1 | G4: União Europeia | H4: 12705.30685 | I4: 0.7854366173 | K4: 1 | L4: União Europeia | M4: 22112.44683 | N4: 0.7358038778 | O4: -3298.166875
A5: 2 | B5: Países Terceiros | C5: 4469.1217 | D5: 0.3220759678 | F5: 2 | G5: Países Terceiros | H5: 3470.800262 | I5: 0.2145633827 | K5: 2 | L5: Países Terceiros | M5: 7939.921962 | N5: 0.2642052873 | O5: 998.3214384
B6: Outros | C6: -0.2754318 | D6: -1.984952962e-05 | G6: Outros | H6: 0 | I6: 0 | L6: Outros | M6: -0.2754318 | N6: -9.165145225e-06 | O6: -0.2754318
B7: Total | C7: 13875.98625 | D7: 1 | G7: Total | H7: 16176.10712 | I7: 1 | L7: Total | M7: 30052.09336 | N7: 1 | O7: -2300.120868
F27: valores em milhões de euros
A28: Nota: Outros = Países não determinados, abastecimentos de bordo, etc.
A29: Fonte: GPP a partir de dados INE/Comércio Internacional (2022 provisórios) | M29: 2024-03-04

Sheet 3
A1: Principais produtos agrícolas e agroalimentares, do mar e da floresta transacionados entre Portugal e Estados Unidos em 2019-2023 (NC a 2 e 4 dígitos) em milhões de euros
AC4: P | AE4: Cód.NC | AF4: Descritivo | AG4: Média export quinquénio | AH4: % do total | AI4: % acumulada | AN4: P | AO4: NC | AP4: Exportações | AQ4: 2019 | AR4: 2020 | AS4: 2021 | AT4: 2022 | AU4: 2023 | AV4: média quinquénio
AC5: 1 | AD5: º | AE5: 45 | AF5: Cortiça e suas obras | AG5: 197.3713108 | AH5: 0.3491550824 | AN5: 1º | AO5: 45 | AP5: Cortiça e suas obras | AQ5: 179.906551 | AR5: 196.01369 | AS5: 198.797845 | AT5: 197.621584 | AU5: 214.516884 | AV5: 197.3713108
AC6: 2 | AD6: º | AE6: 48 | AF6: Papel e cartão | AG6: 112.8092718 | AH6: 0.1995625931 | AN6: 2º | AO6: 48 | AP6: Papel e cartão | AQ6: 108.272647 | AR6: 95.012178 | AS6: 123.570239 | AT6: 179.104377 | AU6: 58.086918 | AV6: 112.8092718
AC7: 3 | AD7: º | AE7: 22 | AF7: Bebidas, líquidos alcoólicos e vinagres | AG7: 105.3597356 | AH7: 0.186384166 | AI7: 0.7351018416 | AN7: 3º | AO7: 22 | AP7: Bebidas, líquidos alcoólicos e vinagres | AQ7: 96.000089 | AR7: 98.236449 | AS7: 111.285827 | AT7: 113.207817 | AU7: 108.068496 | AV7: 105.3597356
AC8: 4 | AD8: º | AE8: 20 | AF8: Preparações de produtos vegetais | AG8: 24.1084636 | AH8: 0.04264851138 | AO8: - | AP8: Outros | AQ8: 120.76401 | AR8: 115.070529 | AS8: 158.079297 | AT8: 191.812049 | AU8: 162.985782 | AV8: 149.7423334
AC9: 5 | AD9: º | AE9: 03 | AF9: Peixes e crustáceos | AG9: 22.981765 | AH9: 0.04065535168 | AP9: Total | AQ9: 504.943297 | AR9: 504.332846 | AS9: 591.733208 | AT9: 681.745827 | AU9: 543.65808 | AV9: 565.2826516
AC10: 6 | AD10: º | AE10: 44 | AF10: Madeira e suas obras | AG10: 21.3237644 | AH10: 0.03772230466
AC11: 7 | AD11: º | AE11: 19a | AF11: Preparações à base de cereais (exc. NC 19022010) (a) | AG11: 17.1301374 | AH11: 0.03030366729
AC12: 8 | AD12: º | AE12: 15 | AF12: Gorduras e óleos animais ou vegetais | AG12: 16.0194688 | AH12: 0.02833886509
AC13: 9 | AD13: º | AE13: 05a | AF13: Outros produtos de origem animal (exc. NC 0508, 051191) (a) | AG13: 14.4051694 | AH13: 0.02548312664
AC14: 10 | AD14: º | AE14: 16p | AF14: Preparações e conservas de peixes ou crustáceos (NC 1604-05) (p) | AG14: 10.953528 | AH14: 0.01937708148 | AI14: 0.9596307498
AE15: - | AF15: Outros | AG15: 22.8200368 | AH15: 0.04036925021
AE16: Total | AG16: 565.2826516 | AH16: 1
AC38: P | AE38: Cód.NC | AF38: Descritivo | AG38: Média import quinquénio | AH38: % do total | AI38: % acumulada | AN38: P | AO38: NC | AP38: Importações | AQ38: 2019 | AR38: 2020 | AS38: 2021 | AT38: 2022 | AU38: 2023 | AV38: média quinquénio
AC39: 1 | AD39: º | AE39: 12 | AF39: Sementes e frutos oleaginosos | AG39: 140.0046806 | AH39: 0.5263819443 | AN39: 1º | AO39: 12 | AP39: Sementes e frutos oleaginosos | AQ39: 169.145327 | AR39: 108.246238 | AS39: 122.161548 | AT39: 153.929589 | AU39: 146.540701 | AV39: 140.0046806
AC40: 2 | AD40: º | AE40: 44 | AF40: Madeira e suas obras | AG40: 30.7267262 | AH40: 0.1155246654 | AN40: 2º | AO40: 44 | AP40: Madeira e suas obras | AQ40: 27.759892 | AR40: 27.175664 | AS40: 26.951159 | AT40: 37.452797 | AU40: 34.294119 | AV40: 30.7267262
AC41: 3 | AD41: º | AE41: 03 | AF41: Peixes e crustáceos | AG41: 17.781247 | AH41: 0.06685296039 | AI41: 0.70875957 | AN41: 3º | AO41: 03 | AP41: Peixes e crustáceos | AQ41: 27.425495 | AR41: 18.562866 | AS41: 11.625396 | AT41: 16.158193 | AU41: 15.134285 | AV41: 17.781247
AC42: 4 | AD42: º | AE42: 23a | AF42: Resíduos indústrias alimentares; alimentos p/ animais (exc. NC 230120) (a) | AG42: 17.7268558 | AH42: 0.06664846333 | AO42: - | AP42: Outros | AQ42: 79.35981 | AR42: 82.794297 | AS42: 56.947436 | AT42: 78.168311 | AU42: 90.044185 | AV42: 77.4628078
AC43: 5 | AD43: º | AE43: 10 | AF43: Cereais | AG43: 10.17692 | AH43: 0.03826262746 | AP43: Total | AQ43: 303.690524 | AR43: 236.779065 | AS43: 217.685539 | AT43: 285.70889 | AU43: 286.01329 | AV43: 265.9754616
AC44: 6 | AD44: º | AE44: 48 | AF44: Papel e cartão | AG44: 8.2503892 | AH44: 0.03101936228
AC45: 7 | AD45: º | AE45: 52 | AF45: Algodão (NC 5201-5203) | AG45: 7.0629774 | AH45: 0.0265549963
AC46: 8 | AD46: º | AE46: 08 | AF46: Frutas | AG46: 4.5337122 | AH46: 0.01704560328
AC47: 9 | AD47: º | AE47: 24 | AF47: Tabaco | AG47: 4.4422188 | AH47: 0.01670161139
AC48: 10 | AD48: º | AE48: 07 | AF48: Produtos hortícolas | AG48: 3.6287298 | AH48: 0.01364309992 | AI48: 0.918635334
AE49: - | AF49: Outros | AG49: 21.6410046 | AH49: 0.08136466601
AE50: Total | AG50: 265.9754616 | AH50: 1
AC62: DESAGREGAÇÃO A 4 DÍGITOS | AN62: DESAGREGAÇÃO A 4 DÍGITOS
AC64: P | AE64: Cód.NC | AF64: Descritivo | AG64: Média export quinquénio | AH64: % do total | AI64: % acumulada | AN64: P | AO64: NC | AP64: Exportações | AQ64: 2019 | AR64: 2020 | AS64: 2021 | AT64: 2022 | AU64: 2023 | AV64: média quinquénio
AC65: 1 | AD65: º | AE65: 4503 | AF65: Obras de cortiça natural | AG65: 120.3986184 | AH65: 0.2129883485 | AN65: 1º | AO65: 4503 | AP65: Obras de cortiça natural | AQ65: 108.309543 | AR65: 117.927176 | AS65: 114.031597 | AT65: 121.736461 | AU65: 139.988315 | AV65: 120.3986184
AC66: 2 | AD66: º | AE66: 2204 | AF66: Vinhos de uvas frescas | AG66: 98.4279762 | AH66: 0.1741216999 | AN66: 2º | AO66: 2204 | AP66: Vinhos de uvas frescas | AQ66: 89.48035 | AR66: 92.250347 | AS66: 104.305176 | AT66: 105.989366 | AU66: 100.114642 | AV66: 98.4279762
AC67: 3 | AD67: º | AE67: 4802 | AF67: Papel e cartão p/ escrita, etc. | AG67: 94.5546098 | AH67: 0.167269612 | AI67: 0.5543796604 | AN67: 3º | AO67: 4802 | AP67: Papel e cartão p/ escrita, etc. | AQ67: 101.258676 | AR67: 78.650844 | AS67: 102.782301 | AT67: 153.701634 | AU67: 36.379594 | AV67: 94.5546098
AC68: 4 | AD68: º | AE68: 4504 | AF68: Cortiça aglomerada e suas obras | AG68: 72.9005484 | AH68: 0.1289630032 | AN68: - | AO68: - | AP68: Outros | AQ68: 205.894728 | AR68: 215.504479 | AS68: 270.614134 | AT68: 300.318366 | AU68: 267.175529 | AV68: 251.9014472
AC69: 5 | AD69: º | AE69: 1905 | AF69: Produtos de padaria, pastelaria, etc. | AG69: 16.1516442 | AH69: 0.02857268687 | AP69: Total | AQ69: 504.943297 | AR69: 504.332846 | AS69: 591.733208 | AT69: 681.745827 | AU69: 543.65808 | AV69: 565.2826516
AC70: 6 | AD70: º | AE70: 0504 | AF70: Tripas de animais (excepto peixes) | AG70: 14.3867904 | AH70: 0.0254506137
AC71: 7 | AD71: º | AE71: 1509 | AF71: Azeite (processos mecânicos ou físicos) | AG71: 14.0136654 | AH71: 0.02479054569
AC72: 8 | AD72: º | AE72: 2005 | AF72: Produtos hortícolas preparados, não congelados | AG72: 13.6760398 | AH72: 0.02419327705
AC73: 9 | AD73: º | AE73: 0307 | AF73: Moluscos | AG73: 13.4808084 | AH73: 0.02384790752
AC74: 10 | AD74: º | AE74: 4819 | AF74: Embalagens de papel, cartão etc. | AG74: 11.2619376 | AH74: 0.01992266624 | AI74: 0.8301203606
AE75: - | AF75: Outros | AG75: 96.030013 | AH75: 0.1698796394
AE76: Total | AG76: 565.2826516 | AH76: 1
AC89: DESAGREGAÇÃO A 4 DÍGITOS | AN89: DESAGREGAÇÃO A 4 DÍGITOS
G91: média 2019-2023 em milhões de euros | I91: Cód. NC | J91: Descritivo | K91: Export | L91: Import | M91: Saldo | AC91: P | AE91: Cód.NC | AF91: Descritivo | AG91: Média import quinquénio | AH91: % do total | AI91: % acumulada | AN91: P | AO91: NC | AP91: Importações | AQ91: 2019 | AR91: 2020 | AS91: 2021 | AT91: 2022 | AU91: 2023 | AV91: média quinquénio
I92: 4503 | J92: Obras de cortiça natural | K92: 120.3986184 | L92: 2.581045 | M92: 117.8175734 | AC92: 1 | AD92: º | AE92: 1201 | AF92: Soja, mesmo triturada | AG92: 135.112693 | AH92: 0.5079893167 | AN92: 1º | AO92: 1201 | AP92: Soja, mesmo triturada | AQ92: 164.043805 | AR92: 103.49008 | AS92: 118.328024 | AT92: 148.326078 | AU92: 141.375478 | AV92: 135.112693
I93: 2204 | J93: Vinhos de uvas frescas | K93: 98.4279762 | L93: 0.198558 | M93: 98.2294182 | AC93: 2 | AD93: º | AE93: 4407 | AF93: Madeira serrada, etc. | AG93: 14.790113 | AH93: 0.0556070583 | AN93: 2º | AO93: 4407 | AP93: Madeira serrada, etc. | AQ93: 14.541846 | AR93: 12.578127 | AS93: 13.664956 | AT93: 16.905908 | AU93: 16.259728 | AV93: 14.790113
I94: 4802 | J94: Papel e cartão p/ escrita, etc. | K94: 94.5546098 | L94: 0.089526 | M94: 94.4650838 | AC94: 3 | AD94: º | AE94: 0303 | AF94: Peixes congelados | AG94: 13.3935262 | AH94: 0.0503562476 | AI94: 0.6139526226 | AN94: 3º | AO94: 0303 | AP94: Peixes congelados | AQ94: 23.434833 | AR94: 15.433481 | AS94: 8.143346 | AT94: 10.225476 | AU94: 9.730495 | AV94: 13.3935262
I95: 4504 | J95: Cortiça aglomerada e suas obras | K95: 72.9005484 | L95: 0.4717534 | M95: 72.428795 | AC95: 4 | AD95: º | AE95: 4403 | AF95: Madeira em bruto | AG95: 8.082 | AH95: 0.03038626177 | AN95: - | AO95: - | AP95: Outros | AQ95: 101.67004 | AR95: 105.277377 | AS95: 77.549213 | AT95: 110.251428 | AU95: 118.647589 | AV95: 102.6791294
I96: 1905 | J96: Produtos de padaria, pastelaria, etc. | K96: 16.1516442 | L96: 0.1838344 | M96: 15.9678098 | AC96: 5 | AD96: º | AE96: 2309 | AF96: Preparações p/ alimentação animal | AG96: 7.7195168 | AH96: 0.02902341725 | AP96: Total | AQ96: 303.690524 | AR96: 236.779065 | AS96: 217.685539 | AT96: 285.70889 | AU96: 286.01329 | AV96: 265.9754616
I97: 0504 | J97: Tripas de animais (excepto peixes) | K97: 14.3867904 | L97: 0.0364332 | M97: 14.3503572 | AC97: 6 | AD97: º | AE97: 4408 | AF97: Folhas para folheados ou contraplacados, etc. | AG97: 7.4519258 | AH97: 0.02801734324
I98: 1509 | J98: Azeite (processos mecânicos ou físicos) | K98: 14.0136654 | L98: 0.0139486 | M98: 13.9997168 | AC98: 7 | AD98: º | AE98: 5201 | AF98: Algodão não cardado nem penteado | AG98: 7.0093936 | AH98: 0.02635353486
I99: 2005 | J99: Produtos hortícolas preparados, não congelados | K99: 13.6760398 | L99: 0.0160244 | M99: 13.6600154 | AC99: 8 | AD99: º | AE99: 2303 | AF99: Resíduos da fabricação de amido, etc. | AG99: 6.3441936 | AH99: 0.02385255227
I100: 0307 | J100: Moluscos | K100: 13.4808084 | L100: 0.2678086 | M100: 13.2129998 | AC100: 9 | AD100: º | AE100: 1001 | AF100: Trigo e mistura trigo/centeio | AG100: 6.2512704 | AH100: 0.0235031847
I101: 4819 | J101: Embalagens de papel, cartão etc. | K101: 11.2619376 | L101: 0.0910858 | M101: 11.1708518 | AC101: 10 | AD101: º | AE101: 0802 | AF101: Frutas de casca rija | AG101: 4.4703486 | AH101: 0.01680737228 | AI101: 0.791896289
I102: - | J102: Outros | K102: 86.3977328 | L102: 51.4298956 | M102: 34.9678372 | AE102: - | AF102: Outros | AG102: 55.3504806 | AH102: 0.208103711
I103: 4408 | J103: Folhas para folheados ou contraplacados, etc. | K103: 3.5566838 | L103: 7.4519258 | M103: -3.895242 | AE103: Total | AG103: 265.9754616 | AH103: 1
I104: 2401 | J104: Tabaco não manufaturado | K104: 4.8e-06 | L104: 4.4409162 | M104: -4.4409114
I105: 1001 | J105: Trigo e mistura trigo/centeio | K105: 0 | L105: 6.2512704 | M105: -6.2512704
I106: 2303 | J106: Resíduos da fabricação de amido, etc. | K106: 0 | L106: 6.3441936 | M106: -6.3441936
I107: 5201 | J107: Algodão não cardado nem penteado | K107: 0.0012016 | L107: 7.0093936 | M107: -7.008192
I108: 2309 | J108: Preparações p/ alimentação animal | K108: 0.2391874 | L108: 7.7195168 | M108: -7.4803294
I109: 4403 | J109: Madeira em bruto | K109: 0.0165436 | L109: 8.082 | M109: -8.0654564
I110: 0303 | J110: Peixes congelados | K110: 3.5187928 | L110: 13.3935262 | M110: -9.8747334
I111: 4407 | J111: Madeira serrada, etc. | K111: 2.2998542 | L111: 14.790113 | M111: -12.4902588
I112: 1201 | J112: Soja, mesmo triturada | K112: 1.2e-05 | L112: 135.112693 | M112: -135.112681
I113: Total | K113: 565.2826516 | L113: 265.9754616 | M113: 299.30719
A116: Fonte: GPP a partir de dados INE/Comércio Internacional (2022 definitivos) | Y116: 2024-05-02T16:16:54.190

Sheet 3A
A1: Principais produtos agrícolas e agroalimentares transacionados entre Portugal e Estados Unidos em 2019-2023 (NC a 2 e 4 dígitos) em milhões de euros
AC4: P | AE4: Cód.NC | AF4: Descritivo | AG4: Média export quinquénio | AH4: % do total | AI4: % acumulada | AN4: P | AO4: NC | AP4: Exportações | AQ4: 2019 | AR4: 2020 | AS4: 2021 | AT4: 2022 | AU4: 2023 | AV4: média quinquénio
AC5: 1 | AD5: º | AE5: 22 | AF5: Bebidas, líquidos alcoólicos e vinagres | AG5: 105.3597356 | AH5: 0.5341385287 | AN5: 1º | AO5: 22 | AP5: Bebidas, líquidos alcoólicos e vinagres | AQ5: 96.000089 | AR5: 98.236449 | AS5: 111.285827 | AT5: 113.207817 | AU5: 108.068496 | AV5: 105.3597356
AC6: 2 | AD6: º | AE6: 20 | AF6: Preparações de produtos vegetais | AG6: 24.1084636 | AH6: 0.122221826 | AN6: 2º | AO6: 20 | AP6: Preparações de produtos vegetais | AQ6: 21.051859 | AR6: 21.011571 | AS6: 33.133623 | AT6: 29.655346 | AU6: 15.689919 | AV6: 24.1084636
AC7: 3 | AD7: º | AE7: 19a | AF7: Preparações à base de cereais (exc. NC 19022010) (a) | AG7: 17.1301374 | AH7: 0.08684405229 | AI7: 0.743204407 | AN7: 3º | AO7: 19a | AP7: Preparações à base de cereais (exc. NC 19022010) (a) | AQ7: 13.853912 | AR7: 14.004053 | AS7: 14.69217 | AT7: 19.854699 | AU7: 23.245853 | AV7: 17.1301374
AC8: 4 | AD8: º | AE8: 15 | AF8: Gorduras e óleos animais ou vegetais | AG8: 16.0194688 | AH8: 0.08121333493 | AO8: - | AP8: Outros | AQ8: 42.58403 | AR8: 36.975571 | AS8: 46.839529 | AT8: 64.269838 | AU8: 62.597875 | AV8: 50.6533686
AC9: 5 | AD9: º | AE9: 05a | AF9: Outros produtos de origem animal (exc. NC 0508, 051191) (a) | AG9: 14.4051694 | AH9: 0.0730293783 | AP9: Total | AQ9: 173.48989 | AR9: 170.227644 | AS9: 205.951149 | AT9: 226.9877 | AU9: 209.602143 | AV9: 197.2517052
AC10: 6 | AD10: º | AE10: 21 | AF10: Preparações alimentícias diversas | AG10: 4.9626816 | AH10: 0.02515913155
AC11: 7 | AD11: º | AE11: 04 | AF11: Leite e laticínios; ovos; mel, etc. | AG11: 3.927248 | AH11: 0.01990983042
AC12: 8 | AD12: º | AE12: 51 | AF12: Lã não cardada (NC 5101-5103) | AG12: 2.7088564 | AH12: 0.01373299357
AC13: 9 | AD13: º | AE13: 09 | AF13: Café, chá, mate e especiarias | AG13: 2.3827122 | AH13: 0.01207955185
AC14: 10 | AD14: º | AE14: 07 | AF14: Produtos hortícolas | AG14: 2.3339374 | AH14: 0.01183227997 | AI14: 0.9801609076
AE15: - | AF15: Outros | AG15: 3.9132948 | AH15: 0.01983909237
AE16: Total | AG16: 197.2517052 | AH16: 1
AC38: P | AE38: Cód.NC | AF38: Descritivo | AG38: Média import quinquénio | AH38: % do total | AI38: % acumulada | AN38: P | AO38: NC | AP38: Importações | AQ38: 2019 | AR38: 2020 | AS38: 2021 | AT38: 2022 | AU38: 2023 | AV38: média quinquénio
AC39: 1 | AD39: º | AE39: 12 | AF39: Sementes e frutos oleaginosos | AG39: 140.0046806 | AH39: 0.6928223063 | AN39: 1º | AO39: 12 | AP39: Sementes e frutos oleaginosos | AQ39: 169.145327 | AR39: 108.246238 | AS39: 122.161548 | AT39: 153.929589 | AU39: 146.540701 | AV39: 140.0046806
AC40: 2 | AD40: º | AE40: 23a | AF40: Resíduos indústrias alimentares; alimentos p/ animais (exc. NC 230120) (a) | AG40: 17.7268558 | AH40: 0.08772250375 | AN40: 2º | AO40: 23a | AP40: Resíduos indústrias alimentares; alimentos p/ animais (exc. NC 230120) (a) | AQ40: 17.580956 | AR40: 13.788103 | AS40: 16.169724 | AT40: 14.301652 | AU40: 26.793844 | AV40: 17.7268558
AC41: 3 | AD41: º | AE41: 10 | AF41: Cereais | AG41: 10.17692 | AH41: 0.05036115332 | AI41: 0.8309059634 | AN41: 3º | AO41: 10 | AP41: Cereais | AQ41: 9.321157 | AR41: 13.919156 | AS41: 4.968311 | AT41: 18.006864 | AU41: 4.669112 | AV41: 10.17692
AC42: 4 | AD42: º | AE42: 52 | AF42: Algodão (NC 5201-5203) | AG42: 7.0629774 | AH42: 0.03495160498 | AO42: - | AP42: Outros | AQ42: 34.792084 | AR42: 35.790121 | AS42: 24.896484 | AT42: 31.208547 | AU42: 44.16434 | AV42: 34.1703152
AC43: 5 | AD43: º | AE43: 08 | AF43: Frutas | AG43: 4.5337122 | AH43: 0.02243537094 | AP43: Total | AQ43: 230.839524 | AR43: 171.743618 | AS43: 168.196067 | AT43: 217.446652 | AU43: 222.167997 | AV43: 202.0787716
AC44: 6 | AD44: º | AE44: 24 | AF44: Tabaco | AG44: 4.4422188 | AH44: 0.02198260987
AC45: 7 | AD45: º | AE45: 07 | AF45: Produtos hortícolas | AG45: 3.6287298 | AH45: 0.01795700643
AC46: 8 | AD46: º | AE46: 22 | AF46: Bebidas, líquidos alcoólicos e vinagres | AG46: 3.4369552 | AH46: 0.01700799729
AC47: 9 | AD47: º | AE47: 21 | AF47: Preparações alimentícias diversas | AG47: 2.655405 | AH47: 0.01314044508
AC48: 10 | AD48: º | AE48: 43 | AF48: Peles com pelo em bruto (NC 4301) | AG48: 1.5511682 | AH48: 0.007676057152 | AI48: 0.9660570551
AE49: - | AF49: Outros | AG49: 6.8591486 | AH49: 0.03394294485
AE50: Total | AG50: 202.0787716 | AH50: 1
AC62: DESAGREGAÇÃO A 4 DÍGITOS | AN62: DESAGREGAÇÃO A 4 DÍGITOS
AC64: P | AE64: Cód.NC | AF64: Descritivo | AG64: Média export quinquénio | AH64: % do total | AI64: % acumulada | AN64: P | AO64: NC | AP64: Exportações | AQ64: 2019 | AR64: 2020 | AS64: 2021 | AT64: 2022 | AU64: 2023 | AV64: média quinquénio
AC65: 1 | AD65: º | AE65: 2204 | AF65: Vinhos de uvas frescas | AG65: 98.4279762 | AH65: 0.498996833 | AN65: 1º | AO65: 2204 | AP65: Vinhos de uvas frescas | AQ65: 89.48035 | AR65: 92.250347 | AS65: 104.305176 | AT65: 105.989366 | AU65: 100.114642 | AV65: 98.4279762
AC66: 2 | AD66: º | AE66: 1905 | AF66: Produtos de padaria, pastelaria, etc. | AG66: 16.1516442 | AH66: 0.08188341989 | AN66: 2º | AO66: 1905 | AP66: Produtos de padaria, pastelaria, etc. | AQ66: 13.098738 | AR66: 13.221277 | AS66: 13.933025 | AT66: 18.933915 | AU66: 21.571266 | AV66: 16.1516442
AC67: 3 | AD67: º | AE67: 0504 | AF67: Tripas de animais (excepto peixes) | AG67: 14.3867904 | AH67: 0.07293620294 | AI67: 0.6538164558 | AN67: 3º | AO67: 0504 | AP67: Tripas de animais (excepto peixes) | AQ67: 14.000458 | AR67: 12.985363 | AS67: 14.016646 | AT67: 15.38463 | AU67: 15.546855 | AV67: 14.3867904
AC68: 4 | AD68: º | AE68: 1509 | AF68: Azeite (processos mecânicos ou físicos) | AG68: 14.0136654 | AH68: 0.07104458431 | AN68: - | AO68: - | AP68: Outros | AQ68: 56.910344 | AR68: 51.770657 | AS68: 73.696302 | AT68: 86.679789 | AU68: 72.36938 | AV68: 68.2852944
AC69: 5 | AD69: º | AE69: 2005 | AF69: Produtos hortícolas preparados, não congelados | AG69: 13.6760398 | AH69: 0.06933293573 | AP69: Total | AQ69: 173.48989 | AR69: 170.227644 | AS69: 205.951149 | AT69: 226.9877 | AU69: 209.602143 | AV69: 197.2517052
AC70: 6 | AD70: º | AE70: 2009 | AF70: Sumos de frutas | AG70: 8.0229926 | AH70: 0.04067388209
AC71: 7 | AD71: º | AE71: 0406 | AF71: Queijos e requeijão | AG71: 3.404034 | AH71: 0.01725731089
AC72: 8 | AD72: º | AE72: 2106 | AF72: Outras preparações alimentícias | AG72: 2.9040364 | AH72: 0.01472249072
AC73: 9 | AD73: º | AE73: 5102 | AF73: Pêlos finos ou grosseiros | AG73: 2.7088564 | AH73: 0.01373299357
AC74: 10 | AD74: º | AE74: 2202 | AF74: Águas com açúcar ou outros produtos; outras bebidas | AG74: 2.1487746 | AH74: 0.01089356666 | AI74: 0.8914742198
AE75: - | AF75: Outros | AG75: 21.4068952 | AH75: 0.1085257802
AE76: Total | AG76: 197.2517052 | AH76: 1
AC89: DESAGREGAÇÃO A 4 DÍGITOS | AN89: DESAGREGAÇÃO A 4 DÍGITOS
G91: média 2019-2023 em milhões de euros | I91: Cód. NC | J91: Descritivo | K91: Export | L91: Import | M91: Saldo | AC91: P | AE91: Cód.NC | AF91: Descritivo | AG91: Média import quinquénio | AH91: % do total | AI91: % acumulada | AN91: P | AO91: NC | AP91: Importações | AQ91: 2019 | AR91: 2020 | AS91: 2021 | AT91: 2022 | AU91: 2023 | AV91: média quinquénio
I92: 2204 | J92: Vinhos de uvas frescas | K92: 98.4279762 | L92: 0.198558 | M92: 98.2294182 | AC92: 1 | AD92: º | AE92: 1201 | AF92: Soja, mesmo triturada | AG92: 135.112693 | AH92: 0.6686139862 | AN92: 1º | AO92: 1201 | AP92: Soja, mesmo triturada | AQ92: 164.043805 | AR92: 103.49008 | AS92: 118.328024 | AT92: 148.326078 | AU92: 141.375478 | AV92: 135.112693
I93: 1905 | J93: Produtos de padaria, pastelaria, etc. | K93: 16.1516442 | L93: 0.1838344 | M93: 15.9678098 | AC93: 2 | AD93: º | AE93: 2309 | AF93: Preparações p/ alimentação animal | AG93: 7.7195168 | AH93: 0.03820053308 | AN93: 2º | AO93: 2309 | AP93: Preparações p/ alimentação animal | AQ93: 8.625084 | AR93: 7.716715 | AS93: 8.119546 | AT93: 7.457305 | AU93: 6.678934 | AV93: 7.7195168
I94: 0504 | J94: Tripas de animais (excepto peixes) | K94: 14.3867904 | L94: 0.0364332 | M94: 14.3503572 | AC94: 3 | AD94: º | AE94: 5201 | AF94: Algodão não cardado nem penteado | AG94: 7.0093936 | AH94: 0.03468644205 | AI94: 0.7415009613 | AN94: 3º | AO94: 5201 | AP94: Algodão não cardado nem penteado | AQ94: 5.226539 | AR94: 3.872603 | AS94: 5.063432 | AT94: 8.671105 | AU94: 12.213289 | AV94: 7.0093936
I95: 1509 | J95: Azeite (processos mecânicos ou físicos) | K95: 14.0136654 | L95: 0.0139486 | M95: 13.9997168 | AC95: 4 | AD95: º | AE95: 2303 | AF95: Resíduos da fabricação de amido, etc. | AG95: 6.3441936 | AH95: 0.0313946564 | AN95: - | AO95: - | AP95: Outros | AQ95: 52.944096 | AR95: 56.66422 | AS95: 36.685065 | AT95: 52.992164 | AU95: 61.900296 | AV95: 52.2371682
I96: 2005 | J96: Produtos hortícolas preparados, não congelados | K96: 13.6760398 | L96: 0.0160244 | M96: 13.6600154 | AC96: 5 | AD96: º | AE96: 1001 | AF96: Trigo e mistura trigo/centeio | AG96: 6.2512704 | AH96: 0.03093481987 | AP96: Total | AQ96: 230.839524 | AR96: 171.743618 | AS96: 168.196067 | AT96: 217.446652 | AU96: 222.167997 | AV96: 202.0787716
I97: 2009 | J97: Sumos de frutas | K97: 8.0229926 | L97: 0.0174862 | M97: 8.0055064 | AC97: 6 | AD97: º | AE97: 0802 | AF97: Frutas de casca rija | AG97: 4.4703486 | AH97: 0.02212181203
I98: 0406 | J98: Queijos e requeijão | K98: 3.404034 | L98: 0.0001304 | M98: 3.4039036 | AC98: 7 | AD98: º | AE98: 2401 | AF98: Tabaco não manufaturado | AG98: 4.4409162 | AH98: 0.02197616387
I99: 5102 | J99: Pêlos finos ou grosseiros | K99: 2.7088564 | L99: 0.0039264 | M99: 2.70493 | AC99: 8 | AD99: º | AE99: 2304 | AF99: Bagaços e outros resíduos sólidos de soja | AG99: 3.6194172 | AH99: 0.01791092242
I100: 0710 | J100: Produtos hortícolas congelados | K100: 2.0098996 | L100: 0.0045626 | M100: 2.005337 | AC100: 9 | AD100: º | AE100: 0713 | AF100: Legumes de vagem, secos, em grão | AG100: 3.5523818 | AH100: 0.01757919336
I101: 0901 | J101: Café | K101: 1.9719634 | L101: 0.061582 | M101: 1.9103814 | AC101: 10 | AD101: º | AE101: 1202 | AF101: Amendoins não torrados | AG101: 3.1337654 | AH101: 0.01550764276 | AI101: 0.898926172
I102: - | J102: Outros | K102: 21.5342324 | L102: 19.8883888 | M102: 1.6458436 | AE102: - | AF102: Outros | AG102: 20.424875 | AH102: 0.101073828
I103: 1202 | J103: Amendoins não torrados | K103: 0 | L103: 3.1337654 | M103: -3.1337654 | AE103: Total | AG103: 202.0787716 | AH103: 1
I104: 0713 | J104: Legumes de vagem, secos, em grão | K104: 0.0717826 | L104: 3.5523818 | M104: -3.4805992
I105: 2304 | J105: Bagaços e outros resíduos sólidos de soja | K105: 0 | L105: 3.6194172 | M105: -3.6194172
I106: 0802 | J106: Frutas de casca rija | K106: 0.6314224 | L106: 4.4703486 | M106: -3.8389262
I107: 2401 | J107: Tabaco não manufaturado | K107: 4.8e-06 | L107: 4.4409162 | M107: -4.4409114
I108: 1001 | J108: Trigo e mistura trigo/centeio | K108: 0 | L108: 6.2512704 | M108: -6.2512704
I109: 2303 | J109: Resíduos da fabricação de amido, etc. | K109: 0 | L109: 6.3441936 | M109: -6.3441936
I110: 5201 | J110: Algodão não cardado nem penteado | K110: 0.0012016 | L110: 7.0093936 | M110: -7.008192
I111: 2309 | J111: Preparações p/ alimentação animal | K111: 0.2391874 | L111: 7.7195168 | M111: -7.4803294
I112: 1201 | J112: Soja, mesmo triturada | K112: 1.2e-05 | L112: 135.112693 | M112: -135.112681
I113: Total | K113: 197.2517052 | L113: 202.0787716 | M113: -4.8270664
A116: Fonte: GPP a partir de dados INE/Comércio Internacional (2022 definitivos) | Y116: 2024-05-02T16:16:54.190

Sheet 4A
A1: Evolução da balança comercial Portugal-Estados Unidos 2019-2023 por produto em euros (NC 2 dígitos)
A3: =+aux!A31 -> Evolução da balança comercial Portugal-Estados Unidos para Bebidas, líquidos alcoólicos e vinagres
A5: Selecione o produto:
Q7: Para obter uma maior desagregação deste produto, clique no botão respetivo:
A20: =+aux!A43 -> Evolução da balança comercial Portugal-Estados Unidos para Sementes e frutos oleaginosos
A22: Selecione o produto:
A38: Fonte: GPP a partir de dados INE/Comércio Internacional (2022 definitivos) | N38: 2024-05-02T16:16:54.190

Sheet 5.2
A1: Trocas comerciais Portugal-Estados Unidos 2019-2023 em milhares de euros (NC 2 dígitos) | C1: Produtos agrícolas e agroalimentares, do mar e da floresta
A2: Cód. NC | B2: Descritivo | C2: Importações | K2: Exportações | S2: Saldo quinquénio (exp-imp) | T2: Evolução das importações | U2: =+"Variação das Importações " & INDEX(K3:N3,1,aux!AL1) & "-"& '5.2'!O3 &"" -> Variação das Importações 2019-2023 | Z2: Evolução das exportações | AA2: ="Variação das Exportações " & INDEX(K3:N3,1,aux!AL1) & "-"& '5.2'!O3 &"" -> Variação das Exportações 2019-2023
C3: 2019 | D3: 2020 | E3: 2021 | F3: 2022 | G3: 2023 | H3: média quinquénio | I3: % Subtot | J3: % Total | K3: 2019 | L3: 2020 | M3: 2021 | N3: 2022 | O3: 2023 | P3: média quinquénio | Q3: % Subtot | R3: % Total | U3: variação total em valor | V3: % no subtotal de variação | W3: % no total de variação | X3: taxa de variação média anual | Y3: taxa de variação total | AA3: variação total em valor | AB3: % no subtotal de variação | AC3: % no total de variação | AD3: taxa de variação média anual | AE3: taxa de variação total
A4: 01 | B4: Animais vivos | C4: 1406.031 | D4: 946.732 | E4: 678.408 | F4: 547.46 | G4: 525.457 | H4: 820.8176 | I4: 0.004061869505 | J4: 0.003086065139 | K4: 24.337 | L4: 41.076 | M4: 71.499 | N4: 71.137 | O4: 235.32 | P4: 88.6738 | Q4: 0.0004495464306 | R4: 0.0001568663035 | S4: -732.1438 | U4: =G4-INDEX($C4:$G4,1,aux!$AL$1) -> -880.574 | V4: =IF($U$37<>0,U4/$U$37, "n.d.") -> 0.1015477436 | W4: =IF($U$53<>0,U4/$U$53, "n.d.") -> 0.04981401502 | X4: =+IF(INDEX($C4:$G4,1,aux!$AL$1)>0,(G4/INDEX($C4:$G4,1,aux!$AL$1))^(1/($G$3-INDEX($C$3:$G$3,1,aux!$AL$1)))-1,"n.d.") -> -0.2181281606 | Y4: =IF(INDEX($C4:$G4,1,aux!$AL$1)>0,(G4-INDEX($C4:$G4,1,aux!$AL$1))/INDEX($C4:$G4,1,aux!$AL$1),"n.d.") -> -0.6262834888 | AA4: =O4-INDEX($K4:$O4,1,aux!$AL$1) -> 210.983 | AB4: =IF($AA$37<>0,AA4/$AA$37, "n.d.") -> 0.005842421407 | AC4: =IF($AA$53<>0,AA4/$AA$53, "n.d.") -> 0.005449675386 | AD4: =+IF(INDEX($K4:$O4,1,aux!$AL$1)>0,(O4/INDEX($K4:$O4,1,aux!$AL$1))^(1/($O$3-INDEX($K$3:$O$3,1,aux!$AL$1)))-1,"n.d.") -> 0.7633882775 | AE4: =IF(INDEX($K4:$O4,1,aux!$AL$1)>0,(O4-INDEX($K4:$O4,1,aux!$AL$1))/INDEX($K4:$O4,1,aux!$AL$1),"n.d.") -> 8.669227925
A5: 02 | B5: Carnes e miudezas | C5: 0 | D5: 0 | E5: 0 | F5: 0 | G5: 1.218 | H5: 0.2436 | I5: 1.205470511e-06 | J5: 9.158739627e-07 | K5: 163.686 | L5: 412.036 | M5: 558.953 | N5: 401.418 | O5: 154.767 | P5: 338.172 | Q5: 0.001714418639 | R5: 0.0005982352351 | S5: 337.9284 | U5: =G5-INDEX($C5:$G5,1,aux!$AL$1) -> 1.218 | V5: -0.0001404596907 | W5: -6.890218232e-05 | X5: =+IF(INDEX($C5:$G5,1,aux!$AL$1)>0,(G5/INDEX($C5:$G5,1,aux!$AL$1))^(1/($G$3-INDEX($C$3:$G$3,1,aux!$AL$1)))-1,"n.d.") -> n.d. | Y5: =IF(INDEX($C5:$G5,1,aux!$AL$1)>0,(G5-INDEX($C5:$G5,1,aux!$AL$1))/INDEX($C5:$G5,1,aux!$AL$1),"n.d.") -> n.d. | AA5: =O5-INDEX($K5:$O5,1,aux!$AL$1) -> -8.919 | AB5: -0.0002469798824 | AC5: -0.0002303771146 | AD5: =+IF(INDEX($K5:$O5,1,aux!$AL$1)>0,(O5/INDEX($K5:$O5,1,aux!$AL$1))^(1/($O$3-INDEX($K$3:$O$3,1,aux!$AL$1)))-1,"n.d.") -> -0.0139096538 | AE5: =IF(INDEX($K5:$O5,1,aux!$AL$1)>0,(O5-INDEX($K5:$O5,1,aux!$AL$1))/INDEX($K5:$O5,1,aux!$AL$1),"n.d.") -> -0.05448847183
A6: 04 | B6: Leite e laticínios; ovos; mel, etc. | C6: 0 | D6: 0.006 | E6: 3.799 | F6: 130.234 | G6: 11.065 | H6: 29.0208 | I6: 0.0001436113243 | J6: 0.0001091108173 | K6: 3694.789 | L6: 3707.626 | M6: 3541.497 | N6: 4149.738 | O6: 4542.59 | P6: 3927.248 | Q6: 0.01990983042 | R6: 0.006947405849 | S6: 3898.2272 | U6: =G6-INDEX($C6:$G6,1,aux!$AL$1) -> 11.065 | V6: -0.00127601517 | W6: -0.0006259463443 | X6: =+IF(INDEX($C6:$G6,1,aux!$AL$1)>0,(G6/INDEX($C6:$G6,1,aux!$AL$1))^(1/($G$3-INDEX($C$3:$G$3,1,aux!$AL$1)))-1,"n.d.") -> n.d. | Y6: =IF(INDEX($C6:$G6,1,aux!$AL$1)>0,(G6-INDEX($C6:$G6,1,aux!$AL$1))/INDEX($C6:$G6,1,aux!$AL$1),"n.d.") -> n.d. | AA6: =O6-INDEX($K6:$O6,1,aux!$AL$1) -> 847.801 | AB6: 0.02347682378 | AC6: 0.02189863753 | AD6: =+IF(INDEX($K6:$O6,1,aux!$AL$1)>0,(O6/INDEX($K6:$O6,1,aux!$AL$1))^(1/($O$3-INDEX($K$3:$O$3,1,aux!$AL$1)))-1,"n.d.") -> 0.05300025082 | AE6: =IF(INDEX($K6:$O6,1,aux!$AL$1)>0,(O6-INDEX($K6:$O6,1,aux!$AL$1))/INDEX($K6:$O6,1,aux!$AL$1),"n.d.") -> 0.2294585699
A7: 05a | B7: Outros produtos de origem animal (exc. NC 0508, 051191) (a) | C7: 675.149 | D7: 689.137 | E7: 891.332 | F7: 768.65 | G7: 1235.987 | H7: 852.051 | I7: 0.004216430025 | J7: 0.003203494769 | K7: 14003.334 | L7: 13015.329 | M7: 14022.971 | N7: 15406.172 | O7: 15578.041 | P7: 14405.1694 | Q7: 0.0730293783 | R7: 0.02548312664 | S7: 13553.1184 | U7: =G7-INDEX($C7:$G7,1,aux!$AL$1) -> 560.838 | V7: -0.06467580623 | W7: -0.03172656989 | X7: =+IF(INDEX($C7:$G7,1,aux!$AL$1)>0,(G7/INDEX($C7:$G7,1,aux!$AL$1))^(1/($G$3-INDEX($C$3:$G$3,1,aux!$AL$1)))-1,"n.d.") -> 0.1631977904 | Y7: =IF(INDEX($C7:$G7,1,aux!$AL$1)>0,(G7-INDEX($C7:$G7,1,aux!$AL$1))/INDEX($C7:$G7,1,aux!$AL$1),"n.d.") -> 0.8306877445 | AA7: =O7-INDEX($K7:$O7,1,aux!$AL$1) -> 1574.707 | AB7: 0.04360589188 | AC7: 0.0406745661 | AD7: =+IF(INDEX($K7:$O7,1,aux!$AL$1)>0,(O7/INDEX($K7:$O7,1,aux!$AL$1))^(1/($O$3-INDEX($K$3:$O$3,1,aux!$AL$1)))-1,"n.d.") -> 0.02699977573 | AE7: =IF(INDEX($K7:$O7,1,aux!$AL$1)>0,(O7-INDEX($K7:$O7,1,aux!$AL$1))/INDEX($K7:$O7,1,aux!$AL$1),"n.d.") -> 0.1124522917
A8: 06 | B8: Plantas vivas e produtos de floricultura | C8: 20.552 | D8: 16.49 | E8: 16.625 | F8: 17.801 | G8: 17.277 | H8: 17.749 | I8: 8.783208577e-05 | J8: 6.673171989e-05 | K8: 70.973 | L8: 51.772 | M8: 145.737 | N8: 71.965 | O8: 22.787 | P8: 72.6468 | Q8: 0.000368294915 | R8: 0.0001285141155 | S8: 54.8978 | U8: =G8-INDEX($C8:$G8,1,aux!$AL$1) -> -3.275 | V8: 0.0003776728136 | W8: 0.0001852665411 | X8: =+IF(INDEX($C8:$G8,1,aux!$AL$1)>0,(G8/INDEX($C8:$G8,1,aux!$AL$1))^(1/($G$3-INDEX($C$3:$G$3,1,aux!$AL$1)))-1,"n.d.") -> -0.04246741833 | Y8: =IF(INDEX($C8:$G8,1,aux!$AL$1)>0,(G8-INDEX($C8:$G8,1,aux!$AL$1))/INDEX($C8:$G8,1,aux!$AL$1),"n.d.") -> -0.1593518879 | AA8: =O8-INDEX($K8:$O8,1,aux!$AL$1) -> -48.186 | AB8: -0.001334339345 | AC8: -0.001244640839 | AD8: =+IF(INDEX($K8:$O8,1,aux!$AL$1)>0,(O8/INDEX($K8:$O8,1,aux!$AL$1))^(1/($O$3-INDEX($K$3:$O$3,1,aux!$AL$1)))-1,"n.d.") -> -0.2472539291 | AE8: =IF(INDEX($K8:$O8,1,aux!$AL$1)>0,(O8-INDEX($K8:$O8,1,aux!$AL$1))/INDEX($K8:$O8,1,aux!$AL$1),"n.d.") -> -0.6789342426
A9: 07 | B9: Produtos hortícolas | C9: 9838.962 | D9: 5134.285 | E9: 1124.391 | F9: 672.193 | G9: 1373.818 | H9: 3628.7298 | I9: 0.01795700643 | J9: 0.01364309992 | K9: 2881.081 | L9: 2880.368 | M9: 1538.758 | N9: 2499.466 | O9: 1870.014 | P9: 2333.9374 | Q9: 0.01183227997 | R9: 0.004128797148 | S9: -1294.7924 | U9: =G9-INDEX($C9:$G9,1,aux!$AL$1) -> -8465.144 | V9: 0.9761999242 | W9: 0.4788726562 | X9: =+IF(INDEX($C9:$G9,1,aux!$AL$1)>0,(G9/INDEX($C9:$G9,1,aux!$AL$1))^(1/($G$3-INDEX($C$3:$G$3,1,aux!$AL$1)))-1,"n.d.") -> -0.3887132536 | Y9: =IF(INDEX($C9:$G9,1,aux!$AL$1)>0,(G9-INDEX($C9:$G9,1,aux!$AL$1))/INDEX($C9:$G9,1,aux!$AL$1),"n.d.") -> -0.8603696203 | AA9: =O9-INDEX($K9:$O9,1,aux!$AL$1) -> -1011.067 | AB9: -0.02799789313 | AC9: -0.02611578631 | AD9: =+IF(INDEX($K9:$O9,1,aux!$AL$1)>0,(O9/INDEX($K9:$O9,1,aux!$AL$1))^(1/($O$3-INDEX($K$3:$O$3,1,aux!$AL$1)))-1,"n.d.") -> -0.102421694 | AE9: =IF(INDEX($K9:$O9,1,aux!$AL$1)>0,(O9-INDEX($K9:$O9,1,aux!$AL$1))/INDEX($K9:$O9,1,aux!$AL$1),"n.d.") -> -0.3509332088
A10: 08 | B10: Frutas | C10: 4960.344 | D10: 7067.813 | E10: 3490.089 | F10: 4574.948 | G10: 2575.367 | H10: 4533.7122 | I10: 0.02243537094 | J10: 0.01704560328 | K10: 881.9 | L10: 1022.56 | M10: 1436.752 | N10: 651.065 | O10: 557.674 | P10: 909.9902 | Q10: 0.004613345163 | R10: 0.001609796794 | S10: -3623.722 | U10: =G10-INDEX($C10:$G10,1,aux!$AL$1) -> -2384.977 | V10: 0.2750354119 | W10: 0.1349179968 | X10: =+IF(INDEX($C10:$G10,1,aux!$AL$1)>0,(G10/INDEX($C10:$G10,1,aux!$AL$1))^(1/($G$3-INDEX($C$3:$G$3,1,aux!$AL$1)))-1,"n.d.") -> -0.1511482807 | Y10: =IF(INDEX($C10:$G10,1,aux!$AL$1)>0,(G10-INDEX($C10:$G10,1,aux!$AL$1))/INDEX($C10:$G10,1,aux!$AL$1),"n.d.") -> -0.4808087907 | AA10: =O10-INDEX($K10:$O10,1,aux!$AL$1) -> -324.226 | AB10: -0.008978282247 | AC10: -0.008374733755 | AD10: =+IF(INDEX($K10:$O10,1,aux!$AL$1)>0,(O10/INDEX($K10:$O10,1,aux!$AL$1))^(1/($O$3-INDEX($K$3:$O$3,1,aux!$AL$1)))-1,"n.d.") -> -0.1082558609 | AE10: =IF(INDEX($K10:$O10,1,aux!$AL$1)>0,(O10-INDEX($K10:$O10,1,aux!$AL$1))/INDEX($K10:$O10,1,aux!$AL$1),"n.d.") -> -0.3676448577
A11: 09 | B11: Café, chá, mate e especiarias | C11: 106.393 | D11: 93.85 | E11: 168.716 | F11: 134.269 | G11: 194.256 | H11: 139.4968 | I11: 0.000690309026 | J11: 0.0005244724425 | K11: 2281.736 | L11: 2259.789 | M11: 2348.51 | N11: 2312.301 | O11: 2711.225 | P11: 2382.7122 | Q11: 0.01207955185 | R11: 0.004215081063 | S11: 2243.2154 | U11: =G11-INDEX($C11:$G11,1,aux!$AL$1) -> 87.863 | V11: -0.01013235616 | W11: -0.004970404306 | X11: =+IF(INDEX($C11:$G11,1,aux!$AL$1)>0,(G11/INDEX($C11:$G11,1,aux!$AL$1))^(1/($G$3-INDEX($C$3:$G$3,1,aux!$AL$1)))-1,"n.d.") -> 0.1624260841 | Y11: =IF(INDEX($C11:$G11,1,aux!$AL$1)>0,(G11-INDEX($C11:$G11,1,aux!$AL$1))/INDEX($C11:$G11,1,aux!$AL$1),"n.d.") -> 0.8258344064 | AA11: =O11-INDEX($K11:$O11,1,aux!$AL$1) -> 429.489 | AB11: 0.01189316546 | AC11: 0.01109366931 | AD11: =+IF(INDEX($K11:$O11,1,aux!$AL$1)>0,(O11/INDEX($K11:$O11,1,aux!$AL$1))^(1/($O$3-INDEX($K$3:$O$3,1,aux!$AL$1)))-1,"n.d.") -> 0.04405900011 | AE11: =IF(INDEX($K11:$O11,1,aux!$AL$1)>0,(O11-INDEX($K11:$O11,1,aux!$AL$1))/INDEX($K11:$O11,1,aux!$AL$1),"n.d.") -> 0.1882290502
A12: 10 | B12: Cereais | C12: 9321.157 | D12: 13919.156 | E12: 4968.311 | F12: 18006.864 | G12: 4669.112 | H12: 10176.92 | I12: 0.05036115332 | J12: 0.03826262746 | K12: 40.152 | L12: 178.747 | M12: 170.089 | N12: 400.982 | O12: 170.319 | P12: 192.0578 | Q12: 0.0009736686423 | R12: 0.0003397553409 | S12: -9984.8622 | U12: =G12-INDEX($C12:$G12,1,aux!$AL$1) -> -4652.045 | V12: 0.5364735646 | W12: 0.263165889 | X12: =+IF(INDEX($C12:$G12,1,aux!$AL$1)>0,(G12/INDEX($C12:$G12,1,aux!$AL$1))^(1/($G$3-INDEX($C$3:$G$3,1,aux!$AL$1)))-1,"n.d.") -> -0.1587189293 | Y12: =IF(INDEX($C12:$G12,1,aux!$AL$1)>0,(G12-INDEX($C12:$G12,1,aux!$AL$1))/INDEX($C12:$G12,1,aux!$AL$1),"n.d.") -> -0.4990845021 | AA12: =O12-INDEX($K12:$O12,1,aux!$AL$1) -> 130.167 | AB12: 0.003604510635 | AC12: 0.003362204045 | AD12: =+IF(INDEX($K12:$O12,1,aux!$AL$1)>0,(O12/INDEX($K12:$O12,1,aux!$AL$1))^(1/($O$3-INDEX($K$3:$O$3,1,aux!$AL$1)))-1,"n.d.") -> 0.4351225184 | AE12: =IF(INDEX($K12:$O12,1,aux!$AL$1)>0,(O12-INDEX($K12:$O12,1,aux!$AL$1))/INDEX($K12:$O12,1,aux!$AL$1),"n.d.") -> 3.241855947
A13: 11 | B13: Produtos da indústria de moagem e outros | C13: 230.19 | D13: 189.529 | E13: 104.449 | F13: 136.183 | G13: 5.732 | H13: 133.2166 | I13: 0.0006592310461 | J13: 0.0005008604899 | K13: 61.549 | L13: 79.296 | M13: 72.962 | N13: 81.061 | O13: 94.004 | P13: 77.7744 | Q13: 0.0003942901275 | R13: 0.0001375849759 | S13: -55.4422 | U13: =G13-INDEX($C13:$G13,1,aux!$AL$1) -> -224.458 | V13: 0.02588448378 | W13: 0.01269757475 | X13: =+IF(INDEX($C13:$G13,1,aux!$AL$1)>0,(G13/INDEX($C13:$G13,1,aux!$AL$1))^(1/($G$3-INDEX($C$3:$G$3,1,aux!$AL$1)))-1,"n.d.") -> -0.6027582082 | Y13: =IF(INDEX($C13:$G13,1,aux!$AL$1)>0,(G13-INDEX($C13:$G13,1,aux!$AL$1))/INDEX($C13:$G13,1,aux!$AL$1),"n.d.") -> -0.9750988314 | AA13: =O13-INDEX($K13:$O13,1,aux!$AL$1) -> 32.455 | AB13: 0.0008987254271 | AC13: 0.0008383102651 | AD13: =+IF(INDEX($K13:$O13,1,aux!$AL$1)>0,(O13/INDEX($K13:$O13,1,aux!$AL$1))^(1/($O$3-INDEX($K$3:$O$3,1,aux!$AL$1)))-1,"n.d.") -> 0.1116839438 | AE13: =IF(INDEX($K13:$O13,1,aux!$AL$1)>0,(O13-INDEX($K13:$O13,1,aux!$AL$1))/INDEX($K13:$O13,1,aux!$AL$1),"n.d.") -> 0.5273034493
A14: 12 | B14: Sementes e frutos oleaginosos | C14: 169145.327 | D14: 108246.238 | E14: 122161.548 | F14: 153929.589 | G14: 146540.701 | H14: 140004.6806 | I14: 0.6928223063 | J14: 0.5263819443 | K14: 85.671 | L14: 253.464 | M14: 509.331 | N14: 396.035 | O14: 493.101 | P14: 347.5204 | Q14: 0.001761811892 | R14: 0.0006147728026 | S14: -139657.1602 | U14: =G14-INDEX($C14:$G14,1,aux!$AL$1) -> -22604.626 | V14: 2.606764184 | W14: 1.278742251 | X14: =+IF(INDEX($C14:$G14,1,aux!$AL$1)>0,(G14/INDEX($C14:$G14,1,aux!$AL$1))^(1/($G$3-INDEX($C$3:$G$3,1,aux!$AL$1)))-1,"n.d.") -> -0.03522827885 | Y14: =IF(INDEX($C14:$G14,1,aux!$AL$1)>0,(G14-INDEX($C14:$G14,1,aux!$AL$1))/INDEX($C14:$G14,1,aux!$AL$1),"n.d.") -> -0.1336402631 | AA14: =O14-INDEX($K14:$O14,1,aux!$AL$1) -> 407.43 | AB14: 0.01128232016 | AC14: 0.01052388696 | AD14: =+IF(INDEX($K14:$O14,1,aux!$AL$1)>0,(O14/INDEX($K14:$O14,1,aux!$AL$1))^(1/($O$3-INDEX($K$3:$O$3,1,aux!$AL$1)))-1,"n.d.") -> 0.5489076037 | AE14: =IF(INDEX($K14:$O14,1,aux!$AL$1)>0,(O14-INDEX($K14:$O14,1,aux!$AL$1))/INDEX($K14:$O14,1,aux!$AL$1),"n.d.") -> 4.755751655
A15: 13a | B15: Sucos e extratos vegetais (exc. NC 1301) (a) | C15: 13.77 | D15: 3225.949 | E15: 17.485 | F15: 21.272 | G15: 63.545 | H15: 668.4042 | I15: 0.00330764184 | J15: 0.00251302957 | K15: 0.037 | L15: 6.491 | M15: 4.965 | N15: 0.028 | O15: 0.306 | P15: 2.3654 | Q15: 1.19917848e-05 | R15: 4.184455322e-06 | S15: -666.0388 | U15: =G15-INDEX($C15:$G15,1,aux!$AL$1) -> 49.775 | V15: -0.005740050166 | W15: -0.002815768576 | X15: =+IF(INDEX($C15:$G15,1,aux!$AL$1)>0,(G15/INDEX($C15:$G15,1,aux!$AL$1))^(1/($G$3-INDEX($C$3:$G$3,1,aux!$AL$1)))-1,"n.d.") -> 0.4656722353 | Y15: =IF(INDEX($C15:$G15,1,aux!$AL$1)>0,(G15-INDEX($C15:$G15,1,aux!$AL$1))/INDEX($C15:$G15,1,aux!$AL$1),"n.d.") -> 3.614742193 | AA15: =O15-INDEX($K15:$O15,1,aux!$AL$1) -> 0.269 | AB15: 7.448995221e-06 | AC15: 6.948250233e-06 | AD15: =+IF(INDEX($K15:$O15,1,aux!$AL$1)>0,(O15/INDEX($K15:$O15,1,aux!$AL$1))^(1/($O$3-INDEX($K$3:$O$3,1,aux!$AL$1)))-1,"n.d.") -> 0.6958206744 | AE15: =IF(INDEX($K15:$O15,1,aux!$AL$1)>0,(O15-INDEX($K15:$O15,1,aux!$AL$1))/INDEX($K15:$O15,1,aux!$AL$1),"n.d.") -> 7.27027027
A16: 14 | B16: Matérias para entrançar e outros | C16: 0.023 | D16: 0 | E16: 0 | F16: 0.251 | G16: 0.234 | H16: 0.1016 | I16: 5.02774236e-07 | J16: 3.819901257e-07 | K16: 4.5 | L16: 0 | M16: 0.203 | N16: 0.242 | O16: 5.614 | P16: 2.1118 | Q16: 1.070611784e-05 | R16: 3.735830198e-06 | S16: 2.0102 | U16: =G16-INDEX($C16:$G16,1,aux!$AL$1) -> 0.211 | V16: -2.433250799e-05 | W16: -1.193625654e-05 | X16: =+IF(INDEX($C16:$G16,1,aux!$AL$1)>0,(G16/INDEX($C16:$G16,1,aux!$AL$1))^(1/($G$3-INDEX($C$3:$G$3,1,aux!$AL$1)))-1,"n.d.") -> 0.7859611414 | Y16: =IF(INDEX($C16:$G16,1,aux!$AL$1)>0,(G16-INDEX($C16:$G16,1,aux!$AL$1))/INDEX($C16:$G16,1,aux!$AL$1),"n.d.") -> 9.173913043 | AA16: =O16-INDEX($K16:$O16,1,aux!$AL$1) -> 1.114 | AB16: 3.08482553e-05 | AC16: 2.877453814e-05 | AD16: =+IF(INDEX($K16:$O16,1,aux!$AL$1)>0,(O16/INDEX($K16:$O16,1,aux!$AL$1))^(1/($O$3-INDEX($K$3:$O$3,1,aux!$AL$1)))-1,"n.d.") -> 0.05685394686 | AE16: =IF(INDEX($K16:$O16,1,aux!$AL$1)>0,(O16-INDEX($K16:$O16,1,aux!$AL$1))/INDEX($K16:$O16,1,aux!$AL$1),"n.d.") -> 0.2475555556
A17: 15 | B17: Gorduras e óleos animais ou vegetais | C17: 419.927 | D17: 1317.561 | E17: 193.667 | F17: 405.878 | G17: 281.113 | H17: 523.6292 | I17: 0.002591213297 | J17: 0.00196871244 | K17: 11959.424 | L17: 7603.028 | M17: 14368.143 | N17: 24832.414 | O17: 21334.335 | P17: 16019.4688 | Q17: 0.08121333493 | R17: 0.02833886509 | S17: 15495.8396 | U17: =G17-INDEX($C17:$G17,1,aux!$AL$1) -> -138.814 | V17: 0.01600802258 | W17: 0.007852699127 | X17: =+IF(INDEX($C17:$G17,1,aux!$AL$1)>0,(G17/INDEX($C17:$G17,1,aux!$AL$1))^(1/($G$3-INDEX($C$3:$G$3,1,aux!$AL$1)))-1,"n.d.") -> -0.09546207043 | Y17: =IF(INDEX($C17:$G17,1,aux!$AL$1)>0,(G17-INDEX($C17:$G17,1,aux!$AL$1))/INDEX($C17:$G17,1,aux!$AL$1),"n.d.") -> -0.3305669795 | AA17: =O17-INDEX($K17:$O17,1,aux!$AL$1) -> 9374.911 | AB17: 0.2596047109 | AC17: 0.2421532622 | AD17: =+IF(INDEX($K17:$O17,1,aux!$AL$1)>0,(O17/INDEX($K17:$O17,1,aux!$AL$1))^(1/($O$3-INDEX($K$3:$O$3,1,aux!$AL$1)))-1,"n.d.") -> 0.1556922788 | AE17: =IF(INDEX($K17:$O17,1,aux!$AL$1)>0,(O17-INDEX($K17:$O17,1,aux!$AL$1))/INDEX($K17:$O17,1,aux!$AL$1),"n.d.") -> 0.7838931875
A18: 16a | B18: Preparações de carnes (exc. NC 1604-05) (a) | C18: 0 | D18: 0 | E18: 0 | F18: 0.166 | G18: 0.031 | H18: 0.0394 | I18: 1.949734734e-07 | J18: 1.481339661e-07 | K18: 2.273 | L18: 4.038 | M18: 1.387 | N18: 3.051 | O18: 127.773 | P18: 27.7044 | Q18: 0.0001404520178 | R18: 4.900981822e-05 | S18: 27.665 | U18: =G18-INDEX($C18:$G18,1,aux!$AL$1) -> 0.031 | V18: -3.574918235e-06 | W18: -1.753668023e-06 | X18: =+IF(INDEX($C18:$G18,1,aux!$AL$1)>0,(G18/INDEX($C18:$G18,1,aux!$AL$1))^(1/($G$3-INDEX($C$3:$G$3,1,aux!$AL$1)))-1,"n.d.") -> n.d. | Y18: =IF(INDEX($C18:$G18,1,aux!$AL$1)>0,(G18-INDEX($C18:$G18,1,aux!$AL$1))/INDEX($C18:$G18,1,aux!$AL$1),"n.d.") -> n.d. | AA18: =O18-INDEX($K18:$O18,1,aux!$AL$1) -> 125.5 | AB18: 0.003475274722 | AC18: 0.003241655778 | AD18: =+IF(INDEX($K18:$O18,1,aux!$AL$1)>0,(O18/INDEX($K18:$O18,1,aux!$AL$1))^(1/($O$3-INDEX($K$3:$O$3,1,aux!$AL$1)))-1,"n.d.") -> 1.738166886 | AE18: =IF(INDEX($K18:$O18,1,aux!$AL$1)>0,(O18-INDEX($K18:$O18,1,aux!$AL$1))/INDEX($K18:$O18,1,aux!$AL$1),"n.d.") -> 55.2133744
A19: 17 | B19: Açúcares e produtos de confeitaria | C19: 164.996 | D19: 203.457 | E19: 234.118 | F19: 281.781 | G19: 393.16 | H19: 255.5024 | I19: 0.001264370314 | J19: 0.0009606239555 | K19: 131.48 | L19: 115.075 | M19: 365.106 | N19: 560.002 | O19: 1261.258 | P19: 486.5842 | Q19: 0.002466818725 | R19: 0.0008607803523 | S19: 231.0818 | U19: =G19-INDEX($C19:$G19,1,aux!$AL$1) -> 228.164 | V19: -0.02631185949 | W19: -0.01290722293 | X19: =+IF(INDEX($C19:$G19,1,aux!$AL$1)>0,(G19/INDEX($C19:$G19,1,aux!$AL$1))^(1/($G$3-INDEX($C$3:$G$3,1,aux!$AL$1)))-1,"n.d.") -> 0.2424358596 | Y19: =IF(INDEX($C19:$G19,1,aux!$AL$1)>0,(G19-INDEX($C19:$G19,1,aux!$AL$1))/INDEX($C19:$G19,1,aux!$AL$1),"n.d.") -> 1.382845645 | AA19: =O19-INDEX($K19:$O19,1,aux!$AL$1) -> 1129.778 | AB19: 0.03128517071 | AC19: 0.02918208272 | AD19: =+IF(INDEX($K19:$O19,1,aux!$AL$1)>0,(O19/INDEX($K19:$O19,1,aux!$AL$1))^(1/($O$3-INDEX($K$3:$O$3,1,aux!$AL$1)))-1,"n.d.") -> 0.7598921723 | AE19: =IF(INDEX($K19:$O19,1,aux!$AL$1)>0,(O19-INDEX($K19:$O19,1,aux!$AL$1))/INDEX($K19:$O19,1,aux!$AL$1),"n.d.") -> 8.592774566
A20: 18 | B20: Cacau e suas preparações | C20: 345.894 | D20: 293.643 | E20: 674.843 | F20: 945.489 | G20: 1351.611 | H20: 722.296 | I20: 0.003574328933 | J20: 0.002715649014 | K20: 330.983 | L20: 461.693 | M20: 457.602 | N20: 722.994 | O20: 931.188 | P20: 580.892 | Q20: 0.002944927647 | R20: 0.001027613351 | S20: -141.404 | U20: =G20-INDEX($C20:$G20,1,aux!$AL$1) -> 1005.717 | V20: -0.1159792272 | W20: -0.05689334655 | X20: =+IF(INDEX($C20:$G20,1,aux!$AL$1)>0,(G20/INDEX($C20:$G20,1,aux!$AL$1))^(1/($G$3-INDEX($C$3:$G$3,1,aux!$AL$1)))-1,"n.d.") -> 0.4059736202 | Y20: =IF(INDEX($C20:$G20,1,aux!$AL$1)>0,(G20-INDEX($C20:$G20,1,aux!$AL$1))/INDEX($C20:$G20,1,aux!$AL$1),"n.d.") -> 2.907587296 | AA20: =O20-INDEX($K20:$O20,1,aux!$AL$1) -> 600.205 | AB20: 0.01662053597 | AC20: 0.01550325104 | AD20: =+IF(INDEX($K20:$O20,1,aux!$AL$1)>0,(O20/INDEX($K20:$O20,1,aux!$AL$1))^(1/($O$3-INDEX($K$3:$O$3,1,aux!$AL$1)))-1,"n.d.") -> 0.2951137692 | AE20: =IF(INDEX($K20:$O20,1,aux!$AL$1)>0,(O20-INDEX($K20:$O20,1,aux!$AL$1))/INDEX($K20:$O20,1,aux!$AL$1),"n.d.") -> 1.813401293
A21: 19a | B21: Preparações à base de cereais (exc. NC 19022010) (a) | C21: 960.833 | D21: 868.183 | E21: 829.646 | F21: 831.967 | G21: 586.381 | H21: 815.402 | I21: 0.004035070055 | J21: 0.003065703863 | K21: 13853.912 | L21: 14004.053 | M21: 14692.17 | N21: 19854.699 | O21: 23245.853 | P21: 17130.1374 | Q21: 0.08684405229 | R21: 0.03030366729 | S21: 16314.7354 | U21: =G21-INDEX($C21:$G21,1,aux!$AL$1) -> -374.452 | V21: 0.04318178332 | W21: 0.02118272576 | X21: =+IF(INDEX($C21:$G21,1,aux!$AL$1)>0,(G21/INDEX($C21:$G21,1,aux!$AL$1))^(1/($G$3-INDEX($C$3:$G$3,1,aux!$AL$1)))-1,"n.d.") -> -0.1161409872 | Y21: =IF(INDEX($C21:$G21,1,aux!$AL$1)>0,(G21-INDEX($C21:$G21,1,aux!$AL$1))/INDEX($C21:$G21,1,aux!$AL$1),"n.d.") -> -0.3897160068 | AA21: =O21-INDEX($K21:$O21,1,aux!$AL$1) -> 9391.941 | AB21: 0.260076296 | AC21: 0.2425931459 | AD21: =+IF(INDEX($K21:$O21,1,aux!$AL$1)>0,(O21/INDEX($K21:$O21,1,aux!$AL$1))^(1/($O$3-INDEX($K$3:$O$3,1,aux!$AL$1)))-1,"n.d.") -> 0.1381336546 | AE21: =IF(INDEX($K21:$O21,1,aux!$AL$1)>0,(O21-INDEX($K21:$O21,1,aux!$AL$1))/INDEX($K21:$O21,1,aux!$AL$1),"n.d.") -> 0.677927
A22: 20 | B22: Preparações de produtos vegetais | C22: 378.873 | D22: 354.911 | E22: 273.67 | F22: 347.048 | G22: 236.775 | H22: 318.2554 | I22: 0.001574907634 | J22: 0.001196559254 | K22: 21051.859 | L22: 21011.571 | M22: 33133.623 | N22: 29655.346 | O22: 15689.919 | P22: 24108.4636 | Q22: 0.122221826 | R22: 0.04264851138 | S22: 23790.2082 | U22: =G22-INDEX($C22:$G22,1,aux!$AL$1) -> -142.098 | V22: 0.01638673327 | W22: 0.008038474798 | X22: =+IF(INDEX($C22:$G22,1,aux!$AL$1)>0,(G22/INDEX($C22:$G22,1,aux!$AL$1))^(1/($G$3-INDEX($C$3:$G$3,1,aux!$AL$1)))-1,"n.d.") -> -0.1108796567 | Y22: =IF(INDEX($C22:$G22,1,aux!$AL$1)>0,(G22-INDEX($C22:$G22,1,aux!$AL$1))/INDEX($C22:$G22,1,aux!$AL$1),"n.d.") -> -0.3750544378 | AA22: =O22-INDEX($K22:$O22,1,aux!$AL$1) -> -5361.94 | AB22: -0.1484797971 | AC22: -0.1384985162 | AD22: =+IF(INDEX($K22:$O22,1,aux!$AL$1)>0,(O22/INDEX($K22:$O22,1,aux!$AL$1))^(1/($O$3-INDEX($K$3:$O$3,1,aux!$AL$1)))-1,"n.d.") -> -0.0708569938 | AE22: =IF(INDEX($K22:$O22,1,aux!$AL$1)>0,(O22-INDEX($K22:$O22,1,aux!$AL$1))/INDEX($K22:$O22,1,aux!$AL$1),"n.d.") -> -0.2547014969
A23: 21 | B23: Preparações alimentícias diversas | C23: 3000.91 | D23: 2439.552 | E23: 2444.672 | F23: 2679.335 | G23: 2712.556 | H23: 2655.405 | I23: 0.01314044508 | J23: 0.009983646552 | K23: 2119.49 | L23: 2462.911 | M23: 4388.433 | N23: 7513.384 | O23: 8329.19 | P23: 4962.6816 | Q23: 0.02515913155 | R23: 0.008779115343 | S23: 2307.2766 | U23: =G23-INDEX($C23:$G23,1,aux!$AL$1) -> -288.354 | V23: 0.03325296687 | W23: 0.01631216739 | X23: =+IF(INDEX($C23:$G23,1,aux!$AL$1)>0,(G23/INDEX($C23:$G23,1,aux!$AL$1))^(1/($G$3-INDEX($C$3:$G$3,1,aux!$AL$1)))-1,"n.d.") -> -0.02493978708 | Y23: =IF(INDEX($C23:$G23,1,aux!$AL$1)>0,(G23-INDEX($C23:$G23,1,aux!$AL$1))/INDEX($C23:$G23,1,aux!$AL$1),"n.d.") -> -0.09608885305 | AA23: =O23-INDEX($K23:$O23,1,aux!$AL$1) -> 6209.7 | AB23: 0.1719554856 | AC23: 0.1603960947 | AD23: =+IF(INDEX($K23:$O23,1,aux!$AL$1)>0,(O23/INDEX($K23:$O23,1,aux!$AL$1))^(1/($O$3-INDEX($K$3:$O$3,1,aux!$AL$1)))-1,"n.d.") -> 0.4079682105 | AE23: =IF(INDEX($K23:$O23,1,aux!$AL$1)>0,(O23-INDEX($K23:$O23,1,aux!$AL$1))/INDEX($K23:$O23,1,aux!$AL$1),"n.d.") -> 2.929808586
A24: 22 | B24: Bebidas, líquidos alcoólicos e vinagres | C24: 2610.064 | D24: 2825.789 | E24: 2430.572 | F24: 4542.045 | G24: 4776.306 | H24: 3436.9552 | I24: 0.01700799729 | J24: 0.01292207627 | K24: 96000.089 | L24: 98236.449 | M24: 111285.827 | N24: 113207.817 | O24: 108068.496 | P24: 105359.7356 | Q24: 0.5341385287 | R24: 0.186384166 | S24: 101922.7804 | U24: =G24-INDEX($C24:$G24,1,aux!$AL$1) -> 2166.242 | V24: -0.2498109041 | W24: -0.1225441718 | X24: =+IF(INDEX($C24:$G24,1,aux!$AL$1)>0,(G24/INDEX($C24:$G24,1,aux!$AL$1))^(1/($G$3-INDEX($C$3:$G$3,1,aux!$AL$1)))-1,"n.d.") -> 0.1630817641 | Y24: =IF(INDEX($C24:$G24,1,aux!$AL$1)>0,(G24-INDEX($C24:$G24,1,aux!$AL$1))/INDEX($C24:$G24,1,aux!$AL$1),"n.d.") -> 0.8299574263 | AA24: =O24-INDEX($K24:$O24,1,aux!$AL$1) -> 12068.407 | AB24: 0.3341914724 | AC24: 0.311726066 | AD24: =+IF(INDEX($K24:$O24,1,aux!$AL$1)>0,(O24/INDEX($K24:$O24,1,aux!$AL$1))^(1/($O$3-INDEX($K$3:$O$3,1,aux!$AL$1)))-1,"n.d.") -> 0.03004658816 | AE24: =IF(INDEX($K24:$O24,1,aux!$AL$1)>0,(O24-INDEX($K24:$O24,1,aux!$AL$1))/INDEX($K24:$O24,1,aux!$AL$1),"n.d.") -> 0.1257124564
A25: 23a | B25: Resíduos indústrias alimentares; alimentos p/ animais (exc. NC 230120) (a) | C25: 17580.956 | D25: 13788.103 | E25: 16169.724 | F25: 14301.652 | G25: 26793.844 | H25: 17726.8558 | I25: 0.08772250375 | J25: 0.06664846333 | K25: 202.331 | L25: 76.723 | M25: 241.855 | N25: 745.425 | O25: 837.406 | P25: 420.748 | Q25: 0.002133051269 | R25: 0.0007443143688 | S25: -17306.1078 | U25: =G25-INDEX($C25:$G25,1,aux!$AL$1) -> 9212.888 | V25: -1.06242972 | W25: -0.5211724866 | X25: =+IF(INDEX($C25:$G25,1,aux!$AL$1)>0,(G25/INDEX($C25:$G25,1,aux!$AL$1))^(1/($G$3-INDEX($C$3:$G$3,1,aux!$AL$1)))-1,"n.d.") -> 0.1110871742 | Y25: =IF(INDEX($C25:$G25,1,aux!$AL$1)>0,(G25-INDEX($C25:$G25,1,aux!$AL$1))/INDEX($C25:$G25,1,aux!$AL$1),"n.d.") -> 0.524026566 | AA25: =O25-INDEX($K25:$O25,1,aux!$AL$1) -> 635.075 | AB25: 0.01758613621 | AC25: 0.01640394058 | AD25: =+IF(INDEX($K25:$O25,1,aux!$AL$1)>0,(O25/INDEX($K25:$O25,1,aux!$AL$1))^(1/($O$3-INDEX($K$3:$O$3,1,aux!$AL$1)))-1,"n.d.") -> 0.4263247231 | AE25: =IF(INDEX($K25:$O25,1,aux!$AL$1)>0,(O25-INDEX($K25:$O25,1,aux!$AL$1))/INDEX($K25:$O25,1,aux!$AL$1),"n.d.") -> 3.138792375
A26: 24 | B26: Tabaco | C26: 2404.974 | D26: 4170.919 | E26: 4337.828 | F26: 1844.017 | G26: 9453.356 | H26: 4442.2188 | I26: 0.02198260987 | J26: 0.01670161139 | K26: 2.69 | L26: 0 | M26: 2.668 | N26: 0.024 | O26: 2.668 | P26: 1.61 | Q26: 8.162160111e-06 | R26: 2.848132692e-06 | S26: -4440.6088 | U26: =G26-INDEX($C26:$G26,1,aux!$AL$1) -> 7048.382 | V26: -0.812819011 | W26: -0.3987265202 | X26: =+IF(INDEX($C26:$G26,1,aux!$AL$1)>0,(G26/INDEX($C26:$G26,1,aux!$AL$1))^(1/($G$3-INDEX($C$3:$G$3,1,aux!$AL$1)))-1,"n.d.") -> 0.4080526908 | Y26: =IF(INDEX($C26:$G26,1,aux!$AL$1)>0,(G26-INDEX($C26:$G26,1,aux!$AL$1))/INDEX($C26:$G26,1,aux!$AL$1),"n.d.") -> 2.93075185 | AA26: =O26-INDEX($K26:$O26,1,aux!$AL$1) -> -0.022 | AB26: -6.09211505e-07 | AC26: -5.682583834e-07 | AD26: =+IF(INDEX($K26:$O26,1,aux!$AL$1)>0,(O26/INDEX($K26:$O26,1,aux!$AL$1))^(1/($O$3-INDEX($K$3:$O$3,1,aux!$AL$1)))-1,"n.d.") -> -0.002050910393 | AE26: =IF(INDEX($K26:$O26,1,aux!$AL$1)>0,(O26-INDEX($K26:$O26,1,aux!$AL$1))/INDEX($K26:$O26,1,aux!$AL$1),"n.d.") -> -0.008178438662
A27: 29 | B27: Manitol e sorbitol (NC 290543; 290544) | C27: 40.664 | D27: 106.283 | E27: 53.741 | F27: 0.237 | G27: 0 | H27: 40.185 | I27: 0.0001988580972 | J27: 0.0001510853661 | K27: 0.027 | L27: 1.365 | M27: 0 | N27: 0 | O27: 0 | P27: 0.2784 | Q27: 1.411394643e-06 | R27: 4.924969822e-07 | S27: -39.9066 | U27: =G27-INDEX($C27:$G27,1,aux!$AL$1) -> -40.664 | V27: 0.004689370165 | W27: 0.002300359887 | X27: =+IF(INDEX($C27:$G27,1,aux!$AL$1)>0,(G27/INDEX($C27:$G27,1,aux!$AL$1))^(1/($G$3-INDEX($C$3:$G$3,1,aux!$AL$1)))-1,"n.d.") -> -1 | Y27: =IF(INDEX($C27:$G27,1,aux!$AL$1)>0,(G27-INDEX($C27:$G27,1,aux!$AL$1))/INDEX($C27:$G27,1,aux!$AL$1),"n.d.") -> -1 | AA27: =O27-INDEX($K27:$O27,1,aux!$AL$1) -> -0.027 | AB27: -7.476686653e-07 | AC27: -6.97408016e-07 | AD27: =+IF(INDEX($K27:$O27,1,aux!$AL$1)>0,(O27/INDEX($K27:$O27,1,aux!$AL$1))^(1/($O$3-INDEX($K$3:$O$3,1,aux!$AL$1)))-1,"n.d.") -> -1 | AE27: =IF(INDEX($K27:$O27,1,aux!$AL$1)>0,(O27-INDEX($K27:$O27,1,aux!$AL$1))/INDEX($K27:$O27,1,aux!$AL$1),"n.d.") -> -1
A28: 33 | B28: Óleos essenciais e resinóides (NC 3301) | C28: 1007.399 | D28: 842.788 | E28: 932.323 | F28: 2100.243 | G28: 610.976 | H28: 1098.7458 | I28: 0.005437215356 | J28: 0.004131004392 | K28: 1263.777 | L28: 85.824 | M28: 23.987 | N28: 10.361 | O28: 31.551 | P28: 283.1 | Q28: 0.001435222067 | R28: 0.0005008114068 | S28: -815.6458 | U28: =G28-INDEX($C28:$G28,1,aux!$AL$1) -> -396.423 | V28: 0.04571547779 | W28: 0.02242562383 | X28: =+IF(INDEX($C28:$G28,1,aux!$AL$1)>0,(G28/INDEX($C28:$G28,1,aux!$AL$1))^(1/($G$3-INDEX($C$3:$G$3,1,aux!$AL$1)))-1,"n.d.") -> -0.1175184002 | Y28: =IF(INDEX($C28:$G28,1,aux!$AL$1)>0,(G28-INDEX($C28:$G28,1,aux!$AL$1))/INDEX($C28:$G28,1,aux!$AL$1),"n.d.") -> -0.3935114091 | AA28: =O28-INDEX($K28:$O28,1,aux!$AL$1) -> -1232.226 | AB28: -0.03412210255 | AC28: -0.03182830703 | AD28: =+IF(INDEX($K28:$O28,1,aux!$AL$1)>0,(O28/INDEX($K28:$O28,1,aux!$AL$1))^(1/($O$3-INDEX($K$3:$O$3,1,aux!$AL$1)))-1,"n.d.") -> -0.6025013387 | AE28: =IF(INDEX($K28:$O28,1,aux!$AL$1)>0,(O28-INDEX($K28:$O28,1,aux!$AL$1))/INDEX($K28:$O28,1,aux!$AL$1),"n.d.") -> -0.9750343613
A29: 35 | B29: Caseínas, albuminas, gelatinas, peptonas, dextrinas (NC 3501 a 3505) | C29: 6.078 | D29: 6.378 | E29: 2.385 | F29: 3.925 | G29: 1722.433 | H29: 348.2398 | I29: 0.001723287396 | J29: 0.001309292962 | K29: 5.628 | L29: 10.143 | M29: 5.29 | N29: 10.355 | O29: 26.784 | P29: 11.64 | Q29: 5.90108967e-05 | R29: 2.059146865e-05 | S29: -336.5998 | U29: =G29-INDEX($C29:$G29,1,aux!$AL$1) -> 1716.355 | V29: -0.1979299609 | W29: -0.09709409289 | X29: =+IF(INDEX($C29:$G29,1,aux!$AL$1)>0,(G29/INDEX($C29:$G29,1,aux!$AL$1))^(1/($G$3-INDEX($C$3:$G$3,1,aux!$AL$1)))-1,"n.d.") -> 3.102942309 | Y29: =IF(INDEX($C29:$G29,1,aux!$AL$1)>0,(G29-INDEX($C29:$G29,1,aux!$AL$1))/INDEX($C29:$G29,1,aux!$AL$1),"n.d.") -> 282.3881211 | AA29: =O29-INDEX($K29:$O29,1,aux!$AL$1) -> 21.156 | AB29: 0.0005858399364 | AC29: 0.0005464579254 | AD29: =+IF(INDEX($K29:$O29,1,aux!$AL$1)>0,(O29/INDEX($K29:$O29,1,aux!$AL$1))^(1/($O$3-INDEX($K$3:$O$3,1,aux!$AL$1)))-1,"n.d.") -> 0.4769994612 | AE29: =IF(INDEX($K29:$O29,1,aux!$AL$1)>0,(O29-INDEX($K29:$O29,1,aux!$AL$1))/INDEX($K29:$O29,1,aux!$AL$1),"n.d.") -> 3.759061834
A30: 38a | B30: Agentes de acabamento, ácidos gordos, sorbitol (NC 380910, 382311-12-13-19-70, 382460) (a) | C30: 0 | D30: 0.8 | E30: 0.722 | F30: 0 | G30: 1.319 | H30: 0.5682 | I30: 2.811774812e-06 | J30: 2.136287297e-06 | K30: 7.049 | L30: 0 | M30: 0 | N30: 0 | O30: 0 | P30: 1.4098 | Q30: 7.147213245e-06 | R30: 2.493973583e-06 | S30: 0.8416 | U30: =G30-INDEX($C30:$G30,1,aux!$AL$1) -> 1.319 | V30: -0.0001521070049 | W30: -7.461574588e-05 | X30: =+IF(INDEX($C30:$G30,1,aux!$AL$1)>0,(G30/INDEX($C30:$G30,1,aux!$AL$1))^(1/($G$3-INDEX($C$3:$G$3,1,aux!$AL$1)))-1,"n.d.") -> n.d. | Y30: =IF(INDEX($C30:$G30,1,aux!$AL$1)>0,(G30-INDEX($C30:$G30,1,aux!$AL$1))/INDEX($C30:$G30,1,aux!$AL$1),"n.d.") -> n.d. | AA30: =O30-INDEX($K30:$O30,1,aux!$AL$1) -> -7.049 | AB30: -0.0001951969045 | AC30: -0.000182075152 | AD30: =+IF(INDEX($K30:$O30,1,aux!$AL$1)>0,(O30/INDEX($K30:$O30,1,aux!$AL$1))^(1/($O$3-INDEX($K$3:$O$3,1,aux!$AL$1)))-1,"n.d.") -> -1 | AE30: =IF(INDEX($K30:$O30,1,aux!$AL$1)>0,(O30-INDEX($K30:$O30,1,aux!$AL$1))/INDEX($K30:$O30,1,aux!$AL$1),"n.d.") -> -1
A31: 41 | B31: Couro e peles em bruto (NC 4101 a 4103) | C31: 22.889 | D31: 115.197 | E31: 0 | F31: 37.396 | G31: 180.573 | H31: 71.211 | I31: 0.0003523922846 | J31: 0.0002677352248 | K31: 0.484 | L31: 51.396 | M31: 0 | N31: 97 | O31: 0 | P31: 29.776 | Q31: 0.0001509543351 | R31: 5.267453356e-05 | S31: -41.435 | U31: =G31-INDEX($C31:$G31,1,aux!$AL$1) -> 157.684 | V31: -0.0181841099 | W31: -0.008920173824 | X31: =+IF(INDEX($C31:$G31,1,aux!$AL$1)>0,(G31/INDEX($C31:$G31,1,aux!$AL$1))^(1/($G$3-INDEX($C$3:$G$3,1,aux!$AL$1)))-1,"n.d.") -> 0.6759324058 | Y31: =IF(INDEX($C31:$G31,1,aux!$AL$1)>0,(G31-INDEX($C31:$G31,1,aux!$AL$1))/INDEX($C31:$G31,1,aux!$AL$1),"n.d.") -> 6.889073354 | AA31: =O31-INDEX($K31:$O31,1,aux!$AL$1) -> -0.484 | AB31: -1.340265311e-05 | AC31: -1.250168443e-05 | AD31: =+IF(INDEX($K31:$O31,1,aux!$AL$1)>0,(O31/INDEX($K31:$O31,1,aux!$AL$1))^(1/($O$3-INDEX($K$3:$O$3,1,aux!$AL$1)))-1,"n.d.") -> -1 | AE31: =IF(INDEX($K31:$O31,1,aux!$AL$1)>0,(O31-INDEX($K31:$O31,1,aux!$AL$1))/INDEX($K31:$O31,1,aux!$AL$1),"n.d.") -> -1
A32: 43 | B32: Peles com pelo em bruto (NC 4301) | C32: 828.302 | D32: 889.991 | E32: 925.916 | F32: 1471.603 | G32: 3640.029 | H32: 1551.1682 | I32: 0.007676057152 | J32: 0.005831997398 | K32: 0 | L32: 0 | M32: 0 | N32: 0 | O32: 171.462 | P32: 34.2924 | Q32: 0.0001738509686 | R32: 6.066416491e-05 | S32: -1516.8758 | U32: =G32-INDEX($C32:$G32,1,aux!$AL$1) -> 2811.727 | V32: -0.3242481976 | W32: -0.1590592171 | X32: =+IF(INDEX($C32:$G32,1,aux!$AL$1)>0,(G32/INDEX($C32:$G32,1,aux!$AL$1))^(1/($G$3-INDEX($C$3:$G$3,1,aux!$AL$1)))-1,"n.d.") -> 0.4478682125 | Y32: =IF(INDEX($C32:$G32,1,aux!$AL$1)>0,(G32-INDEX($C32:$G32,1,aux!$AL$1))/INDEX($C32:$G32,1,aux!$AL$1),"n.d.") -> 3.39456744 | AA32: =O32-INDEX($K32:$O32,1,aux!$AL$1) -> 171.462 | AB32: 0.004748028322 | AC32: 0.00442885086 | AD32: =+IF(INDEX($K32:$O32,1,aux!$AL$1)>0,(O32/INDEX($K32:$O32,1,aux!$AL$1))^(1/($O$3-INDEX($K$3:$O$3,1,aux!$AL$1)))-1,"n.d.") -> n.d. | AE32: =IF(INDEX($K32:$O32,1,aux!$AL$1)>0,(O32-INDEX($K32:$O32,1,aux!$AL$1))/INDEX($K32:$O32,1,aux!$AL$1),"n.d.") -> n.d.
A33: 50 | B33: Seda crua (NC 5001-5003) | C33: 0 | D33: 0 | E33: 0 | F33: 0 | G33: 0 | H33: 0 | I33: 0 | J33: 0 | K33: 0 | L33: 0 | M33: 0 | N33: 0.18 | O33: 0.033 | P33: 0.0426 | Q33: 2.159677147e-07 | R33: 7.53605296e-08 | S33: 0.0426 | U33: =G33-INDEX($C33:$G33,1,aux!$AL$1) -> 0 | V33: 0 | W33: 0 | X33: =+IF(INDEX($C33:$G33,1,aux!$AL$1)>0,(G33/INDEX($C33:$G33,1,aux!$AL$1))^(1/($G$3-INDEX($C$3:$G$3,1,aux!$AL$1)))-1,"n.d.") -> n.d. | Y33: =IF(INDEX($C33:$G33,1,aux!$AL$1)>0,(G33-INDEX($C33:$G33,1,aux!$AL$1))/INDEX($C33:$G33,1,aux!$AL$1),"n.d.") -> n.d. | AA33: =O33-INDEX($K33:$O33,1,aux!$AL$1) -> 0.033 | AB33: 9.138172575e-07 | AC33: 8.523875751e-07 | AD33: =+IF(INDEX($K33:$O33,1,aux!$AL$1)>0,(O33/INDEX($K33:$O33,1,aux!$AL$1))^(1/($O$3-INDEX($K$3:$O$3,1,aux!$AL$1)))-1,"n.d.") -> n.d. | AE33: =IF(INDEX($K33:$O33,1,aux!$AL$1)>0,(O33-INDEX($K33:$O33,1,aux!$AL$1))/INDEX($K33:$O33,1,aux!$AL$1),"n.d.") -> n.d.
A34: 51 | B34: Lã não cardada (NC 5101-5103) | C34: 0 | D34: 19.632 | E34: 0.069 | F34: 0.068 | G34: 0 | H34: 3.9538 | I34: 1.956563754e-05 | J34: 1.486528109e-05 | K34: 2361.964 | L34: 2192.236 | M34: 2560.444 | N34: 3324.923 | O34: 3104.715 | P34: 2708.8564 | Q34: 0.01373299357 | R34: 0.004792038801 | S34: 2704.9026 | U34: =G34-INDEX($C34:$G34,1,aux!$AL$1) -> 0 | V34: 0 | W34: 0 | X34: =+IF(INDEX($C34:$G34,1,aux!$AL$1)>0,(G34/INDEX($C34:$G34,1,aux!$AL$1))^(1/($G$3-INDEX($C$3:$G$3,1,aux!$AL$1)))-1,"n.d.") -> n.d. | Y34: =IF(INDEX($C34:$G34,1,aux!$AL$1)>0,(G34-INDEX($C34:$G34,1,aux!$AL$1))/INDEX($C34:$G34,1,aux!$AL$1),"n.d.") -> n.d. | AA34: =O34-INDEX($K34:$O34,1,aux!$AL$1) -> 742.751 | AB34: 0.02056783884 | AC34: 0.01918520375 | AD34: =+IF(INDEX($K34:$O34,1,aux!$AL$1)>0,(O34/INDEX($K34:$O34,1,aux!$AL$1))^(1/($O$3-INDEX($K$3:$O$3,1,aux!$AL$1)))-1,"n.d.") -> 0.07074761687 | AE34: =IF(INDEX($K34:$O34,1,aux!$AL$1)>0,(O34-INDEX($K34:$O34,1,aux!$AL$1))/INDEX($K34:$O34,1,aux!$AL$1),"n.d.") -> 0.3144633026
A35: 52 | B35: Algodão (NC 5201-5203) | C35: 5348.867 | D35: 3971.246 | E35: 5067.018 | F35: 8714.088 | G35: 12213.668 | H35: 7062.9774 | I35: 0.03495160498 | J35: 0.0265549963 | K35: 2.64 | L35: 2.25 | M35: 2.337 | N35: 8.115 | O35: 3.75 | P35: 3.8184 | Q35: 1.935800756e-05 | R35: 6.754850851e-06 | S35: -7059.159 | U35: =G35-INDEX($C35:$G35,1,aux!$AL$1) -> 6864.801 | V35: -0.7916484605 | W35: -0.3883413548 | X35: =+IF(INDEX($C35:$G35,1,aux!$AL$1)>0,(G35/INDEX($C35:$G35,1,aux!$AL$1))^(1/($G$3-INDEX($C$3:$G$3,1,aux!$AL$1)))-1,"n.d.") -> 0.229266589 | Y35: =IF(INDEX($C35:$G35,1,aux!$AL$1)>0,(G35-INDEX($C35:$G35,1,aux!$AL$1))/INDEX($C35:$G35,1,aux!$AL$1),"n.d.") -> 1.283412169 | AA35: =O35-INDEX($K35:$O35,1,aux!$AL$1) -> 1.11 | AB35: 3.073748957e-05 | AC35: 2.867121843e-05 | AD35: =+IF(INDEX($K35:$O35,1,aux!$AL$1)>0,(O35/INDEX($K35:$O35,1,aux!$AL$1))^(1/($O$3-INDEX($K$3:$O$3,1,aux!$AL$1)))-1,"n.d.") -> 0.09170886071 | AE35: =IF(INDEX($K35:$O35,1,aux!$AL$1)>0,(O35-INDEX($K35:$O35,1,aux!$AL$1))/INDEX($K35:$O35,1,aux!$AL$1),"n.d.") -> 0.4204545455
A36: 53 | B36: Linho e cânhamo em bruto (NC 5301-5302) | C36: 0 | D36: 0 | E36: 0 | F36: 0 | G36: 0.097 | H36: 0.0194 | I36: 9.600216711e-08 | J36: 7.293905943e-08 | K36: 0.045 | L36: 0.335 | M36: 0.05 | N36: 0 | O36: 0 | P36: 0.086 | Q36: 4.359911612e-07 | R36: 1.521362804e-07 | S36: 0.0666 | U36: =G36-INDEX($C36:$G36,1,aux!$AL$1) -> 0.097 | V36: -1.118603448e-05 | W36: =IF($U$53<>0,U36/$U$53, "n.d.") -> -5.487283814e-06 | X36: =+IF(INDEX($C36:$G36,1,aux!$AL$1)>0,(G36/INDEX($C36:$G36,1,aux!$AL$1))^(1/($G$3-INDEX($C$3:$G$3,1,aux!$AL$1)))-1,"n.d.") -> n.d. | Y36: =IF(INDEX($C36:$G36,1,aux!$AL$1)>0,(G36-INDEX($C36:$G36,1,aux!$AL$1))/INDEX($C36:$G36,1,aux!$AL$1),"n.d.") -> n.d. | AA36: =O36-INDEX($K36:$O36,1,aux!$AL$1) -> -0.045 | AB36: -1.246114442e-06 | AC36: =IF($AA$53<>0,AA36/$AA$53, "n.d.") -> -1.162346693e-06 | AD36: =+IF(INDEX($K36:$O36,1,aux!$AL$1)>0,(O36/INDEX($K36:$O36,1,aux!$AL$1))^(1/($O$3-INDEX($K$3:$O$3,1,aux!$AL$1)))-1,"n.d.") -> -1 | AE36: =IF(INDEX($K36:$O36,1,aux!$AL$1)>0,(O36-INDEX($K36:$O36,1,aux!$AL$1))/INDEX($K36:$O36,1,aux!$AL$1),"n.d.") -> -1
A37: Subtotal Agrícola e Agroalimentar | C37: 230839.524 | D37: 171743.618 | E37: 168196.067 | F37: 217446.652 | G37: 222167.997 | H37: 202078.7716 | I37: 1 | J37: 0.7597647181 | K37: 173489.89 | L37: 170227.644 | M37: 205951.149 | N37: 226987.7 | O37: 209602.143 | P37: 197251.7052 | Q37: 1 | R37: 0.3489434969 | S37: -4827.0664 | U37: =G37-INDEX($C37:$G37,1,aux!$AL$1) -> -8671.527 | V37: 1 | W37: 0.4905477294 | X37: =+IF(INDEX($C37:$G37,1,aux!$AL$1)>0,(G37/INDEX($C37:$G37,1,aux!$AL$1))^(1/($G$3-INDEX($C$3:$G$3,1,aux!$AL$1)))-1,"n.d.") -> -0.009526564235 | Y37: =IF(INDEX($C37:$G37,1,aux!$AL$1)>0,(G37-INDEX($C37:$G37,1,aux!$AL$1))/INDEX($C37:$G37,1,aux!$AL$1),"n.d.") -> -0.0375651745 | AA37: =O37-INDEX($K37:$O37,1,aux!$AL$1) -> 36112.253 | AB37: 1 | AC37: 0.9327768413 | AD37: =+IF(INDEX($K37:$O37,1,aux!$AL$1)>0,(O37/INDEX($K37:$O37,1,aux!$AL$1))^(1/($O$3-INDEX($K$3:$O$3,1,aux!$AL$1)))-1,"n.d.") -> 0.04840814609 | AE37: =IF(INDEX($K37:$O37,1,aux!$AL$1)>0,(O37-INDEX($K37:$O37,1,aux!$AL$1))/INDEX($K37:$O37,1,aux!$AL$1),"n.d.") -> 0.2081519159
A38: 03 | B38: Peixes e crustáceos | C38: 27425.495 | D38: 18562.866 | E38: 11625.396 | F38: 16158.193 | G38: 15134.285 | H38: 17781.247 | I38: 0.9918009472 | J38: 0.06685296039 | K38: 15139.255 | L38: 14702.942 | M38: 29373.175 | N38: 33975.94 | O38: 21717.513 | P38: 22981.765 | Q38: 0.6683177617 | R38: 0.04065535168 | S38: 5200.518 | U38: =G38-INDEX($C38:$G38,1,aux!$AL$1) -> -12291.21 | V38: =IF($U$44<>0,U38/$U$44, "n.d.") -> 0.9753879642 | W38: 0.6953129658 | X38: =+IF(INDEX($C38:$G38,1,aux!$AL$1)>0,(G38/INDEX($C38:$G38,1,aux!$AL$1))^(1/($G$3-INDEX($C$3:$G$3,1,aux!$AL$1)))-1,"n.d.") -> -0.1381099674 | Y38: =IF(INDEX($C38:$G38,1,aux!$AL$1)>0,(G38-INDEX($C38:$G38,1,aux!$AL$1))/INDEX($C38:$G38,1,aux!$AL$1),"n.d.") -> -0.4481672983 | AA38: =O38-INDEX($K38:$O38,1,aux!$AL$1) -> 6578.258 | AB38: =IF($AA$44<>0,AA38/$AA$44, "n.d.") -> 0.486292781 | AC38: 0.1699159207 | AD38: =+IF(INDEX($K38:$O38,1,aux!$AL$1)>0,(O38/INDEX($K38:$O38,1,aux!$AL$1))^(1/($O$3-INDEX($K$3:$O$3,1,aux!$AL$1)))-1,"n.d.") -> 0.09440078655 | AE38: =IF(INDEX($K38:$O38,1,aux!$AL$1)>0,(O38-INDEX($K38:$O38,1,aux!$AL$1))/INDEX($K38:$O38,1,aux!$AL$1),"n.d.") -> 0.4345166258
A39: 05p | B39: Outros produtos de pescado (NC 0508, 051191) (p) | C39: 2.631 | D39: 1.996 | E39: 1.346 | F39: 8.495 | G39: 4.159 | H39: 3.7254 | I39: 0.0002077950578 | J39: 1.400655526e-05 | K39: 0 | L39: 0 | M39: 0.009 | N39: 0.655 | O39: 0 | P39: 0.1328 | Q39: 3.861870433e-06 | R39: 2.349267214e-07 | S39: -3.5926 | U39: =G39-INDEX($C39:$G39,1,aux!$AL$1) -> 1.528 | V39: -0.0001212568014 | W39: -8.643886255e-05 | X39: =+IF(INDEX($C39:$G39,1,aux!$AL$1)>0,(G39/INDEX($C39:$G39,1,aux!$AL$1))^(1/($G$3-INDEX($C$3:$G$3,1,aux!$AL$1)))-1,"n.d.") -> 0.1212875965 | Y39: =IF(INDEX($C39:$G39,1,aux!$AL$1)>0,(G39-INDEX($C39:$G39,1,aux!$AL$1))/INDEX($C39:$G39,1,aux!$AL$1),"n.d.") -> 0.5807677689 | AA39: =O39-INDEX($K39:$O39,1,aux!$AL$1) -> 0 | AB39: 0 | AC39: 0 | AD39: =+IF(INDEX($K39:$O39,1,aux!$AL$1)>0,(O39/INDEX($K39:$O39,1,aux!$AL$1))^(1/($O$3-INDEX($K$3:$O$3,1,aux!$AL$1)))-1,"n.d.") -> n.d. | AE39: =IF(INDEX($K39:$O39,1,aux!$AL$1)>0,(O39-INDEX($K39:$O39,1,aux!$AL$1))/INDEX($K39:$O39,1,aux!$AL$1),"n.d.") -> n.d.
A40: 16p | B40: Preparações e conservas de peixes ou crustáceos (NC 1604-05) (p) | C40: 313.222 | D40: 207.138 | E40: 136.631 | F40: 36.237 | G40: 0.107 | H40: 138.667 | I40: 0.007734556634 | J40: 0.0005213526059 | K40: 6553.948 | L40: 9845.911 | M40: 11572.359 | N40: 14190.63 | O40: 12604.792 | P40: 10953.528 | Q40: 0.3185324241 | R40: 0.01937708148 | S40: 10814.861 | U40: =G40-INDEX($C40:$G40,1,aux!$AL$1) -> -313.115 | V40: 0.02484772471 | W40: 0.01771289558 | X40: =+IF(INDEX($C40:$G40,1,aux!$AL$1)>0,(G40/INDEX($C40:$G40,1,aux!$AL$1))^(1/($G$3-INDEX($C$3:$G$3,1,aux!$AL$1)))-1,"n.d.") -> -0.8640488518 | Y40: =IF(INDEX($C40:$G40,1,aux!$AL$1)>0,(G40-INDEX($C40:$G40,1,aux!$AL$1))/INDEX($C40:$G40,1,aux!$AL$1),"n.d.") -> -0.9996583893 | AA40: =O40-INDEX($K40:$O40,1,aux!$AL$1) -> 6050.844 | AB40: 0.4473040972 | AC40: 0.1562928559 | AD40: =+IF(INDEX($K40:$O40,1,aux!$AL$1)>0,(O40/INDEX($K40:$O40,1,aux!$AL$1))^(1/($O$3-INDEX($K$3:$O$3,1,aux!$AL$1)))-1,"n.d.") -> 0.1776281353 | AE40: =IF(INDEX($K40:$O40,1,aux!$AL$1)>0,(O40-INDEX($K40:$O40,1,aux!$AL$1))/INDEX($K40:$O40,1,aux!$AL$1),"n.d.") -> 0.9232364981
A41: 19p | B41: Massas recheadas com pescado (NC 19022010) (p) | C41: 0 | D41: 0 | E41: 0 | F41: 0 | G41: 0 | H41: 0 | I41: 0 | J41: 0 | K41: 26.205 | L41: 19.846 | M41: 3.75 | N41: 12.512 | O41: 29.374 | P41: 18.3374 | Q41: 0.0005332580036 | R41: 3.243934684e-05 | S41: 18.3374 | U41: =G41-INDEX($C41:$G41,1,aux!$AL$1) -> 0 | V41: 0 | W41: 0 | X41: =+IF(INDEX($C41:$G41,1,aux!$AL$1)>0,(G41/INDEX($C41:$G41,1,aux!$AL$1))^(1/($G$3-INDEX($C$3:$G$3,1,aux!$AL$1)))-1,"n.d.") -> n.d. | Y41: =IF(INDEX($C41:$G41,1,aux!$AL$1)>0,(G41-INDEX($C41:$G41,1,aux!$AL$1))/INDEX($C41:$G41,1,aux!$AL$1),"n.d.") -> n.d. | AA41: =O41-INDEX($K41:$O41,1,aux!$AL$1) -> 3.169 | AB41: 0.0002342659444 | AC41: 8.185503713e-05 | AD41: =+IF(INDEX($K41:$O41,1,aux!$AL$1)>0,(O41/INDEX($K41:$O41,1,aux!$AL$1))^(1/($O$3-INDEX($K$3:$O$3,1,aux!$AL$1)))-1,"n.d.") -> 0.02895109013 | AE41: =IF(INDEX($K41:$O41,1,aux!$AL$1)>0,(O41-INDEX($K41:$O41,1,aux!$AL$1))/INDEX($K41:$O41,1,aux!$AL$1),"n.d.") -> 0.12093112
A42: 23p | B42: Farinhas de pescado (NC 230120) (p) | C42: 0 | D42: 0 | E42: 0 | F42: 0 | G42: 0 | H42: 0 | I42: 0 | J42: 0 | K42: 0 | L42: 0 | M42: 0 | N42: 0 | O42: 0 | P42: 0 | Q42: 0 | R42: 0 | S42: 0 | U42: =G42-INDEX($C42:$G42,1,aux!$AL$1) -> 0 | V42: 0 | W42: 0 | X42: =+IF(INDEX($C42:$G42,1,aux!$AL$1)>0,(G42/INDEX($C42:$G42,1,aux!$AL$1))^(1/($G$3-INDEX($C$3:$G$3,1,aux!$AL$1)))-1,"n.d.") -> n.d. | Y42: =IF(INDEX($C42:$G42,1,aux!$AL$1)>0,(G42-INDEX($C42:$G42,1,aux!$AL$1))/INDEX($C42:$G42,1,aux!$AL$1),"n.d.") -> n.d. | AA42: =O42-INDEX($K42:$O42,1,aux!$AL$1) -> 0 | AB42: 0 | AC42: 0 | AD42: =+IF(INDEX($K42:$O42,1,aux!$AL$1)>0,(O42/INDEX($K42:$O42,1,aux!$AL$1))^(1/($O$3-INDEX($K$3:$O$3,1,aux!$AL$1)))-1,"n.d.") -> n.d. | AE42: =IF(INDEX($K42:$O42,1,aux!$AL$1)>0,(O42-INDEX($K42:$O42,1,aux!$AL$1))/INDEX($K42:$O42,1,aux!$AL$1),"n.d.") -> n.d.
A43: 25 | B43: Sal e cloreto de sódio puro; água do mar (NC 2501) | C43: 3.347 | D43: 3.001 | E43: 8.889 | F43: 2.985 | G43: 4.789 | H43: 4.6022 | I43: 0.0002567011368 | J43: 1.730309996e-05 | K43: 179.015 | L43: 140.934 | M43: 174.351 | N43: 600.189 | O43: 1074.105 | P43: 433.7188 | Q43: 0.01261269435 | R43: 0.0007672600579 | S43: 429.1166 | U43: =G43-INDEX($C43:$G43,1,aux!$AL$1) -> 1.442 | V43: -0.0001144321384 | W43: -8.157384804e-05 | X43: =+IF(INDEX($C43:$G43,1,aux!$AL$1)>0,(G43/INDEX($C43:$G43,1,aux!$AL$1))^(1/($G$3-INDEX($C$3:$G$3,1,aux!$AL$1)))-1,"n.d.") -> 0.09369765557 | Y43: =IF(INDEX($C43:$G43,1,aux!$AL$1)>0,(G43-INDEX($C43:$G43,1,aux!$AL$1))/INDEX($C43:$G43,1,aux!$AL$1),"n.d.") -> 0.4308335823 | AA43: =O43-INDEX($K43:$O43,1,aux!$AL$1) -> 895.09 | AB43: 0.06616885585 | AC43: 0.02312010893 | AD43: =+IF(INDEX($K43:$O43,1,aux!$AL$1)>0,(O43/INDEX($K43:$O43,1,aux!$AL$1))^(1/($O$3-INDEX($K$3:$O$3,1,aux!$AL$1)))-1,"n.d.") -> 0.5650900443 | AE43: =IF(INDEX($K43:$O43,1,aux!$AL$1)>0,(O43-INDEX($K43:$O43,1,aux!$AL$1))/INDEX($K43:$O43,1,aux!$AL$1),"n.d.") -> 5.000083792
A44: Subtotal Mar | C44: 27744.695 | D44: 18775.001 | E44: 11772.262 | F44: 16205.91 | G44: 15143.34 | H44: 17928.2416 | I44: 1 | J44: 0.06740562265 | K44: 21898.423 | L44: 24709.633 | M44: 41123.644 | N44: 48779.926 | O44: 35425.784 | P44: 34387.482 | Q44: 1 | R44: 0.06083236749 | S44: 16459.2404 | U44: =G44-INDEX($C44:$G44,1,aux!$AL$1) -> -12601.355 | V44: 1 | W44: 0.7128578487 | X44: =+IF(INDEX($C44:$G44,1,aux!$AL$1)>0,(G44/INDEX($C44:$G44,1,aux!$AL$1))^(1/($G$3-INDEX($C$3:$G$3,1,aux!$AL$1)))-1,"n.d.") -> -0.1404712069 | Y44: =IF(INDEX($C44:$G44,1,aux!$AL$1)>0,(G44-INDEX($C44:$G44,1,aux!$AL$1))/INDEX($C44:$G44,1,aux!$AL$1),"n.d.") -> -0.4541897109 | AA44: =O44-INDEX($K44:$O44,1,aux!$AL$1) -> 13527.361 | AB44: 1 | AC44: 0.3494107406 | AD44: =+IF(INDEX($K44:$O44,1,aux!$AL$1)>0,(O44/INDEX($K44:$O44,1,aux!$AL$1))^(1/($O$3-INDEX($K$3:$O$3,1,aux!$AL$1)))-1,"n.d.") -> 0.1277858919 | AE44: =IF(INDEX($K44:$O44,1,aux!$AL$1)>0,(O44-INDEX($K44:$O44,1,aux!$AL$1))/INDEX($K44:$O44,1,aux!$AL$1),"n.d.") -> 0.6177321993
A45: 13f | B45: Gomas e resinas (NC 1301) (f) | C45: 0.029 | D45: 58.719 | E45: 0.014 | F45: 13.113 | G45: 1.228 | H45: 14.6206 | I45: 0.0003180572873 | J45: 5.496973259e-05 | K45: 0 | L45: 9.523 | M45: 0 | N45: 0 | O45: 1.376 | P45: 2.1798 | Q45: 6.533321442e-06 | R45: 3.856124001e-06 | S45: -12.4408 | U45: =G45-INDEX($C45:$G45,1,aux!$AL$1) -> 1.199 | V45: =IF($U$52<>0,U45/$U$52, "n.d.") -> 0.00033345867 | W45: -6.782735353e-05 | X45: =+IF(INDEX($C45:$G45,1,aux!$AL$1)>0,(G45/INDEX($C45:$G45,1,aux!$AL$1))^(1/($G$3-INDEX($C$3:$G$3,1,aux!$AL$1)))-1,"n.d.") -> 1.55093911 | Y45: =IF(INDEX($C45:$G45,1,aux!$AL$1)>0,(G45-INDEX($C45:$G45,1,aux!$AL$1))/INDEX($C45:$G45,1,aux!$AL$1),"n.d.") -> 41.34482759 | AA45: =O45-INDEX($K45:$O45,1,aux!$AL$1) -> 1.376 | AB45: =IF($AA$52<>0,AA45/$AA$52, "n.d.") -> -0.0001259516051 | AC45: 3.554197889e-05 | AD45: =+IF(INDEX($K45:$O45,1,aux!$AL$1)>0,(O45/INDEX($K45:$O45,1,aux!$AL$1))^(1/($O$3-INDEX($K$3:$O$3,1,aux!$AL$1)))-1,"n.d.") -> n.d. | AE45: =IF(INDEX($K45:$O45,1,aux!$AL$1)>0,(O45-INDEX($K45:$O45,1,aux!$AL$1))/INDEX($K45:$O45,1,aux!$AL$1),"n.d.") -> n.d.
A46: 38f | B46: Tall oil, essências e colofónias (NC 3803,3805,3806) (f) | C46: 269.432 | D46: 130.417 | E46: 377.848 | F46: 1151.427 | G46: 1248.682 | H46: 635.5612 | I46: 0.01382603116 | J46: 0.002389548254 | K46: 3166.917 | L46: 1035.216 | M46: 1208.804 | N46: 1774.642 | O46: 2097.286 | P46: 1856.573 | Q46: 0.005564541788 | R46: 0.003284326867 | S46: 1221.0118 | U46: =G46-INDEX($C46:$G46,1,aux!$AL$1) -> 979.25 | V46: 0.2723431215 | W46: -0.05539611005 | X46: =+IF(INDEX($C46:$G46,1,aux!$AL$1)>0,(G46/INDEX($C46:$G46,1,aux!$AL$1))^(1/($G$3-INDEX($C$3:$G$3,1,aux!$AL$1)))-1,"n.d.") -> 0.4672383474 | Y46: =IF(INDEX($C46:$G46,1,aux!$AL$1)>0,(G46-INDEX($C46:$G46,1,aux!$AL$1))/INDEX($C46:$G46,1,aux!$AL$1),"n.d.") -> 3.634497758 | AA46: =O46-INDEX($K46:$O46,1,aux!$AL$1) -> -1069.631 | AB46: 0.09790824224 | AC46: -0.02762849013 | AD46: =+IF(INDEX($K46:$O46,1,aux!$AL$1)>0,(O46/INDEX($K46:$O46,1,aux!$AL$1))^(1/($O$3-INDEX($K$3:$O$3,1,aux!$AL$1)))-1,"n.d.") -> -0.09789883409 | AE46: =IF(INDEX($K46:$O46,1,aux!$AL$1)>0,(O46-INDEX($K46:$O46,1,aux!$AL$1))/INDEX($K46:$O46,1,aux!$AL$1),"n.d.") -> -0.3377515104
A47: 44 | B47: Madeira e suas obras | C47: 27759.892 | D47: 27175.664 | E47: 26951.159 | F47: 37452.797 | G47: 34294.119 | H47: 30726.7262 | I47: 0.6684307883 | J47: 0.1155246654 | K47: 18201.796 | L47: 17321.001 | M47: 21072.068 | N47: 27473.452 | O47: 22550.505 | P47: 21323.7644 | Q47: 0.06391183007 | R47: 0.03772230466 | S47: -9402.9618 | U47: =G47-INDEX($C47:$G47,1,aux!$AL$1) -> 6534.227 | V47: 1.817259921 | W47: -0.3696408047 | X47: =+IF(INDEX($C47:$G47,1,aux!$AL$1)>0,(G47/INDEX($C47:$G47,1,aux!$AL$1))^(1/($G$3-INDEX($C$3:$G$3,1,aux!$AL$1)))-1,"n.d.") -> 0.05426665254 | Y47: =IF(INDEX($C47:$G47,1,aux!$AL$1)>0,(G47-INDEX($C47:$G47,1,aux!$AL$1))/INDEX($C47:$G47,1,aux!$AL$1),"n.d.") -> 0.2353837328 | AA47: =O47-INDEX($K47:$O47,1,aux!$AL$1) -> 4348.709 | AB47: -0.3980573246 | AC47: 0.1123268339 | AD47: =+IF(INDEX($K47:$O47,1,aux!$AL$1)>0,(O47/INDEX($K47:$O47,1,aux!$AL$1))^(1/($O$3-INDEX($K$3:$O$3,1,aux!$AL$1)))-1,"n.d.") -> 0.05501954989 | AE47: =IF(INDEX($K47:$O47,1,aux!$AL$1)>0,(O47-INDEX($K47:$O47,1,aux!$AL$1))/INDEX($K47:$O47,1,aux!$AL$1),"n.d.") -> 0.2389164784
A48: 45 | B48: Cortiça e suas obras | C48: 4155.481 | D48: 3576.227 | E48: 1641.183 | F48: 1805.826 | G48: 4322.725 | H48: 3100.2884 | I48: 0.06744383393 | J48: 0.01165629484 | K48: 179906.551 | L48: 196013.69 | M48: 198797.845 | N48: 197621.584 | O48: 214516.884 | P48: 197371.3108 | Q48: 0.5915635457 | R48: 0.3491550824 | S48: 194271.0224 | U48: =G48-INDEX($C48:$G48,1,aux!$AL$1) -> 167.244 | V48: 0.04651289559 | W48: -0.009460982414 | X48: =+IF(INDEX($C48:$G48,1,aux!$AL$1)>0,(G48/INDEX($C48:$G48,1,aux!$AL$1))^(1/($G$3-INDEX($C$3:$G$3,1,aux!$AL$1)))-1,"n.d.") -> 0.009913265245 | Y48: =IF(INDEX($C48:$G48,1,aux!$AL$1)>0,(G48-INDEX($C48:$G48,1,aux!$AL$1))/INDEX($C48:$G48,1,aux!$AL$1),"n.d.") -> 0.04024660442 | AA48: =O48-INDEX($K48:$O48,1,aux!$AL$1) -> 34610.333 | AB48: -3.168042874 | AC48: 0.8939823581 | AD48: =+IF(INDEX($K48:$O48,1,aux!$AL$1)>0,(O48/INDEX($K48:$O48,1,aux!$AL$1))^(1/($O$3-INDEX($K$3:$O$3,1,aux!$AL$1)))-1,"n.d.") -> 0.04496952613 | AE48: =IF(INDEX($K48:$O48,1,aux!$AL$1)>0,(O48-INDEX($K48:$O48,1,aux!$AL$1))/INDEX($K48:$O48,1,aux!$AL$1),"n.d.") -> 0.1923795037
A49: 46 | B49: Obras de espartaria ou de cestaria | C49: 2.536 | D49: 0.952 | E49: 0.661 | F49: 1.997 | G49: 8.258 | H49: 2.8808 | I49: 6.266907195e-05 | J49: 1.083107435e-05 | K49: 6.966 | L49: 2.619 | M49: 9.413 | N49: 3.646 | O49: 222.936 | P49: 49.116 | Q49: 0.0001472110359 | R49: 8.688750638e-05 | S49: 46.2352 | U49: =G49-INDEX($C49:$G49,1,aux!$AL$1) -> 5.722 | V49: 0.001591368232 | W49: -0.0003236931751 | X49: =+IF(INDEX($C49:$G49,1,aux!$AL$1)>0,(G49/INDEX($C49:$G49,1,aux!$AL$1))^(1/($G$3-INDEX($C$3:$G$3,1,aux!$AL$1)))-1,"n.d.") -> 0.343325959 | Y49: =IF(INDEX($C49:$G49,1,aux!$AL$1)>0,(G49-INDEX($C49:$G49,1,aux!$AL$1))/INDEX($C49:$G49,1,aux!$AL$1),"n.d.") -> 2.256309148 | AA49: =O49-INDEX($K49:$O49,1,aux!$AL$1) -> 215.97 | AB49: -0.01976872686 | AC49: 0.00557848923 | AD49: =+IF(INDEX($K49:$O49,1,aux!$AL$1)>0,(O49/INDEX($K49:$O49,1,aux!$AL$1))^(1/($O$3-INDEX($K$3:$O$3,1,aux!$AL$1)))-1,"n.d.") -> 1.378478246 | AE49: =IF(INDEX($K49:$O49,1,aux!$AL$1)>0,(O49-INDEX($K49:$O49,1,aux!$AL$1))/INDEX($K49:$O49,1,aux!$AL$1),"n.d.") -> 31.00344531
A50: 47 | B50: Pastas de madeira | C50: 3621.614 | D50: 2737.252 | E50: 2085.629 | F50: 5350.427 | G50: 2394.988 | H50: 3237.982 | I50: 0.07043922762 | J50: 0.01217398771 | K50: 0.107 | L50: 1.342 | M50: 0.046 | N50: 0.5 | O50: 1154.248 | P50: 231.2486 | Q50: 0.0006931009436 | R50: 0.0004090849053 | S50: -3006.7334 | U50: =G50-INDEX($C50:$G50,1,aux!$AL$1) -> -1226.626 | V50: -0.341141847 | W50: 0.06939015459 | X50: =+IF(INDEX($C50:$G50,1,aux!$AL$1)>0,(G50/INDEX($C50:$G50,1,aux!$AL$1))^(1/($G$3-INDEX($C$3:$G$3,1,aux!$AL$1)))-1,"n.d.") -> -0.09822063079 | Y50: =IF(INDEX($C50:$G50,1,aux!$AL$1)>0,(G50-INDEX($C50:$G50,1,aux!$AL$1))/INDEX($C50:$G50,1,aux!$AL$1),"n.d.") -> -0.3386959516 | AA50: =O50-INDEX($K50:$O50,1,aux!$AL$1) -> 1154.141 | AB50: -0.105643831 | AC50: 0.02981137722 | AD50: =+IF(INDEX($K50:$O50,1,aux!$AL$1)>0,(O50/INDEX($K50:$O50,1,aux!$AL$1))^(1/($O$3-INDEX($K$3:$O$3,1,aux!$AL$1)))-1,"n.d.") -> 9.191282452 | AE50: =IF(INDEX($K50:$O50,1,aux!$AL$1)>0,(O50-INDEX($K50:$O50,1,aux!$AL$1))/INDEX($K50:$O50,1,aux!$AL$1),"n.d.") -> 10786.36449
A51: 48 | B51: Papel e cartão | C51: 9297.321 | D51: 12581.215 | E51: 6660.716 | F51: 6280.741 | G51: 6431.953 | H51: 8250.3892 | I51: 0.1794793927 | J51: 0.03101936228 | K51: 108272.647 | L51: 95012.178 | M51: 123570.239 | N51: 179104.377 | O51: 58086.918 | P51: 112809.2718 | Q51: 0.3381132371 | R51: 0.1995625931 | S51: 104558.8826 | U51: =G51-INDEX($C51:$G51,1,aux!$AL$1) -> -2865.368 | V51: -0.7968989178 | W51: 0.162093685 | X51: =+IF(INDEX($C51:$G51,1,aux!$AL$1)>0,(G51/INDEX($C51:$G51,1,aux!$AL$1))^(1/($G$3-INDEX($C$3:$G$3,1,aux!$AL$1)))-1,"n.d.") -> -0.08799701636 | Y51: =IF(INDEX($C51:$G51,1,aux!$AL$1)>0,(G51-INDEX($C51:$G51,1,aux!$AL$1))/INDEX($C51:$G51,1,aux!$AL$1),"n.d.") -> -0.3081928655 | AA51: =O51-INDEX($K51:$O51,1,aux!$AL$1) -> -50185.729 | AB51: 4.593730466 | AC51: -1.296293692 | AD51: =+IF(INDEX($K51:$O51,1,aux!$AL$1)>0,(O51/INDEX($K51:$O51,1,aux!$AL$1))^(1/($O$3-INDEX($K$3:$O$3,1,aux!$AL$1)))-1,"n.d.") -> -0.1441652924 | AE51: =IF(INDEX($K51:$O51,1,aux!$AL$1)>0,(O51-INDEX($K51:$O51,1,aux!$AL$1))/INDEX($K51:$O51,1,aux!$AL$1),"n.d.") -> -0.4635125342
A52: Subtotal Florestas | C52: 45106.305 | D52: 46260.446 | E52: 37717.21 | F52: 52056.328 | G52: 48701.953 | H52: 45968.4484 | I52: 1 | J52: 0.1728296593 | K52: 309554.984 | L52: 309395.569 | M52: 344658.415 | N52: 405978.201 | O52: 298630.153 | P52: 333643.4644 | Q52: 1 | R52: 0.5902241356 | S52: 287675.016 | U52: =G52-INDEX($C52:$G52,1,aux!$AL$1) -> 3595.648 | V52: 1 | W52: -0.203405578 | X52: =+IF(INDEX($C52:$G52,1,aux!$AL$1)>0,(G52/INDEX($C52:$G52,1,aux!$AL$1))^(1/($G$3-INDEX($C$3:$G$3,1,aux!$AL$1)))-1,"n.d.") -> 0.01935928065 | Y52: =IF(INDEX($C52:$G52,1,aux!$AL$1)>0,(G52-INDEX($C52:$G52,1,aux!$AL$1))/INDEX($C52:$G52,1,aux!$AL$1),"n.d.") -> 0.07971497554 | AA52: =O52-INDEX($K52:$O52,1,aux!$AL$1) -> -10924.831 | AB52: 1 | AC52: -0.2821875819 | AD52: =+IF(INDEX($K52:$O52,1,aux!$AL$1)>0,(O52/INDEX($K52:$O52,1,aux!$AL$1))^(1/($O$3-INDEX($K$3:$O$3,1,aux!$AL$1)))-1,"n.d.") -> -0.008942245504 | AE52: =IF(INDEX($K52:$O52,1,aux!$AL$1)>0,(O52-INDEX($K52:$O52,1,aux!$AL$1))/INDEX($K52:$O52,1,aux!$AL$1),"n.d.") -> -0.03529205332
B53: TOTAL | C53: 303690.524 | D53: 236779.065 | E53: 217685.539 | F53: 285708.89 | G53: 286013.29 | H53: 265975.4616 | J53: 1 | K53: 504943.297 | L53: 504332.846 | M53: 591733.208 | N53: 681745.827 | O53: 543658.08 | P53: 565282.6516 | R53: 1 | S53: 299307.19 | U53: =G53-INDEX($C53:$G53,1,aux!$AL$1) -> -17677.234 | W53: 1 | X53: =+IF(INDEX($C53:$G53,1,aux!$AL$1)>0,(G53/INDEX($C53:$G53,1,aux!$AL$1))^(1/($G$3-INDEX($C$3:$G$3,1,aux!$AL$1)))-1,"n.d.") -> -0.01488089158 | Y53: =IF(INDEX($C53:$G53,1,aux!$AL$1)>0,(G53-INDEX($C53:$G53,1,aux!$AL$1))/INDEX($C53:$G53,1,aux!$AL$1),"n.d.") -> -0.05820805262 | AA53: =O53-INDEX($K53:$O53,1,aux!$AL$1) -> 38714.783 | AC53: 1 | AD53: =+IF(INDEX($K53:$O53,1,aux!$AL$1)>0,(O53/INDEX($K53:$O53,1,aux!$AL$1))^(1/($O$3-INDEX($K$3:$O$3,1,aux!$AL$1)))-1,"n.d.") -> 0.01864019428 | AE53: =IF(INDEX($K53:$O53,1,aux!$AL$1)>0,(O53-INDEX($K53:$O53,1,aux!$AL$1))/INDEX($K53:$O53,1,aux!$AL$1),"n.d.") -> 0.07667154556
B54: a - agrícola e agroalimentar; p - pescas; f - florestas
A55: Fonte: GPP a partir de dados INE/Comércio Internacional (2022 definitivos) | S55: 2024-05-02T16:16:54.190

Sheet 5.2_var
A1: ="Principais contributos por produto para a variação das trocas comerciais PT-Estados Unidos_x000D_ no período " & INDEX('5.2'!K3:N3,1,aux!AL1) & "-2023 (NC 2 dígitos - milhares de euros) Produtos agrícolas e agroalimentares, do mar e da floresta" -> Principais contributos por produto para a variação das trocas comerciais PT-Estados Unidos no período 2019-2023 (NC 2 dígitos - milhares de euros) Produtos agrícolas e agroalimentares, do mar e da floresta
E5: aumento das importações | J5: aumento das exportações
E17: redução das importações | J17: redução das exportações
A28: Fonte: GPP a partir de dados INE/Comércio Internacional (2022 definitivos) | F28: a - agrícola e agroalimentar; p - mar; f - florestas | H28: ='3'!Y116 -> 2024-05-02T16:16:54.190
A29: Cód. NC | B29: Descritivo | C29: ="Variação das Importações " & INDEX('5.2'!K3:N3,1,aux!AL1) & "-"& '5.2'!O3 &"" -> Variação das Importações 2019-2023 | F29: Cód. NC | G29: Descritivo | H29: ="Variação das Exportações " & INDEX('5.2'!K3:N3,1,aux!AL1) & "-"& '5.2'!O3 &"" -> Variação das Exportações 2019-2023
C30: variação total em valor | D30: % do aumento/ redução total | H30: variação total em valor | I30: % do aumento/ redução total
A31: =IF(C31>0,aux!AU6,"") -> 23a | B31: =IF(C31>0,aux!AV6,"") -> Resíduos indústrias alimentares; alimentos p/ animais (exc. NC 230120) (a) | C31: =IF(aux!AW6>0,aux!AW6,0) -> 9212.888 | D31: =IF(SUM($C$31:$C$41)<>0,C31/SUM($C$31:$C$41),0) -> 0.2325606603 | F31: =IF(H31>0,aux!AZ6,"") -> 45 | G31: =IF(H31>0,aux!BA6,"") -> Cortiça e suas obras | H31: =IF(aux!BB6>0,aux!BB6,0) -> 34610.333 | I31: =IF(SUM($H$31:$H$41)<>0,H31/SUM($H$31:$H$41),0) -> 0.3532952411
A32: =IF(C32>0,aux!AU7,"") -> 24 | B32: =IF(C32>0,aux!AV7,"") -> Tabaco | C32: =IF(aux!AW7>0,aux!AW7,0) -> 7048.382 | D32: =IF(SUM($C$31:$C$41)<>0,C32/SUM($C$31:$C$41),0) -> 0.1779220991 | F32: =IF(H32>0,aux!AZ7,"") -> 22 | G32: =IF(H32>0,aux!BA7,"") -> Bebidas, líquidos alcoólicos e vinagres | H32: =IF(aux!BB7>0,aux!BB7,0) -> 12068.407 | I32: =IF(SUM($H$31:$H$41)<>0,H32/SUM($H$31:$H$41),0) -> 0.1231918445
A33: =IF(C33>0,aux!AU8,"") -> 52 | B33: =IF(C33>0,aux!AV8,"") -> Algodão (NC 5201-5203) | C33: =IF(aux!AW8>0,aux!AW8,0) -> 6864.801 | D33: 0.1732879694 | F33: =IF(H33>0,aux!AZ8,"") -> 19a | G33: =IF(H33>0,aux!BA8,"") -> Preparações à base de cereais (exc. NC 19022010) (a) | H33: =IF(aux!BB8>0,aux!BB8,0) -> 9391.941 | I33: 0.09587102384
A34: =IF(C34>0,aux!AU9,"") -> 44 | B34: =IF(C34>0,aux!AV9,"") -> Madeira e suas obras | C34: =IF(aux!AW9>0,aux!AW9,0) -> 6534.227 | D34: 0.1649432996 | F34: =IF(H34>0,aux!AZ9,"") -> 15 | G34: =IF(H34>0,aux!BA9,"") -> Gorduras e óleos animais ou vegetais | H34: =IF(aux!BB9>0,aux!BB9,0) -> 9374.911 | I34: 0.09569718506
A35: =IF(C35>0,aux!AU10,"") -> 43 | B35: =IF(C35>0,aux!AV10,"") -> Peles com pelo em bruto (NC 4301) | C35: =IF(aux!AW10>0,aux!AW10,0) -> 2811.727 | D35: 0.07097634181 | F35: =IF(H35>0,aux!AZ10,"") -> 03 | G35: =IF(H35>0,aux!BA10,"") -> Peixes e crustáceos | H35: =IF(aux!BB10>0,aux!BB10,0) -> 6578.258 | I35: 0.06714951995
A36: =IF(C36>0,aux!AU11,"") -> 22 | B36: =IF(C36>0,aux!AV11,"") -> Bebidas, líquidos alcoólicos e vinagres | C36: =IF(aux!AW11>0,aux!AW11,0) -> 2166.242 | D36: 0.05468238297 | F36: =IF(H36>0,aux!AZ11,"") -> 21 | G36: =IF(H36>0,aux!BA11,"") -> Preparações alimentícias diversas | H36: =IF(aux!BB11>0,aux!BB11,0) -> 6209.7 | I36: 0.06338735483
A37: =IF(C37>0,aux!AU12,"") -> 35 | B37: =IF(C37>0,aux!AV12,"") -> Caseínas, albuminas, gelatinas, peptonas, dextrinas (NC 3501 a 3505) | C37: =IF(aux!AW12>0,aux!AW12,0) -> 1716.355 | D37: 0.04332589869 | F37: =IF(H37>0,aux!AZ12,"") -> 16p | G37: =IF(H37>0,aux!BA12,"") -> Preparações e conservas de peixes ou crustáceos (NC 1604-05) (p) | H37: =IF(aux!BB12>0,aux!BB12,0) -> 6050.844 | I37: 0.06176578509
A38: =IF(C38>0,aux!AU13,"") -> 18 | B38: =IF(C38>0,aux!AV13,"") -> Cacau e suas preparações | C38: =IF(aux!AW13>0,aux!AW13,0) -> 1005.717 | D38: 0.0253872846 | F38: =IF(H38>0,aux!AZ13,"") -> 44 | G38: =IF(H38>0,aux!BA13,"") -> Madeira e suas obras | H38: =IF(aux!BB13>0,aux!BB13,0) -> 4348.709 | I38: 0.04439073714
A39: =IF(C39>0,aux!AU14,"") -> 38f | B39: =IF(C39>0,aux!AV14,"") -> Tall oil, essências e colofónias (NC 3803,3805,3806) (f) | C39: =IF(aux!AW14>0,aux!AW14,0) -> 979.25 | D39: 0.02471917889 | F39: =IF(H39>0,aux!AZ14,"") -> 05a | G39: =IF(H39>0,aux!BA14,"") -> Outros produtos de origem animal (exc. NC 0508, 051191) (a) | H39: =IF(aux!BB14>0,aux!BB14,0) -> 1574.707 | I39: 0.01607428883
A40: =IF(C40>0,aux!AU15,"") -> 05a | B40: =IF(C40>0,aux!AV15,"") -> Outros produtos de origem animal (exc. NC 0508, 051191) (a) | C40: =IF(aux!AW15>0,aux!AW15,0) -> 560.838 | D40: 0.01415721711 | F40: =IF(H40>0,aux!AZ15,"") -> 47 | G40: =IF(H40>0,aux!BA15,"") -> Pastas de madeira | H40: =IF(aux!BB15>0,aux!BB15,0) -> 1154.141 | I40: 0.01178123663
B41: Outros contributos para o aumento das importações | C41: =SUMIF(aux!AW16:AW51,">0") -> 714.562 | D41: 0.01803766751 | G41: Outros contributos para o aumento das exportações | H41: =SUMIF(aux!BB16:BB51,">0") -> 6602.383 | I41: 0.06739578304
B42: Outros contributos para a redução das importações | C42: =SUMIF(aux!AW6:AW41,"<0") -> -1150.778 | D42: =IF(SUM($C$42:$C$52)<>0,C42/SUM($C$42:$C$52),0) -> 0.02008611186 | G42: Outros contributos para a redução das exportações | H42: =SUMIF(aux!BB6:BB41,"<0") -> -0.094 | I42: =IF(SUM($H$42:$H$52)<>0,H42/SUM($H$42:$H$52),0) -> 1.586509913e-06
A43: =IF(C43<>0,aux!AU42,"") -> 19a | B43: =IF(C43<0,aux!AV42,"") -> Preparações à base de cereais (exc. NC 19022010) (a) | C43: =IF(aux!AW42<0,aux!AW42,0) -> -374.452 | D43: =IF(SUM($C$42:$C$52)<>0,C43/SUM($C$42:$C$52),0) -> 0.006535825988 | F43: =IF(H43<>0,aux!AZ42,"") -> 41 | G43: =IF(H43<>0,aux!BA42,"") -> Couro e peles em bruto (NC 4101 a 4103) | H43: =IF(aux!BB42<0,aux!BB42,0) -> -0.484 | I43: =IF(SUM($H$42:$H$52)<>0,H43/SUM($H$42:$H$52),0) -> 8.168838275e-06
A44: =IF(C44<>0,aux!AU43,"") -> 33 | B44: =IF(C44<0,aux!AV43,"") -> Óleos essenciais e resinóides (NC 3301) | C44: =IF(aux!AW43<0,aux!AW43,0) -> -396.423 | D44: 0.006919316082 | F44: =IF(H44<>0,aux!AZ43,"") -> 38a | G44: =IF(H44<>0,aux!BA43,"") -> Agentes de acabamento, ácidos gordos, sorbitol (NC 380910, 382311-12-13-19-70, 382460) (a) | H44: =IF(aux!BB43<0,aux!BB43,0) -> -7.049 | I44: 0.0001189713657
A45: =IF(C45<>0,aux!AU44,"") -> 01 | B45: =IF(C45<0,aux!AV44,"") -> Animais vivos | C45: =IF(aux!AW44<0,aux!AW44,0) -> -880.574 | D45: 0.01536986966 | F45: =IF(H45<>0,aux!AZ44,"") -> 02 | G45: =IF(H45<>0,aux!BA44,"") -> Carnes e miudezas | H45: =IF(aux!BB44<0,aux!BB44,0) -> -8.919 | I45: 0.0001505327863
A46: =IF(C46<>0,aux!AU45,"") -> 47 | B46: =IF(C46<0,aux!AV45,"") -> Pastas de madeira | C46: =IF(aux!AW45<0,aux!AW45,0) -> -1226.626 | D46: 0.02140999137 | F46: =IF(H46<>0,aux!AZ45,"") -> 06 | G46: =IF(H46<>0,aux!BA45,"") -> Plantas vivas e produtos de floricultura | H46: =IF(aux!BB45<0,aux!BB45,0) -> -48.186 | I46: 0.0008132719858
A47: =IF(C47<>0,aux!AU46,"") -> 08 | B47: =IF(C47<0,aux!AV46,"") -> Frutas | C47: =IF(aux!AW46<0,aux!AW46,0) -> -2384.977 | D47: 0.04162828522 | F47: =IF(H47<>0,aux!AZ46,"") -> 08 | G47: =IF(H47<>0,aux!BA46,"") -> Frutas | H47: =IF(aux!BB46<0,aux!BB46,0) -> -324.226 | I47: 0.005472210245
A48: =IF(C48<>0,aux!AU47,"") -> 48 | B48: =IF(C48<0,aux!AV47,"") -> Papel e cartão | C48: =IF(aux!AW47<0,aux!AW47,0) -> -2865.368 | D48: 0.05001321034 | F48: =IF(H48<>0,aux!AZ47,"") -> 07 | G48: =IF(H48<>0,aux!BA47,"") -> Produtos hortícolas | H48: =IF(aux!BB47<0,aux!BB47,0) -> -1011.067 | I48: 0.01706455126
A49: =IF(C49<>0,aux!AU48,"") -> 10 | B49: =IF(C49<0,aux!AV48,"") -> Cereais | C49: =IF(aux!AW48<0,aux!AW48,0) -> -4652.045 | D49: 0.08119854243 | F49: =IF(H49<>0,aux!AZ48,"") -> 38f | G49: =IF(H49<>0,aux!BA48,"") -> Tall oil, essências e colofónias (NC 3803,3805,3806) (f) | H49: =IF(aux!BB48<0,aux!BB48,0) -> -1069.631 | I49: 0.01805298069
A50: =IF(C50<>0,aux!AU49,"") -> 07 | B50: =IF(C50<0,aux!AV49,"") -> Produtos hortícolas | C50: =IF(aux!AW49<0,aux!AW49,0) -> -8465.144 | D50: 0.147753806 | F50: =IF(H50<>0,aux!AZ49,"") -> 33 | G50: =IF(H50<>0,aux!BA49,"") -> Óleos essenciais e resinóides (NC 3301) | H50: =IF(aux!BB49<0,aux!BB49,0) -> -1232.226 | I50: 0.02079722089
A51: =IF(C51<>0,aux!AU50,"") -> 03 | B51: =IF(C51<0,aux!AV50,"") -> Peixes e crustáceos | C51: =IF(aux!AW50<0,aux!AW50,0) -> -12291.21 | D51: 0.2145354004 | F51: =IF(H51<>0,aux!AZ50,"") -> 20 | G51: =IF(H51<>0,aux!BA50,"") -> Preparações de produtos vegetais | H51: =IF(aux!BB50<0,aux!BB50,0) -> -5361.94 | I51: 0.09049756343
A52: =IF(C52<>0,aux!AU51,"") -> 12 | B52: =IF(C52<0,aux!AV51,"") -> Sementes e frutos oleaginosos | C52: =IF(aux!AW51<0,aux!AW51,0) -> -22604.626 | D52: 0.3945496407 | F52: =IF(H52<>0,aux!AZ51,"") -> 48 | G52: =IF(H52<>0,aux!BA51,"") -> Papel e cartão | H52: =IF(aux!BB51<0,aux!BB51,0) -> -50185.729 | I52: 0.847022942
A53: TOTAL | C53: =SUM(C31:C52) -> -17677.234 | F53: TOTAL | H53: =SUM(H31:H52) -> 38714.783

Sheet 5.2A
A1: Trocas comerciais Portugal-Estados Unidos 2019-2023 em milhares de euros (NC 4 dígitos) | G1: Produtos agrícolas e agroalimentares, do mar e da floresta
A2: Cód. NC | B2: Descritivo | C2: Importações | K2: Exportações | S2: Saldo quinquénio (exp-imp) | T2: Evolução das importações | U2: =+"Variação das Importações " & INDEX(K3:N3,1,aux!AL1) & "-"& '5.2'!O3 &"" -> Variação das Importações 2019-2023 | Z2: Evolução das exportações | AA2: ="Variação das Exportações " & INDEX(K3:N3,1,aux!AL1) & "-"& '5.2'!O3 &"" -> Variação das Exportações 2019-2023
C3: 2019 | D3: 2020 | E3: 2021 | F3: 2022 | G3: 2023 | H3: média quinquénio | I3: % Subtot | J3: % Total | K3: 2019 | L3: 2020 | M3: 2021 | N3: 2022 | O3: 2023 | P3: média quinquénio | Q3: % Subtot | R3: % Total | U3: variação total em valor | V3: % no subtotal de variação | W3: % no total de variação | X3: taxa de variação média anual | Y3: taxa de variação total | AA3: variação total em valor | AB3: % no subtotal de variação | AC3: % no total de variação | AD3: taxa de variação média anual | AE3: taxa de variação total | AX3: filtro
A4: 0101 | B4: Equídeos vivos | C4: 20.03 | D4: 12.129 | E4: 115.458 | F4: 0 | G4: 0 | H4: 29.5234 | I4: 0.0001460984732 | J4: 0.0001110004653 | K4: 0 | L4: 0 | M4: 0 | N4: 0 | O4: 145.7 | P4: 29.14 | Q4: 0.0001477300283 | R4: 5.154943269e-05 | S4: -0.3834 | U4: =G4-INDEX($C4:$G4,1,aux!$AL$1) -> -20.03 | V4: =IF($U$237<>0,U4/$U$237, "n.d.") -> 0.00230985846 | W4: =IF($U$322<>0,U4/$U$322, "n.d.") -> 0.001133095823 | X4: =+IF(INDEX($C4:$G4,1,aux!$AL$1)>0,(G4/INDEX($C4:$G4,1,aux!$AL$1))^(1/($G$3-INDEX($C$3:$G$3,1,aux!$AL$1)))-1,"n.d.") -> -1 | Y4: =IF(INDEX($C4:$G4,1,aux!$AL$1)>0,(G4-INDEX($C4:$G4,1,aux!$AL$1))/INDEX($C4:$G4,1,aux!$AL$1),"n.d.") -> -1 | AA4: =O4-INDEX($K4:$O4,1,aux!$AL$1) -> 145.7 | AB4: =IF($AA$237<>0,AA4/$AA$237, "n.d.") -> 0.004034641649 | AC4: =IF($AA$322<>0,AA4/$AA$322, "n.d.") -> 0.003763420293 | AD4: =+IF(INDEX($K4:$O4,1,aux!$AL$1)>0,(O4/INDEX($K4:$O4,1,aux!$AL$1))^(1/($O$3-INDEX($K$3:$O$3,1,aux!$AL$1)))-1,"n.d.") -> n.d. | AE4: =IF(INDEX($K4:$O4,1,aux!$AL$1)>0,(O4-INDEX($K4:$O4,1,aux!$AL$1))/INDEX($K4:$O4,1,aux!$AL$1),"n.d.") -> n.d. | AX4: =+LEFT(A4,2) -> 01
A5: 0102 | B5: Bovinos vivos | C5: 0 | D5: 0 | E5: 0 | F5: 0 | G5: 0 | H5: 0 | I5: 0 | J5: 0 | K5: 0 | L5: 0 | M5: 0 | N5: 0 | O5: 0 | P5: 0 | Q5: 0 | R5: 0 | S5: 0 | U5: =G5-INDEX($C5:$G5,1,aux!$AL$1) -> 0 | V5: 0 | W5: 0 | X5: =+IF(INDEX($C5:$G5,1,aux!$AL$1)>0,(G5/INDEX($C5:$G5,1,aux!$AL$1))^(1/($G$3-INDEX($C$3:$G$3,1,aux!$AL$1)))-1,"n.d.") -> n.d. | Y5: =IF(INDEX($C5:$G5,1,aux!$AL$1)>0,(G5-INDEX($C5:$G5,1,aux!$AL$1))/INDEX($C5:$G5,1,aux!$AL$1),"n.d.") -> n.d. | AA5: =O5-INDEX($K5:$O5,1,aux!$AL$1) -> 0 | AB5: 0 | AC5: 0 | AD5: =+IF(INDEX($K5:$O5,1,aux!$AL$1)>0,(O5/INDEX($K5:$O5,1,aux!$AL$1))^(1/($O$3-INDEX($K$3:$O$3,1,aux!$AL$1)))-1,"n.d.") -> n.d. | AE5: =IF(INDEX($K5:$O5,1,aux!$AL$1)>0,(O5-INDEX($K5:$O5,1,aux!$AL$1))/INDEX($K5:$O5,1,aux!$AL$1),"n.d.") -> n.d. | AX5: 01
A6: 0103 | B6: Suínos vivos | C6: 0 | D6: 0 | E6: 0 | F6: 0 | G6: 0 | H6: 0 | I6: 0 | J6: 0 | K6: 0 | L6: 0 | M6: 0 | N6: 0 | O6: 0 | P6: 0 | Q6: 0 | R6: 0 | S6: 0 | U6: =G6-INDEX($C6:$G6,1,aux!$AL$1) -> 0 | V6: 0 | W6: 0 | X6: =+IF(INDEX($C6:$G6,1,aux!$AL$1)>0,(G6/INDEX($C6:$G6,1,aux!$AL$1))^(1/($G$3-INDEX($C$3:$G$3,1,aux!$AL$1)))-1,"n.d.") -> n.d. | Y6: =IF(INDEX($C6:$G6,1,aux!$AL$1)>0,(G6-INDEX($C6:$G6,1,aux!$AL$1))/INDEX($C6:$G6,1,aux!$AL$1),"n.d.") -> n.d. | AA6: =O6-INDEX($K6:$O6,1,aux!$AL$1) -> 0 | AB6: 0 | AC6: 0 | AD6: =+IF(INDEX($K6:$O6,1,aux!$AL$1)>0,(O6/INDEX($K6:$O6,1,aux!$AL$1))^(1/($O$3-INDEX($K$3:$O$3,1,aux!$AL$1)))-1,"n.d.") -> n.d. | AE6: =IF(INDEX($K6:$O6,1,aux!$AL$1)>0,(O6-INDEX($K6:$O6,1,aux!$AL$1))/INDEX($K6:$O6,1,aux!$AL$1),"n.d.") -> n.d. | AX6: 01
A7: 0104 | B7: Ovinos ou caprinos vivos | C7: 0 | D7: 0 | E7: 0 | F7: 0 | G7: 0 | H7: 0 | I7: 0 | J7: 0 | K7: 0 | L7: 0 | M7: 0 | N7: 0 | O7: 0 | P7: 0 | Q7: 0 | R7: 0 | S7: 0 | U7: =G7-INDEX($C7:$G7,1,aux!$AL$1) -> 0 | V7: 0 | W7: 0 | X7: =+IF(INDEX($C7:$G7,1,aux!$AL$1)>0,(G7/INDEX($C7:$G7,1,aux!$AL$1))^(1/($G$3-INDEX($C$3:$G$3,1,aux!$AL$1)))-1,"n.d.") -> n.d. | Y7: =IF(INDEX($C7:$G7,1,aux!$AL$1)>0,(G7-INDEX($C7:$G7,1,aux!$AL$1))/INDEX($C7:$G7,1,aux!$AL$1),"n.d.") -> n.d. | AA7: =O7-INDEX($K7:$O7,1,aux!$AL$1) -> 0 | AB7: 0 | AC7: 0 | AD7: =+IF(INDEX($K7:$O7,1,aux!$AL$1)>0,(O7/INDEX($K7:$O7,1,aux!$AL$1))^(1/($O$3-INDEX($K$3:$O$3,1,aux!$AL$1)))-1,"n.d.") -> n.d. | AE7: =IF(INDEX($K7:$O7,1,aux!$AL$1)>0,(O7-INDEX($K7:$O7,1,aux!$AL$1))/INDEX($K7:$O7,1,aux!$AL$1),"n.d.") -> n.d. | AX7: 01
A8: 0105 | B8: Aves de capoeira vivas | C8: 0 | D8: 0 | E8: 0 | F8: 0 | G8: 55.124 | H8: 11.0248 | I8: 5.455694288e-05 | J8: 4.145044033e-05 | K8: 0 | L8: 0 | M8: 0 | N8: 0 | O8: 0 | P8: 0 | Q8: 0 | R8: 0 | S8: -11.0248 | U8: =G8-INDEX($C8:$G8,1,aux!$AL$1) -> 55.124 | V8: -0.006356896542 | W8: -0.003118361164 | X8: =+IF(INDEX($C8:$G8,1,aux!$AL$1)>0,(G8/INDEX($C8:$G8,1,aux!$AL$1))^(1/($G$3-INDEX($C$3:$G$3,1,aux!$AL$1)))-1,"n.d.") -> n.d. | Y8: =IF(INDEX($C8:$G8,1,aux!$AL$1)>0,(G8-INDEX($C8:$G8,1,aux!$AL$1))/INDEX($C8:$G8,1,aux!$AL$1),"n.d.") -> n.d. | AA8: =O8-INDEX($K8:$O8,1,aux!$AL$1) -> 0 | AB8: 0 | AC8: 0 | AD8: =+IF(INDEX($K8:$O8,1,aux!$AL$1)>0,(O8/INDEX($K8:$O8,1,aux!$AL$1))^(1/($O$3-INDEX($K$3:$O$3,1,aux!$AL$1)))-1,"n.d.") -> n.d. | AE8: =IF(INDEX($K8:$O8,1,aux!$AL$1)>0,(O8-INDEX($K8:$O8,1,aux!$AL$1))/INDEX($K8:$O8,1,aux!$AL$1),"n.d.") -> n.d. | AX8: 01
A9: 0106 | B9: Outros animais vivos | C9: 1386.001 | D9: 934.603 | E9: 562.95 | F9: 547.46 | G9: 470.333 | H9: 780.2694 | I9: 0.003861214089 | J9: 0.002933614234 | K9: 24.337 | L9: 41.076 | M9: 71.499 | N9: 71.137 | O9: 89.62 | P9: 59.5338 | Q9: 0.0003018164022 | R9: 0.0001053168708 | S9: -720.7356 | U9: =G9-INDEX($C9:$G9,1,aux!$AL$1) -> -915.668 | V9: 0.1055947816 | W9: 0.05179928036 | X9: =+IF(INDEX($C9:$G9,1,aux!$AL$1)>0,(G9/INDEX($C9:$G9,1,aux!$AL$1))^(1/($G$3-INDEX($C$3:$G$3,1,aux!$AL$1)))-1,"n.d.") -> -0.2367611352 | Y9: =IF(INDEX($C9:$G9,1,aux!$AL$1)>0,(G9-INDEX($C9:$G9,1,aux!$AL$1))/INDEX($C9:$G9,1,aux!$AL$1),"n.d.") -> -0.660654646 | AA9: =O9-INDEX($K9:$O9,1,aux!$AL$1) -> 65.283 | AB9: 0.001807779758 | AC9: 0.001686255093 | AD9: =+IF(INDEX($K9:$O9,1,aux!$AL$1)>0,(O9/INDEX($K9:$O9,1,aux!$AL$1))^(1/($O$3-INDEX($K$3:$O$3,1,aux!$AL$1)))-1,"n.d.") -> 0.3852701445 | AE9: =IF(INDEX($K9:$O9,1,aux!$AL$1)>0,(O9-INDEX($K9:$O9,1,aux!$AL$1))/INDEX($K9:$O9,1,aux!$AL$1),"n.d.") -> 2.682458808 | AX9: 01
A10: 01SS | B10: Animais vivos | C10: 0 | D10: 0 | E10: 0 | F10: 0 | G10: 0 | H10: 0 | I10: 0 | J10: 0 | K10: 0 | L10: 0 | M10: 0 | N10: 0 | O10: 0 | P10: 0 | Q10: 0 | R10: 0 | S10: 0 | U10: =G10-INDEX($C10:$G10,1,aux!$AL$1) -> 0 | V10: 0 | W10: 0 | X10: =+IF(INDEX($C10:$G10,1,aux!$AL$1)>0,(G10/INDEX($C10:$G10,1,aux!$AL$1))^(1/($G$3-INDEX($C$3:$G$3,1,aux!$AL$1)))-1,"n.d.") -> n.d. | Y10: =IF(INDEX($C10:$G10,1,aux!$AL$1)>0,(G10-INDEX($C10:$G10,1,aux!$AL$1))/INDEX($C10:$G10,1,aux!$AL$1),"n.d.") -> n.d. | AA10: =O10-INDEX($K10:$O10,1,aux!$AL$1) -> 0 | AB10: 0 | AC10: 0 | AD10: =+IF(INDEX($K10:$O10,1,aux!$AL$1)>0,(O10/INDEX($K10:$O10,1,aux!$AL$1))^(1/($O$3-INDEX($K$3:$O$3,1,aux!$AL$1)))-1,"n.d.") -> n.d. | AE10: =IF(INDEX($K10:$O10,1,aux!$AL$1)>0,(O10-INDEX($K10:$O10,1,aux!$AL$1))/INDEX($K10:$O10,1,aux!$AL$1),"n.d.") -> n.d. | AX10: 01
A11: 0201 | B11: Carnes de bovino, frescas ou refrigeradas | C11: 0 | D11: 0 | E11: 0 | F11: 0 | G11: 0 | H11: 0 | I11: 0 | J11: 0 | K11: 0 | L11: 0 | M11: 0 | N11: 1.034 | O11: 0 | P11: 0.2068 | Q11: 1.048406653e-06 | R11: 3.658346836e-07 | S11: 0.2068 | U11: =G11-INDEX($C11:$G11,1,aux!$AL$1) -> 0 | V11: 0 | W11: 0 | X11: =+IF(INDEX($C11:$G11,1,aux!$AL$1)>0,(G11/INDEX($C11:$G11,1,aux!$AL$1))^(1/($G$3-INDEX($C$3:$G$3,1,aux!$AL$1)))-1,"n.d.") -> n.d. | Y11: =IF(INDEX($C11:$G11,1,aux!$AL$1)>0,(G11-INDEX($C11:$G11,1,aux!$AL$1))/INDEX($C11:$G11,1,aux!$AL$1),"n.d.") -> n.d. | AA11: =O11-INDEX($K11:$O11,1,aux!$AL$1) -> 0 | AB11: 0 | AC11: 0 | AD11: =+IF(INDEX($K11:$O11,1,aux!$AL$1)>0,(O11/INDEX($K11:$O11,1,aux!$AL$1))^(1/($O$3-INDEX($K$3:$O$3,1,aux!$AL$1)))-1,"n.d.") -> n.d. | AE11: =IF(INDEX($K11:$O11,1,aux!$AL$1)>0,(O11-INDEX($K11:$O11,1,aux!$AL$1))/INDEX($K11:$O11,1,aux!$AL$1),"n.d.") -> n.d. | AX11: 02
A12: 0202 | B12: Carnes de bovino, congeladas | C12: 0 | D12: 0 | E12: 0 | F12: 0 | G12: 0 | H12: 0 | I12: 0 | J12: 0 | K12: 0 | L12: 0 | M12: 0 | N12: 0 | O12: 0 | P12: 0 | Q12: 0 | R12: 0 | S12: 0 | U12: =G12-INDEX($C12:$G12,1,aux!$AL$1) -> 0 | V12: 0 | W12: 0 | X12: =+IF(INDEX($C12:$G12,1,aux!$AL$1)>0,(G12/INDEX($C12:$G12,1,aux!$AL$1))^(1/($G$3-INDEX($C$3:$G$3,1,aux!$AL$1)))-1,"n.d.") -> n.d. | Y12: =IF(INDEX($C12:$G12,1,aux!$AL$1)>0,(G12-INDEX($C12:$G12,1,aux!$AL$1))/INDEX($C12:$G12,1,aux!$AL$1),"n.d.") -> n.d. | AA12: =O12-INDEX($K12:$O12,1,aux!$AL$1) -> 0 | AB12: 0 | AC12: 0 | AD12: =+IF(INDEX($K12:$O12,1,aux!$AL$1)>0,(O12/INDEX($K12:$O12,1,aux!$AL$1))^(1/($O$3-INDEX($K$3:$O$3,1,aux!$AL$1)))-1,"n.d.") -> n.d. | AE12: =IF(INDEX($K12:$O12,1,aux!$AL$1)>0,(O12-INDEX($K12:$O12,1,aux!$AL$1))/INDEX($K12:$O12,1,aux!$AL$1),"n.d.") -> n.d. | AX12: 02
A13: 0203 | B13: Carnes de suíno | C13: 0 | D13: 0 | E13: 0 | F13: 0 | G13: 1.195 | H13: 0.239 | I13: 1.18270711e-06 | J13: 8.985791342e-07 | K13: 0 | L13: 0 | M13: 0.012 | N13: 0 | O13: 0 | P13: 0.0024 | Q13: 1.21671952e-08 | R13: 4.24566364e-09 | S13: -0.2366 | U13: =G13-INDEX($C13:$G13,1,aux!$AL$1) -> 1.195 | V13: -0.000137807332 | W13: -6.760107379e-05 | X13: =+IF(INDEX($C13:$G13,1,aux!$AL$1)>0,(G13/INDEX($C13:$G13,1,aux!$AL$1))^(1/($G$3-INDEX($C$3:$G$3,1,aux!$AL$1)))-1,"n.d.") -> n.d. | Y13: =IF(INDEX($C13:$G13,1,aux!$AL$1)>0,(G13-INDEX($C13:$G13,1,aux!$AL$1))/INDEX($C13:$G13,1,aux!$AL$1),"n.d.") -> n.d. | AA13: =O13-INDEX($K13:$O13,1,aux!$AL$1) -> 0 | AB13: 0 | AC13: 0 | AD13: =+IF(INDEX($K13:$O13,1,aux!$AL$1)>0,(O13/INDEX($K13:$O13,1,aux!$AL$1))^(1/($O$3-INDEX($K$3:$O$3,1,aux!$AL$1)))-1,"n.d.") -> n.d. | AE13: =IF(INDEX($K13:$O13,1,aux!$AL$1)>0,(O13-INDEX($K13:$O13,1,aux!$AL$1))/INDEX($K13:$O13,1,aux!$AL$1),"n.d.") -> n.d. | AX13: 02
A14: 0204 | B14: Carnes de ovino ou caprino | C14: 0 | D14: 0 | E14: 0 | F14: 0 | G14: 0 | H14: 0 | I14: 0 | J14: 0 | K14: 0 | L14: 0 | M14: 0 | N14: 0 | O14: 0 | P14: 0 | Q14: 0 | R14: 0 | S14: 0 | U14: =G14-INDEX($C14:$G14,1,aux!$AL$1) -> 0 | V14: 0 | W14: 0 | X14: =+IF(INDEX($C14:$G14,1,aux!$AL$1)>0,(G14/INDEX($C14:$G14,1,aux!$AL$1))^(1/($G$3-INDEX($C$3:$G$3,1,aux!$AL$1)))-1,"n.d.") -> n.d. | Y14: =IF(INDEX($C14:$G14,1,aux!$AL$1)>0,(G14-INDEX($C14:$G14,1,aux!$AL$1))/INDEX($C14:$G14,1,aux!$AL$1),"n.d.") -> n.d. | AA14: =O14-INDEX($K14:$O14,1,aux!$AL$1) -> 0 | AB14: 0 | AC14: 0 | AD14: =+IF(INDEX($K14:$O14,1,aux!$AL$1)>0,(O14/INDEX($K14:$O14,1,aux!$AL$1))^(1/($O$3-INDEX($K$3:$O$3,1,aux!$AL$1)))-1,"n.d.") -> n.d. | AE14: =IF(INDEX($K14:$O14,1,aux!$AL$1)>0,(O14-INDEX($K14:$O14,1,aux!$AL$1))/INDEX($K14:$O14,1,aux!$AL$1),"n.d.") -> n.d. | AX14: 02
A15: 0205 | B15: Carnes de equídeo | C15: 0 | D15: 0 | E15: 0 | F15: 0 | G15: 0 | H15: 0 | I15: 0 | J15: 0 | K15: 0 | L15: 0 | M15: 0 | N15: 0 | O15: 0 | P15: 0 | Q15: 0 | R15: 0 | S15: 0 | U15: =G15-INDEX($C15:$G15,1,aux!$AL$1) -> 0 | V15: 0 | W15: 0 | X15: =+IF(INDEX($C15:$G15,1,aux!$AL$1)>0,(G15/INDEX($C15:$G15,1,aux!$AL$1))^(1/($G$3-INDEX($C$3:$G$3,1,aux!$AL$1)))-1,"n.d.") -> n.d. | Y15: =IF(INDEX($C15:$G15,1,aux!$AL$1)>0,(G15-INDEX($C15:$G15,1,aux!$AL$1))/INDEX($C15:$G15,1,aux!$AL$1),"n.d.") -> n.d. | AA15: =O15-INDEX($K15:$O15,1,aux!$AL$1) -> 0 | AB15: 0 | AC15: 0 | AD15: =+IF(INDEX($K15:$O15,1,aux!$AL$1)>0,(O15/INDEX($K15:$O15,1,aux!$AL$1))^(1/($O$3-INDEX($K$3:$O$3,1,aux!$AL$1)))-1,"n.d.") -> n.d. | AE15: =IF(INDEX($K15:$O15,1,aux!$AL$1)>0,(O15-INDEX($K15:$O15,1,aux!$AL$1))/INDEX($K15:$O15,1,aux!$AL$1),"n.d.") -> n.d. | AX15: 02
A16: 0206 | B16: Miudezas de bovino, suíno, ovino, caprino,equídeo | C16: 0 | D16: 0 | E16: 0 | F16: 0 | G16: 0 | H16: 0 | I16: 0 | J16: 0 | K16: 0 | L16: 0 | M16: 0 | N16: 0 | O16: 0 | P16: 0 | Q16: 0 | R16: 0 | S16: 0 | U16: =G16-INDEX($C16:$G16,1,aux!$AL$1) -> 0 | V16: 0 | W16: 0 | X16: =+IF(INDEX($C16:$G16,1,aux!$AL$1)>0,(G16/INDEX($C16:$G16,1,aux!$AL$1))^(1/($G$3-INDEX($C$3:$G$3,1,aux!$AL$1)))-1,"n.d.") -> n.d. | Y16: =IF(INDEX($C16:$G16,1,aux!$AL$1)>0,(G16-INDEX($C16:$G16,1,aux!$AL$1))/INDEX($C16:$G16,1,aux!$AL$1),"n.d.") -> n.d. | AA16: =O16-INDEX($K16:$O16,1,aux!$AL$1) -> 0 | AB16: 0 | AC16: 0 | AD16: =+IF(INDEX($K16:$O16,1,aux!$AL$1)>0,(O16/INDEX($K16:$O16,1,aux!$AL$1))^(1/($O$3-INDEX($K$3:$O$3,1,aux!$AL$1)))-1,"n.d.") -> n.d. | AE16: =IF(INDEX($K16:$O16,1,aux!$AL$1)>0,(O16-INDEX($K16:$O16,1,aux!$AL$1))/INDEX($K16:$O16,1,aux!$AL$1),"n.d.") -> n.d. | AX16: 02
A17: 0207 | B17: Carnes e miudezas de aves de capoeira | C17: 0 | D17: 0 | E17: 0 | F17: 0 | G17: 0 | H17: 0 | I17: 0 | J17: 0 | K17: 0 | L17: 0 | M17: 298.976 | N17: 154.242 | O17: 12.125 | P17: 93.0686 | Q17: 0.0004718265929 | R17: 0.0001646408213 | S17: 93.0686 | U17: =G17-INDEX($C17:$G17,1,aux!$AL$1) -> 0 | V17: 0 | W17: 0 | X17: =+IF(INDEX($C17:$G17,1,aux!$AL$1)>0,(G17/INDEX($C17:$G17,1,aux!$AL$1))^(1/($G$3-INDEX($C$3:$G$3,1,aux!$AL$1)))-1,"n.d.") -> n.d. | Y17: =IF(INDEX($C17:$G17,1,aux!$AL$1)>0,(G17-INDEX($C17:$G17,1,aux!$AL$1))/INDEX($C17:$G17,1,aux!$AL$1),"n.d.") -> n.d. | AA17: =O17-INDEX($K17:$O17,1,aux!$AL$1) -> 12.125 | AB17: 0.0003357586136 | AC17: 0.000313187859 | AD17: =+IF(INDEX($K17:$O17,1,aux!$AL$1)>0,(O17/INDEX($K17:$O17,1,aux!$AL$1))^(1/($O$3-INDEX($K$3:$O$3,1,aux!$AL$1)))-1,"n.d.") -> n.d. | AE17: =IF(INDEX($K17:$O17,1,aux!$AL$1)>0,(O17-INDEX($K17:$O17,1,aux!$AL$1))/INDEX($K17:$O17,1,aux!$AL$1),"n.d.") -> n.d. | AX17: 02
A18: 0208 | B18: Outras carnes e miudezas | C18: 0 | D18: 0 | E18: 0 | F18: 0 | G18: 0 | H18: 0 | I18: 0 | J18: 0 | K18: 163.686 | L18: 412.036 | M18: 259.784 | N18: 246.133 | O18: 142.619 | P18: 244.8516 | Q18: 0.001241315505 | R18: 0.000433148973 | S18: 244.8516 | U18: =G18-INDEX($C18:$G18,1,aux!$AL$1) -> 0 | V18: 0 | W18: 0 | X18: =+IF(INDEX($C18:$G18,1,aux!$AL$1)>0,(G18/INDEX($C18:$G18,1,aux!$AL$1))^(1/($G$3-INDEX($C$3:$G$3,1,aux!$AL$1)))-1,"n.d.") -> n.d. | Y18: =IF(INDEX($C18:$G18,1,aux!$AL$1)>0,(G18-INDEX($C18:$G18,1,aux!$AL$1))/INDEX($C18:$G18,1,aux!$AL$1),"n.d.") -> n.d. | AA18: =O18-INDEX($K18:$O18,1,aux!$AL$1) -> -21.067 | AB18: -0.0005833753989 | AC18: -0.0005441590619 | AD18: =+IF(INDEX($K18:$O18,1,aux!$AL$1)>0,(O18/INDEX($K18:$O18,1,aux!$AL$1))^(1/($O$3-INDEX($K$3:$O$3,1,aux!$AL$1)))-1,"n.d.") -> -0.03385688626 | AE18: =IF(INDEX($K18:$O18,1,aux!$AL$1)>0,(O18-INDEX($K18:$O18,1,aux!$AL$1))/INDEX($K18:$O18,1,aux!$AL$1),"n.d.") -> -0.1287037376 | AX18: 02
A19: 0209 | B19: Toucinho, gorduras de porco e de aves | C19: 0 | D19: 0 | E19: 0 | F19: 0 | G19: 0 | H19: 0 | I19: 0 | J19: 0 | K19: 0 | L19: 0 | M19: 0 | N19: 0 | O19: 0 | P19: 0 | Q19: 0 | R19: 0 | S19: 0 | U19: =G19-INDEX($C19:$G19,1,aux!$AL$1) -> 0 | V19: 0 | W19: 0 | X19: =+IF(INDEX($C19:$G19,1,aux!$AL$1)>0,(G19/INDEX($C19:$G19,1,aux!$AL$1))^(1/($G$3-INDEX($C$3:$G$3,1,aux!$AL$1)))-1,"n.d.") -> n.d. | Y19: =IF(INDEX($C19:$G19,1,aux!$AL$1)>0,(G19-INDEX($C19:$G19,1,aux!$AL$1))/INDEX($C19:$G19,1,aux!$AL$1),"n.d.") -> n.d. | AA19: =O19-INDEX($K19:$O19,1,aux!$AL$1) -> 0 | AB19: 0 | AC19: 0 | AD19: =+IF(INDEX($K19:$O19,1,aux!$AL$1)>0,(O19/INDEX($K19:$O19,1,aux!$AL$1))^(1/($O$3-INDEX($K$3:$O$3,1,aux!$AL$1)))-1,"n.d.") -> n.d. | AE19: =IF(INDEX($K19:$O19,1,aux!$AL$1)>0,(O19-INDEX($K19:$O19,1,aux!$AL$1))/INDEX($K19:$O19,1,aux!$AL$1),"n.d.") -> n.d. | AX19: 02
A20: 0210 | B20: Carnes e miudezas processadas; farinhas de carnes | C20: 0 | D20: 0 | E20: 0 | F20: 0 | G20: 0.023 | H20: 0.0046 | I20: 2.276340045e-08 | J20: 1.729482852e-08 | K20: 0 | L20: 0 | M20: 0.181 | N20: 0.009 | O20: 0.023 | P20: 0.0426 | Q20: 2.159677147e-07 | R20: 7.53605296e-08 | S20: 0.038 | U20: =G20-INDEX($C20:$G20,1,aux!$AL$1) -> 0.023 | V20: -2.652358691e-06 | W20: -1.301108533e-06 | X20: =+IF(INDEX($C20:$G20,1,aux!$AL$1)>0,(G20/INDEX($C20:$G20,1,aux!$AL$1))^(1/($G$3-INDEX($C$3:$G$3,1,aux!$AL$1)))-1,"n.d.") -> n.d. | Y20: =IF(INDEX($C20:$G20,1,aux!$AL$1)>0,(G20-INDEX($C20:$G20,1,aux!$AL$1))/INDEX($C20:$G20,1,aux!$AL$1),"n.d.") -> n.d. | AA20: =O20-INDEX($K20:$O20,1,aux!$AL$1) -> 0.023 | AB20: 6.369029371e-07 | AC20: 5.940883099e-07 | AD20: =+IF(INDEX($K20:$O20,1,aux!$AL$1)>0,(O20/INDEX($K20:$O20,1,aux!$AL$1))^(1/($O$3-INDEX($K$3:$O$3,1,aux!$AL$1)))-1,"n.d.") -> n.d. | AE20: =IF(INDEX($K20:$O20,1,aux!$AL$1)>0,(O20-INDEX($K20:$O20,1,aux!$AL$1))/INDEX($K20:$O20,1,aux!$AL$1),"n.d.") -> n.d. | AX20: 02
A21: 02SS | B21: Carnes e miudezas, comestíveis | C21: 0 | D21: 0 | E21: 0 | F21: 0 | G21: 0 | H21: 0 | I21: 0 | J21: 0 | K21: 0 | L21: 0 | M21: 0 | N21: 0 | O21: 0 | P21: 0 | Q21: 0 | R21: 0 | S21: 0 | U21: =G21-INDEX($C21:$G21,1,aux!$AL$1) -> 0 | V21: 0 | W21: 0 | X21: =+IF(INDEX($C21:$G21,1,aux!$AL$1)>0,(G21/INDEX($C21:$G21,1,aux!$AL$1))^(1/($G$3-INDEX($C$3:$G$3,1,aux!$AL$1)))-1,"n.d.") -> n.d. | Y21: =IF(INDEX($C21:$G21,1,aux!$AL$1)>0,(G21-INDEX($C21:$G21,1,aux!$AL$1))/INDEX($C21:$G21,1,aux!$AL$1),"n.d.") -> n.d. | AA21: =O21-INDEX($K21:$O21,1,aux!$AL$1) -> 0 | AB21: 0 | AC21: 0 | AD21: =+IF(INDEX($K21:$O21,1,aux!$AL$1)>0,(O21/INDEX($K21:$O21,1,aux!$AL$1))^(1/($O$3-INDEX($K$3:$O$3,1,aux!$AL$1)))-1,"n.d.") -> n.d. | AE21: =IF(INDEX($K21:$O21,1,aux!$AL$1)>0,(O21-INDEX($K21:$O21,1,aux!$AL$1))/INDEX($K21:$O21,1,aux!$AL$1),"n.d.") -> n.d. | AX21: 02
A22: 0401 | B22: Leite e nata, não concentrados | C22: 0 | D22: 0 | E22: 0 | F22: 0 | G22: 0 | H22: 0 | I22: 0 | J22: 0 | K22: 11.263 | L22: 65.242 | M22: 38.526 | N22: 69.216 | O22: 72.961 | P22: 51.4416 | Q22: 0.0002607916618 | R22: 9.100155445e-05 | S22: 51.4416 | U22: =G22-INDEX($C22:$G22,1,aux!$AL$1) -> 0 | V22: 0 | W22: 0 | X22: =+IF(INDEX($C22:$G22,1,aux!$AL$1)>0,(G22/INDEX($C22:$G22,1,aux!$AL$1))^(1/($G$3-INDEX($C$3:$G$3,1,aux!$AL$1)))-1,"n.d.") -> n.d. | Y22: =IF(INDEX($C22:$G22,1,aux!$AL$1)>0,(G22-INDEX($C22:$G22,1,aux!$AL$1))/INDEX($C22:$G22,1,aux!$AL$1),"n.d.") -> n.d. | AA22: =O22-INDEX($K22:$O22,1,aux!$AL$1) -> 61.698 | AB22: 0.001708505974 | AC22: 0.001593654806 | AD22: =+IF(INDEX($K22:$O22,1,aux!$AL$1)>0,(O22/INDEX($K22:$O22,1,aux!$AL$1))^(1/($O$3-INDEX($K$3:$O$3,1,aux!$AL$1)))-1,"n.d.") -> 0.5953617431 | AE22: =IF(INDEX($K22:$O22,1,aux!$AL$1)>0,(O22-INDEX($K22:$O22,1,aux!$AL$1))/INDEX($K22:$O22,1,aux!$AL$1),"n.d.") -> 5.477936607 | AX22: 04
A23: 0402 | B23: Leite e nata, concentrados | C23: 0 | D23: 0 | E23: 3.72 | F23: 0.226 | G23: 10.432 | H23: 2.8756 | I23: 1.423009442e-05 | J23: 1.081152367e-05 | K23: 62.551 | L23: 67.779 | M23: 75.184 | N23: 78.578 | O23: 101.567 | P23: 77.1318 | Q23: 0.000391032361 | R23: 0.0001364481995 | S23: 74.2562 | U23: =G23-INDEX($C23:$G23,1,aux!$AL$1) -> 10.432 | V23: -0.001203017646 | W23: -0.0005901375747 | X23: =+IF(INDEX($C23:$G23,1,aux!$AL$1)>0,(G23/INDEX($C23:$G23,1,aux!$AL$1))^(1/($G$3-INDEX($C$3:$G$3,1,aux!$AL$1)))-1,"n.d.") -> n.d. | Y23: =IF(INDEX($C23:$G23,1,aux!$AL$1)>0,(G23-INDEX($C23:$G23,1,aux!$AL$1))/INDEX($C23:$G23,1,aux!$AL$1),"n.d.") -> n.d. | AA23: =O23-INDEX($K23:$O23,1,aux!$AL$1) -> 39.016 | AB23: 0.001080408913 | AC23: 0.001007780413 | AD23: =+IF(INDEX($K23:$O23,1,aux!$AL$1)>0,(O23/INDEX($K23:$O23,1,aux!$AL$1))^(1/($O$3-INDEX($K$3:$O$3,1,aux!$AL$1)))-1,"n.d.") -> 0.1288327269 | AE23: =IF(INDEX($K23:$O23,1,aux!$AL$1)>0,(O23-INDEX($K23:$O23,1,aux!$AL$1))/INDEX($K23:$O23,1,aux!$AL$1),"n.d.") -> 0.6237470224 | AX23: 04
A24: 0403 | B24: Leitelho, leite coalhado, iogurte, etc. | C24: 0 | D24: 0 | E24: 0 | F24: 0 | G24: 0 | H24: 0 | I24: 0 | J24: 0 | K24: 29.693 | L24: 16.307 | M24: 33.083 | N24: 2.246 | O24: 59.034 | P24: 28.0726 | Q24: 0.0001423186683 | R24: 4.966117379e-05 | S24: 28.0726 | U24: =G24-INDEX($C24:$G24,1,aux!$AL$1) -> 0 | V24: 0 | W24: 0 | X24: =+IF(INDEX($C24:$G24,1,aux!$AL$1)>0,(G24/INDEX($C24:$G24,1,aux!$AL$1))^(1/($G$3-INDEX($C$3:$G$3,1,aux!$AL$1)))-1,"n.d.") -> n.d. | Y24: =IF(INDEX($C24:$G24,1,aux!$AL$1)>0,(G24-INDEX($C24:$G24,1,aux!$AL$1))/INDEX($C24:$G24,1,aux!$AL$1),"n.d.") -> n.d. | AA24: =O24-INDEX($K24:$O24,1,aux!$AL$1) -> 29.341 | AB24: 0.0008124943077 | AC24: 0.0007578758739 | AD24: =+IF(INDEX($K24:$O24,1,aux!$AL$1)>0,(O24/INDEX($K24:$O24,1,aux!$AL$1))^(1/($O$3-INDEX($K$3:$O$3,1,aux!$AL$1)))-1,"n.d.") -> 0.1874409808 | AE24: =IF(INDEX($K24:$O24,1,aux!$AL$1)>0,(O24-INDEX($K24:$O24,1,aux!$AL$1))/INDEX($K24:$O24,1,aux!$AL$1),"n.d.") -> 0.9881453541 | AX24: 04
A25: 0404 | B25: Soro de leite e outros produtos do leite | C25: 0 | D25: 0 | E25: 0 | F25: 0.112 | G25: 0 | H25: 0.0224 | I25: 1.108478631e-07 | J25: 8.421829542e-08 | K25: 0 | L25: 0 | M25: 0 | N25: 0 | O25: 0 | P25: 0 | Q25: 0 | R25: 0 | S25: -0.0224 | U25: =G25-INDEX($C25:$G25,1,aux!$AL$1) -> 0 | V25: 0 | W25: 0 | X25: =+IF(INDEX($C25:$G25,1,aux!$AL$1)>0,(G25/INDEX($C25:$G25,1,aux!$AL$1))^(1/($G$3-INDEX($C$3:$G$3,1,aux!$AL$1)))-1,"n.d.") -> n.d. | Y25: =IF(INDEX($C25:$G25,1,aux!$AL$1)>0,(G25-INDEX($C25:$G25,1,aux!$AL$1))/INDEX($C25:$G25,1,aux!$AL$1),"n.d.") -> n.d. | AA25: =O25-INDEX($K25:$O25,1,aux!$AL$1) -> 0 | AB25: 0 | AC25: 0 | AD25: =+IF(INDEX($K25:$O25,1,aux!$AL$1)>0,(O25/INDEX($K25:$O25,1,aux!$AL$1))^(1/($O$3-INDEX($K$3:$O$3,1,aux!$AL$1)))-1,"n.d.") -> n.d. | AE25: =IF(INDEX($K25:$O25,1,aux!$AL$1)>0,(O25-INDEX($K25:$O25,1,aux!$AL$1))/INDEX($K25:$O25,1,aux!$AL$1),"n.d.") -> n.d. | AX25: 04
A26: 0405 | B26: Manteiga | C26: 0 | D26: 0 | E26: 0 | F26: 0 | G26: 0 | H26: 0 | I26: 0 | J26: 0 | K26: 134.811 | L26: 138.907 | M26: 137.024 | N26: 184.317 | O26: 216.751 | P26: 162.362 | Q26: 0.0008231208944 | R26: 0.0002872226833 | S26: 162.362 | U26: =G26-INDEX($C26:$G26,1,aux!$AL$1) -> 0 | V26: 0 | W26: 0 | X26: =+IF(INDEX($C26:$G26,1,aux!$AL$1)>0,(G26/INDEX($C26:$G26,1,aux!$AL$1))^(1/($G$3-INDEX($C$3:$G$3,1,aux!$AL$1)))-1,"n.d.") -> n.d. | Y26: =IF(INDEX($C26:$G26,1,aux!$AL$1)>0,(G26-INDEX($C26:$G26,1,aux!$AL$1))/INDEX($C26:$G26,1,aux!$AL$1),"n.d.") -> n.d. | AA26: =O26-INDEX($K26:$O26,1,aux!$AL$1) -> 81.94 | AB26: 0.002269035942 | AC26: 0.002116504179 | AD26: =+IF(INDEX($K26:$O26,1,aux!$AL$1)>0,(O26/INDEX($K26:$O26,1,aux!$AL$1))^(1/($O$3-INDEX($K$3:$O$3,1,aux!$AL$1)))-1,"n.d.") -> 0.1260532928 | AE26: =IF(INDEX($K26:$O26,1,aux!$AL$1)>0,(O26-INDEX($K26:$O26,1,aux!$AL$1))/INDEX($K26:$O26,1,aux!$AL$1),"n.d.") -> 0.6078139024 | AX26: 04
A27: 0406 | B27: Queijos e requeijão | C27: 0 | D27: 0 | E27: 0 | F27: 0.474 | G27: 0.178 | H27: 0.1304 | I27: 6.452929171e-07 | J27: 4.902707912e-07 | K27: 3309.281 | L27: 3226.826 | M27: 3109.741 | N27: 3547.467 | O27: 3826.855 | P27: 3404.034 | Q27: 0.01725731089 | R27: 0.006021826409 | S27: 3403.9036 | U27: =G27-INDEX($C27:$G27,1,aux!$AL$1) -> 0.178 | V27: -2.052694987e-05 | W27: -1.006944865e-05 | X27: =+IF(INDEX($C27:$G27,1,aux!$AL$1)>0,(G27/INDEX($C27:$G27,1,aux!$AL$1))^(1/($G$3-INDEX($C$3:$G$3,1,aux!$AL$1)))-1,"n.d.") -> n.d. | Y27: =IF(INDEX($C27:$G27,1,aux!$AL$1)>0,(G27-INDEX($C27:$G27,1,aux!$AL$1))/INDEX($C27:$G27,1,aux!$AL$1),"n.d.") -> n.d. | AA27: =O27-INDEX($K27:$O27,1,aux!$AL$1) -> 517.574 | AB27: 0.01433236525 | AC27: 0.01336889839 | AD27: =+IF(INDEX($K27:$O27,1,aux!$AL$1)>0,(O27/INDEX($K27:$O27,1,aux!$AL$1))^(1/($O$3-INDEX($K$3:$O$3,1,aux!$AL$1)))-1,"n.d.") -> 0.03699602176 | AE27: =IF(INDEX($K27:$O27,1,aux!$AL$1)>0,(O27-INDEX($K27:$O27,1,aux!$AL$1))/INDEX($K27:$O27,1,aux!$AL$1),"n.d.") -> 0.1564007408 | AX27: 04
A28: 0407 | B28: Ovos de aves, com cascas | C28: 0 | D28: 0 | E28: 0 | F28: 128.681 | G28: 0 | H28: 25.7362 | I28: 0.0001273572667 | J28: 9.67615578e-05 | K28: 0 | L28: 0 | M28: 0 | N28: 0 | O28: 0 | P28: 0 | Q28: 0 | R28: 0 | S28: -25.7362 | U28: =G28-INDEX($C28:$G28,1,aux!$AL$1) -> 0 | V28: 0 | W28: 0 | X28: =+IF(INDEX($C28:$G28,1,aux!$AL$1)>0,(G28/INDEX($C28:$G28,1,aux!$AL$1))^(1/($G$3-INDEX($C$3:$G$3,1,aux!$AL$1)))-1,"n.d.") -> n.d. | Y28: =IF(INDEX($C28:$G28,1,aux!$AL$1)>0,(G28-INDEX($C28:$G28,1,aux!$AL$1))/INDEX($C28:$G28,1,aux!$AL$1),"n.d.") -> n.d. | AA28: =O28-INDEX($K28:$O28,1,aux!$AL$1) -> 0 | AB28: 0 | AC28: 0 | AD28: =+IF(INDEX($K28:$O28,1,aux!$AL$1)>0,(O28/INDEX($K28:$O28,1,aux!$AL$1))^(1/($O$3-INDEX($K$3:$O$3,1,aux!$AL$1)))-1,"n.d.") -> n.d. | AE28: =IF(INDEX($K28:$O28,1,aux!$AL$1)>0,(O28-INDEX($K28:$O28,1,aux!$AL$1))/INDEX($K28:$O28,1,aux!$AL$1),"n.d.") -> n.d. | AX28: 04
A29: 0408 | B29: Ovos de aves, sem casca | C29: 0 | D29: 0 | E29: 0 | F29: 0 | G29: 0 | H29: 0 | I29: 0 | J29: 0 | K29: 0 | L29: 0 | M29: 0 | N29: 0 | O29: 0 | P29: 0 | Q29: 0 | R29: 0 | S29: 0 | U29: =G29-INDEX($C29:$G29,1,aux!$AL$1) -> 0 | V29: 0 | W29: 0 | X29: =+IF(INDEX($C29:$G29,1,aux!$AL$1)>0,(G29/INDEX($C29:$G29,1,aux!$AL$1))^(1/($G$3-INDEX($C$3:$G$3,1,aux!$AL$1)))-1,"n.d.") -> n.d. | Y29: =IF(INDEX($C29:$G29,1,aux!$AL$1)>0,(G29-INDEX($C29:$G29,1,aux!$AL$1))/INDEX($C29:$G29,1,aux!$AL$1),"n.d.") -> n.d. | AA29: =O29-INDEX($K29:$O29,1,aux!$AL$1) -> 0 | AB29: 0 | AC29: 0 | AD29: =+IF(INDEX($K29:$O29,1,aux!$AL$1)>0,(O29/INDEX($K29:$O29,1,aux!$AL$1))^(1/($O$3-INDEX($K$3:$O$3,1,aux!$AL$1)))-1,"n.d.") -> n.d. | AE29: =IF(INDEX($K29:$O29,1,aux!$AL$1)>0,(O29-INDEX($K29:$O29,1,aux!$AL$1))/INDEX($K29:$O29,1,aux!$AL$1),"n.d.") -> n.d. | AX29: 04
A30: 0409 | B30: Mel natural | C30: 0 | D30: 0.006 | E30: 0.079 | F30: 0.728 | G30: 0.455 | H30: 0.2536 | I30: 1.254956164e-06 | J30: 9.53471416e-07 | K30: 147.19 | L30: 192.565 | M30: 147.939 | N30: 267.914 | O30: 265.386 | P30: 204.1988 | Q30: 0.001035219441 | R30: 0.0003612330918 | S30: 203.9452 | U30: =G30-INDEX($C30:$G30,1,aux!$AL$1) -> 0.455 | V30: -5.24705741e-05 | W30: -2.573932098e-05 | X30: =+IF(INDEX($C30:$G30,1,aux!$AL$1)>0,(G30/INDEX($C30:$G30,1,aux!$AL$1))^(1/($G$3-INDEX($C$3:$G$3,1,aux!$AL$1)))-1,"n.d.") -> n.d. | Y30: =IF(INDEX($C30:$G30,1,aux!$AL$1)>0,(G30-INDEX($C30:$G30,1,aux!$AL$1))/INDEX($C30:$G30,1,aux!$AL$1),"n.d.") -> n.d. | AA30: =O30-INDEX($K30:$O30,1,aux!$AL$1) -> 118.196 | AB30: 0.003273016502 | AC30: 0.003052993995 | AD30: =+IF(INDEX($K30:$O30,1,aux!$AL$1)>0,(O30/INDEX($K30:$O30,1,aux!$AL$1))^(1/($O$3-INDEX($K$3:$O$3,1,aux!$AL$1)))-1,"n.d.") -> 0.1587771583 | AE30: =IF(INDEX($K30:$O30,1,aux!$AL$1)>0,(O30-INDEX($K30:$O30,1,aux!$AL$1))/INDEX($K30:$O30,1,aux!$AL$1),"n.d.") -> 0.8030165093 | AX30: 04
A31: 0410 | B31: Outros produtos comestíveis de origem animal | C31: 0 | D31: 0 | E31: 0 | F31: 0.013 | G31: 0 | H31: 0.0026 | I31: 1.286626982e-08 | J31: 9.775337861e-09 | K31: 0 | L31: 0 | M31: 0 | N31: 0 | O31: 0.036 | P31: 0.0072 | Q31: 3.650158559e-08 | R31: 1.273699092e-08 | S31: 0.0046 | U31: =G31-INDEX($C31:$G31,1,aux!$AL$1) -> 0 | V31: 0 | W31: 0 | X31: =+IF(INDEX($C31:$G31,1,aux!$AL$1)>0,(G31/INDEX($C31:$G31,1,aux!$AL$1))^(1/($G$3-INDEX($C$3:$G$3,1,aux!$AL$1)))-1,"n.d.") -> n.d. | Y31: =IF(INDEX($C31:$G31,1,aux!$AL$1)>0,(G31-INDEX($C31:$G31,1,aux!$AL$1))/INDEX($C31:$G31,1,aux!$AL$1),"n.d.") -> n.d. | AA31: =O31-INDEX($K31:$O31,1,aux!$AL$1) -> 0.036 | AB31: 9.968915537e-07 | AC31: 9.298773546e-07 | AD31: =+IF(INDEX($K31:$O31,1,aux!$AL$1)>0,(O31/INDEX($K31:$O31,1,aux!$AL$1))^(1/($O$3-INDEX($K$3:$O$3,1,aux!$AL$1)))-1,"n.d.") -> n.d. | AE31: =IF(INDEX($K31:$O31,1,aux!$AL$1)>0,(O31-INDEX($K31:$O31,1,aux!$AL$1))/INDEX($K31:$O31,1,aux!$AL$1),"n.d.") -> n.d. | AX31: 04
A32: 04SS | B32: Leite e lacticínios; ovos de aves; mel natural; etc. | C32: 0 | D32: 0 | E32: 0 | F32: 0 | G32: 0 | H32: 0 | I32: 0 | J32: 0 | K32: 0 | L32: 0 | M32: 0 | N32: 0 | O32: 0 | P32: 0 | Q32: 0 | R32: 0 | S32: 0 | U32: =G32-INDEX($C32:$G32,1,aux!$AL$1) -> 0 | V32: 0 | W32: 0 | X32: =+IF(INDEX($C32:$G32,1,aux!$AL$1)>0,(G32/INDEX($C32:$G32,1,aux!$AL$1))^(1/($G$3-INDEX($C$3:$G$3,1,aux!$AL$1)))-1,"n.d.") -> n.d. | Y32: =IF(INDEX($C32:$G32,1,aux!$AL$1)>0,(G32-INDEX($C32:$G32,1,aux!$AL$1))/INDEX($C32:$G32,1,aux!$AL$1),"n.d.") -> n.d. | AA32: =O32-INDEX($K32:$O32,1,aux!$AL$1) -> 0 | AB32: 0 | AC32: 0 | AD32: =+IF(INDEX($K32:$O32,1,aux!$AL$1)>0,(O32/INDEX($K32:$O32,1,aux!$AL$1))^(1/($O$3-INDEX($K$3:$O$3,1,aux!$AL$1)))-1,"n.d.") -> n.d. | AE32: =IF(INDEX($K32:$O32,1,aux!$AL$1)>0,(O32-INDEX($K32:$O32,1,aux!$AL$1))/INDEX($K32:$O32,1,aux!$AL$1),"n.d.") -> n.d. | AX32: 04
A33: 0501 | B33: Cabelos em bruto | C33: 0 | D33: 0 | E33: 1.059 | F33: 1.018 | G33: 0.897 | H33: 0.5948 | I33: 2.943406649e-06 | J33: 2.236296523e-06 | K33: 0 | L33: 0 | M33: 0 | N33: 0 | O33: 0 | P33: 0 | Q33: 0 | R33: 0 | S33: -0.5948 | U33: =G33-INDEX($C33:$G33,1,aux!$AL$1) -> 0.897 | V33: -0.0001034419889 | W33: -5.074323279e-05 | X33: =+IF(INDEX($C33:$G33,1,aux!$AL$1)>0,(G33/INDEX($C33:$G33,1,aux!$AL$1))^(1/($G$3-INDEX($C$3:$G$3,1,aux!$AL$1)))-1,"n.d.") -> n.d. | Y33: =IF(INDEX($C33:$G33,1,aux!$AL$1)>0,(G33-INDEX($C33:$G33,1,aux!$AL$1))/INDEX($C33:$G33,1,aux!$AL$1),"n.d.") -> n.d. | AA33: =O33-INDEX($K33:$O33,1,aux!$AL$1) -> 0 | AB33: 0 | AC33: 0 | AD33: =+IF(INDEX($K33:$O33,1,aux!$AL$1)>0,(O33/INDEX($K33:$O33,1,aux!$AL$1))^(1/($O$3-INDEX($K$3:$O$3,1,aux!$AL$1)))-1,"n.d.") -> n.d. | AE33: =IF(INDEX($K33:$O33,1,aux!$AL$1)>0,(O33-INDEX($K33:$O33,1,aux!$AL$1))/INDEX($K33:$O33,1,aux!$AL$1),"n.d.") -> n.d. | AX33: 05
A34: 0502 | B34: Cerdas de porco ou de javali, etc. | C34: 0 | D34: 0 | E34: 0 | F34: 0 | G34: 0 | H34: 0 | I34: 0 | J34: 0 | K34: 0 | L34: 0 | M34: 0 | N34: 0 | O34: 0 | P34: 0 | Q34: 0 | R34: 0 | S34: 0 | U34: =G34-INDEX($C34:$G34,1,aux!$AL$1) -> 0 | V34: 0 | W34: 0 | X34: =+IF(INDEX($C34:$G34,1,aux!$AL$1)>0,(G34/INDEX($C34:$G34,1,aux!$AL$1))^(1/($G$3-INDEX($C$3:$G$3,1,aux!$AL$1)))-1,"n.d.") -> n.d. | Y34: =IF(INDEX($C34:$G34,1,aux!$AL$1)>0,(G34-INDEX($C34:$G34,1,aux!$AL$1))/INDEX($C34:$G34,1,aux!$AL$1),"n.d.") -> n.d. | AA34: =O34-INDEX($K34:$O34,1,aux!$AL$1) -> 0 | AB34: 0 | AC34: 0 | AD34: =+IF(INDEX($K34:$O34,1,aux!$AL$1)>0,(O34/INDEX($K34:$O34,1,aux!$AL$1))^(1/($O$3-INDEX($K$3:$O$3,1,aux!$AL$1)))-1,"n.d.") -> n.d. | AE34: =IF(INDEX($K34:$O34,1,aux!$AL$1)>0,(O34-INDEX($K34:$O34,1,aux!$AL$1))/INDEX($K34:$O34,1,aux!$AL$1),"n.d.") -> n.d. | AX34: 05
A35: 0504 | B35: Tripas de animais (excepto peixes) | C35: 0 | D35: 30.738 | E35: 151.428 | F35: 0 | G35: 0 | H35: 36.4332 | I35: 0.0001802920698 | J35: 0.0001369795536 | K35: 14000.458 | L35: 12985.363 | M35: 14016.646 | N35: 15384.63 | O35: 15546.855 | P35: 14386.7904 | Q35: 0.07293620294 | R35: 0.0254506137 | S35: 14350.3572 | U35: =G35-INDEX($C35:$G35,1,aux!$AL$1) -> 0 | V35: 0 | W35: 0 | X35: =+IF(INDEX($C35:$G35,1,aux!$AL$1)>0,(G35/INDEX($C35:$G35,1,aux!$AL$1))^(1/($G$3-INDEX($C$3:$G$3,1,aux!$AL$1)))-1,"n.d.") -> n.d. | Y35: =IF(INDEX($C35:$G35,1,aux!$AL$1)>0,(G35-INDEX($C35:$G35,1,aux!$AL$1))/INDEX($C35:$G35,1,aux!$AL$1),"n.d.") -> n.d. | AA35: =O35-INDEX($K35:$O35,1,aux!$AL$1) -> 1546.397 | AB35: 0.04282194744 | AC35: 0.03994332088 | AD35: =+IF(INDEX($K35:$O35,1,aux!$AL$1)>0,(O35/INDEX($K35:$O35,1,aux!$AL$1))^(1/($O$3-INDEX($K$3:$O$3,1,aux!$AL$1)))-1,"n.d.") -> 0.026538108 | AE35: =IF(INDEX($K35:$O35,1,aux!$AL$1)>0,(O35-INDEX($K35:$O35,1,aux!$AL$1))/INDEX($K35:$O35,1,aux!$AL$1),"n.d.") -> 0.1104533152 | AX35: 05
A36: 0505 | B36: Peles e outras partes de aves | C36: 0 | D36: 0 | E36: 0.03 | F36: 0 | G36: 0 | H36: 0.006 | I36: 2.969139189e-08 | J36: 2.255847199e-08 | K36: 0 | L36: 0 | M36: 0 | N36: 0 | O36: 0 | P36: 0 | Q36: 0 | R36: 0 | S36: -0.006 | U36: =G36-INDEX($C36:$G36,1,aux!$AL$1) -> 0 | V36: 0 | W36: 0 | X36: =+IF(INDEX($C36:$G36,1,aux!$AL$1)>0,(G36/INDEX($C36:$G36,1,aux!$AL$1))^(1/($G$3-INDEX($C$3:$G$3,1,aux!$AL$1)))-1,"n.d.") -> n.d. | Y36: =IF(INDEX($C36:$G36,1,aux!$AL$1)>0,(G36-INDEX($C36:$G36,1,aux!$AL$1))/INDEX($C36:$G36,1,aux!$AL$1),"n.d.") -> n.d. | AA36: =O36-INDEX($K36:$O36,1,aux!$AL$1) -> 0 | AB36: 0 | AC36: 0 | AD36: =+IF(INDEX($K36:$O36,1,aux!$AL$1)>0,(O36/INDEX($K36:$O36,1,aux!$AL$1))^(1/($O$3-INDEX($K$3:$O$3,1,aux!$AL$1)))-1,"n.d.") -> n.d. | AE36: =IF(INDEX($K36:$O36,1,aux!$AL$1)>0,(O36-INDEX($K36:$O36,1,aux!$AL$1))/INDEX($K36:$O36,1,aux!$AL$1),"n.d.") -> n.d. | AX36: 05
A37: 0506 | B37: Ossos e núcleos córneos, em bruto | C37: 0 | D37: 0 | E37: 0 | F37: 0 | G37: 0 | H37: 0 | I37: 0 | J37: 0 | K37: 0 | L37: 0 | M37: 0 | N37: 0 | O37: 0 | P37: 0 | Q37: 0 | R37: 0 | S37: 0 | U37: =G37-INDEX($C37:$G37,1,aux!$AL$1) -> 0 | V37: 0 | W37: 0 | X37: =+IF(INDEX($C37:$G37,1,aux!$AL$1)>0,(G37/INDEX($C37:$G37,1,aux!$AL$1))^(1/($G$3-INDEX($C$3:$G$3,1,aux!$AL$1)))-1,"n.d.") -> n.d. | Y37: =IF(INDEX($C37:$G37,1,aux!$AL$1)>0,(G37-INDEX($C37:$G37,1,aux!$AL$1))/INDEX($C37:$G37,1,aux!$AL$1),"n.d.") -> n.d. | AA37: =O37-INDEX($K37:$O37,1,aux!$AL$1) -> 0 | AB37: 0 | AC37: 0 | AD37: =+IF(INDEX($K37:$O37,1,aux!$AL$1)>0,(O37/INDEX($K37:$O37,1,aux!$AL$1))^(1/($O$3-INDEX($K$3:$O$3,1,aux!$AL$1)))-1,"n.d.") -> n.d. | AE37: =IF(INDEX($K37:$O37,1,aux!$AL$1)>0,(O37-INDEX($K37:$O37,1,aux!$AL$1))/INDEX($K37:$O37,1,aux!$AL$1),"n.d.") -> n.d. | AX37: 05
A38: 0507 | B38: Marfim, carapaças de tartaruga, etc. | C38: 0 | D38: 0 | E38: 0 | F38: 0 | G38: 0 | H38: 0 | I38: 0 | J38: 0 | K38: 0 | L38: 0 | M38: 0 | N38: 0 | O38: 0 | P38: 0 | Q38: 0 | R38: 0 | S38: 0 | U38: =G38-INDEX($C38:$G38,1,aux!$AL$1) -> 0 | V38: 0 | W38: 0 | X38: =+IF(INDEX($C38:$G38,1,aux!$AL$1)>0,(G38/INDEX($C38:$G38,1,aux!$AL$1))^(1/($G$3-INDEX($C$3:$G$3,1,aux!$AL$1)))-1,"n.d.") -> n.d. | Y38: =IF(INDEX($C38:$G38,1,aux!$AL$1)>0,(G38-INDEX($C38:$G38,1,aux!$AL$1))/INDEX($C38:$G38,1,aux!$AL$1),"n.d.") -> n.d. | AA38: =O38-INDEX($K38:$O38,1,aux!$AL$1) -> 0 | AB38: 0 | AC38: 0 | AD38: =+IF(INDEX($K38:$O38,1,aux!$AL$1)>0,(O38/INDEX($K38:$O38,1,aux!$AL$1))^(1/($O$3-INDEX($K$3:$O$3,1,aux!$AL$1)))-1,"n.d.") -> n.d. | AE38: =IF(INDEX($K38:$O38,1,aux!$AL$1)>0,(O38-INDEX($K38:$O38,1,aux!$AL$1))/INDEX($K38:$O38,1,aux!$AL$1),"n.d.") -> n.d. | AX38: 05
A39: 0510 | B39: Âmbar-cinzento, castóreo, algália e almíscar, etc. | C39: 0 | D39: 0 | E39: 0 | F39: 0 | G39: 0 | H39: 0 | I39: 0 | J39: 0 | K39: 0.009 | L39: 0 | M39: 0 | N39: 0 | O39: 0 | P39: 0.0018 | Q39: 9.125396397e-09 | R39: 3.18424773e-09 | S39: 0.0018 | U39: =G39-INDEX($C39:$G39,1,aux!$AL$1) -> 0 | V39: 0 | W39: 0 | X39: =+IF(INDEX($C39:$G39,1,aux!$AL$1)>0,(G39/INDEX($C39:$G39,1,aux!$AL$1))^(1/($G$3-INDEX($C$3:$G$3,1,aux!$AL$1)))-1,"n.d.") -> n.d. | Y39: =IF(INDEX($C39:$G39,1,aux!$AL$1)>0,(G39-INDEX($C39:$G39,1,aux!$AL$1))/INDEX($C39:$G39,1,aux!$AL$1),"n.d.") -> n.d. | AA39: =O39-INDEX($K39:$O39,1,aux!$AL$1) -> -0.009 | AB39: -2.492228884e-07 | AC39: -2.324693387e-07 | AD39: =+IF(INDEX($K39:$O39,1,aux!$AL$1)>0,(O39/INDEX($K39:$O39,1,aux!$AL$1))^(1/($O$3-INDEX($K$3:$O$3,1,aux!$AL$1)))-1,"n.d.") -> -1 | AE39: =IF(INDEX($K39:$O39,1,aux!$AL$1)>0,(O39-INDEX($K39:$O39,1,aux!$AL$1))/INDEX($K39:$O39,1,aux!$AL$1),"n.d.") -> -1 | AX39: 05
A40: 0511 | B40: Outros produtos de origem animal (exc. NC 0511 91) (a) | C40: 675.149 | D40: 658.399 | E40: 738.815 | F40: 767.632 | G40: 1235.09 | H40: 815.017 | I40: 0.004033164857 | J40: 0.003064256361 | K40: 2.867 | L40: 29.966 | M40: 6.325 | N40: 21.542 | O40: 31.186 | P40: 18.3772 | Q40: 9.316624149e-05 | R40: 3.25097541e-05 | S40: -796.6398 | U40: =G40-INDEX($C40:$G40,1,aux!$AL$1) -> 559.941 | V40: -0.06457236424 | W40: -0.03167582666 | X40: =+IF(INDEX($C40:$G40,1,aux!$AL$1)>0,(G40/INDEX($C40:$G40,1,aux!$AL$1))^(1/($G$3-INDEX($C$3:$G$3,1,aux!$AL$1)))-1,"n.d.") -> 0.1629866894 | Y40: =IF(INDEX($C40:$G40,1,aux!$AL$1)>0,(G40-INDEX($C40:$G40,1,aux!$AL$1))/INDEX($C40:$G40,1,aux!$AL$1),"n.d.") -> 0.8293591489 | AA40: =O40-INDEX($K40:$O40,1,aux!$AL$1) -> 28.319 | AB40: 0.0007841936641 | AC40: 0.000731477689 | AD40: =+IF(INDEX($K40:$O40,1,aux!$AL$1)>0,(O40/INDEX($K40:$O40,1,aux!$AL$1))^(1/($O$3-INDEX($K$3:$O$3,1,aux!$AL$1)))-1,"n.d.") -> 0.8160717191 | AE40: =IF(INDEX($K40:$O40,1,aux!$AL$1)>0,(O40-INDEX($K40:$O40,1,aux!$AL$1))/INDEX($K40:$O40,1,aux!$AL$1),"n.d.") -> 9.877572375 | AX40: 05
A41: 05SS | B41: Outros produtos de origem animal | C41: 0 | D41: 0 | E41: 0 | F41: 0 | G41: 0 | H41: 0 | I41: 0 | J41: 0 | K41: 0 | L41: 0 | M41: 0 | N41: 0 | O41: 0 | P41: 0 | Q41: 0 | R41: 0 | S41: 0 | U41: =G41-INDEX($C41:$G41,1,aux!$AL$1) -> 0 | V41: 0 | W41: 0 | X41: =+IF(INDEX($C41:$G41,1,aux!$AL$1)>0,(G41/INDEX($C41:$G41,1,aux!$AL$1))^(1/($G$3-INDEX($C$3:$G$3,1,aux!$AL$1)))-1,"n.d.") -> n.d. | Y41: =IF(INDEX($C41:$G41,1,aux!$AL$1)>0,(G41-INDEX($C41:$G41,1,aux!$AL$1))/INDEX($C41:$G41,1,aux!$AL$1),"n.d.") -> n.d. | AA41: =O41-INDEX($K41:$O41,1,aux!$AL$1) -> 0 | AB41: 0 | AC41: 0 | AD41: =+IF(INDEX($K41:$O41,1,aux!$AL$1)>0,(O41/INDEX($K41:$O41,1,aux!$AL$1))^(1/($O$3-INDEX($K$3:$O$3,1,aux!$AL$1)))-1,"n.d.") -> n.d. | AE41: =IF(INDEX($K41:$O41,1,aux!$AL$1)>0,(O41-INDEX($K41:$O41,1,aux!$AL$1))/INDEX($K41:$O41,1,aux!$AL$1),"n.d.") -> n.d. | AX41: 05
A42: 0601 | B42: Bolbos, tubérculos, raízes, etc. | C42: 0 | D42: 0 | E42: 0 | F42: 0 | G42: 0.227 | H42: 0.0454 | I42: 2.246648653e-07 | J42: 1.70692438e-07 | K42: 0 | L42: 0 | M42: 0 | N42: 0 | O42: 0 | P42: 0 | Q42: 0 | R42: 0 | S42: -0.0454 | U42: =G42-INDEX($C42:$G42,1,aux!$AL$1) -> 0.227 | V42: -2.617762708e-05 | W42: -1.284137552e-05 | X42: =+IF(INDEX($C42:$G42,1,aux!$AL$1)>0,(G42/INDEX($C42:$G42,1,aux!$AL$1))^(1/($G$3-INDEX($C$3:$G$3,1,aux!$AL$1)))-1,"n.d.") -> n.d. | Y42: =IF(INDEX($C42:$G42,1,aux!$AL$1)>0,(G42-INDEX($C42:$G42,1,aux!$AL$1))/INDEX($C42:$G42,1,aux!$AL$1),"n.d.") -> n.d. | AA42: =O42-INDEX($K42:$O42,1,aux!$AL$1) -> 0 | AB42: 0 | AC42: 0 | AD42: =+IF(INDEX($K42:$O42,1,aux!$AL$1)>0,(O42/INDEX($K42:$O42,1,aux!$AL$1))^(1/($O$3-INDEX($K$3:$O$3,1,aux!$AL$1)))-1,"n.d.") -> n.d. | AE42: =IF(INDEX($K42:$O42,1,aux!$AL$1)>0,(O42-INDEX($K42:$O42,1,aux!$AL$1))/INDEX($K42:$O42,1,aux!$AL$1),"n.d.") -> n.d. | AX42: 06
A43: 0602 | B43: Plantas vivas | C43: 20.229 | D43: 16.148 | E43: 16.625 | F43: 16.593 | G43: 13.904 | H43: 16.6998 | I43: 8.264005104e-05 | J43: 6.278699508e-05 | K43: 29.119 | L43: 25.459 | M43: 47.717 | N43: 31.449 | O43: 17.204 | P43: 30.1896 | Q43: 0.0001530511484 | R43: 5.340620292e-05 | S43: 13.4898 | U43: =G43-INDEX($C43:$G43,1,aux!$AL$1) -> -6.325 | V43: 0.0007293986399 | W43: 0.0003578048466 | X43: =+IF(INDEX($C43:$G43,1,aux!$AL$1)>0,(G43/INDEX($C43:$G43,1,aux!$AL$1))^(1/($G$3-INDEX($C$3:$G$3,1,aux!$AL$1)))-1,"n.d.") -> -0.0894761288 | Y43: =IF(INDEX($C43:$G43,1,aux!$AL$1)>0,(G43-INDEX($C43:$G43,1,aux!$AL$1))/INDEX($C43:$G43,1,aux!$AL$1),"n.d.") -> -0.3126699293 | AA43: =O43-INDEX($K43:$O43,1,aux!$AL$1) -> -11.915 | AB43: -0.0003299434128 | AC43: -0.0003077635744 | AD43: =+IF(INDEX($K43:$O43,1,aux!$AL$1)>0,(O43/INDEX($K43:$O43,1,aux!$AL$1))^(1/($O$3-INDEX($K$3:$O$3,1,aux!$AL$1)))-1,"n.d.") -> -0.1232752955 | AE43: =IF(INDEX($K43:$O43,1,aux!$AL$1)>0,(O43-INDEX($K43:$O43,1,aux!$AL$1))/INDEX($K43:$O43,1,aux!$AL$1),"n.d.") -> -0.4091830077 | AX43: 06
A44: 0603 | B44: Flores e seus botões | C44: 0.323 | D44: 0.342 | E44: 0 | F44: 0.456 | G44: 1.138 | H44: 0.4518 | I44: 2.235761809e-06 | J44: 1.698652941e-06 | K44: 36.091 | L44: 26.313 | M44: 97.423 | N44: 38.605 | O44: 5.414 | P44: 40.7692 | Q44: 0.0002066861727 | R44: 7.212179586e-05 | S44: 40.3174 | U44: =G44-INDEX($C44:$G44,1,aux!$AL$1) -> 0.815 | V44: -9.39857536e-05 | W44: -4.610449802e-05 | X44: =+IF(INDEX($C44:$G44,1,aux!$AL$1)>0,(G44/INDEX($C44:$G44,1,aux!$AL$1))^(1/($G$3-INDEX($C$3:$G$3,1,aux!$AL$1)))-1,"n.d.") -> 0.3700453245 | Y44: =IF(INDEX($C44:$G44,1,aux!$AL$1)>0,(G44-INDEX($C44:$G44,1,aux!$AL$1))/INDEX($C44:$G44,1,aux!$AL$1),"n.d.") -> 2.523219814 | AA44: =O44-INDEX($K44:$O44,1,aux!$AL$1) -> -30.677 | AB44: -0.0008494900609 | AC44: -0.0007923846558 | AD44: =+IF(INDEX($K44:$O44,1,aux!$AL$1)>0,(O44/INDEX($K44:$O44,1,aux!$AL$1))^(1/($O$3-INDEX($K$3:$O$3,1,aux!$AL$1)))-1,"n.d.") -> -0.3776569643 | AE44: =IF(INDEX($K44:$O44,1,aux!$AL$1)>0,(O44-INDEX($K44:$O44,1,aux!$AL$1))/INDEX($K44:$O44,1,aux!$AL$1),"n.d.") -> -0.8499903023 | AX44: 06
A45: 0604 | B45: Folhagem, folhas, ramos e outras partes de plantas | C45: 0 | D45: 0 | E45: 0 | F45: 0.752 | G45: 2.008 | H45: 0.552 | I45: 2.731608054e-06 | J45: 2.075379423e-06 | K45: 5.763 | L45: 0 | M45: 0.597 | N45: 1.911 | O45: 0.169 | P45: 1.688 | Q45: 8.557593955e-06 | R45: 2.98611676e-06 | S45: 1.136 | U45: =G45-INDEX($C45:$G45,1,aux!$AL$1) -> 2.008 | V45: -0.0002315624457 | W45: -0.0001135924319 | X45: =+IF(INDEX($C45:$G45,1,aux!$AL$1)>0,(G45/INDEX($C45:$G45,1,aux!$AL$1))^(1/($G$3-INDEX($C$3:$G$3,1,aux!$AL$1)))-1,"n.d.") -> n.d. | Y45: =IF(INDEX($C45:$G45,1,aux!$AL$1)>0,(G45-INDEX($C45:$G45,1,aux!$AL$1))/INDEX($C45:$G45,1,aux!$AL$1),"n.d.") -> n.d. | AA45: =O45-INDEX($K45:$O45,1,aux!$AL$1) -> -5.594 | AB45: -0.0001549058709 | AC45: -0.0001444926089 | AD45: =+IF(INDEX($K45:$O45,1,aux!$AL$1)>0,(O45/INDEX($K45:$O45,1,aux!$AL$1))^(1/($O$3-INDEX($K$3:$O$3,1,aux!$AL$1)))-1,"n.d.") -> -0.5861818629 | AE45: =IF(INDEX($K45:$O45,1,aux!$AL$1)>0,(O45-INDEX($K45:$O45,1,aux!$AL$1))/INDEX($K45:$O45,1,aux!$AL$1),"n.d.") -> -0.9706749957 | AX45: 06
A46: 06SS | B46: Plantas vivas e produtos de floricultura | C46: 0 | D46: 0 | E46: 0 | F46: 0 | G46: 0 | H46: 0 | I46: 0 | J46: 0 | K46: 0 | L46: 0 | M46: 0 | N46: 0 | O46: 0 | P46: 0 | Q46: 0 | R46: 0 | S46: 0 | U46: =G46-INDEX($C46:$G46,1,aux!$AL$1) -> 0 | V46: 0 | W46: 0 | X46: =+IF(INDEX($C46:$G46,1,aux!$AL$1)>0,(G46/INDEX($C46:$G46,1,aux!$AL$1))^(1/($G$3-INDEX($C$3:$G$3,1,aux!$AL$1)))-1,"n.d.") -> n.d. | Y46: =IF(INDEX($C46:$G46,1,aux!$AL$1)>0,(G46-INDEX($C46:$G46,1,aux!$AL$1))/INDEX($C46:$G46,1,aux!$AL$1),"n.d.") -> n.d. | AA46: =O46-INDEX($K46:$O46,1,aux!$AL$1) -> 0 | AB46: 0 | AC46: 0 | AD46: =+IF(INDEX($K46:$O46,1,aux!$AL$1)>0,(O46/INDEX($K46:$O46,1,aux!$AL$1))^(1/($O$3-INDEX($K$3:$O$3,1,aux!$AL$1)))-1,"n.d.") -> n.d. | AE46: =IF(INDEX($K46:$O46,1,aux!$AL$1)>0,(O46-INDEX($K46:$O46,1,aux!$AL$1))/INDEX($K46:$O46,1,aux!$AL$1),"n.d.") -> n.d. | AX46: 06
A47: 0701 | B47: Batatas, frescas ou refrigeradas | C47: 0 | D47: 0 | E47: 0 | F47: 0 | G47: 0 | H47: 0 | I47: 0 | J47: 0 | K47: 0 | L47: 0 | M47: 0 | N47: 0 | O47: 0 | P47: 0 | Q47: 0 | R47: 0 | S47: 0 | U47: =G47-INDEX($C47:$G47,1,aux!$AL$1) -> 0 | V47: 0 | W47: 0 | X47: =+IF(INDEX($C47:$G47,1,aux!$AL$1)>0,(G47/INDEX($C47:$G47,1,aux!$AL$1))^(1/($G$3-INDEX($C$3:$G$3,1,aux!$AL$1)))-1,"n.d.") -> n.d. | Y47: =IF(INDEX($C47:$G47,1,aux!$AL$1)>0,(G47-INDEX($C47:$G47,1,aux!$AL$1))/INDEX($C47:$G47,1,aux!$AL$1),"n.d.") -> n.d. | AA47: =O47-INDEX($K47:$O47,1,aux!$AL$1) -> 0 | AB47: 0 | AC47: 0 | AD47: =+IF(INDEX($K47:$O47,1,aux!$AL$1)>0,(O47/INDEX($K47:$O47,1,aux!$AL$1))^(1/($O$3-INDEX($K$3:$O$3,1,aux!$AL$1)))-1,"n.d.") -> n.d. | AE47: =IF(INDEX($K47:$O47,1,aux!$AL$1)>0,(O47-INDEX($K47:$O47,1,aux!$AL$1))/INDEX($K47:$O47,1,aux!$AL$1),"n.d.") -> n.d. | AX47: 07
A48: 0702 | B48: Tomates, frescos ou refrigerados | C48: 0 | D48: 0 | E48: 0 | F48: 0 | G48: 0 | H48: 0 | I48: 0 | J48: 0 | K48: 0 | L48: 0 | M48: 0 | N48: 0 | O48: 0 | P48: 0 | Q48: 0 | R48: 0 | S48: 0 | U48: =G48-INDEX($C48:$G48,1,aux!$AL$1) -> 0 | V48: 0 | W48: 0 | X48: =+IF(INDEX($C48:$G48,1,aux!$AL$1)>0,(G48/INDEX($C48:$G48,1,aux!$AL$1))^(1/($G$3-INDEX($C$3:$G$3,1,aux!$AL$1)))-1,"n.d.") -> n.d. | Y48: =IF(INDEX($C48:$G48,1,aux!$AL$1)>0,(G48-INDEX($C48:$G48,1,aux!$AL$1))/INDEX($C48:$G48,1,aux!$AL$1),"n.d.") -> n.d. | AA48: =O48-INDEX($K48:$O48,1,aux!$AL$1) -> 0 | AB48: 0 | AC48: 0 | AD48: =+IF(INDEX($K48:$O48,1,aux!$AL$1)>0,(O48/INDEX($K48:$O48,1,aux!$AL$1))^(1/($O$3-INDEX($K$3:$O$3,1,aux!$AL$1)))-1,"n.d.") -> n.d. | AE48: =IF(INDEX($K48:$O48,1,aux!$AL$1)>0,(O48-INDEX($K48:$O48,1,aux!$AL$1))/INDEX($K48:$O48,1,aux!$AL$1),"n.d.") -> n.d. | AX48: 07
A49: 0703 | B49: Cebolas, alhos, etc., frescos ou refrigerados | C49: 0 | D49: 0 | E49: 0 | F49: 0 | G49: 0 | H49: 0 | I49: 0 | J49: 0 | K49: 0 | L49: 0 | M49: 0 | N49: 0 | O49: 0 | P49: 0 | Q49: 0 | R49: 0 | S49: 0 | U49: =G49-INDEX($C49:$G49,1,aux!$AL$1) -> 0 | V49: 0 | W49: 0 | X49: =+IF(INDEX($C49:$G49,1,aux!$AL$1)>0,(G49/INDEX($C49:$G49,1,aux!$AL$1))^(1/($G$3-INDEX($C$3:$G$3,1,aux!$AL$1)))-1,"n.d.") -> n.d. | Y49: =IF(INDEX($C49:$G49,1,aux!$AL$1)>0,(G49-INDEX($C49:$G49,1,aux!$AL$1))/INDEX($C49:$G49,1,aux!$AL$1),"n.d.") -> n.d. | AA49: =O49-INDEX($K49:$O49,1,aux!$AL$1) -> 0 | AB49: 0 | AC49: 0 | AD49: =+IF(INDEX($K49:$O49,1,aux!$AL$1)>0,(O49/INDEX($K49:$O49,1,aux!$AL$1))^(1/($O$3-INDEX($K$3:$O$3,1,aux!$AL$1)))-1,"n.d.") -> n.d. | AE49: =IF(INDEX($K49:$O49,1,aux!$AL$1)>0,(O49-INDEX($K49:$O49,1,aux!$AL$1))/INDEX($K49:$O49,1,aux!$AL$1),"n.d.") -> n.d. | AX49: 07
A50: 0704 | B50: Couves, frescas ou refrigeradas | C50: 0 | D50: 0 | E50: 0 | F50: 0 | G50: 0 | H50: 0 | I50: 0 | J50: 0 | K50: 0 | L50: 0 | M50: 0 | N50: 2.471 | O50: 0.234 | P50: 0.541 | Q50: 2.742688584e-06 | R50: 9.570433454e-07 | S50: 0.541 | U50: =G50-INDEX($C50:$G50,1,aux!$AL$1) -> 0 | V50: 0 | W50: 0 | X50: =+IF(INDEX($C50:$G50,1,aux!$AL$1)>0,(G50/INDEX($C50:$G50,1,aux!$AL$1))^(1/($G$3-INDEX($C$3:$G$3,1,aux!$AL$1)))-1,"n.d.") -> n.d. | Y50: =IF(INDEX($C50:$G50,1,aux!$AL$1)>0,(G50-INDEX($C50:$G50,1,aux!$AL$1))/INDEX($C50:$G50,1,aux!$AL$1),"n.d.") -> n.d. | AA50: =O50-INDEX($K50:$O50,1,aux!$AL$1) -> 0.234 | AB50: 6.479795099e-06 | AC50: 6.044202805e-06 | AD50: =+IF(INDEX($K50:$O50,1,aux!$AL$1)>0,(O50/INDEX($K50:$O50,1,aux!$AL$1))^(1/($O$3-INDEX($K$3:$O$3,1,aux!$AL$1)))-1,"n.d.") -> n.d. | AE50: =IF(INDEX($K50:$O50,1,aux!$AL$1)>0,(O50-INDEX($K50:$O50,1,aux!$AL$1))/INDEX($K50:$O50,1,aux!$AL$1),"n.d.") -> n.d. | AX50: 07
A51: 0705 | B51: Alfaces, frescas ou refrigeradas | C51: 0 | D51: 0 | E51: 0 | F51: 0 | G51: 0 | H51: 0 | I51: 0 | J51: 0 | K51: 0 | L51: 0 | M51: 0 | N51: 0 | O51: 0 | P51: 0 | Q51: 0 | R51: 0 | S51: 0 | U51: =G51-INDEX($C51:$G51,1,aux!$AL$1) -> 0 | V51: 0 | W51: 0 | X51: =+IF(INDEX($C51:$G51,1,aux!$AL$1)>0,(G51/INDEX($C51:$G51,1,aux!$AL$1))^(1/($G$3-INDEX($C$3:$G$3,1,aux!$AL$1)))-1,"n.d.") -> n.d. | Y51: =IF(INDEX($C51:$G51,1,aux!$AL$1)>0,(G51-INDEX($C51:$G51,1,aux!$AL$1))/INDEX($C51:$G51,1,aux!$AL$1),"n.d.") -> n.d. | AA51: =O51-INDEX($K51:$O51,1,aux!$AL$1) -> 0 | AB51: 0 | AC51: 0 | AD51: =+IF(INDEX($K51:$O51,1,aux!$AL$1)>0,(O51/INDEX($K51:$O51,1,aux!$AL$1))^(1/($O$3-INDEX($K$3:$O$3,1,aux!$AL$1)))-1,"n.d.") -> n.d. | AE51: =IF(INDEX($K51:$O51,1,aux!$AL$1)>0,(O51-INDEX($K51:$O51,1,aux!$AL$1))/INDEX($K51:$O51,1,aux!$AL$1),"n.d.") -> n.d. | AX51: 07
A52: 0706 | B52: Cenouras, nabos, beterrabas, etc., frescos ou refrigerados | C52: 0 | D52: 0 | E52: 0 | F52: 0 | G52: 0 | H52: 0 | I52: 0 | J52: 0 | K52: 0 | L52: 0 | M52: 0 | N52: 0 | O52: 0.405 | P52: 0.081 | Q52: 4.106428379e-07 | R52: 1.432911478e-07 | S52: 0.081 | U52: =G52-INDEX($C52:$G52,1,aux!$AL$1) -> 0 | V52: 0 | W52: 0 | X52: =+IF(INDEX($C52:$G52,1,aux!$AL$1)>0,(G52/INDEX($C52:$G52,1,aux!$AL$1))^(1/($G$3-INDEX($C$3:$G$3,1,aux!$AL$1)))-1,"n.d.") -> n.d. | Y52: =IF(INDEX($C52:$G52,1,aux!$AL$1)>0,(G52-INDEX($C52:$G52,1,aux!$AL$1))/INDEX($C52:$G52,1,aux!$AL$1),"n.d.") -> n.d. | AA52: =O52-INDEX($K52:$O52,1,aux!$AL$1) -> 0.405 | AB52: 1.121502998e-05 | AC52: 1.046112024e-05 | AD52: =+IF(INDEX($K52:$O52,1,aux!$AL$1)>0,(O52/INDEX($K52:$O52,1,aux!$AL$1))^(1/($O$3-INDEX($K$3:$O$3,1,aux!$AL$1)))-1,"n.d.") -> n.d. | AE52: =IF(INDEX($K52:$O52,1,aux!$AL$1)>0,(O52-INDEX($K52:$O52,1,aux!$AL$1))/INDEX($K52:$O52,1,aux!$AL$1),"n.d.") -> n.d. | AX52: 07
A53: 0707 | B53: Pepinos e pepininhos, frescos ou refrigerados | C53: 0 | D53: 0 | E53: 0 | F53: 0 | G53: 0 | H53: 0 | I53: 0 | J53: 0 | K53: 0 | L53: 0 | M53: 0 | N53: 0 | O53: 0 | P53: 0 | Q53: 0 | R53: 0 | S53: 0 | U53: =G53-INDEX($C53:$G53,1,aux!$AL$1) -> 0 | V53: 0 | W53: 0 | X53: =+IF(INDEX($C53:$G53,1,aux!$AL$1)>0,(G53/INDEX($C53:$G53,1,aux!$AL$1))^(1/($G$3-INDEX($C$3:$G$3,1,aux!$AL$1)))-1,"n.d.") -> n.d. | Y53: =IF(INDEX($C53:$G53,1,aux!$AL$1)>0,(G53-INDEX($C53:$G53,1,aux!$AL$1))/INDEX($C53:$G53,1,aux!$AL$1),"n.d.") -> n.d. | AA53: =O53-INDEX($K53:$O53,1,aux!$AL$1) -> 0 | AB53: 0 | AC53: 0 | AD53: =+IF(INDEX($K53:$O53,1,aux!$AL$1)>0,(O53/INDEX($K53:$O53,1,aux!$AL$1))^(1/($O$3-INDEX($K$3:$O$3,1,aux!$AL$1)))-1,"n.d.") -> n.d. | AE53: =IF(INDEX($K53:$O53,1,aux!$AL$1)>0,(O53-INDEX($K53:$O53,1,aux!$AL$1))/INDEX($K53:$O53,1,aux!$AL$1),"n.d.") -> n.d. | AX53: 07
A54: 0708 | B54: Tomates preparados ou conservados | C54: 0 | D54: 0 | E54: 0.014 | F54: 0 | G54: 0 | H54: 0.0028 | I54: 1.385598288e-08 | J54: 1.052728693e-08 | K54: 0 | L54: 0 | M54: 0 | N54: 0 | O54: 0 | P54: 0 | Q54: 0 | R54: 0 | S54: -0.0028 | U54: =G54-INDEX($C54:$G54,1,aux!$AL$1) -> 0 | V54: 0 | W54: 0 | X54: =+IF(INDEX($C54:$G54,1,aux!$AL$1)>0,(G54/INDEX($C54:$G54,1,aux!$AL$1))^(1/($G$3-INDEX($C$3:$G$3,1,aux!$AL$1)))-1,"n.d.") -> n.d. | Y54: =IF(INDEX($C54:$G54,1,aux!$AL$1)>0,(G54-INDEX($C54:$G54,1,aux!$AL$1))/INDEX($C54:$G54,1,aux!$AL$1),"n.d.") -> n.d. | AA54: =O54-INDEX($K54:$O54,1,aux!$AL$1) -> 0 | AB54: 0 | AC54: 0 | AD54: =+IF(INDEX($K54:$O54,1,aux!$AL$1)>0,(O54/INDEX($K54:$O54,1,aux!$AL$1))^(1/($O$3-INDEX($K$3:$O$3,1,aux!$AL$1)))-1,"n.d.") -> n.d. | AE54: =IF(INDEX($K54:$O54,1,aux!$AL$1)>0,(O54-INDEX($K54:$O54,1,aux!$AL$1))/INDEX($K54:$O54,1,aux!$AL$1),"n.d.") -> n.d. | AX54: 07
A55: 0709 | B55: Outros produtos hortícolas, frescos ou refrigerados | C55: 0 | D55: 0 | E55: 0 | F55: 0 | G55: 0.055 | H55: 0.011 | I55: 5.443421846e-08 | J55: 4.135719864e-08 | K55: 113.88 | L55: 528.657 | M55: 33.442 | N55: 277.273 | O55: 32.391 | P55: 197.1286 | Q55: 0.0009993758979 | R55: 0.0003487257206 | S55: 197.1176 | U55: =G55-INDEX($C55:$G55,1,aux!$AL$1) -> 0.055 | V55: -6.342596869e-06 | W55: -3.111346492e-06 | X55: =+IF(INDEX($C55:$G55,1,aux!$AL$1)>0,(G55/INDEX($C55:$G55,1,aux!$AL$1))^(1/($G$3-INDEX($C$3:$G$3,1,aux!$AL$1)))-1,"n.d.") -> n.d. | Y55: =IF(INDEX($C55:$G55,1,aux!$AL$1)>0,(G55-INDEX($C55:$G55,1,aux!$AL$1))/INDEX($C55:$G55,1,aux!$AL$1),"n.d.") -> n.d. | AA55: =O55-INDEX($K55:$O55,1,aux!$AL$1) -> -81.489 | AB55: -0.002256547106 | AC55: -0.002104854882 | AD55: =+IF(INDEX($K55:$O55,1,aux!$AL$1)>0,(O55/INDEX($K55:$O55,1,aux!$AL$1))^(1/($O$3-INDEX($K$3:$O$3,1,aux!$AL$1)))-1,"n.d.") -> -0.2697118991 | AE55: =IF(INDEX($K55:$O55,1,aux!$AL$1)>0,(O55-INDEX($K55:$O55,1,aux!$AL$1))/INDEX($K55:$O55,1,aux!$AL$1),"n.d.") -> -0.71556902 | AX55: 07
A56: 0710 | B56: Produtos hortícolas congelados | C56: 22.725 | D56: 0 | E56: 0.088 | F56: 0 | G56: 0 | H56: 4.5626 | I56: 2.257832411e-05 | J56: 1.715421405e-05 | K56: 2615.123 | L56: 2311.7 | M56: 1434.13 | N56: 1971.928 | O56: 1716.617 | P56: 2009.8996 | Q56: 0.01018951698 | R56: 0.003555565688 | S56: 2005.337 | U56: =G56-INDEX($C56:$G56,1,aux!$AL$1) -> -22.725 | V56: 0.002620645706 | W56: 0.001285551801 | X56: =+IF(INDEX($C56:$G56,1,aux!$AL$1)>0,(G56/INDEX($C56:$G56,1,aux!$AL$1))^(1/($G$3-INDEX($C$3:$G$3,1,aux!$AL$1)))-1,"n.d.") -> -1 | Y56: =IF(INDEX($C56:$G56,1,aux!$AL$1)>0,(G56-INDEX($C56:$G56,1,aux!$AL$1))/INDEX($C56:$G56,1,aux!$AL$1),"n.d.") -> -1 | AA56: =O56-INDEX($K56:$O56,1,aux!$AL$1) -> -898.506 | AB56: -0.02488091784 | AC56: -0.02320834395 | AD56: =+IF(INDEX($K56:$O56,1,aux!$AL$1)>0,(O56/INDEX($K56:$O56,1,aux!$AL$1))^(1/($O$3-INDEX($K$3:$O$3,1,aux!$AL$1)))-1,"n.d.") -> -0.09989054807 | AE56: =IF(INDEX($K56:$O56,1,aux!$AL$1)>0,(O56-INDEX($K56:$O56,1,aux!$AL$1))/INDEX($K56:$O56,1,aux!$AL$1),"n.d.") -> -0.3435807799 | AX56: 07
A57: 0711 | B57: Produtos hortícolas conservados transitoriamente | C57: 0 | D57: 0 | E57: 0 | F57: 0 | G57: 0 | H57: 0 | I57: 0 | J57: 0 | K57: 4.05 | L57: 0 | M57: 0 | N57: 0 | O57: 0 | P57: 0.81 | Q57: 4.106428379e-06 | R57: 1.432911478e-06 | S57: 0.81 | U57: =G57-INDEX($C57:$G57,1,aux!$AL$1) -> 0 | V57: 0 | W57: 0 | X57: =+IF(INDEX($C57:$G57,1,aux!$AL$1)>0,(G57/INDEX($C57:$G57,1,aux!$AL$1))^(1/($G$3-INDEX($C$3:$G$3,1,aux!$AL$1)))-1,"n.d.") -> n.d. | Y57: =IF(INDEX($C57:$G57,1,aux!$AL$1)>0,(G57-INDEX($C57:$G57,1,aux!$AL$1))/INDEX($C57:$G57,1,aux!$AL$1),"n.d.") -> n.d. | AA57: =O57-INDEX($K57:$O57,1,aux!$AL$1) -> -4.05 | AB57: -0.0001121502998 | AC57: -0.0001046112024 | AD57: =+IF(INDEX($K57:$O57,1,aux!$AL$1)>0,(O57/INDEX($K57:$O57,1,aux!$AL$1))^(1/($O$3-INDEX($K$3:$O$3,1,aux!$AL$1)))-1,"n.d.") -> -1 | AE57: =IF(INDEX($K57:$O57,1,aux!$AL$1)>0,(O57-INDEX($K57:$O57,1,aux!$AL$1))/INDEX($K57:$O57,1,aux!$AL$1),"n.d.") -> -1 | AX57: 07
A58: 0712 | B58: Produtos hortícolas secos | C58: 78.194 | D58: 77.697 | E58: 25.839 | F58: 129.877 | G58: 16.851 | H58: 65.6916 | I58: 0.0003250791732 | J58: 0.0002469836864 | K58: 0.36 | L58: 0.02 | M58: 4.482 | N58: 58.063 | O58: 1.51 | P58: 12.887 | Q58: 6.533276854e-05 | R58: 2.279744472e-05 | S58: -52.8046 | U58: =G58-INDEX($C58:$G58,1,aux!$AL$1) -> -61.343 | V58: 0.007074071268 | W58: 0.003470169598 | X58: =+IF(INDEX($C58:$G58,1,aux!$AL$1)>0,(G58/INDEX($C58:$G58,1,aux!$AL$1))^(1/($G$3-INDEX($C$3:$G$3,1,aux!$AL$1)))-1,"n.d.") -> -0.3186612928 | Y58: =IF(INDEX($C58:$G58,1,aux!$AL$1)>0,(G58-INDEX($C58:$G58,1,aux!$AL$1))/INDEX($C58:$G58,1,aux!$AL$1),"n.d.") -> -0.7844975318 | AA58: =O58-INDEX($K58:$O58,1,aux!$AL$1) -> 1.15 | AB58: 3.184514685e-05 | AC58: 2.970441549e-05 | AD58: =+IF(INDEX($K58:$O58,1,aux!$AL$1)>0,(O58/INDEX($K58:$O58,1,aux!$AL$1))^(1/($O$3-INDEX($K$3:$O$3,1,aux!$AL$1)))-1,"n.d.") -> 0.4310954853 | AE58: =IF(INDEX($K58:$O58,1,aux!$AL$1)>0,(O58-INDEX($K58:$O58,1,aux!$AL$1))/INDEX($K58:$O58,1,aux!$AL$1),"n.d.") -> 3.194444444 | AX58: 07
A59: 0713 | B59: Legumes de vagem, secos, em grão | C59: 9707.643 | D59: 5056.588 | E59: 1098.45 | F59: 542.316 | G59: 1356.912 | H59: 3552.3818 | I59: 0.01757919336 | J59: 0.01335605089 | K59: 110.319 | L59: 9.395 | M59: 15.415 | N59: 146.925 | O59: 76.859 | P59: 71.7826 | Q59: 0.0003639137108 | R59: 0.0001269853228 | S59: -3480.5992 | U59: =G59-INDEX($C59:$G59,1,aux!$AL$1) -> -8350.731 | V59: 0.9630058235 | W59: 0.4724003201 | X59: =+IF(INDEX($C59:$G59,1,aux!$AL$1)>0,(G59/INDEX($C59:$G59,1,aux!$AL$1))^(1/($G$3-INDEX($C$3:$G$3,1,aux!$AL$1)))-1,"n.d.") -> -0.3885520805 | Y59: =IF(INDEX($C59:$G59,1,aux!$AL$1)>0,(G59-INDEX($C59:$G59,1,aux!$AL$1))/INDEX($C59:$G59,1,aux!$AL$1),"n.d.") -> -0.8602223011 | AA59: =O59-INDEX($K59:$O59,1,aux!$AL$1) -> -33.46 | AB59: -0.0009265553163 | AC59: -0.0008642693412 | AD59: =+IF(INDEX($K59:$O59,1,aux!$AL$1)>0,(O59/INDEX($K59:$O59,1,aux!$AL$1))^(1/($O$3-INDEX($K$3:$O$3,1,aux!$AL$1)))-1,"n.d.") -> -0.08638945567 | AE59: =IF(INDEX($K59:$O59,1,aux!$AL$1)>0,(O59-INDEX($K59:$O59,1,aux!$AL$1))/INDEX($K59:$O59,1,aux!$AL$1),"n.d.") -> -0.3033022417 | AX59: 07
A60: 0714 | B60: Raízes de mandioca, de araruta, batata-doce, etc. | C60: 30.4 | D60: 0 | E60: 0 | F60: 0 | G60: 0 | H60: 6.08 | I60: 3.008727711e-05 | J60: 2.285925161e-05 | K60: 37.349 | L60: 30.596 | M60: 51.289 | N60: 42.806 | O60: 41.998 | P60: 40.8076 | Q60: 0.0002068808478 | R60: 7.218972647e-05 | S60: 34.7276 | U60: =G60-INDEX($C60:$G60,1,aux!$AL$1) -> -30.4 | V60: 0.003505726269 | W60: 0.001719726061 | X60: =+IF(INDEX($C60:$G60,1,aux!$AL$1)>0,(G60/INDEX($C60:$G60,1,aux!$AL$1))^(1/($G$3-INDEX($C$3:$G$3,1,aux!$AL$1)))-1,"n.d.") -> -1 | Y60: =IF(INDEX($C60:$G60,1,aux!$AL$1)>0,(G60-INDEX($C60:$G60,1,aux!$AL$1))/INDEX($C60:$G60,1,aux!$AL$1),"n.d.") -> -1 | AA60: =O60-INDEX($K60:$O60,1,aux!$AL$1) -> 4.649 | AB60: 0.0001287374676 | AC60: 0.0001200833284 | AD60: =+IF(INDEX($K60:$O60,1,aux!$AL$1)>0,(O60/INDEX($K60:$O60,1,aux!$AL$1))^(1/($O$3-INDEX($K$3:$O$3,1,aux!$AL$1)))-1,"n.d.") -> 0.02976329501 | AE60: =IF(INDEX($K60:$O60,1,aux!$AL$1)>0,(O60-INDEX($K60:$O60,1,aux!$AL$1))/INDEX($K60:$O60,1,aux!$AL$1),"n.d.") -> 0.1244745509 | AX60: 07
A61: 07SS | B61: Produtos hortícolas, plantas, raízes e tubérculos, comestíveis | C61: 0 | D61: 0 | E61: 0 | F61: 0 | G61: 0 | H61: 0 | I61: 0 | J61: 0 | K61: 0 | L61: 0 | M61: 0 | N61: 0 | O61: 0 | P61: 0 | Q61: 0 | R61: 0 | S61: 0 | U61: =G61-INDEX($C61:$G61,1,aux!$AL$1) -> 0 | V61: 0 | W61: 0 | X61: =+IF(INDEX($C61:$G61,1,aux!$AL$1)>0,(G61/INDEX($C61:$G61,1,aux!$AL$1))^(1/($G$3-INDEX($C$3:$G$3,1,aux!$AL$1)))-1,"n.d.") -> n.d. | Y61: =IF(INDEX($C61:$G61,1,aux!$AL$1)>0,(G61-INDEX($C61:$G61,1,aux!$AL$1))/INDEX($C61:$G61,1,aux!$AL$1),"n.d.") -> n.d. | AA61: =O61-INDEX($K61:$O61,1,aux!$AL$1) -> 0 | AB61: 0 | AC61: 0 | AD61: =+IF(INDEX($K61:$O61,1,aux!$AL$1)>0,(O61/INDEX($K61:$O61,1,aux!$AL$1))^(1/($O$3-INDEX($K$3:$O$3,1,aux!$AL$1)))-1,"n.d.") -> n.d. | AE61: =IF(INDEX($K61:$O61,1,aux!$AL$1)>0,(O61-INDEX($K61:$O61,1,aux!$AL$1))/INDEX($K61:$O61,1,aux!$AL$1),"n.d.") -> n.d. | AX61: 07
A62: 0801 | B62: Cocos, castanhas do brasil e castanha de cajú | C62: 0.833 | D62: 0.432 | E62: 0.91 | F62: 1.091 | G62: 1.332 | H62: 0.9196 | I62: 4.550700664e-06 | J62: 3.457461807e-06 | K62: 43.459 | L62: 46.364 | M62: 31.597 | N62: 61.365 | O62: 44.382 | P62: 45.4334 | Q62: 0.0002303321026 | R62: 8.037288933e-05 | S62: 44.5138 | U62: =G62-INDEX($C62:$G62,1,aux!$AL$1) -> 0.499 | V62: -5.754465159e-05 | W62: -2.822839818e-05 | X62: =+IF(INDEX($C62:$G62,1,aux!$AL$1)>0,(G62/INDEX($C62:$G62,1,aux!$AL$1))^(1/($G$3-INDEX($C$3:$G$3,1,aux!$AL$1)))-1,"n.d.") -> 0.1245138425 | Y62: =IF(INDEX($C62:$G62,1,aux!$AL$1)>0,(G62-INDEX($C62:$G62,1,aux!$AL$1))/INDEX($C62:$G62,1,aux!$AL$1),"n.d.") -> 0.5990396158 | AA62: =O62-INDEX($K62:$O62,1,aux!$AL$1) -> 0.923 | AB62: 2.555919178e-05 | AC62: 2.384102217e-05 | AD62: =+IF(INDEX($K62:$O62,1,aux!$AL$1)>0,(O62/INDEX($K62:$O62,1,aux!$AL$1))^(1/($O$3-INDEX($K$3:$O$3,1,aux!$AL$1)))-1,"n.d.") -> 0.005267830718 | AE62: =IF(INDEX($K62:$O62,1,aux!$AL$1)>0,(O62-INDEX($K62:$O62,1,aux!$AL$1))/INDEX($K62:$O62,1,aux!$AL$1),"n.d.") -> 0.02123840862 | AX62: 08
A63: 0802 | B63: Frutas de casca rija | C63: 4951.511 | D63: 7063.72 | E63: 3311.453 | F63: 4556.703 | G63: 2468.356 | H63: 4470.3486 | I63: 0.02212181203 | J63: 0.01680737228 | K63: 620.995 | L63: 688.089 | M63: 1161.096 | N63: 457.189 | O63: 229.743 | P63: 631.4224 | Q63: 0.00320109983 | R63: 0.001117002969 | S63: -3838.9262 | U63: =G63-INDEX($C63:$G63,1,aux!$AL$1) -> -2483.155 | V63: 0.2863572932 | W63: 0.14047192 | X63: =+IF(INDEX($C63:$G63,1,aux!$AL$1)>0,(G63/INDEX($C63:$G63,1,aux!$AL$1))^(1/($G$3-INDEX($C$3:$G$3,1,aux!$AL$1)))-1,"n.d.") -> -0.1597326048 | Y63: =IF(INDEX($C63:$G63,1,aux!$AL$1)>0,(G63-INDEX($C63:$G63,1,aux!$AL$1))/INDEX($C63:$G63,1,aux!$AL$1),"n.d.") -> -0.5014943923 | AA63: =O63-INDEX($K63:$O63,1,aux!$AL$1) -> -391.252 | AB63: -0.01083432817 | AC63: -0.01010601041 | AD63: =+IF(INDEX($K63:$O63,1,aux!$AL$1)>0,(O63/INDEX($K63:$O63,1,aux!$AL$1))^(1/($O$3-INDEX($K$3:$O$3,1,aux!$AL$1)))-1,"n.d.") -> -0.2201006721 | AE63: =IF(INDEX($K63:$O63,1,aux!$AL$1)>0,(O63-INDEX($K63:$O63,1,aux!$AL$1))/INDEX($K63:$O63,1,aux!$AL$1),"n.d.") -> -0.6300404995 | AX63: 08
A64: 0803 | B64: Bananas, frescas ou secas | C64: 0 | D64: 0 | E64: 0 | F64: 0 | G64: 0 | H64: 0 | I64: 0 | J64: 0 | K64: 0 | L64: 0 | M64: 0 | N64: 0 | O64: 0 | P64: 0 | Q64: 0 | R64: 0 | S64: 0 | U64: =G64-INDEX($C64:$G64,1,aux!$AL$1) -> 0 | V64: 0 | W64: 0 | X64: =+IF(INDEX($C64:$G64,1,aux!$AL$1)>0,(G64/INDEX($C64:$G64,1,aux!$AL$1))^(1/($G$3-INDEX($C$3:$G$3,1,aux!$AL$1)))-1,"n.d.") -> n.d. | Y64: =IF(INDEX($C64:$G64,1,aux!$AL$1)>0,(G64-INDEX($C64:$G64,1,aux!$AL$1))/INDEX($C64:$G64,1,aux!$AL$1),"n.d.") -> n.d. | AA64: =O64-INDEX($K64:$O64,1,aux!$AL$1) -> 0 | AB64: 0 | AC64: 0 | AD64: =+IF(INDEX($K64:$O64,1,aux!$AL$1)>0,(O64/INDEX($K64:$O64,1,aux!$AL$1))^(1/($O$3-INDEX($K$3:$O$3,1,aux!$AL$1)))-1,"n.d.") -> n.d. | AE64: =IF(INDEX($K64:$O64,1,aux!$AL$1)>0,(O64-INDEX($K64:$O64,1,aux!$AL$1))/INDEX($K64:$O64,1,aux!$AL$1),"n.d.") -> n.d. | AX64: 08
A65: 0804 | B65: Tâmaras, figos, ananases, abacates, goiabas, mangas | C65: 0.178 | D65: 0.214 | E65: 0.145 | F65: 0.195 | G65: 0.206 | H65: 0.1876 | I65: 9.283508531e-07 | J65: 7.053282242e-07 | K65: 68.362 | L65: 71.722 | M65: 31.16 | N65: 72.693 | O65: 117.405 | P65: 72.2684 | Q65: 0.0003663765539 | R65: 0.0001278447159 | S65: 72.0808 | U65: =G65-INDEX($C65:$G65,1,aux!$AL$1) -> 0.028 | V65: -3.228958406e-06 | W65: -1.583958214e-06 | X65: =+IF(INDEX($C65:$G65,1,aux!$AL$1)>0,(G65/INDEX($C65:$G65,1,aux!$AL$1))^(1/($G$3-INDEX($C$3:$G$3,1,aux!$AL$1)))-1,"n.d.") -> 0.03719831968 | Y65: =IF(INDEX($C65:$G65,1,aux!$AL$1)>0,(G65-INDEX($C65:$G65,1,aux!$AL$1))/INDEX($C65:$G65,1,aux!$AL$1),"n.d.") -> 0.1573033708 | AA65: =O65-INDEX($K65:$O65,1,aux!$AL$1) -> 49.043 | AB65: 0.001358070902 | AC65: 0.001266777086 | AD65: =+IF(INDEX($K65:$O65,1,aux!$AL$1)>0,(O65/INDEX($K65:$O65,1,aux!$AL$1))^(1/($O$3-INDEX($K$3:$O$3,1,aux!$AL$1)))-1,"n.d.") -> 0.144769258 | AE65: =IF(INDEX($K65:$O65,1,aux!$AL$1)>0,(O65-INDEX($K65:$O65,1,aux!$AL$1))/INDEX($K65:$O65,1,aux!$AL$1),"n.d.") -> 0.7174014804 | AX65: 08
A66: 0805 | B66: Citrinos, frescos ou secos | C66: 0 | D66: 0 | E66: 0 | F66: 0 | G66: 0 | H66: 0 | I66: 0 | J66: 0 | K66: 0 | L66: 0 | M66: 0 | N66: 0 | O66: 0.016 | P66: 0.0032 | Q66: 1.622292693e-08 | R66: 5.660884853e-09 | S66: 0.0032 | U66: =G66-INDEX($C66:$G66,1,aux!$AL$1) -> 0 | V66: 0 | W66: 0 | X66: =+IF(INDEX($C66:$G66,1,aux!$AL$1)>0,(G66/INDEX($C66:$G66,1,aux!$AL$1))^(1/($G$3-INDEX($C$3:$G$3,1,aux!$AL$1)))-1,"n.d.") -> n.d. | Y66: =IF(INDEX($C66:$G66,1,aux!$AL$1)>0,(G66-INDEX($C66:$G66,1,aux!$AL$1))/INDEX($C66:$G66,1,aux!$AL$1),"n.d.") -> n.d. | AA66: =O66-INDEX($K66:$O66,1,aux!$AL$1) -> 0.016 | AB66: 4.430629127e-07 | AC66: 4.132788243e-07 | AD66: =+IF(INDEX($K66:$O66,1,aux!$AL$1)>0,(O66/INDEX($K66:$O66,1,aux!$AL$1))^(1/($O$3-INDEX($K$3:$O$3,1,aux!$AL$1)))-1,"n.d.") -> n.d. | AE66: =IF(INDEX($K66:$O66,1,aux!$AL$1)>0,(O66-INDEX($K66:$O66,1,aux!$AL$1))/INDEX($K66:$O66,1,aux!$AL$1),"n.d.") -> n.d. | AX66: 08
A67: 0806 | B67: Uvas, frescas ou secas | C67: 1.326 | D67: 1.622 | E67: 1.39 | F67: 1.298 | G67: 0.315 | H67: 1.1902 | I67: 5.889782438e-06 | J67: 4.474848893e-06 | K67: 0 | L67: 0.241 | M67: 0 | N67: 0.409 | O67: 0.192 | P67: 0.1684 | Q67: 8.537315296e-07 | R67: 2.979040654e-07 | S67: -1.0218 | U67: =G67-INDEX($C67:$G67,1,aux!$AL$1) -> -1.011 | V67: 0.0001165884624 | W67: 5.719220552e-05 | X67: =+IF(INDEX($C67:$G67,1,aux!$AL$1)>0,(G67/INDEX($C67:$G67,1,aux!$AL$1))^(1/($G$3-INDEX($C$3:$G$3,1,aux!$AL$1)))-1,"n.d.") -> -0.3018612285 | Y67: =IF(INDEX($C67:$G67,1,aux!$AL$1)>0,(G67-INDEX($C67:$G67,1,aux!$AL$1))/INDEX($C67:$G67,1,aux!$AL$1),"n.d.") -> -0.7624434389 | AA67: =O67-INDEX($K67:$O67,1,aux!$AL$1) -> 0.192 | AB67: 5.316754953e-06 | AC67: 4.959345891e-06 | AD67: =+IF(INDEX($K67:$O67,1,aux!$AL$1)>0,(O67/INDEX($K67:$O67,1,aux!$AL$1))^(1/($O$3-INDEX($K$3:$O$3,1,aux!$AL$1)))-1,"n.d.") -> n.d. | AE67: =IF(INDEX($K67:$O67,1,aux!$AL$1)>0,(O67-INDEX($K67:$O67,1,aux!$AL$1))/INDEX($K67:$O67,1,aux!$AL$1),"n.d.") -> n.d. | AX67: 08
A68: 0807 | B68: Melões, melancias e papaia, frescos | C68: 3.67 | D68: 0 | E68: 24.104 | F68: 7.324 | G68: 99.384 | H68: 26.8964 | I68: 0.0001330985921 | J68: 0.0001011236143 | K68: 68.34 | L68: 90.429 | M68: 68.689 | N68: 50.69 | O68: 107.911 | P68: 77.2118 | Q68: 0.0003914379342 | R68: 0.0001365897216 | S68: 50.3154 | U68: =G68-INDEX($C68:$G68,1,aux!$AL$1) -> 95.714 | V68: =IF($U$237<>0,U68/$U$237, "n.d.") -> -0.01103773303 | W68: =IF($U$322<>0,U68/$U$322, "n.d.") -> -0.005414534876 | X68: =+IF(INDEX($C68:$G68,1,aux!$AL$1)>0,(G68/INDEX($C68:$G68,1,aux!$AL$1))^(1/($G$3-INDEX($C$3:$G$3,1,aux!$AL$1)))-1,"n.d.") -> 1.281196003 | Y68: =IF(INDEX($C68:$G68,1,aux!$AL$1)>0,(G68-INDEX($C68:$G68,1,aux!$AL$1))/INDEX($C68:$G68,1,aux!$AL$1),"n.d.") -> 26.08010899 | AA68: =O68-INDEX($K68:$O68,1,aux!$AL$1) -> 39.571 | AB68: =IF($AA$237<>0,AA68/$AA$237, "n.d.") -> 0.001095777658 | AC68: =IF($AA$322<>0,AA68/$AA$322, "n.d.") -> 0.001022116022 | AD68: =+IF(INDEX($K68:$O68,1,aux!$AL$1)>0,(O68/INDEX($K68:$O68,1,aux!$AL$1))^(1/($O$3-INDEX($K$3:$O$3,1,aux!$AL$1)))-1,"n.d.") -> 0.1209795392 | AE68: =IF(INDEX($K68:$O68,1,aux!$AL$1)>0,(O68-INDEX($K68:$O68,1,aux!$AL$1))/INDEX($K68:$O68,1,aux!$AL$1),"n.d.") -> 0.579031314 | AX68: 08
A69: 0808 | B69: Maçãs, peras e marmelos, frescos | C69: 0 | D69: 0 | E69: 0 | F69: 0 | G69: 0 | H69: 0 | I69: 0 | J69: 0 | K69: 0.01 | L69: 53.188 | M69: 15.734 | N69: 0.057 | O69: 57.925 | P69: 25.3828 | Q69: 0.0001286822843 | R69: 4.490284626e-05 | S69: 25.3828 | U69: =G69-INDEX($C69:$G69,1,aux!$AL$1) -> 0 | V69: 0 | W69: 0 | X69: =+IF(INDEX($C69:$G69,1,aux!$AL$1)>0,(G69/INDEX($C69:$G69,1,aux!$AL$1))^(1/($G$3-INDEX($C$3:$G$3,1,aux!$AL$1)))-1,"n.d.") -> n.d. | Y69: =IF(INDEX($C69:$G69,1,aux!$AL$1)>0,(G69-INDEX($C69:$G69,1,aux!$AL$1))/INDEX($C69:$G69,1,aux!$AL$1),"n.d.") -> n.d. | AA69: =O69-INDEX($K69:$O69,1,aux!$AL$1) -> 57.915 | AB69: 0.001603749287 | AC69: 0.001495940194 | AD69: =+IF(INDEX($K69:$O69,1,aux!$AL$1)>0,(O69/INDEX($K69:$O69,1,aux!$AL$1))^(1/($O$3-INDEX($K$3:$O$3,1,aux!$AL$1)))-1,"n.d.") -> 7.724017149 | AE69: =IF(INDEX($K69:$O69,1,aux!$AL$1)>0,(O69-INDEX($K69:$O69,1,aux!$AL$1))/INDEX($K69:$O69,1,aux!$AL$1),"n.d.") -> 5791.5 | AX69: 08
A70: 0809 | B70: Damascos, cerejas, pêssegos, etc., frescos | C70: 0 | D70: 0 | E70: 147.608 | F70: 0 | G70: 0 | H70: 29.5216 | I70: 0.0001460895658 | J70: 0.0001109936978 | K70: 47 | L70: 0 | M70: 0.047 | N70: 0.002 | O70: 0 | P70: 9.4098 | Q70: 4.770453057e-05 | R70: 1.664618571e-05 | S70: -20.1118 | U70: =G70-INDEX($C70:$G70,1,aux!$AL$1) -> 0 | V70: 0 | W70: 0 | X70: =+IF(INDEX($C70:$G70,1,aux!$AL$1)>0,(G70/INDEX($C70:$G70,1,aux!$AL$1))^(1/($G$3-INDEX($C$3:$G$3,1,aux!$AL$1)))-1,"n.d.") -> n.d. | Y70: =IF(INDEX($C70:$G70,1,aux!$AL$1)>0,(G70-INDEX($C70:$G70,1,aux!$AL$1))/INDEX($C70:$G70,1,aux!$AL$1),"n.d.") -> n.d. | AA70: =O70-INDEX($K70:$O70,1,aux!$AL$1) -> -47 | AB70: -0.001301497306 | AC70: -0.001214006546 | AD70: =+IF(INDEX($K70:$O70,1,aux!$AL$1)>0,(O70/INDEX($K70:$O70,1,aux!$AL$1))^(1/($O$3-INDEX($K$3:$O$3,1,aux!$AL$1)))-1,"n.d.") -> -1 | AE70: =IF(INDEX($K70:$O70,1,aux!$AL$1)>0,(O70-INDEX($K70:$O70,1,aux!$AL$1))/INDEX($K70:$O70,1,aux!$AL$1),"n.d.") -> -1 | AX70: 08
A71: 0810 | B71: Outras frutas frescas | C71: 0 | D71: 0 | E71: 0 | F71: 0 | G71: 0 | H71: 0 | I71: 0 | J71: 0 | K71: 0 | L71: 0.037 | M71: 0.108 | N71: 0.074 | O71: 0.036 | P71: 0.051 | Q71: 2.585528979e-07 | R71: 9.022035234e-08 | S71: 0.051 | U71: =G71-INDEX($C71:$G71,1,aux!$AL$1) -> 0 | V71: 0 | W71: 0 | X71: =+IF(INDEX($C71:$G71,1,aux!$AL$1)>0,(G71/INDEX($C71:$G71,1,aux!$AL$1))^(1/($G$3-INDEX($C$3:$G$3,1,aux!$AL$1)))-1,"n.d.") -> n.d. | Y71: =IF(INDEX($C71:$G71,1,aux!$AL$1)>0,(G71-INDEX($C71:$G71,1,aux!$AL$1))/INDEX($C71:$G71,1,aux!$AL$1),"n.d.") -> n.d. | AA71: =O71-INDEX($K71:$O71,1,aux!$AL$1) -> 0.036 | AB71: 9.968915537e-07 | AC71: 9.298773546e-07 | AD71: =+IF(INDEX($K71:$O71,1,aux!$AL$1)>0,(O71/INDEX($K71:$O71,1,aux!$AL$1))^(1/($O$3-INDEX($K$3:$O$3,1,aux!$AL$1)))-1,"n.d.") -> n.d. | AE71: =IF(INDEX($K71:$O71,1,aux!$AL$1)>0,(O71-INDEX($K71:$O71,1,aux!$AL$1))/INDEX($K71:$O71,1,aux!$AL$1),"n.d.") -> n.d. | AX71: 08
A72: 0811 | B72: Frutas não cozidas ou cozidas em água ou vapor, congeladas | C72: 0 | D72: 0 | E72: 0.914 | F72: 0.026 | G72: 0 | H72: 0.188 | I72: 9.303302792e-07 | J72: 7.068321223e-07 | K72: 8.46 | L72: 31.573 | M72: 12.871 | N72: 7.263 | O72: 0.025 | P72: 12.0384 | Q72: 6.103065111e-05 | R72: 2.129624882e-05 | S72: 11.8504 | U72: =G72-INDEX($C72:$G72,1,aux!$AL$1) -> 0 | V72: 0 | W72: 0 | X72: =+IF(INDEX($C72:$G72,1,aux!$AL$1)>0,(G72/INDEX($C72:$G72,1,aux!$AL$1))^(1/($G$3-INDEX($C$3:$G$3,1,aux!$AL$1)))-1,"n.d.") -> n.d. | Y72: =IF(INDEX($C72:$G72,1,aux!$AL$1)>0,(G72-INDEX($C72:$G72,1,aux!$AL$1))/INDEX($C72:$G72,1,aux!$AL$1),"n.d.") -> n.d. | AA72: =O72-INDEX($K72:$O72,1,aux!$AL$1) -> -8.435 | AB72: -0.0002335772293 | AC72: -0.0002178754302 | AD72: =+IF(INDEX($K72:$O72,1,aux!$AL$1)>0,(O72/INDEX($K72:$O72,1,aux!$AL$1))^(1/($O$3-INDEX($K$3:$O$3,1,aux!$AL$1)))-1,"n.d.") -> -0.7668462465 | AE72: =IF(INDEX($K72:$O72,1,aux!$AL$1)>0,(O72-INDEX($K72:$O72,1,aux!$AL$1))/INDEX($K72:$O72,1,aux!$AL$1),"n.d.") -> -0.9970449173 | AX72: 08
A73: 0812 | B73: Frutas conservadas transitoriamente | C73: 0 | D73: 0 | E73: 0 | F73: 0 | G73: 0 | H73: 0 | I73: 0 | J73: 0 | K73: 0 | L73: 0 | M73: 0 | N73: 0 | O73: 0 | P73: 0 | Q73: 0 | R73: 0 | S73: 0 | U73: =G73-INDEX($C73:$G73,1,aux!$AL$1) -> 0 | V73: 0 | W73: 0 | X73: =+IF(INDEX($C73:$G73,1,aux!$AL$1)>0,(G73/INDEX($C73:$G73,1,aux!$AL$1))^(1/($G$3-INDEX($C$3:$G$3,1,aux!$AL$1)))-1,"n.d.") -> n.d. | Y73: =IF(INDEX($C73:$G73,1,aux!$AL$1)>0,(G73-INDEX($C73:$G73,1,aux!$AL$1))/INDEX($C73:$G73,1,aux!$AL$1),"n.d.") -> n.d. | AA73: =O73-INDEX($K73:$O73,1,aux!$AL$1) -> 0 | AB73: 0 | AC73: 0 | AD73: =+IF(INDEX($K73:$O73,1,aux!$AL$1)>0,(O73/INDEX($K73:$O73,1,aux!$AL$1))^(1/($O$3-INDEX($K$3:$O$3,1,aux!$AL$1)))-1,"n.d.") -> n.d. | AE73: =IF(INDEX($K73:$O73,1,aux!$AL$1)>0,(O73-INDEX($K73:$O73,1,aux!$AL$1))/INDEX($K73:$O73,1,aux!$AL$1),"n.d.") -> n.d. | AX73: 08
A74: 0813 | B74: Outras frutas secas | C74: 2.826 | D74: 1.825 | E74: 3.565 | F74: 8.311 | G74: 5.774 | H74: 4.4602 | I74: 2.207159102e-05 | J74: 1.676921613e-05 | K74: 25.274 | L74: 40.917 | M74: 115.45 | N74: 1.323 | O74: 0.039 | P74: 36.6006 | Q74: 0.0001855527685 | R74: 6.474743192e-05 | S74: 32.1404 | U74: =G74-INDEX($C74:$G74,1,aux!$AL$1) -> 2.948 | V74: -0.0003399631922 | W74: -0.000166768172 | X74: =+IF(INDEX($C74:$G74,1,aux!$AL$1)>0,(G74/INDEX($C74:$G74,1,aux!$AL$1))^(1/($G$3-INDEX($C$3:$G$3,1,aux!$AL$1)))-1,"n.d.") -> 0.1955731565 | Y74: =IF(INDEX($C74:$G74,1,aux!$AL$1)>0,(G74-INDEX($C74:$G74,1,aux!$AL$1))/INDEX($C74:$G74,1,aux!$AL$1),"n.d.") -> 1.043170559 | AA74: =O74-INDEX($K74:$O74,1,aux!$AL$1) -> -25.235 | AB74: -0.0006987932877 | AC74: -0.0006518181956 | AD74: =+IF(INDEX($K74:$O74,1,aux!$AL$1)>0,(O74/INDEX($K74:$O74,1,aux!$AL$1))^(1/($O$3-INDEX($K$3:$O$3,1,aux!$AL$1)))-1,"n.d.") -> -0.8018027353 | AE74: =IF(INDEX($K74:$O74,1,aux!$AL$1)>0,(O74-INDEX($K74:$O74,1,aux!$AL$1))/INDEX($K74:$O74,1,aux!$AL$1),"n.d.") -> -0.9984569122 | AX74: 08
A75: 0814 | B75: Cascas de citrinos, melões ou melancias | C75: 0 | D75: 0 | E75: 0 | F75: 0 | G75: 0 | H75: 0 | I75: 0 | J75: 0 | K75: 0 | L75: 0 | M75: 0 | N75: 0 | O75: 0 | P75: 0 | Q75: 0 | R75: 0 | S75: 0 | U75: =G75-INDEX($C75:$G75,1,aux!$AL$1) -> 0 | V75: 0 | W75: 0 | X75: =+IF(INDEX($C75:$G75,1,aux!$AL$1)>0,(G75/INDEX($C75:$G75,1,aux!$AL$1))^(1/($G$3-INDEX($C$3:$G$3,1,aux!$AL$1)))-1,"n.d.") -> n.d. | Y75: =IF(INDEX($C75:$G75,1,aux!$AL$1)>0,(G75-INDEX($C75:$G75,1,aux!$AL$1))/INDEX($C75:$G75,1,aux!$AL$1),"n.d.") -> n.d. | AA75: =O75-INDEX($K75:$O75,1,aux!$AL$1) -> 0 | AB75: 0 | AC75: 0 | AD75: =+IF(INDEX($K75:$O75,1,aux!$AL$1)>0,(O75/INDEX($K75:$O75,1,aux!$AL$1))^(1/($O$3-INDEX($K$3:$O$3,1,aux!$AL$1)))-1,"n.d.") -> n.d. | AE75: =IF(INDEX($K75:$O75,1,aux!$AL$1)>0,(O75-INDEX($K75:$O75,1,aux!$AL$1))/INDEX($K75:$O75,1,aux!$AL$1),"n.d.") -> n.d. | AX75: =+LEFT(A75,2) -> 08
A76: 08SS | B76: Frutas; cascas de citrinos e de melões | C76: 0 | D76: 0 | E76: 0 | F76: 0 | G76: 0 | H76: 0 | I76: 0 | J76: 0 | K76: 0 | L76: 0 | M76: 0 | N76: 0 | O76: 0 | P76: 0 | Q76: 0 | R76: 0 | S76: 0 | U76: =G76-INDEX($C76:$G76,1,aux!$AL$1) -> 0 | V76: 0 | W76: 0 | X76: =+IF(INDEX($C76:$G76,1,aux!$AL$1)>0,(G76/INDEX($C76:$G76,1,aux!$AL$1))^(1/($G$3-INDEX($C$3:$G$3,1,aux!$AL$1)))-1,"n.d.") -> n.d. | Y76: =IF(INDEX($C76:$G76,1,aux!$AL$1)>0,(G76-INDEX($C76:$G76,1,aux!$AL$1))/INDEX($C76:$G76,1,aux!$AL$1),"n.d.") -> n.d. | AA76: =O76-INDEX($K76:$O76,1,aux!$AL$1) -> 0 | AB76: 0 | AC76: 0 | AD76: =+IF(INDEX($K76:$O76,1,aux!$AL$1)>0,(O76/INDEX($K76:$O76,1,aux!$AL$1))^(1/($O$3-INDEX($K$3:$O$3,1,aux!$AL$1)))-1,"n.d.") -> n.d. | AE76: =IF(INDEX($K76:$O76,1,aux!$AL$1)>0,(O76-INDEX($K76:$O76,1,aux!$AL$1))/INDEX($K76:$O76,1,aux!$AL$1),"n.d.") -> n.d. | AX76: 08
A77: 0901 | B77: Café | C77: 35.816 | D77: 67.414 | E77: 62.638 | F77: 71.63 | G77: 70.412 | H77: 61.582 | I77: 0.0003047425492 | J77: 0.000231532637 | K77: 1866.87 | L77: 1905.021 | M77: 1878.541 | N77: 2000.641 | O77: 2208.744 | P77: 1971.9634 | Q77: 0.00999719317 | R77: 0.003488455544 | S77: 1910.3814 | U77: =G77-INDEX($C77:$G77,1,aux!$AL$1) -> 34.596 | V77: -0.003989608751 | W77: -0.001957093514 | X77: =+IF(INDEX($C77:$G77,1,aux!$AL$1)>0,(G77/INDEX($C77:$G77,1,aux!$AL$1))^(1/($G$3-INDEX($C$3:$G$3,1,aux!$AL$1)))-1,"n.d.") -> 0.1841109568 | Y77: =IF(INDEX($C77:$G77,1,aux!$AL$1)>0,(G77-INDEX($C77:$G77,1,aux!$AL$1))/INDEX($C77:$G77,1,aux!$AL$1),"n.d.") -> 0.9659370114 | AA77: =O77-INDEX($K77:$O77,1,aux!$AL$1) -> 341.874 | AB77: 0.00946698064 | AC77: 0.008830580298 | AD77: =+IF(INDEX($K77:$O77,1,aux!$AL$1)>0,(O77/INDEX($K77:$O77,1,aux!$AL$1))^(1/($O$3-INDEX($K$3:$O$3,1,aux!$AL$1)))-1,"n.d.") -> 0.04293640303 | AE77: =IF(INDEX($K77:$O77,1,aux!$AL$1)>0,(O77-INDEX($K77:$O77,1,aux!$AL$1))/INDEX($K77:$O77,1,aux!$AL$1),"n.d.") -> 0.183126838 | AX77: 09
A78: 0902 | B78: Chá | C78: 1.453 | D78: 2.676 | E78: 11.63 | F78: 8 | G78: 9.19 | H78: 6.5898 | I78: 3.261005571e-05 | J78: 2.477596978e-05 | K78: 69.306 | L78: 102.173 | M78: 75.2 | N78: 69.222 | O78: 91.448 | P78: 81.4698 | Q78: 0.0004130245663 | R78: 0.0001441222365 | S78: 74.88 | U78: =G78-INDEX($C78:$G78,1,aux!$AL$1) -> 7.737 | V78: -0.0008922303996 | W78: -0.0004376815966 | X78: =+IF(INDEX($C78:$G78,1,aux!$AL$1)>0,(G78/INDEX($C78:$G78,1,aux!$AL$1))^(1/($G$3-INDEX($C$3:$G$3,1,aux!$AL$1)))-1,"n.d.") -> 0.5858513428 | Y78: =IF(INDEX($C78:$G78,1,aux!$AL$1)>0,(G78-INDEX($C78:$G78,1,aux!$AL$1))/INDEX($C78:$G78,1,aux!$AL$1),"n.d.") -> 5.324845148 | AA78: =O78-INDEX($K78:$O78,1,aux!$AL$1) -> 22.142 | AB78: 0.0006131436884 | AC78: 0.0005719262329 | AD78: =+IF(INDEX($K78:$O78,1,aux!$AL$1)>0,(O78/INDEX($K78:$O78,1,aux!$AL$1))^(1/($O$3-INDEX($K$3:$O$3,1,aux!$AL$1)))-1,"n.d.") -> 0.07176814386 | AE78: =IF(INDEX($K78:$O78,1,aux!$AL$1)>0,(O78-INDEX($K78:$O78,1,aux!$AL$1))/INDEX($K78:$O78,1,aux!$AL$1),"n.d.") -> 0.3194817188 | AX78: 09
A79: 0903 | B79: Mate | C79: 0 | D79: 0.157 | E79: 0.742 | F79: 0.879 | G79: 0.283 | H79: 0.4122 | I79: 2.039798623e-06 | J79: 1.549767026e-06 | K79: 0.124 | L79: 0.17 | M79: 4.383 | N79: 1.583 | O79: 4.28 | P79: 2.108 | Q79: 1.068685311e-05 | R79: 3.729107897e-06 | S79: 1.6958 | U79: =G79-INDEX($C79:$G79,1,aux!$AL$1) -> 0.283 | V79: -3.263554389e-05 | W79: -1.600929195e-05 | X79: =+IF(INDEX($C79:$G79,1,aux!$AL$1)>0,(G79/INDEX($C79:$G79,1,aux!$AL$1))^(1/($G$3-INDEX($C$3:$G$3,1,aux!$AL$1)))-1,"n.d.") -> n.d. | Y79: =IF(INDEX($C79:$G79,1,aux!$AL$1)>0,(G79-INDEX($C79:$G79,1,aux!$AL$1))/INDEX($C79:$G79,1,aux!$AL$1),"n.d.") -> n.d. | AA79: =O79-INDEX($K79:$O79,1,aux!$AL$1) -> 4.156 | AB79: 0.0001150855916 | AC79: 0.0001073491746 | AD79: =+IF(INDEX($K79:$O79,1,aux!$AL$1)>0,(O79/INDEX($K79:$O79,1,aux!$AL$1))^(1/($O$3-INDEX($K$3:$O$3,1,aux!$AL$1)))-1,"n.d.") -> 1.423848778 | AE79: =IF(INDEX($K79:$O79,1,aux!$AL$1)>0,(O79-INDEX($K79:$O79,1,aux!$AL$1))/INDEX($K79:$O79,1,aux!$AL$1),"n.d.") -> 33.51612903 | AX79: 09
A80: 0904 | B80: Pimenta | C80: 0.886 | D80: 0.185 | E80: 10.895 | F80: 1.829 | G80: 3.98 | H80: 3.555 | I80: 1.759214969e-05 | J80: 1.336589465e-05 | K80: 16.097 | L80: 30.811 | M80: 15.07 | N80: 49.204 | O80: 16.114 | P80: 25.4592 | Q80: 0.0001290696066 | R80: 4.503799989e-05 | S80: 21.9042 | U80: =G80-INDEX($C80:$G80,1,aux!$AL$1) -> 3.094 | V80: -0.0003567999039 | W80: -0.0001750273827 | X80: =+IF(INDEX($C80:$G80,1,aux!$AL$1)>0,(G80/INDEX($C80:$G80,1,aux!$AL$1))^(1/($G$3-INDEX($C$3:$G$3,1,aux!$AL$1)))-1,"n.d.") -> 0.4558356082 | Y80: =IF(INDEX($C80:$G80,1,aux!$AL$1)>0,(G80-INDEX($C80:$G80,1,aux!$AL$1))/INDEX($C80:$G80,1,aux!$AL$1),"n.d.") -> 3.492099323 | AA80: =O80-INDEX($K80:$O80,1,aux!$AL$1) -> 0.017 | AB80: 4.707543448e-07 | AC80: 4.391087508e-07 | AD80: =+IF(INDEX($K80:$O80,1,aux!$AL$1)>0,(O80/INDEX($K80:$O80,1,aux!$AL$1))^(1/($O$3-INDEX($K$3:$O$3,1,aux!$AL$1)))-1,"n.d.") -> 0.0002639198534 | AE80: =IF(INDEX($K80:$O80,1,aux!$AL$1)>0,(O80-INDEX($K80:$O80,1,aux!$AL$1))/INDEX($K80:$O80,1,aux!$AL$1),"n.d.") -> 0.001056097409 | AX80: 09
A81: 0905 | B81: Baunilha | C81: 0 | D81: 0 | E81: 0 | F81: 0.139 | G81: 0 | H81: 0.0278 | I81: 1.375701158e-07 | J81: 1.045209202e-07 | K81: 0 | L81: 0 | M81: 0 | N81: 0 | O81: 0 | P81: 0 | Q81: 0 | R81: 0 | S81: -0.0278 | U81: =G81-INDEX($C81:$G81,1,aux!$AL$1) -> 0 | V81: 0 | W81: 0 | X81: =+IF(INDEX($C81:$G81,1,aux!$AL$1)>0,(G81/INDEX($C81:$G81,1,aux!$AL$1))^(1/($G$3-INDEX($C$3:$G$3,1,aux!$AL$1)))-1,"n.d.") -> n.d. | Y81: =IF(INDEX($C81:$G81,1,aux!$AL$1)>0,(G81-INDEX($C81:$G81,1,aux!$AL$1))/INDEX($C81:$G81,1,aux!$AL$1),"n.d.") -> n.d. | AA81: =O81-INDEX($K81:$O81,1,aux!$AL$1) -> 0 | AB81: 0 | AC81: 0 | AD81: =+IF(INDEX($K81:$O81,1,aux!$AL$1)>0,(O81/INDEX($K81:$O81,1,aux!$AL$1))^(1/($O$3-INDEX($K$3:$O$3,1,aux!$AL$1)))-1,"n.d.") -> n.d. | AE81: =IF(INDEX($K81:$O81,1,aux!$AL$1)>0,(O81-INDEX($K81:$O81,1,aux!$AL$1))/INDEX($K81:$O81,1,aux!$AL$1),"n.d.") -> n.d. | AX81: 09
A82: 0906 | B82: Canela | C82: 0.321 | D82: 0 | E82: 0 | F82: 0 | G82: 0.052 | H82: 0.0746 | I82: 3.691629725e-07 | J82: 2.804770017e-07 | K82: 1.281 | L82: 1.585 | M82: 2.142 | N82: 1.385 | O82: 1.572 | P82: 1.593 | Q82: 8.075975812e-06 | R82: 2.818059241e-06 | S82: 1.5184 | U82: =G82-INDEX($C82:$G82,1,aux!$AL$1) -> -0.269 | V82: 3.102106469e-05 | W82: 1.521731284e-05 | X82: =+IF(INDEX($C82:$G82,1,aux!$AL$1)>0,(G82/INDEX($C82:$G82,1,aux!$AL$1))^(1/($G$3-INDEX($C$3:$G$3,1,aux!$AL$1)))-1,"n.d.") -> -0.365583342 | Y82: =IF(INDEX($C82:$G82,1,aux!$AL$1)>0,(G82-INDEX($C82:$G82,1,aux!$AL$1))/INDEX($C82:$G82,1,aux!$AL$1),"n.d.") -> -0.8380062305 | AA82: =O82-INDEX($K82:$O82,1,aux!$AL$1) -> 0.291 | AB82: 8.058206726e-06 | AC82: 7.516508616e-06 | AD82: =+IF(INDEX($K82:$O82,1,aux!$AL$1)>0,(O82/INDEX($K82:$O82,1,aux!$AL$1))^(1/($O$3-INDEX($K$3:$O$3,1,aux!$AL$1)))-1,"n.d.") -> 0.05250908438 | AE82: =IF(INDEX($K82:$O82,1,aux!$AL$1)>0,(O82-INDEX($K82:$O82,1,aux!$AL$1))/INDEX($K82:$O82,1,aux!$AL$1),"n.d.") -> 0.2271662763 | AX82: 09
A83: 0907 | B83: Cravo-da-índia | C83: 0.27 | D83: 0.064 | E83: 0 | F83: 0 | G83: 0 | H83: 0.0668 | I83: 3.30564163e-07 | J83: 2.511509881e-07 | K83: 0 | L83: 0 | M83: 0 | N83: 0.305 | O83: 0 | P83: 0.061 | Q83: 3.092495446e-07 | R83: 1.079106175e-07 | S83: -0.0058 | U83: =G83-INDEX($C83:$G83,1,aux!$AL$1) -> -0.27 | V83: 3.113638463e-05 | W83: 1.527388278e-05 | X83: =+IF(INDEX($C83:$G83,1,aux!$AL$1)>0,(G83/INDEX($C83:$G83,1,aux!$AL$1))^(1/($G$3-INDEX($C$3:$G$3,1,aux!$AL$1)))-1,"n.d.") -> -1 | Y83: =IF(INDEX($C83:$G83,1,aux!$AL$1)>0,(G83-INDEX($C83:$G83,1,aux!$AL$1))/INDEX($C83:$G83,1,aux!$AL$1),"n.d.") -> -1 | AA83: =O83-INDEX($K83:$O83,1,aux!$AL$1) -> 0 | AB83: 0 | AC83: 0 | AD83: =+IF(INDEX($K83:$O83,1,aux!$AL$1)>0,(O83/INDEX($K83:$O83,1,aux!$AL$1))^(1/($O$3-INDEX($K$3:$O$3,1,aux!$AL$1)))-1,"n.d.") -> n.d. | AE83: =IF(INDEX($K83:$O83,1,aux!$AL$1)>0,(O83-INDEX($K83:$O83,1,aux!$AL$1))/INDEX($K83:$O83,1,aux!$AL$1),"n.d.") -> n.d. | AX83: 09
A84: 0908 | B84: Noz-moscada, etc. | C84: 0.293 | D84: 0 | E84: 2.111 | F84: 0 | G84: 0.011 | H84: 0.483 | I84: 2.390157047e-06 | J84: 1.815956995e-06 | K84: 0 | L84: 0.057 | M84: 0 | N84: 0 | O84: 0.302 | P84: 0.0718 | Q84: 3.64001923e-07 | R84: 1.270161039e-07 | S84: -0.4112 | U84: =G84-INDEX($C84:$G84,1,aux!$AL$1) -> -0.282 | V84: 3.252022395e-05 | W84: 1.595272202e-05 | X84: =+IF(INDEX($C84:$G84,1,aux!$AL$1)>0,(G84/INDEX($C84:$G84,1,aux!$AL$1))^(1/($G$3-INDEX($C$3:$G$3,1,aux!$AL$1)))-1,"n.d.") -> -0.5598190269 | Y84: =IF(INDEX($C84:$G84,1,aux!$AL$1)>0,(G84-INDEX($C84:$G84,1,aux!$AL$1))/INDEX($C84:$G84,1,aux!$AL$1),"n.d.") -> -0.9624573379 | AA84: =O84-INDEX($K84:$O84,1,aux!$AL$1) -> 0.302 | AB84: 8.362812478e-06 | AC84: 7.800637808e-06 | AD84: =+IF(INDEX($K84:$O84,1,aux!$AL$1)>0,(O84/INDEX($K84:$O84,1,aux!$AL$1))^(1/($O$3-INDEX($K$3:$O$3,1,aux!$AL$1)))-1,"n.d.") -> n.d. | AE84: =IF(INDEX($K84:$O84,1,aux!$AL$1)>0,(O84-INDEX($K84:$O84,1,aux!$AL$1))/INDEX($K84:$O84,1,aux!$AL$1),"n.d.") -> n.d. | AX84: 09
A85: 0909 | B85: Sementes de anis, funcho, etc. | C85: 0.471 | D85: 0.05 | E85: 1.729 | F85: 0 | G85: 0 | H85: 0.45 | I85: 2.226854392e-06 | J85: 1.691885399e-06 | K85: 0.98 | L85: 1.215 | M85: 0.36 | N85: 3.329 | O85: 1.2 | P85: 1.4168 | Q85: 7.182700898e-06 | R85: 2.506356769e-06 | S85: 0.9668 | U85: =G85-INDEX($C85:$G85,1,aux!$AL$1) -> -0.471 | V85: 5.431569319e-05 | W85: 2.664443996e-05 | X85: =+IF(INDEX($C85:$G85,1,aux!$AL$1)>0,(G85/INDEX($C85:$G85,1,aux!$AL$1))^(1/($G$3-INDEX($C$3:$G$3,1,aux!$AL$1)))-1,"n.d.") -> -1 | Y85: =IF(INDEX($C85:$G85,1,aux!$AL$1)>0,(G85-INDEX($C85:$G85,1,aux!$AL$1))/INDEX($C85:$G85,1,aux!$AL$1),"n.d.") -> -1 | AA85: =O85-INDEX($K85:$O85,1,aux!$AL$1) -> 0.22 | AB85: 6.09211505e-06 | AC85: 5.682583834e-06 | AD85: =+IF(INDEX($K85:$O85,1,aux!$AL$1)>0,(O85/INDEX($K85:$O85,1,aux!$AL$1))^(1/($O$3-INDEX($K$3:$O$3,1,aux!$AL$1)))-1,"n.d.") -> 0.05193472723 | AE85: =IF(INDEX($K85:$O85,1,aux!$AL$1)>0,(O85-INDEX($K85:$O85,1,aux!$AL$1))/INDEX($K85:$O85,1,aux!$AL$1),"n.d.") -> 0.2244897959 | AX85: 09
A86: 0910 | B86: Gengibre, açafrão, tomilho, louro, etc. | C86: 66.883 | D86: 23.304 | E86: 78.971 | F86: 51.792 | G86: 110.328 | H86: 66.2556 | I86: 0.0003278701641 | J86: 0.0002491041828 | K86: 327.078 | L86: 218.757 | M86: 372.814 | N86: 186.632 | O86: 387.565 | P86: 298.5692 | Q86: 0.001513645723 | R86: 0.0005281768318 | S86: 232.3136 | U86: =G86-INDEX($C86:$G86,1,aux!$AL$1) -> 43.445 | V86: -0.005010074927 | W86: -0.002457680879 | X86: =+IF(INDEX($C86:$G86,1,aux!$AL$1)>0,(G86/INDEX($C86:$G86,1,aux!$AL$1))^(1/($G$3-INDEX($C$3:$G$3,1,aux!$AL$1)))-1,"n.d.") -> 0.1332937668 | Y86: =IF(INDEX($C86:$G86,1,aux!$AL$1)>0,(G86-INDEX($C86:$G86,1,aux!$AL$1))/INDEX($C86:$G86,1,aux!$AL$1),"n.d.") -> 0.6495671546 | AA86: =O86-INDEX($K86:$O86,1,aux!$AL$1) -> 60.487 | AB86: 0.00167497165 | AC86: 0.001562374765 | AD86: =+IF(INDEX($K86:$O86,1,aux!$AL$1)>0,(O86/INDEX($K86:$O86,1,aux!$AL$1))^(1/($O$3-INDEX($K$3:$O$3,1,aux!$AL$1)))-1,"n.d.") -> 0.04333386506 | AE86: =IF(INDEX($K86:$O86,1,aux!$AL$1)>0,(O86-INDEX($K86:$O86,1,aux!$AL$1))/INDEX($K86:$O86,1,aux!$AL$1),"n.d.") -> 0.1849314231 | AX86: 09
A87: 09SS | B87: Café, chá, mate e especiarias | C87: 0 | D87: 0 | E87: 0 | F87: 0 | G87: 0 | H87: 0 | I87: 0 | J87: 0 | K87: 0 | L87: 0 | M87: 0 | N87: 0 | O87: 0 | P87: 0 | Q87: 0 | R87: 0 | S87: 0 | U87: =G87-INDEX($C87:$G87,1,aux!$AL$1) -> 0 | V87: 0 | W87: 0 | X87: =+IF(INDEX($C87:$G87,1,aux!$AL$1)>0,(G87/INDEX($C87:$G87,1,aux!$AL$1))^(1/($G$3-INDEX($C$3:$G$3,1,aux!$AL$1)))-1,"n.d.") -> n.d. | Y87: =IF(INDEX($C87:$G87,1,aux!$AL$1)>0,(G87-INDEX($C87:$G87,1,aux!$AL$1))/INDEX($C87:$G87,1,aux!$AL$1),"n.d.") -> n.d. | AA87: =O87-INDEX($K87:$O87,1,aux!$AL$1) -> 0 | AB87: 0 | AC87: 0 | AD87: =+IF(INDEX($K87:$O87,1,aux!$AL$1)>0,(O87/INDEX($K87:$O87,1,aux!$AL$1))^(1/($O$3-INDEX($K$3:$O$3,1,aux!$AL$1)))-1,"n.d.") -> n.d. | AE87: =IF(INDEX($K87:$O87,1,aux!$AL$1)>0,(O87-INDEX($K87:$O87,1,aux!$AL$1))/INDEX($K87:$O87,1,aux!$AL$1),"n.d.") -> n.d. | AX87: 09
A88: 1001 | B88: Trigo e mistura trigo/centeio | C88: 5863.033 | D88: 11529.093 | E88: 4803.613 | F88: 9060.613 | G88: 0 | H88: 6251.2704 | I88: 0.03093481987 | J88: 0.0235031847 | K88: 0 | L88: 0 | M88: 0 | N88: 0 | O88: 0 | P88: 0 | Q88: 0 | R88: 0 | S88: -6251.2704 | U88: =G88-INDEX($C88:$G88,1,aux!$AL$1) -> -5863.033 | V88: 0.6761246318 | W88: 0.3316714029 | X88: =+IF(INDEX($C88:$G88,1,aux!$AL$1)>0,(G88/INDEX($C88:$G88,1,aux!$AL$1))^(1/($G$3-INDEX($C$3:$G$3,1,aux!$AL$1)))-1,"n.d.") -> -1 | Y88: =IF(INDEX($C88:$G88,1,aux!$AL$1)>0,(G88-INDEX($C88:$G88,1,aux!$AL$1))/INDEX($C88:$G88,1,aux!$AL$1),"n.d.") -> -1 | AA88: =O88-INDEX($K88:$O88,1,aux!$AL$1) -> 0 | AB88: 0 | AC88: 0 | AD88: =+IF(INDEX($K88:$O88,1,aux!$AL$1)>0,(O88/INDEX($K88:$O88,1,aux!$AL$1))^(1/($O$3-INDEX($K$3:$O$3,1,aux!$AL$1)))-1,"n.d.") -> n.d. | AE88: =IF(INDEX($K88:$O88,1,aux!$AL$1)>0,(O88-INDEX($K88:$O88,1,aux!$AL$1))/INDEX($K88:$O88,1,aux!$AL$1),"n.d.") -> n.d. | AX88: 10
A89: 1002 | B89: Centeio | C89: 0 | D89: 0 | E89: 0 | F89: 0 | G89: 0 | H89: 0 | I89: 0 | J89: 0 | K89: 0 | L89: 0 | M89: 0 | N89: 0 | O89: 0 | P89: 0 | Q89: 0 | R89: 0 | S89: 0 | U89: =G89-INDEX($C89:$G89,1,aux!$AL$1) -> 0 | V89: 0 | W89: 0 | X89: =+IF(INDEX($C89:$G89,1,aux!$AL$1)>0,(G89/INDEX($C89:$G89,1,aux!$AL$1))^(1/($G$3-INDEX($C$3:$G$3,1,aux!$AL$1)))-1,"n.d.") -> n.d. | Y89: =IF(INDEX($C89:$G89,1,aux!$AL$1)>0,(G89-INDEX($C89:$G89,1,aux!$AL$1))/INDEX($C89:$G89,1,aux!$AL$1),"n.d.") -> n.d. | AA89: =O89-INDEX($K89:$O89,1,aux!$AL$1) -> 0 | AB89: 0 | AC89: 0 | AD89: =+IF(INDEX($K89:$O89,1,aux!$AL$1)>0,(O89/INDEX($K89:$O89,1,aux!$AL$1))^(1/($O$3-INDEX($K$3:$O$3,1,aux!$AL$1)))-1,"n.d.") -> n.d. | AE89: =IF(INDEX($K89:$O89,1,aux!$AL$1)>0,(O89-INDEX($K89:$O89,1,aux!$AL$1))/INDEX($K89:$O89,1,aux!$AL$1),"n.d.") -> n.d. | AX89: 10
A90: 1003 | B90: Cevada | C90: 0 | D90: 0 | E90: 0 | F90: 0 | G90: 0 | H90: 0 | I90: 0 | J90: 0 | K90: 2.153 | L90: 1.942 | M90: 2.56 | N90: 0 | O90: 0 | P90: 1.331 | Q90: 6.747723669e-06 | R90: 2.354574293e-06 | S90: 1.331 | U90: =G90-INDEX($C90:$G90,1,aux!$AL$1) -> 0 | V90: 0 | W90: 0 | X90: =+IF(INDEX($C90:$G90,1,aux!$AL$1)>0,(G90/INDEX($C90:$G90,1,aux!$AL$1))^(1/($G$3-INDEX($C$3:$G$3,1,aux!$AL$1)))-1,"n.d.") -> n.d. | Y90: =IF(INDEX($C90:$G90,1,aux!$AL$1)>0,(G90-INDEX($C90:$G90,1,aux!$AL$1))/INDEX($C90:$G90,1,aux!$AL$1),"n.d.") -> n.d. | AA90: =O90-INDEX($K90:$O90,1,aux!$AL$1) -> -2.153 | AB90: -5.96196532e-05 | AC90: -5.561183179e-05 | AD90: =+IF(INDEX($K90:$O90,1,aux!$AL$1)>0,(O90/INDEX($K90:$O90,1,aux!$AL$1))^(1/($O$3-INDEX($K$3:$O$3,1,aux!$AL$1)))-1,"n.d.") -> -1 | AE90: =IF(INDEX($K90:$O90,1,aux!$AL$1)>0,(O90-INDEX($K90:$O90,1,aux!$AL$1))/INDEX($K90:$O90,1,aux!$AL$1),"n.d.") -> -1 | AX90: 10
A91: 1004 | B91: Aveia | C91: 0 | D91: 0 | E91: 0 | F91: 0 | G91: 0 | H91: 0 | I91: 0 | J91: 0 | K91: 0 | L91: 0 | M91: 0 | N91: 0 | O91: 0 | P91: 0 | Q91: 0 | R91: 0 | S91: 0 | U91: =G91-INDEX($C91:$G91,1,aux!$AL$1) -> 0 | V91: 0 | W91: 0 | X91: =+IF(INDEX($C91:$G91,1,aux!$AL$1)>0,(G91/INDEX($C91:$G91,1,aux!$AL$1))^(1/($G$3-INDEX($C$3:$G$3,1,aux!$AL$1)))-1,"n.d.") -> n.d. | Y91: =IF(INDEX($C91:$G91,1,aux!$AL$1)>0,(G91-INDEX($C91:$G91,1,aux!$AL$1))/INDEX($C91:$G91,1,aux!$AL$1),"n.d.") -> n.d. | AA91: =O91-INDEX($K91:$O91,1,aux!$AL$1) -> 0 | AB91: 0 | AC91: 0 | AD91: =+IF(INDEX($K91:$O91,1,aux!$AL$1)>0,(O91/INDEX($K91:$O91,1,aux!$AL$1))^(1/($O$3-INDEX($K$3:$O$3,1,aux!$AL$1)))-1,"n.d.") -> n.d. | AE91: =IF(INDEX($K91:$O91,1,aux!$AL$1)>0,(O91-INDEX($K91:$O91,1,aux!$AL$1))/INDEX($K91:$O91,1,aux!$AL$1),"n.d.") -> n.d. | AX91: 10
A92: 1005 | B92: Milho | C92: 88.027 | D92: 20.034 | E92: 21.069 | F92: 8764.558 | G92: 4584.808 | H92: 2695.6992 | I92: 0.01333984356 | J92: 0.01013514248 | K92: 0 | L92: 0 | M92: 0 | N92: 0.786 | O92: 0.493 | P92: 0.2558 | Q92: 1.296820221e-06 | R92: 4.525169829e-07 | S92: -2695.4434 | U92: =G92-INDEX($C92:$G92,1,aux!$AL$1) -> 4496.781 | V92: -0.5185685289 | W92: -0.2543826144 | X92: =+IF(INDEX($C92:$G92,1,aux!$AL$1)>0,(G92/INDEX($C92:$G92,1,aux!$AL$1))^(1/($G$3-INDEX($C$3:$G$3,1,aux!$AL$1)))-1,"n.d.") -> 1.686434852 | Y92: =IF(INDEX($C92:$G92,1,aux!$AL$1)>0,(G92-INDEX($C92:$G92,1,aux!$AL$1))/INDEX($C92:$G92,1,aux!$AL$1),"n.d.") -> 51.08411056 | AA92: =O92-INDEX($K92:$O92,1,aux!$AL$1) -> 0.493 | AB92: 1.3651876e-05 | AC92: 1.273415377e-05 | AD92: =+IF(INDEX($K92:$O92,1,aux!$AL$1)>0,(O92/INDEX($K92:$O92,1,aux!$AL$1))^(1/($O$3-INDEX($K$3:$O$3,1,aux!$AL$1)))-1,"n.d.") -> n.d. | AE92: =IF(INDEX($K92:$O92,1,aux!$AL$1)>0,(O92-INDEX($K92:$O92,1,aux!$AL$1))/INDEX($K92:$O92,1,aux!$AL$1),"n.d.") -> n.d. | AX92: 10
A93: 1006 | B93: Arroz | C93: 2984.538 | D93: 2351.13 | E93: 99.255 | F93: 114.317 | G93: 0 | H93: 1109.848 | I93: 0.005492155318 | J93: 0.004172745836 | K93: 37.999 | L93: 176.61 | M93: 147.16 | N93: 399.825 | O93: 169.784 | P93: 186.2756 | Q93: 0.0009443548273 | R93: 0.0003295264758 | S93: -923.5724 | U93: =G93-INDEX($C93:$G93,1,aux!$AL$1) -> -2984.538 | V93: 0.3441767523 | W93: 0.1688351243 | X93: =+IF(INDEX($C93:$G93,1,aux!$AL$1)>0,(G93/INDEX($C93:$G93,1,aux!$AL$1))^(1/($G$3-INDEX($C$3:$G$3,1,aux!$AL$1)))-1,"n.d.") -> -1 | Y93: =IF(INDEX($C93:$G93,1,aux!$AL$1)>0,(G93-INDEX($C93:$G93,1,aux!$AL$1))/INDEX($C93:$G93,1,aux!$AL$1),"n.d.") -> -1 | AA93: =O93-INDEX($K93:$O93,1,aux!$AL$1) -> 131.785 | AB93: 0.003649315372 | AC93: 0.003403996866 | AD93: =+IF(INDEX($K93:$O93,1,aux!$AL$1)>0,(O93/INDEX($K93:$O93,1,aux!$AL$1))^(1/($O$3-INDEX($K$3:$O$3,1,aux!$AL$1)))-1,"n.d.") -> 0.4538886573 | AE93: =IF(INDEX($K93:$O93,1,aux!$AL$1)>0,(O93-INDEX($K93:$O93,1,aux!$AL$1))/INDEX($K93:$O93,1,aux!$AL$1),"n.d.") -> 3.468117582 | AX93: 10
A94: 1007 | B94: Sorgo de grão | C94: 271.322 | D94: 0 | E94: 0 | F94: 0 | G94: 0 | H94: 54.2644 | I94: 0.0002685309277 | J94: 0.0002040203246 | K94: 0 | L94: 0 | M94: 0 | N94: 0 | O94: 0 | P94: 0 | Q94: 0 | R94: 0 | S94: -54.2644 | U94: =G94-INDEX($C94:$G94,1,aux!$AL$1) -> -271.322 | V94: 0.03128883759 | W94: 0.01534866824 | X94: =+IF(INDEX($C94:$G94,1,aux!$AL$1)>0,(G94/INDEX($C94:$G94,1,aux!$AL$1))^(1/($G$3-INDEX($C$3:$G$3,1,aux!$AL$1)))-1,"n.d.") -> -1 | Y94: =IF(INDEX($C94:$G94,1,aux!$AL$1)>0,(G94-INDEX($C94:$G94,1,aux!$AL$1))/INDEX($C94:$G94,1,aux!$AL$1),"n.d.") -> -1 | AA94: =O94-INDEX($K94:$O94,1,aux!$AL$1) -> 0 | AB94: 0 | AC94: 0 | AD94: =+IF(INDEX($K94:$O94,1,aux!$AL$1)>0,(O94/INDEX($K94:$O94,1,aux!$AL$1))^(1/($O$3-INDEX($K$3:$O$3,1,aux!$AL$1)))-1,"n.d.") -> n.d. | AE94: =IF(INDEX($K94:$O94,1,aux!$AL$1)>0,(O94-INDEX($K94:$O94,1,aux!$AL$1))/INDEX($K94:$O94,1,aux!$AL$1),"n.d.") -> n.d. | AX94: 10
A95: 1008 | B95: Trigo mourisco, painço e outros cereais | C95: 114.237 | D95: 18.899 | E95: 44.374 | F95: 67.376 | G95: 84.304 | H95: 65.838 | I95: 0.0003258036432 | J95: 0.0002475341131 | K95: 0 | L95: 0.195 | M95: 20.369 | N95: 0.371 | O95: 0.042 | P95: 4.1954 | Q95: 2.126927114e-05 | R95: 7.421773847e-06 | S95: -61.6426 | U95: =G95-INDEX($C95:$G95,1,aux!$AL$1) -> -29.933 | V95: 0.003451871856 | W95: 0.001693307901 | X95: =+IF(INDEX($C95:$G95,1,aux!$AL$1)>0,(G95/INDEX($C95:$G95,1,aux!$AL$1))^(1/($G$3-INDEX($C$3:$G$3,1,aux!$AL$1)))-1,"n.d.") -> -0.07314809278 | Y95: =IF(INDEX($C95:$G95,1,aux!$AL$1)>0,(G95-INDEX($C95:$G95,1,aux!$AL$1))/INDEX($C95:$G95,1,aux!$AL$1),"n.d.") -> -0.2620254383 | AA95: =O95-INDEX($K95:$O95,1,aux!$AL$1) -> 0.042 | AB95: 1.163040146e-06 | AC95: 1.084856914e-06 | AD95: =+IF(INDEX($K95:$O95,1,aux!$AL$1)>0,(O95/INDEX($K95:$O95,1,aux!$AL$1))^(1/($O$3-INDEX($K$3:$O$3,1,aux!$AL$1)))-1,"n.d.") -> n.d. | AE95: =IF(INDEX($K95:$O95,1,aux!$AL$1)>0,(O95-INDEX($K95:$O95,1,aux!$AL$1))/INDEX($K95:$O95,1,aux!$AL$1),"n.d.") -> n.d. | AX95: 10
A96: 10SS | B96: Cereais | C96: 0 | D96: 0 | E96: 0 | F96: 0 | G96: 0 | H96: 0 | I96: 0 | J96: 0 | K96: 0 | L96: 0 | M96: 0 | N96: 0 | O96: 0 | P96: 0 | Q96: 0 | R96: 0 | S96: 0 | U96: =G96-INDEX($C96:$G96,1,aux!$AL$1) -> 0 | V96: 0 | W96: 0 | X96: =+IF(INDEX($C96:$G96,1,aux!$AL$1)>0,(G96/INDEX($C96:$G96,1,aux!$AL$1))^(1/($G$3-INDEX($C$3:$G$3,1,aux!$AL$1)))-1,"n.d.") -> n.d. | Y96: =IF(INDEX($C96:$G96,1,aux!$AL$1)>0,(G96-INDEX($C96:$G96,1,aux!$AL$1))/INDEX($C96:$G96,1,aux!$AL$1),"n.d.") -> n.d. | AA96: =O96-INDEX($K96:$O96,1,aux!$AL$1) -> 0 | AB96: 0 | AC96: 0 | AD96: =+IF(INDEX($K96:$O96,1,aux!$AL$1)>0,(O96/INDEX($K96:$O96,1,aux!$AL$1))^(1/($O$3-INDEX($K$3:$O$3,1,aux!$AL$1)))-1,"n.d.") -> n.d. | AE96: =IF(INDEX($K96:$O96,1,aux!$AL$1)>0,(O96-INDEX($K96:$O96,1,aux!$AL$1))/INDEX($K96:$O96,1,aux!$AL$1),"n.d.") -> n.d. | AX96: 10
A97: 1101 | B97: Farinhas de trigo ou trigo/centeio | C97: 55.759 | D97: 50.067 | E97: 51.76 | F97: 17.381 | G97: 4.073 | H97: 35.808 | I97: 0.0001771982268 | J97: 0.0001346289608 | K97: 36.739 | L97: 47.659 | M97: 45.992 | N97: 46.881 | O97: 57.306 | P97: 46.9154 | Q97: 0.0002378453456 | R97: 8.299458663e-05 | S97: 11.1074 | U97: =G97-INDEX($C97:$G97,1,aux!$AL$1) -> -51.686 | V97: 0.005960426578 | W97: 0.002923873724 | X97: =+IF(INDEX($C97:$G97,1,aux!$AL$1)>0,(G97/INDEX($C97:$G97,1,aux!$AL$1))^(1/($G$3-INDEX($C$3:$G$3,1,aux!$AL$1)))-1,"n.d.") -> -0.4801238927 | Y97: =IF(INDEX($C97:$G97,1,aux!$AL$1)>0,(G97-INDEX($C97:$G97,1,aux!$AL$1))/INDEX($C97:$G97,1,aux!$AL$1),"n.d.") -> -0.9269534963 | AA97: =O97-INDEX($K97:$O97,1,aux!$AL$1) -> 20.567 | AB97: 0.0005695296829 | AC97: 0.0005312440987 | AD97: =+IF(INDEX($K97:$O97,1,aux!$AL$1)>0,(O97/INDEX($K97:$O97,1,aux!$AL$1))^(1/($O$3-INDEX($K$3:$O$3,1,aux!$AL$1)))-1,"n.d.") -> 0.1175531605 | AE97: =IF(INDEX($K97:$O97,1,aux!$AL$1)>0,(O97-INDEX($K97:$O97,1,aux!$AL$1))/INDEX($K97:$O97,1,aux!$AL$1),"n.d.") -> 0.5598138218 | AX97: 11
A98: 1102 | B98: Outras farinhas de cereais | C98: 168.739 | D98: 87.665 | E98: 1.323 | F98: 0.681 | G98: 0.232 | H98: 51.728 | I98: 0.0002559793866 | J98: 0.0001944841065 | K98: 16.166 | L98: 17.075 | M98: 9.693 | N98: 11.604 | O98: 10.88 | P98: 13.0836 | Q98: 6.632946461e-05 | R98: 2.314523533e-05 | S98: -38.6444 | U98: =G98-INDEX($C98:$G98,1,aux!$AL$1) -> -168.507 | V98: 0.01943221765 | W98: 0.009532430243 | X98: =+IF(INDEX($C98:$G98,1,aux!$AL$1)>0,(G98/INDEX($C98:$G98,1,aux!$AL$1))^(1/($G$3-INDEX($C$3:$G$3,1,aux!$AL$1)))-1,"n.d.") -> -0.8074390905 | Y98: =IF(INDEX($C98:$G98,1,aux!$AL$1)>0,(G98-INDEX($C98:$G98,1,aux!$AL$1))/INDEX($C98:$G98,1,aux!$AL$1),"n.d.") -> -0.9986250956 | AA98: =O98-INDEX($K98:$O98,1,aux!$AL$1) -> -5.286 | AB98: -0.0001463769098 | AC98: -0.0001365369916 | AD98: =+IF(INDEX($K98:$O98,1,aux!$AL$1)>0,(O98/INDEX($K98:$O98,1,aux!$AL$1))^(1/($O$3-INDEX($K$3:$O$3,1,aux!$AL$1)))-1,"n.d.") -> -0.09425367577 | AE98: =IF(INDEX($K98:$O98,1,aux!$AL$1)>0,(O98-INDEX($K98:$O98,1,aux!$AL$1))/INDEX($K98:$O98,1,aux!$AL$1),"n.d.") -> -0.326982556 | AX98: 11
A99: 1103 | B99: Grumos, sêmolas, etc. de cereais | C99: 0 | D99: 0 | E99: 0 | F99: 0 | G99: 0.077 | H99: 0.0154 | I99: 7.620790585e-08 | J99: 5.79000781e-08 | K99: 0 | L99: 0 | M99: 0 | N99: 0 | O99: 0.048 | P99: 0.0096 | Q99: 4.866878079e-08 | R99: 1.698265456e-08 | S99: -0.0058 | U99: =G99-INDEX($C99:$G99,1,aux!$AL$1) -> 0.077 | V99: -8.879635617e-06 | W99: -4.355885089e-06 | X99: =+IF(INDEX($C99:$G99,1,aux!$AL$1)>0,(G99/INDEX($C99:$G99,1,aux!$AL$1))^(1/($G$3-INDEX($C$3:$G$3,1,aux!$AL$1)))-1,"n.d.") -> n.d. | Y99: =IF(INDEX($C99:$G99,1,aux!$AL$1)>0,(G99-INDEX($C99:$G99,1,aux!$AL$1))/INDEX($C99:$G99,1,aux!$AL$1),"n.d.") -> n.d. | AA99: =O99-INDEX($K99:$O99,1,aux!$AL$1) -> 0.048 | AB99: 1.329188738e-06 | AC99: 1.239836473e-06 | AD99: =+IF(INDEX($K99:$O99,1,aux!$AL$1)>0,(O99/INDEX($K99:$O99,1,aux!$AL$1))^(1/($O$3-INDEX($K$3:$O$3,1,aux!$AL$1)))-1,"n.d.") -> n.d. | AE99: =IF(INDEX($K99:$O99,1,aux!$AL$1)>0,(O99-INDEX($K99:$O99,1,aux!$AL$1))/INDEX($K99:$O99,1,aux!$AL$1),"n.d.") -> n.d. | AX99: 11
A100: 1104 | B100: Grãos de cereais processados | C100: 0 | D100: 0.503 | E100: 0 | F100: 0.012 | G100: 0.249 | H100: 0.1528 | I100: 7.561407801e-07 | J100: 5.744890866e-07 | K100: 0.134 | L100: 4.749 | M100: 0.518 | N100: 0.507 | O100: 0.009 | P100: 1.1834 | Q100: 5.999441165e-06 | R100: 2.09346598e-06 | S100: 1.0306 | U100: =G100-INDEX($C100:$G100,1,aux!$AL$1) -> 0.249 | V100: -2.871466583e-05 | W100: -1.408591412e-05 | X100: =+IF(INDEX($C100:$G100,1,aux!$AL$1)>0,(G100/INDEX($C100:$G100,1,aux!$AL$1))^(1/($G$3-INDEX($C$3:$G$3,1,aux!$AL$1)))-1,"n.d.") -> n.d. | Y100: =IF(INDEX($C100:$G100,1,aux!$AL$1)>0,(G100-INDEX($C100:$G100,1,aux!$AL$1))/INDEX($C100:$G100,1,aux!$AL$1),"n.d.") -> n.d. | AA100: =O100-INDEX($K100:$O100,1,aux!$AL$1) -> -0.125 | AB100: -3.461429006e-06 | AC100: -3.228740815e-06 | AD100: =+IF(INDEX($K100:$O100,1,aux!$AL$1)>0,(O100/INDEX($K100:$O100,1,aux!$AL$1))^(1/($O$3-INDEX($K$3:$O$3,1,aux!$AL$1)))-1,"n.d.") -> -0.4909218845 | AE100: =IF(INDEX($K100:$O100,1,aux!$AL$1)>0,(O100-INDEX($K100:$O100,1,aux!$AL$1))/INDEX($K100:$O100,1,aux!$AL$1),"n.d.") -> -0.9328358209 | AX100: 11
A101: 1105 | B101: Farinha, sêmola, etc. de batata | C101: 0 | D101: 0 | E101: 0.142 | F101: 0 | G101: 0 | H101: 0.0284 | I101: 1.405392549e-07 | J101: 1.067767674e-07 | K101: 0.975 | L101: 3.08 | M101: 0.695 | N101: 1.055 | O101: 1.472 | P101: 1.4554 | Q101: 7.378389954e-06 | R101: 2.574641192e-06 | S101: 1.427 | U101: =G101-INDEX($C101:$G101,1,aux!$AL$1) -> 0 | V101: 0 | W101: 0 | X101: =+IF(INDEX($C101:$G101,1,aux!$AL$1)>0,(G101/INDEX($C101:$G101,1,aux!$AL$1))^(1/($G$3-INDEX($C$3:$G$3,1,aux!$AL$1)))-1,"n.d.") -> n.d. | Y101: =IF(INDEX($C101:$G101,1,aux!$AL$1)>0,(G101-INDEX($C101:$G101,1,aux!$AL$1))/INDEX($C101:$G101,1,aux!$AL$1),"n.d.") -> n.d. | AA101: =O101-INDEX($K101:$O101,1,aux!$AL$1) -> 0.497 | AB101: 1.376264173e-05 | AC101: 1.283747348e-05 | AD101: =+IF(INDEX($K101:$O101,1,aux!$AL$1)>0,(O101/INDEX($K101:$O101,1,aux!$AL$1))^(1/($O$3-INDEX($K$3:$O$3,1,aux!$AL$1)))-1,"n.d.") -> 0.1084747342 | AE101: =IF(INDEX($K101:$O101,1,aux!$AL$1)>0,(O101-INDEX($K101:$O101,1,aux!$AL$1))/INDEX($K101:$O101,1,aux!$AL$1),"n.d.") -> 0.5097435897 | AX101: 11
A102: 1106 | B102: Farinhas, etc. de leguminosas e outros tubérculos | C102: 5.692 | D102: 50.756 | E102: 51.205 | F102: 0.07 | G102: 0.072 | H102: 21.559 | I102: 0.0001066861196 | J102: 8.10563496e-05 | K102: 0.02 | L102: 0.094 | M102: 0.163 | N102: 0.639 | O102: 0.065 | P102: 0.1962 | Q102: 9.946682073e-07 | R102: 3.470830025e-07 | S102: -21.3628 | U102: =G102-INDEX($C102:$G102,1,aux!$AL$1) -> -5.62 | V102: 0.0006480980801 | W102: 0.0003179230416 | X102: =+IF(INDEX($C102:$G102,1,aux!$AL$1)>0,(G102/INDEX($C102:$G102,1,aux!$AL$1))^(1/($G$3-INDEX($C$3:$G$3,1,aux!$AL$1)))-1,"n.d.") -> -0.6646356446 | Y102: =IF(INDEX($C102:$G102,1,aux!$AL$1)>0,(G102-INDEX($C102:$G102,1,aux!$AL$1))/INDEX($C102:$G102,1,aux!$AL$1),"n.d.") -> -0.9873506676 | AA102: =O102-INDEX($K102:$O102,1,aux!$AL$1) -> 0.045 | AB102: 1.246114442e-06 | AC102: 1.162346693e-06 | AD102: =+IF(INDEX($K102:$O102,1,aux!$AL$1)>0,(O102/INDEX($K102:$O102,1,aux!$AL$1))^(1/($O$3-INDEX($K$3:$O$3,1,aux!$AL$1)))-1,"n.d.") -> 0.3426748071 | AE102: =IF(INDEX($K102:$O102,1,aux!$AL$1)>0,(O102-INDEX($K102:$O102,1,aux!$AL$1))/INDEX($K102:$O102,1,aux!$AL$1),"n.d.") -> 2.25 | AX102: 11
A103: 1107 | B103: Malte, mesmo torrado | C103: 0 | D103: 0 | E103: 0 | F103: 0 | G103: 0 | H103: 0 | I103: 0 | J103: 0 | K103: 0 | L103: 0 | M103: 0 | N103: 0 | O103: 0 | P103: 0 | Q103: 0 | R103: 0 | S103: 0 | U103: =G103-INDEX($C103:$G103,1,aux!$AL$1) -> 0 | V103: 0 | W103: 0 | X103: =+IF(INDEX($C103:$G103,1,aux!$AL$1)>0,(G103/INDEX($C103:$G103,1,aux!$AL$1))^(1/($G$3-INDEX($C$3:$G$3,1,aux!$AL$1)))-1,"n.d.") -> n.d. | Y103: =IF(INDEX($C103:$G103,1,aux!$AL$1)>0,(G103-INDEX($C103:$G103,1,aux!$AL$1))/INDEX($C103:$G103,1,aux!$AL$1),"n.d.") -> n.d. | AA103: =O103-INDEX($K103:$O103,1,aux!$AL$1) -> 0 | AB103: 0 | AC103: 0 | AD103: =+IF(INDEX($K103:$O103,1,aux!$AL$1)>0,(O103/INDEX($K103:$O103,1,aux!$AL$1))^(1/($O$3-INDEX($K$3:$O$3,1,aux!$AL$1)))-1,"n.d.") -> n.d. | AE103: =IF(INDEX($K103:$O103,1,aux!$AL$1)>0,(O103-INDEX($K103:$O103,1,aux!$AL$1))/INDEX($K103:$O103,1,aux!$AL$1),"n.d.") -> n.d. | AX103: 11
A104: 1108 | B104: Amidos e féculas; inulina | C104: 0 | D104: 0.538 | E104: 0.019 | F104: 118.039 | G104: 1.029 | H104: 23.925 | I104: 0.0001183944252 | J104: 8.995190705e-05 | K104: 7.515 | L104: 6.639 | M104: 15.901 | N104: 20.375 | O104: 24.224 | P104: 14.9308 | Q104: 7.569414918e-05 | R104: 2.641298111e-05 | S104: -8.9942 | U104: =G104-INDEX($C104:$G104,1,aux!$AL$1) -> 1.029 | V104: -0.0001186642214 | W104: -5.821046437e-05 | X104: =+IF(INDEX($C104:$G104,1,aux!$AL$1)>0,(G104/INDEX($C104:$G104,1,aux!$AL$1))^(1/($G$3-INDEX($C$3:$G$3,1,aux!$AL$1)))-1,"n.d.") -> n.d. | Y104: =IF(INDEX($C104:$G104,1,aux!$AL$1)>0,(G104-INDEX($C104:$G104,1,aux!$AL$1))/INDEX($C104:$G104,1,aux!$AL$1),"n.d.") -> n.d. | AA104: =O104-INDEX($K104:$O104,1,aux!$AL$1) -> 16.709 | AB104: 0.0004626961381 | AC104: 0.0004315922422 | AD104: =+IF(INDEX($K104:$O104,1,aux!$AL$1)>0,(O104/INDEX($K104:$O104,1,aux!$AL$1))^(1/($O$3-INDEX($K$3:$O$3,1,aux!$AL$1)))-1,"n.d.") -> 0.3399210757 | AE104: =IF(INDEX($K104:$O104,1,aux!$AL$1)>0,(O104-INDEX($K104:$O104,1,aux!$AL$1))/INDEX($K104:$O104,1,aux!$AL$1),"n.d.") -> 2.223419827 | AX104: 11
A105: 1109 | B105: Glúten de trigo, mesmo seco | C105: 0 | D105: 0 | E105: 0 | F105: 0 | G105: 0 | H105: 0 | I105: 0 | J105: 0 | K105: 0 | L105: 0 | M105: 0 | N105: 0 | O105: 0 | P105: 0 | Q105: 0 | R105: 0 | S105: 0 | U105: =G105-INDEX($C105:$G105,1,aux!$AL$1) -> 0 | V105: 0 | W105: 0 | X105: =+IF(INDEX($C105:$G105,1,aux!$AL$1)>0,(G105/INDEX($C105:$G105,1,aux!$AL$1))^(1/($G$3-INDEX($C$3:$G$3,1,aux!$AL$1)))-1,"n.d.") -> n.d. | Y105: =IF(INDEX($C105:$G105,1,aux!$AL$1)>0,(G105-INDEX($C105:$G105,1,aux!$AL$1))/INDEX($C105:$G105,1,aux!$AL$1),"n.d.") -> n.d. | AA105: =O105-INDEX($K105:$O105,1,aux!$AL$1) -> 0 | AB105: 0 | AC105: 0 | AD105: =+IF(INDEX($K105:$O105,1,aux!$AL$1)>0,(O105/INDEX($K105:$O105,1,aux!$AL$1))^(1/($O$3-INDEX($K$3:$O$3,1,aux!$AL$1)))-1,"n.d.") -> n.d. | AE105: =IF(INDEX($K105:$O105,1,aux!$AL$1)>0,(O105-INDEX($K105:$O105,1,aux!$AL$1))/INDEX($K105:$O105,1,aux!$AL$1),"n.d.") -> n.d. | AX105: 11
A106: 11SS | B106: Produtos da indústria de moagem e outros | C106: 0 | D106: 0 | E106: 0 | F106: 0 | G106: 0 | H106: 0 | I106: 0 | J106: 0 | K106: 0 | L106: 0 | M106: 0 | N106: 0 | O106: 0 | P106: 0 | Q106: 0 | R106: 0 | S106: 0 | U106: =G106-INDEX($C106:$G106,1,aux!$AL$1) -> 0 | V106: 0 | W106: 0 | X106: =+IF(INDEX($C106:$G106,1,aux!$AL$1)>0,(G106/INDEX($C106:$G106,1,aux!$AL$1))^(1/($G$3-INDEX($C$3:$G$3,1,aux!$AL$1)))-1,"n.d.") -> n.d. | Y106: =IF(INDEX($C106:$G106,1,aux!$AL$1)>0,(G106-INDEX($C106:$G106,1,aux!$AL$1))/INDEX($C106:$G106,1,aux!$AL$1),"n.d.") -> n.d. | AA106: =O106-INDEX($K106:$O106,1,aux!$AL$1) -> 0 | AB106: 0 | AC106: 0 | AD106: =+IF(INDEX($K106:$O106,1,aux!$AL$1)>0,(O106/INDEX($K106:$O106,1,aux!$AL$1))^(1/($O$3-INDEX($K$3:$O$3,1,aux!$AL$1)))-1,"n.d.") -> n.d. | AE106: =IF(INDEX($K106:$O106,1,aux!$AL$1)>0,(O106-INDEX($K106:$O106,1,aux!$AL$1))/INDEX($K106:$O106,1,aux!$AL$1),"n.d.") -> n.d. | AX106: 11
A107: 1201 | B107: Soja, mesmo triturada | C107: 164043.805 | D107: 103490.08 | E107: 118328.024 | F107: 148326.078 | G107: 141375.478 | H107: 135112.693 | I107: 0.6686139862 | J107: 0.5079893167 | K107: 0 | L107: 0 | M107: 0 | N107: 0.041 | O107: 0.019 | P107: 0.012 | Q107: 6.083597598e-08 | R107: 2.12283182e-08 | S107: -135112.681 | U107: =G107-INDEX($C107:$G107,1,aux!$AL$1) -> -22668.327 | V107: 2.614110179 | W107: 1.282345813 | X107: =+IF(INDEX($C107:$G107,1,aux!$AL$1)>0,(G107/INDEX($C107:$G107,1,aux!$AL$1))^(1/($G$3-INDEX($C$3:$G$3,1,aux!$AL$1)))-1,"n.d.") -> -0.03649590892 | Y107: =IF(INDEX($C107:$G107,1,aux!$AL$1)>0,(G107-INDEX($C107:$G107,1,aux!$AL$1))/INDEX($C107:$G107,1,aux!$AL$1),"n.d.") -> -0.1381845965 | AA107: =O107-INDEX($K107:$O107,1,aux!$AL$1) -> 0.019 | AB107: 5.261372089e-07 | AC107: 4.907686038e-07 | AD107: =+IF(INDEX($K107:$O107,1,aux!$AL$1)>0,(O107/INDEX($K107:$O107,1,aux!$AL$1))^(1/($O$3-INDEX($K$3:$O$3,1,aux!$AL$1)))-1,"n.d.") -> n.d. | AE107: =IF(INDEX($K107:$O107,1,aux!$AL$1)>0,(O107-INDEX($K107:$O107,1,aux!$AL$1))/INDEX($K107:$O107,1,aux!$AL$1),"n.d.") -> n.d. | AX107: 12
A108: 1202 | B108: Amendoins não torrados | C108: 2649.256 | D108: 3207.062 | E108: 2024.604 | F108: 4138.245 | G108: 3649.66 | H108: 3133.7654 | I108: 0.01550764276 | J108: 0.01178215983 | K108: 0 | L108: 0 | M108: 0 | N108: 0 | O108: 0 | P108: 0 | Q108: 0 | R108: 0 | S108: -3133.7654 | U108: =G108-INDEX($C108:$G108,1,aux!$AL$1) -> 1000.404 | V108: -0.1153665323 | W108: -0.05659279048 | X108: =+IF(INDEX($C108:$G108,1,aux!$AL$1)>0,(G108/INDEX($C108:$G108,1,aux!$AL$1))^(1/($G$3-INDEX($C$3:$G$3,1,aux!$AL$1)))-1,"n.d.") -> 0.08338325882 | Y108: =IF(INDEX($C108:$G108,1,aux!$AL$1)>0,(G108-INDEX($C108:$G108,1,aux!$AL$1))/INDEX($C108:$G108,1,aux!$AL$1),"n.d.") -> 0.3776169611 | AA108: =O108-INDEX($K108:$O108,1,aux!$AL$1) -> 0 | AB108: 0 | AC108: 0 | AD108: =+IF(INDEX($K108:$O108,1,aux!$AL$1)>0,(O108/INDEX($K108:$O108,1,aux!$AL$1))^(1/($O$3-INDEX($K$3:$O$3,1,aux!$AL$1)))-1,"n.d.") -> n.d. | AE108: =IF(INDEX($K108:$O108,1,aux!$AL$1)>0,(O108-INDEX($K108:$O108,1,aux!$AL$1))/INDEX($K108:$O108,1,aux!$AL$1),"n.d.") -> n.d. | AX108: 12
A109: 1203 | B109: Copra | C109: 0 | D109: 0 | E109: 0 | F109: 0 | G109: 0 | H109: 0 | I109: 0 | J109: 0 | K109: 0 | L109: 0 | M109: 0 | N109: 0 | O109: 0 | P109: 0 | Q109: 0 | R109: 0 | S109: 0 | U109: =G109-INDEX($C109:$G109,1,aux!$AL$1) -> 0 | V109: 0 | W109: 0 | X109: =+IF(INDEX($C109:$G109,1,aux!$AL$1)>0,(G109/INDEX($C109:$G109,1,aux!$AL$1))^(1/($G$3-INDEX($C$3:$G$3,1,aux!$AL$1)))-1,"n.d.") -> n.d. | Y109: =IF(INDEX($C109:$G109,1,aux!$AL$1)>0,(G109-INDEX($C109:$G109,1,aux!$AL$1))/INDEX($C109:$G109,1,aux!$AL$1),"n.d.") -> n.d. | AA109: =O109-INDEX($K109:$O109,1,aux!$AL$1) -> 0 | AB109: 0 | AC109: 0 | AD109: =+IF(INDEX($K109:$O109,1,aux!$AL$1)>0,(O109/INDEX($K109:$O109,1,aux!$AL$1))^(1/($O$3-INDEX($K$3:$O$3,1,aux!$AL$1)))-1,"n.d.") -> n.d. | AE109: =IF(INDEX($K109:$O109,1,aux!$AL$1)>0,(O109-INDEX($K109:$O109,1,aux!$AL$1))/INDEX($K109:$O109,1,aux!$AL$1),"n.d.") -> n.d. | AX109: 12
A110: 1204 | B110: Sementes de linho (linhaça) | C110: 0 | D110: 0 | E110: 0 | F110: 0 | G110: 0 | H110: 0 | I110: 0 | J110: 0 | K110: 0 | L110: 0.054 | M110: 0.062 | N110: 0.205 | O110: 0.024 | P110: 0.069 | Q110: 3.498068619e-07 | R110: 1.220628296e-07 | S110: 0.069 | U110: =G110-INDEX($C110:$G110,1,aux!$AL$1) -> 0 | V110: 0 | W110: 0 | X110: =+IF(INDEX($C110:$G110,1,aux!$AL$1)>0,(G110/INDEX($C110:$G110,1,aux!$AL$1))^(1/($G$3-INDEX($C$3:$G$3,1,aux!$AL$1)))-1,"n.d.") -> n.d. | Y110: =IF(INDEX($C110:$G110,1,aux!$AL$1)>0,(G110-INDEX($C110:$G110,1,aux!$AL$1))/INDEX($C110:$G110,1,aux!$AL$1),"n.d.") -> n.d. | AA110: =O110-INDEX($K110:$O110,1,aux!$AL$1) -> 0.024 | AB110: 6.645943691e-07 | AC110: 6.199182364e-07 | AD110: =+IF(INDEX($K110:$O110,1,aux!$AL$1)>0,(O110/INDEX($K110:$O110,1,aux!$AL$1))^(1/($O$3-INDEX($K$3:$O$3,1,aux!$AL$1)))-1,"n.d.") -> n.d. | AE110: =IF(INDEX($K110:$O110,1,aux!$AL$1)>0,(O110-INDEX($K110:$O110,1,aux!$AL$1))/INDEX($K110:$O110,1,aux!$AL$1),"n.d.") -> n.d. | AX110: 12
A111: 1205 | B111: Sementes de nabo silvestre ou de colza | C111: 0.403 | D111: 0 | E111: 0 | F111: 0 | G111: 0 | H111: 0.0806 | I111: 3.988543644e-07 | J111: 3.030354737e-07 | K111: 0 | L111: 0 | M111: 0 | N111: 0 | O111: 0 | P111: 0 | Q111: 0 | R111: 0 | S111: -0.0806 | U111: =G111-INDEX($C111:$G111,1,aux!$AL$1) -> -0.403 | V111: 4.647393706e-05 | W111: 2.27976843e-05 | X111: =+IF(INDEX($C111:$G111,1,aux!$AL$1)>0,(G111/INDEX($C111:$G111,1,aux!$AL$1))^(1/($G$3-INDEX($C$3:$G$3,1,aux!$AL$1)))-1,"n.d.") -> -1 | Y111: =IF(INDEX($C111:$G111,1,aux!$AL$1)>0,(G111-INDEX($C111:$G111,1,aux!$AL$1))/INDEX($C111:$G111,1,aux!$AL$1),"n.d.") -> -1 | AA111: =O111-INDEX($K111:$O111,1,aux!$AL$1) -> 0 | AB111: 0 | AC111: 0 | AD111: =+IF(INDEX($K111:$O111,1,aux!$AL$1)>0,(O111/INDEX($K111:$O111,1,aux!$AL$1))^(1/($O$3-INDEX($K$3:$O$3,1,aux!$AL$1)))-1,"n.d.") -> n.d. | AE111: =IF(INDEX($K111:$O111,1,aux!$AL$1)>0,(O111-INDEX($K111:$O111,1,aux!$AL$1))/INDEX($K111:$O111,1,aux!$AL$1),"n.d.") -> n.d. | AX111: 12
